Workbook

Sheet CycleTime
L1: ↓ W～AQ 「表示しない」列 ↓ ↓ W～AQ 「表示しない」列 ↓ ↓ W～AQ 「表示しない」列 ↓ ↓ W～AQ 「表示しない」列 ↓ ↓ W～AQ 「表示しない」列 ↓ ↓ W～AQ 「表示しない」列 ↓ ↓ W～AQ 「表示しない」列 ↓ ↓ W～AQ 「表示しない」列 ↓ ↓ W～AQ 「表示しない」列 ↓ ↓ | AT1: 残す列 | AV1: 残す列
L2: 参考表示
L3: Vmax[㎜/s] | N3: =SQRT(D14*(2*N4*N5)/(N4+N5)) -> 383.5358523 | AB3: feedforward | AE3: 物理計算用変換係数
A4: <a> | B4: シリーズ | C4: EC | L4: =IF(AE33=0,"加速度[㎜/s^2]","加速度[deg/s^2]") -> 加速度[㎜/s^2] | N4: =D20*AH5*1000 -> 2941.995 | AB4: =AF45/100 -> 0 | AE4: ﾓｰﾀ軸角速度及び角加速度 | AH4: Ｇ
L5: =IF(AE33=0,"減速度[㎜/s^2]","減速度[deg/s^2]") -> 減速度[㎜/s^2] | N5: =D22*AH5*1000 -> 2941.995 | AB5: Kf | AC5: =IF( AB4=1,1,1-EXP(-((N11/(1-AB4))-N11)*N8) ) -> 0 | AE5: =IF(AE33=0,1000,360/(2*PI())) -> 1000 | AH5: =LeadData!$A$1 -> 9.80665
A6: <b> | B6: 型式 | C6: EC-S6L | L6: 最高速度[㎜/s] | N6: =IF(D18<N3,D18,N3) -> 170 | AO6: (Tkp+2Kf) | AP6: =($N$8*$N$11+2*$AB$4) -> 0.007523283074
L7: 分割数 | N7: =ROUND(3200/(AP18+AP20*10)*AP18,0) -> 1871 | AO7: (Tkp-2Kf) | AP7: =($N$8*$N$11-2*$AB$4) -> 0.007523283074
A8: <c> | B8: =IF(AE33=0,"リード","減速比") -> リード | C8: 3 | D8: =IF(AE33=0,"㎜","：1") -> ㎜ | L8: ⊿ｔ[s] | N8: =AT32-AT31 -> 0.0001880820769 | AO8: (2+TKp) | AP8: =(2+$N$8*$N$11) -> 2.007523283
L9: 最終時刻[s] | N9: =AT3231 -> 0.6018626459 | AO9: (2-TKp) | AP9: =(2-$N$8*$N$11) -> 1.992476717
A10: <d> | B10: ストローク | C10: 50 | D10: ㎜ | L10: 最終位置[㎜] | N10: =AV3231 -> 49.99992468 | AO10: 減速時間 | AP10: =N6/N5 -> 0.05778391874 | AQ10: s
L11: 位置ｹﾞｲﾝ | N11: =AE45 -> 40 | AO11: 減速距離 | AP11: =N5*AP10*AP10/2 -> 4.911633093 | AQ11: ㎜
A12: <e> | B12: 設置姿勢 | C12: 水平 | L12: 速度制御帯域 | N12: =AG45 -> 240 | AO12: 加速時間 | AP12: =N6/N4 -> 0.05778391874 | AQ12: s
AO13: 加速距離 | AP13: =N4*AP12*AP12/2 -> 4.911633093 | AQ13: ㎜
A14: <1> | B14: 移動距離[㎜] | D14: 50 | L14: 移動可能距離[㎜] | N14: =X45+Y45 -> 50 | AO14: 等速時間 | AP14: =IF(D18<N3,(D14-AP13-AP11)/D18,0) -> 0.2363337283 | AQ14: s
AO15: 等速距離 | AP15: =AP14*N6 -> 40.17673381 | AQ15: ㎜
A16: <2> | B16: =IF(AE33=0,"搬送質量[kg]","搬送ｲﾅｰｼｬ[kgm^2]") -> 搬送質量[kg] | D16: 40 | L16: =CONCATENATE(C6,"-",C8) -> EC-S6L-3 | AO16: 減速時刻 | AP16: =AP12+AP14 -> 0.2941176471 | AQ16: s
L17: =CONCATENATE(C6,"-",C8,"-",C10,"-",C12) -> EC-S6L-3-50-水平 | AO17: 減速位置 | AP17: =AP13+AP15 -> 45.08836691 | AQ17: ㎜
A18: <3> | B18: 速度[㎜/s] | D18: 170 | G18: ●計算結果 | L18: 最高速度 | M18: 位置ｹﾞｲﾝ | N18: 速度ﾙｰﾌﾟ比例ｹﾞｲﾝ | O18: 速度ﾙｰﾌﾟ積分ｹﾞｲﾝ | P18: 電流制御帯域番号 | Q18: ﾄﾙｸﾌｨﾙﾀ時定数 | R18: ストローク | AO18: TotalTime | AP18: =AP14+AP12+AP10 -> 0.3519015658 | AQ18: s
L19: =AD45 -> 225 | M19: =AE45 -> 40 | N19: =AN27 -> 0 | O19: =AO27 -> 0 | P19: =AK45 -> 0 | Q19: =AI45 -> 0 | R19: =C10 -> 50 | AE19: 運転姿勢 | AF19: ←初期値 | AO19: Spdτ | AP19: =1/N12 -> 0.004166666667 | AQ19: s
A20: <4> | B20: 加速度[G] | D20: 0.3 | G20: 位置決め時間 [s] | I20: =LOOKUP((D14-D24),AV31:AV3231,AT31:AT3231) -> 0.4220561805 | AE20: 水平 | AF20: 水平 | AO20: Posτ | AP20: =1/N11 -> 0.025 | AQ20: s
AE21: 垂直 | AO21: 収束時間 | AP21: =I20-AP18 -> 0.07015461467 | AQ21: s
A22: <5> | B22: 減速度[G] | D22: 0.3
A24: <6> | B24: 位置決め幅 [㎜] | D24: 0.1 | F24: =IF(N9<=I20,"位置決め時間を正しく計算できていません","※位置決め幅に到達するまでの時間を表します。") -> ※位置決め幅に到達するまでの時間を表します。
F25: =IF(N10<=I21,"","※計算結果は参考値です。 負荷状況により実際の位置決め時間とは異なる場合があります。 ※ゲイン調整により計算結果より早く位置決めできる場合があります。 詳しくは使用するコントローラーの取扱説明書をご確認ください。") -> ※計算結果は参考値です。 負荷状況により実際の位置決め時間とは異なる場合があります。 ※ゲイン調整により計算結果より早く位置決めできる場合があります。 詳しくは使用するコントローラーの取扱説明書をご確認ください。
A28: 1 | B28: =A28+1 -> 2 | C28: 3 | D28: 4 | E28: 5 | F28: 6 | G28: 7 | H28: 8 | I28: 9 | J28: 10 | K28: 11 | L28: 12 | M28: 13 | N28: 14 | O28: 15 | P28: =O28+1 -> 16 | Q28: =P28+1 -> 17 | R28: =Q28+1 -> 18 | S28: =R28+1 -> 19 | T28: =S28+1 -> 20 | U28: 21 | V28: 22 | W28: 23 | X28: 24 | Y28: 25 | Z28: 26 | AA28: 27 | AB28: 28 | AC28: 29 | AD28: 30 | AE28: 31 | AF28: 32 | AG28: 33 | AH28: 34 | AI28: 35 | AJ28: 36 | AK28: 37 | AL28: 38 | AM28: 39 | AN28: 40 | AO28: 41 | AP28: 42 | AQ28: 43 | AR28: 44 | AS28: 45 | AT28: 46 | AU28: 47 | AV28: 48
O29: ↓↓↓↓↓↓↓↓ フォント色を白にする列 O29～U193 ↓↓↓↓↓↓↓↓ | AS29: ↓↓↓↓↓↓↓↓↓↓↓↓↓↓↓ フォント色を白に、数式は非表示に、する列 A29～J3231 ↓↓↓↓↓↓↓↓↓↓↓↓↓↓↓
B30: 可搬質量 | C30: 加減速度 | D30: 最高速度 | E30: 実加速度 | F30: 到達速度 | G30: 運転時間 | H30: 三角速度 | O30: № | P30: メカ型式リスト | Q30: 絞込み | R30: ﾀｲﾌﾟﾘｽﾄ | S30: ﾘｰﾄﾞﾘｽﾄ | T30: ｽﾄﾛｰｸﾘｽﾄ | U30: 型式総数 | W30: =DataSerch!B1 -> メカ機種データレコード | AS30: № | AT30: 時刻 | AU30: 位置計画 | AV30: 位置
A31: =A30+1 -> 1 | B31: 12 | C31: 1 | D31: 225 | E31: 9806.65 | F31: 225 | G31: 0.245165837 | H31: 700.2374597 | O31: 1 | P31: EC-S6L | Q31: EC-S6L | R31: EC | S31: 3 | T31: 50 | U31: 214 | W31: ﾚｺｰﾄﾞ№ | X31: =DataSerch!$C$2 -> ｱｸﾁｭｴｰﾀ型式 | Z31: =DataSerch!$E$2 -> 0 | AA31: =DataSerch!$F$2 -> 0 | AB31: =DataSerch!$G$2 -> 0 | AC31: =DataSerch!$H$2 -> 最小ｽﾄﾛｰｸ | AD31: =DataSerch!$I$2 -> 最大ｽﾄﾛｰｸ | AE31: =DataSerch!$J$2 -> 動作種別 | AF31: =DataSerch!$K$2 -> 0 | AS31: 0 | AT31: =$AP$18/$N$7*AS31 -> 0 | AU31: 0 | AV31: 0
A32: 2 | B32: 13 | C32: 1 | D32: 221 | E32: 9806.65 | F32: 221 | G32: 0.2487800722 | H32: 700.2374597 | O32: =O31+1 -> 2 | P32: EC-S6M | Q32: EC-S6M | R32: EC-S | S32: - - - | T32: 100 | U32: 絞込み数 | W32: =DataSerch!$B$3 -> 1 | X32: =DataSerch!$C$3 -> EC-S6L | Z32: =DataSerch!$E$4 -> [kg] | AA32: =DataSerch!$F$4 -> [mm] | AB32: =DataSerch!$G$4 -> [mm] | AC32: =DataSerch!$H$4 -> [mm] | AD32: =DataSerch!$I$4 -> [mm] | AE32: =DataSerch!$J$4 -> 0/1 | AF32: =DataSerch!$K$4 -> [K] | AS32: =AS31+1 -> 1 | AT32: 0.0001880820769 | AU32: =IF(($N$4*AT32^2/2)<=$AP$13,($N$4*AT32^2/2), IF(($AP$13+$N$6*(AT32-$AP$12))<=$AP$17, ($AP$13+$N$6*(AT32-$AP$12)), IF(AU31<$D$14, ($AP$17+($N$6-$N$5*(AT32-$AP$16)/2)*(AT32-$AP$16)), $D$14))) -> 5.203634185e-05 | AV32: =( $AP$6*AU32 + $AP$7*AU31 + $AP$9*AV31 )/$AP$8 -> 1.950085128e-07
A33: 3 | B33: 14 | C33: 1 | D33: 218 | E33: 9806.65 | F33: 218 | G33: 0.2515876116 | H33: 700.2374597 | O33: =O32+1 -> 3 | P33: EC-S6H | Q33: EC-S6H | R33: EC-R | S33: - - - | T33: 150 | U33: 214 | Z33: =DataSerch!$E$5 -> 0 | AA33: =DataSerch!$F$5 -> 0 | AB33: =DataSerch!$G$5 -> 0 | AC33: =DataSerch!$H$5 -> 50 | AD33: =DataSerch!$I$5 -> 400 | AE33: =DataSerch!$J$5 -> 0 | AS33: =AS32+1 -> 2 | AT33: 0.0003761641537 | AU33: 0.0002081453674 | AV33: =( $AP$6*AU33 + $AP$7*AU32 + $AP$9*AV32 )/$AP$8 -> 1.168589471e-06
A34: 4 | B34: 15 | C34: 1 | D34: 215 | E34: 9806.65 | F34: 215 | G34: 0.2544820381 | H34: 700.2374597 | O34: 4 | P34: EC-S6S | Q34: EC-S6S | R34: EC-RR | S34: - - - | T34: 200 | AS34: 3 | AT34: 0.0005642462306 | AU34: 0.0004683270767 | AV34: 3.694941455e-06
A35: 5 | B35: 16 | C35: 0.7 | D35: 225 | E35: 6864.655 | F35: 225 | G35: 0.2549988148 | H35: 585.8606916 | O35: 5 | P35: EC-S7L | Q35: EC-S7L | S35: - - - | T35: 250 | U35: ﾘｰﾄﾞ総数 | W35: リードデータレコード | AS35: 4 | AT35: 0.0007523283074 | AU35: 0.0008325814696 | AV35: 8.54246036e-06
A36: 6 | B36: 16 | C36: 1 | D36: 212 | E36: 9806.65 | F36: 212 | G36: 0.2574670403 | H36: 700.2374597 | O36: 6 | P36: EC-S7M | Q36: EC-S7M | S36: - - - | T36: 300 | U36: 1 | W36: リスト№ | X36: =DataSerch!$F$24 -> ﾘｰﾄﾞ長 | Y36: =DataSerch!$G$24 -> 0 | Z36: =DataSerch!$H$24 -> 水平定格加速度 | AA36: =DataSerch!$I$24 -> 垂直定格加速度 | AB36: =DataSerch!$J$24 -> 水平最大加速度 | AC36: =DataSerch!$K$24 -> 垂直最大加速度 | AD36: =DataSerch!$L$24 -> 0 | AE36: =DataSerch!$M$24 -> 0 | AF36: =DataSerch!$N$24 -> 0 | AG36: =DataSerch!$O$24 -> ｷﾞｱ比分子 | AH36: =DataSerch!$P$24 -> ｷﾞｱ比分母 | AI36: =DataSerch!$Q$24 -> 0 | AJ36: =DataSerch!$R$24 -> ｽﾄﾛｰｸ刻み | AS36: 5 | AT36: 0.0009404103843 | AU36: 0.001300908546 | AV36: 1.647378288e-05
A37: 7 | B37: 17 | C37: 0.7 | D37: 221 | E37: 6864.655 | F37: 221 | G37: 0.2584382415 | H37: 585.8606916 | O37: 7 | P37: EC-S7H | Q37: EC-S7H | S37: - - - | T37: 350 | AS37: 6 | AT37: 0.001128492461 | AU37: 0.001873308307 | AV37: 2.824582969e-05
A38: 8 | B38: 17 | C38: 1 | D38: 209 | E38: 9806.65 | F38: 209 | G38: 0.2605465186 | H38: 700.2374597 | O38: 8 | P38: EC-S7S | Q38: EC-S7S | S38: - - - | T38: 400 | U38: ｽﾄﾛｰｸ総数 | W38: =DataSerch!$D$35 -> 1 | X38: =DataSerch!$F$25 -> [mm] | Y38: =DataSerch!$G$25 -> [kgm^2] | Z38: =DataSerch!$H$25 -> [m/s^2] | AA38: =DataSerch!$I$25 -> [m/s^2] | AB38: =DataSerch!$J$25 -> [m/s^2] | AC38: =DataSerch!$K$25 -> [m/s^2] | AD38: =DataSerch!$L$25 -> [Nm] | AE38: =DataSerch!$M$25 -> [Nms] | AF38: =DataSerch!$N$25 -> [Nm] | AG38: =DataSerch!$O$25 -> 0 | AH38: =DataSerch!$P$25 -> 0 | AI38: =DataSerch!$Q$25 -> 0 | AJ38: =DataSerch!$R$25 -> [mm] | AS38: 7 | AT38: 0.001316574538 | AU38: 0.002549780751 | AV38: 4.460984827e-05
A39: 9 | B39: 18 | C39: 0.7 | D39: 217 | E39: 6864.655 | F39: 217 | G39: 0.2620259491 | H39: 585.8606916 | O39: 9 | P39: EC-R6L | Q39: EC-R6L | T39: - - - | U39: 8 | X39: =LOOKUP(W38,DataSerch!$B$26:$B$33,DataSerch!$F$26:$F$33) -> 3 | Y39: =LOOKUP(W38,DataSerch!$B$26:$B$33,DataSerch!$G$26:$G$33) -> 0 | Z39: =LOOKUP(W38,DataSerch!$B$26:$B$33,DataSerch!$H$26:$H$33) -> 2.941995 | AA39: =LOOKUP(W38,DataSerch!$B$26:$B$33,DataSerch!$I$26:$I$33) -> 2.941995 | AB39: =LOOKUP(W38,DataSerch!$B$26:$B$33,DataSerch!$J$26:$J$33) -> 9.80665 | AC39: =LOOKUP(W38,DataSerch!$B$26:$B$33,DataSerch!$K$26:$K$33) -> 4.903325 | AG39: =LOOKUP(W38,DataSerch!$B$26:$B$33,DataSerch!$O$26:$O$33) -> 1 | AH39: =LOOKUP(W38,DataSerch!$B$26:$B$33,DataSerch!$P$26:$P$33) -> 1 | AJ39: =LOOKUP(W38,DataSerch!$B$26:$B$33,DataSerch!$R$26:$R$33) -> 50 | AS39: 8 | AT39: 0.001504656615 | AU39: 0.003330325879 | AV39: 6.631145542e-05
A40: 10 | B40: 18 | C40: 1 | D40: 206 | E40: 9806.65 | F40: 206 | G40: 0.2637246006 | H40: 700.2374597 | O40: 10 | P40: EC-R6M | Q40: EC-R6M | T40: - - - | AS40: 9 | AT40: 0.001692738692 | AU40: 0.00421494369 | AV40: 9.409067951e-05
A41: 11 | B41: 19 | C41: 0.7 | D41: 214 | E41: 6864.655 | F41: 214 | G41: 0.2648190412 | H41: 585.8606916 | O41: 11 | P41: EC-R6H | Q41: EC-R6H | T41: - - - | W41: ストロークデータレコード | AS41: 10 | AT41: 0.001880820769 | AU41: 0.005203634185 | AV41: 0.0001286820023
A42: 12 | B42: 19 | C42: 1 | D42: 203 | E42: 9806.65 | F42: 203 | G42: 0.2670056578 | H42: 700.2374597 | O42: 12 | P42: EC-R6S | Q42: EC-R6S | T42: - - - | W42: リスト№ | X42: =DataSerch!$E$58 -> ｽﾄﾛｰｸ長 | Y42: =DataSerch!$G$58 -> 有効ｽﾄﾛｰｸ補正 | Z42: =DataSerch!$H$58 -> 0 | AA42: =DataSerch!$I$58 -> 基準ｹﾞｲﾝ用搬送質量 | AB42: =DataSerch!$J$58 -> 水平可搬質量 | AC42: =DataSerch!$K$58 -> 垂直可搬質量 | AD42: =DataSerch!$L$58 -> 最大速度 | AE42: =DataSerch!$M$58 -> 位置ｹﾞｲﾝ | AF42: =DataSerch!$N$58 -> FFｹﾞｲﾝ | AG42: =DataSerch!$O$58 -> 速度制御帯域 | AH42: =DataSerch!$P$58 -> 0 | AI42: =DataSerch!$Q$58 -> 0 | AJ42: =DataSerch!$R$58 -> 0 | AK42: =DataSerch!$S$58 -> 0 | AL42: =DataSerch!$T$58 -> 0 | AS42: 11 | AT42: 0.002068902845 | AU42: 0.006296397364 | AV42: 0.0001708144005
A43: 13 | B43: 20 | C43: 0.5 | D43: 225 | E43: 4903.325 | F43: 225 | G43: 0.2681094518 | H43: 495.1426562 | O43: 13 | P43: EC-R7L | Q43: EC-R7L | T43: - - - | AS43: 12 | AT43: 0.002256984922 | AU43: 0.007493233227 | AV43: 0.0002212113873
A44: 14 | B44: 20 | C44: 0.7 | D44: 210 | E44: 6864.655 | F44: 210 | G44: 0.2686867245 | H44: 585.8606916 | O44: 14 | P44: EC-R7M | Q44: EC-R7M | T44: - - - | W44: =MATCH(C10,DataSerch!$E$60:$E$109,0) -> 1 | X44: =DataSerch!$E$59 -> [mm] | Y44: =DataSerch!$G$59 -> [mm] | Z44: =DataSerch!$H$59 -> [kg/mm] | AA44: =DataSerch!$I$59 -> [kg] | AB44: =DataSerch!$J$59 -> [kg] | AC44: =DataSerch!$K$59 -> [kg] | AD44: =DataSerch!$L$59 -> [mm/s] | AE44: =DataSerch!$M$59 -> [1/s] | AF44: =DataSerch!$N$59 -> [%] | AG44: =DataSerch!$O$59 -> [rad/s] | AH44: =DataSerch!$P$59 -> 0 | AI44: =DataSerch!$Q$59 -> [s] | AJ44: =DataSerch!$R$59 -> 0 | AK44: =DataSerch!$S$59 -> 0 | AL44: =DataSerch!$T$59 -> [Nm/rad] | AS44: 13 | AT44: 0.002445066999 | AU44: 0.008794141773 | AV44: 0.0002805910527
A45: 15 | B45: 20 | C45: 1 | D45: 200 | E45: 9806.65 | F45: 200 | G45: 0.2703943243 | H45: 700.2374597 | O45: 15 | P45: EC-R7H | Q45: EC-R7H | T45: - - - | X45: =LOOKUP(W44,DataSerch!$D$60:$D$109,DataSerch!$E$60:$E$109) -> 50 | Y45: =LOOKUP(W44,DataSerch!$D$60:$D$109,DataSerch!$G$60:$G$109) -> 0 | Z45: =LOOKUP(W44,DataSerch!$D$60:$D$109,DataSerch!$H$60:$H$109) -> 0 | AA45: =LOOKUP(W44,DataSerch!$D$60:$D$109,DataSerch!$I$60:$I$109) -> 40 | AB45: =LOOKUP(W44,DataSerch!$D$60:$D$109,DataSerch!$J$60:$J$109) -> 40 | AC45: =LOOKUP(W44,DataSerch!$D$60:$D$109,DataSerch!$K$60:$K$109) -> 12.5 | AD45: =LOOKUP(W44,DataSerch!$D$60:$D$109,DataSerch!$L$60:$L$109) -> 225 | AE45: =LOOKUP(W44,DataSerch!$D$60:$D$109,DataSerch!$M$60:$M$109) -> 40 | AF45: =LOOKUP(W44,DataSerch!$D$60:$D$109,DataSerch!$N$60:$N$109) -> 0 | AG45: =LOOKUP(W44,DataSerch!$D$60:$D$109,DataSerch!$O$60:$O$109) -> 240 | AH45: =LOOKUP(W44,DataSerch!$D$60:$D$109,DataSerch!$P$60:$P$109) -> 0 | AI45: =LOOKUP(W44,DataSerch!$D$60:$D$109,DataSerch!$Q$60:$Q$109) -> 0 | AJ45: =LOOKUP(W44,DataSerch!$D$60:$D$109,DataSerch!$R$60:$R$109) -> 0 | AK45: =LOOKUP(W44,DataSerch!$D$60:$D$109,DataSerch!$S$60:$S$109) -> 0 | AL45: =LOOKUP(W44,DataSerch!$D$60:$D$109,DataSerch!$T$60:$T$109) -> 0 | AS45: 14 | AT45: 0.002633149076 | AU45: 0.010199123 | AV45: 0.0003496661049
A46: 16 | B46: 21 | C46: 0.5 | D46: 221 | E46: 4903.325 | F46: 221 | G46: 0.2713158005 | H46: 495.1426562 | O46: 16 | P46: EC-R7S | Q46: EC-R7S | T46: - - - | AS46: 15 | AT46: 0.002821231153 | AU46: 0.01170817692 | AV46: 0.0004291439101
A47: 17 | B47: 21 | C47: 0.7 | D47: 207 | E47: 6864.655 | F47: 207 | G47: 0.2717003589 | H47: 585.8606916 | O47: 17 | P47: EC-RR6L | Q47: EC-RR6L | T47: - - - | AS47: 16 | AT47: 0.00300931323 | AU47: 0.01332130351 | AV47: 0.0005197265329
A48: 18 | B48: 21 | C48: 1 | D48: 192 | E48: 9806.65 | F48: 192 | G48: 0.279995218 | H48: 700.2374597 | O48: 18 | P48: EC-RR6M | Q48: EC-RR6M | T48: - - - | AS48: 17 | AT48: 0.003197395307 | AU48: 0.0150385028 | AV48: 0.0006221107757
A49: 19 | B49: 22 | C49: 0.5 | D49: 218 | E49: 4903.325 | F49: 218 | G49: 0.2738174251 | H49: 495.1426562 | O49: 19 | P49: EC-RR6H | Q49: EC-RR6H | T49: - - - | AS49: 18 | AT49: 0.003385477383 | AU49: 0.01685977476 | AV49: 0.0007369882182
A50: 20 | B50: 22 | C50: 0.7 | D50: 203 | E50: 6864.655 | F50: 203 | G50: 0.2758771889 | H50: 585.8606916 | O50: 20 | P50: EC-RR6S | Q50: EC-RR6S | T50: - - - | U50: リンクリスト総数 | AS50: 19 | AT50: 0.00357355946 | AU50: 0.01878511941 | AV50: 0.0008650452571
A51: 21 | B51: 22 | C51: 1 | D51: 185 | E51: 9806.65 | F51: 185 | G51: 0.2891350202 | H51: 700.2374597 | O51: 21 | P51: EC-RR7L | Q51: EC-RR7L | T51: - - - | U51: 69 | AS51: 20 | AT51: 0.003761641537 | AU51: 0.02081453674 | AV51: 0.001006963144
A52: 22 | B52: 23 | C52: 0.5 | D52: 215 | E52: 4903.325 | F52: 215 | G52: 0.2764059367 | H52: 495.1426562 | O52: 22 | P52: EC-RR7M | Q52: EC-RR7M | T52: - - - | AS52: 21 | AT52: 0.003949723614 | AU52: 0.02294802676 | AV52: 0.001163418025
A53: 23 | B53: 23 | C53: 0.7 | D53: 200 | E53: 6864.655 | F53: 200 | G53: 0.2791347489 | H53: 585.8606916 | O53: 23 | P53: EC-RR7H | Q53: EC-RR7H | T53: - - - | AS53: 22 | AT53: 0.004137805691 | AU53: 0.02518558946 | AV53: 0.001335080977
A54: 24 | B54: 23 | C54: 1 | D54: 177 | E54: 9806.65 | F54: 177 | G54: 0.3005348527 | H54: 700.2374597 | O54: 24 | P54: EC-RR7S | Q54: EC-RR7S | T54: - - - | AS54: 23 | AT54: 0.004325887768 | AU54: 0.02752722484 | AV54: 0.001522618049
A55: 25 | B55: 24 | C55: 0.5 | D55: 212 | E55: 4903.325 | F55: 212 | G55: 0.279085024 | H55: 495.1426562 | O55: 25 | P55: EC-R6LW | Q55: EC-R6LW | T55: - - - | AS55: 24 | AT55: 0.004513969845 | AU55: 0.02997293291 | AV55: 0.001726690298
A56: 26 | B56: 24 | C56: 0.7 | D56: 196 | E56: 6864.655 | F56: 196 | G56: 0.2836540948 | H56: 585.8606916 | O56: 26 | P56: EC-R6MW | Q56: EC-R6MW | T56: - - - | AS56: 25 | AT56: 0.004702051921 | AU56: 0.03252271366 | AV56: 0.001947953824
A57: 27 | B57: 24 | C57: 1 | D57: 170 | E57: 9806.65 | F57: 170 | G57: 0.3114528227 | H57: 700.2374597 | O57: 27 | P57: EC-R6HW | Q57: EC-R6HW | T57: - - - | AS57: 26 | AT57: 0.004890133998 | AU57: 0.03517656709 | AV57: 0.002187059811
A58: 28 | B58: 25 | C58: 0.5 | D58: 209 | E58: 4903.325 | F58: 209 | G58: 0.2818585875 | H58: 495.1426562 | O58: 28 | P58: EC-R6SW | Q58: EC-R6SW | T58: - - - | AS58: 27 | AT58: 0.005078216075 | AU58: 0.03793449321 | AV58: 0.002444654564
A59: 29 | B59: 25 | C59: 0.7 | D59: 193 | E59: 6864.655 | F59: 193 | G59: 0.2871823902 | H59: 585.8606916 | O59: 29 | P59: EC-R7LW | Q59: EC-R7LW | T59: - - - | AS59: 28 | AT59: 0.005266298152 | AU59: 0.04079649201 | AV59: 0.002721379539
A60: 30 | B60: 25 | C60: 1 | D60: 162 | E60: 9806.65 | F60: 162 | G60: 0.325161378 | H60: 700.2374597 | O60: 30 | P60: EC-R7MW | Q60: EC-R7MW | T60: - - - | AS60: 29 | AT60: 0.005454380229 | AU60: 0.0437625635 | AV60: 0.00301787139
A61: 31 | B61: 26 | C61: 0.5 | D61: 206 | E61: 4903.325 | F61: 206 | G61: 0.2847307546 | H61: 495.1426562 | O61: 31 | P61: EC-R7HW | Q61: EC-R7HW | T61: - - - | AS61: 30 | AT61: 0.005642462306 | AU61: 0.04683270767 | AV61: 0.003334761996
A62: 32 | B62: 26 | C62: 0.7 | D62: 190 | E62: 6864.655 | F62: 190 | G62: 0.2908359062 | H62: 585.8606916 | O62: 32 | P62: EC-R7SW | Q62: EC-R7SW | T62: - - - | AS62: 31 | AT62: 0.005830544382 | AU62: 0.05000692452 | AV62: 0.003672678499
A63: 33 | B63: 26 | C63: 1 | D63: 155 | E63: 9806.65 | F63: 155 | G63: 0.3383862465 | H63: 700.2374597 | O63: 33 | P63: EC-S6LH | Q63: EC-S6LH | T63: - - - | AS63: 32 | AT63: 0.006018626459 | AU63: 0.05328521406 | AV63: 0.004032243344
A64: 34 | B64: 27 | C64: 0.5 | D64: 203 | E64: 4903.325 | F64: 203 | G64: 0.287705897 | H64: 495.1426562 | O64: 34 | P64: EC-S6MH | Q64: EC-S6MH | T64: - - - | AS64: 33 | AT64: 0.006206708536 | AU64: 0.05666757628 | AV64: 0.004414074308
A65: 35 | B65: 27 | C65: 0.7 | D65: 186 | E65: 6864.655 | F65: 186 | G65: 0.2959125208 | H65: 585.8606916 | O65: 35 | P65: EC-S6HH | Q65: EC-S6HH | T65: - - - | AS65: 34 | AT65: 0.006394790613 | AU65: 0.06015401118 | AV65: 0.004818784539
A66: 36 | B66: 27 | C66: 1 | D66: 147 | E66: 9806.65 | F66: 147 | G66: 0.3551258828 | H66: 700.2374597 | O66: 36 | P66: EC-S6SH | Q66: EC-S6SH | T66: - - - | AS66: 35 | AT66: 0.00658287269 | AU66: 0.06374451877 | AV66: 0.005246982588
A67: 37 | B67: 28 | C67: 0.3 | D67: 225 | E67: 2941.995 | F67: 225 | G67: 0.2987009382 | H67: 383.5358523 | O67: 37 | P67: EC-S7LH | Q67: EC-S7LH | T67: - - - | AS67: 36 | AT67: 0.006770954767 | AU67: 0.06743909904 | AV67: 0.005699272446
A68: 38 | B68: 28 | C68: 0.5 | D68: 200 | E68: 4903.325 | F68: 200 | G68: 0.2907886485 | H68: 495.1426562 | O68: 38 | P68: EC-S7MH | Q68: EC-S7MH | T68: - - - | AS68: 37 | AT68: 0.006959036844 | AU68: 0.071237752 | AV68: 0.006176253577
A69: 39 | B69: 28 | C69: 0.7 | D69: 183 | E69: 6864.655 | F69: 183 | G69: 0.299882339 | H69: 585.8606916 | O69: 39 | P69: EC-S7HH | Q69: EC-S7HH | T69: - - - | AS69: 38 | AT69: 0.00714711892 | AU69: 0.07514047763 | AV69: 0.006678520952
A70: 40 | B70: 28 | C70: 1 | D70: 140 | E70: 9806.65 | F70: 140 | G70: 0.3714188841 | H70: 700.2374597 | O70: 40 | P70: EC-S7SH | Q70: EC-S7SH | T70: - - - | AS70: 39 | AT70: 0.007335200997 | AU70: 0.07914727596 | AV70: 0.007206665082
A71: 41 | B71: 29 | C71: 0.3 | D71: 221 | E71: 2941.995 | F71: 221 | G71: 0.3013634382 | H71: 383.5358523 | O71: 41 | P71: EC-RR6LH | Q71: EC-RR6LH | T71: - - - | AS71: 40 | AT71: 0.007523283074 | AU71: 0.08325814696 | AV71: 0.007761272052
A72: 42 | B72: 29 | C72: 0.5 | D72: 192 | E72: 4903.325 | F72: 192 | G72: 0.2995737692 | H72: 495.1426562 | O72: 42 | P72: EC-RR6MH | Q72: EC-RR6MH | T72: - - - | AS72: 41 | AT72: 0.007711365151 | AU72: 0.08747309065 | AV72: 0.008342923556
A73: 43 | B73: 29 | C73: 0.7 | D73: 180 | E73: 6864.655 | F73: 180 | G73: 0.3039990518 | H73: 585.8606916 | O73: 43 | P73: EC-RR6HH | Q73: EC-RR6HH | T73: - - - | AS73: 42 | AT73: 0.007899447228 | AU73: 0.09179210703 | AV73: 0.008952196926
A74: 44 | B74: 29 | C74: 1 | D74: 125 | E74: 9806.65 | F74: 125 | G74: 0.4127464527 | H74: 700.2374597 | O74: 44 | P74: EC-RR6SH | Q74: EC-RR6SH | T74: - - - | AS74: 43 | AT74: 0.008087529305 | AU74: 0.09621519608 | AV74: 0.009589665169
A75: 45 | B75: 30 | C75: 0.3 | D75: 217 | E75: 2941.995 | F75: 217 | G75: 0.3041742193 | H75: 383.5358523 | O75: 45 | P75: EC-RR7LH | Q75: EC-RR7LH | T75: - - - | AS75: 44 | AT75: 0.008275611382 | AU75: 0.1007423578 | AV75: 0.01025589699
A76: 46 | B76: 30 | C76: 0.5 | D76: 185 | E76: 4903.325 | F76: 185 | G76: 0.3079997702 | H76: 495.1426562 | O76: 46 | P76: EC-RR7MH | Q76: EC-RR7MH | T76: - - - | AS76: 45 | AT76: 0.008463693458 | AU76: 0.1053735923 | AV76: 0.01095145685
A77: 47 | B77: 30 | C77: 0.7 | D77: 176 | E77: 6864.655 | F77: 176 | G77: 0.3097294882 | H77: 585.8606916 | O77: 47 | P77: EC-RR7HH | Q77: EC-RR7HH | T77: - - - | AS77: 46 | AT77: 0.008651775535 | AU77: 0.1101088994 | AV77: 0.01167690495
A78: 48 | B78: 30 | C78: 1 | D78: 110 | E78: 9806.65 | F78: 110 | G78: 0.4657623329 | H78: 700.2374597 | O78: 48 | P78: EC-RR7SH | Q78: EC-RR7SH | T78: - - - | AS78: 47 | AT78: 0.008839857612 | AU78: 0.1149482792 | AV78: 0.01243279733
A79: 49 | B79: 31 | C79: 0.3 | D79: 214 | E79: 2941.995 | F79: 214 | G79: 0.3063846163 | H79: 383.5358523 | O79: 49 | P79: EC-S6LAH | Q79: EC-S6LAH | T79: - - - | AS79: 48 | AT79: 0.009027939689 | AU79: 0.1198917316 | AV79: 0.01321968582
A80: 50 | B80: 31 | C80: 0.5 | D80: 177 | E80: 4903.325 | F80: 177 | G80: 0.3185838296 | H80: 495.1426562 | O80: 50 | P80: EC-S6MAH | Q80: EC-S6MAH | T80: - - - | AS80: 49 | AT80: 0.009216021766 | AU80: 0.1249392568 | AV80: 0.01403811815
A81: 51 | B81: 31 | C81: 0.7 | D81: 173 | E81: 6864.655 | F81: 173 | G81: 0.3142188989 | H81: 585.8606916 | O81: 51 | P81: EC-S6HAH | Q81: EC-S6HAH | AS81: 50 | AT81: 0.009404103843 | AU81: 0.1300908546 | AV81: 0.01488863792
A82: 52 | B82: 31 | C82: 1 | D82: 74 | E82: 9806.65 | F82: 74 | G82: 0.6832215757 | H82: 700.2374597 | O82: 52 | P82: EC-S6SAH | Q82: EC-S6SAH | AS82: 51 | AT82: 0.00959218592 | AU82: 0.1353465252 | AV82: 0.01577178468
A83: 53 | B83: 32 | C83: 0.3 | D83: 210 | E83: 2941.995 | F83: 210 | G83: 0.309475373 | H83: 383.5358523 | O83: 53 | P83: EC-S7LAH | Q83: EC-S7LAH | AS83: 52 | AT83: 0.009780267996 | AU83: 0.1407062684 | AV83: 0.0166880939
A84: 54 | B84: 32 | C84: 0.7 | D84: 170 | E84: 6864.655 | F84: 170 | G84: 0.3188821837 | H84: 585.8606916 | O84: 54 | P84: EC-S7MAH | Q84: EC-S7MAH | AS84: 53 | AT84: 0.009968350073 | AU84: 0.1461700843 | AV84: 0.01763809708
A85: 55 | B85: 32 | C85: 1 | D85: 68 | E85: 9806.65 | F85: 68 | G85: 0.7422281879 | H85: 700.2374597 | O85: 55 | P85: EC-S7HAH | Q85: EC-S7HAH | AS85: 54 | AT85: 0.01015643215 | AU85: 0.1517379728 | AV85: 0.01862232171
A86: 56 | B86: 33 | C86: 0.3 | D86: 207 | E86: 2941.995 | F86: 207 | G86: 0.3119063124 | H86: 383.5358523 | O86: 56 | P86: EC-S7SAH | Q86: EC-S7SAH | AS86: 55 | AT86: 0.01034451423 | AU86: 0.1574099341 | AV86: 0.01964129132
A87: 57 | B87: 33 | C87: 0.7 | D87: 160 | E87: 6864.655 | F87: 160 | G87: 0.3358077992 | H87: 585.8606916 | O87: 57 | P87: EC-RR6LAH | Q87: EC-RR6LAH | AS87: 56 | AT87: 0.0105325963 | AU87: 0.163185968 | AV87: 0.02069552553
A88: 58 | B88: 33 | C88: 1 | D88: 62 | E88: 9806.65 | F88: 62 | G88: 0.8127738534 | H88: 700.2374597 | O88: 58 | P88: EC-RR6MAH | Q88: EC-RR6MAH | AS88: 57 | AT88: 0.01072067838 | AU88: 0.1690660747 | AV88: 0.02178554008
A89: 59 | B89: 34 | C89: 0.3 | D89: 203 | E89: 2941.995 | F89: 203 | G89: 0.3153062158 | H89: 383.5358523 | O89: 59 | P89: EC-RR6HAH | Q89: EC-RR6HAH | AS89: 58 | AT89: 0.01090876046 | AU89: 0.175050254 | AV89: 0.02291184681
A90: 60 | B90: 34 | C90: 0.7 | D90: 150 | E90: 6864.655 | F90: 150 | G90: 0.355184395 | H90: 585.8606916 | O90: 60 | P90: EC-RR6SAH | Q90: EC-RR6SAH | AS90: 59 | AT90: 0.01109684253 | AU90: 0.181138506 | AV90: 0.02407495374
A91: 61 | B91: 34 | C91: 1 | D91: 56 | E91: 9806.65 | F91: 56 | G91: 0.8985675536 | H91: 700.2374597 | O91: 61 | P91: EC-RR7LAH | Q91: EC-RR7LAH | AS91: 60 | AT91: 0.01128492461 | AU91: 0.1873308307 | AV91: 0.02527536509
A92: 62 | B92: 35 | C92: 0.3 | D92: 200 | E92: 2941.995 | F92: 200 | G92: 0.3179810809 | H92: 383.5358523 | O92: 62 | P92: EC-RR7MAH | Q92: EC-RR7MAH | AS92: 61 | AT92: 0.01147300669 | AU92: 0.193627228 | AV92: 0.0265135813
A93: 63 | B93: 35 | C93: 0.7 | D93: 140 | E93: 6864.655 | F93: 140 | G93: 0.3775371814 | H93: 585.8606916 | O93: 63 | P93: EC-RR7HAH | Q93: EC-RR7HAH | AS93: 62 | AT93: 0.01166108876 | AU93: 0.2000276981 | AV93: 0.02779009904
A94: 64 | B94: 35 | C94: 1 | D94: 50 | E94: 9806.65 | F94: 50 | G94: 1.005098581 | H94: 700.2374597 | O94: 64 | P94: EC-RR7SAH | Q94: EC-RR7SAH | AS94: 63 | AT94: 0.01184917084 | AU94: 0.2065322408 | AV94: 0.02910541128
A95: =A94+1 -> 65 | B95: 36 | C95: 0.3 | D95: 194 | E95: 2941.995 | F95: 194 | G95: 0.3236736072 | H95: 383.5358523 | O95: 65 | P95: EC-S6LR | Q95: EC-S6LR | AS95: 64 | AT95: =$AP$18/$N$7*AS95 -> 0.01203725292 | AU95: 0.2131408562 | AV95: 0.03046000728
A96: 66 | B96: 37 | C96: 0.3 | D96: 188 | E96: 2941.995 | F96: 188 | G96: 0.3298596628 | H96: 383.5358523 | O96: 66 | P96: EC-S6MR | Q96: EC-S6MR | AS96: 65 | AT96: 0.012225335 | AU96: =IF(($N$4*AT96^2/2)<=$AP$13,($N$4*AT96^2/2), IF(($AP$13+$N$6*(AT96-$AP$12))<=$AP$17, ($AP$13+$N$6*(AT96-$AP$12)), IF(AU95<$D$14, ($AP$17+($N$6-$N$5*(AT96-$AP$16)/2)*(AT96-$AP$16)), $D$14))) -> 0.2198535443 | AV96: 0.03185437264
A97: 67 | B97: 38 | C97: 0.3 | D97: 182 | E97: 2941.995 | F97: 182 | G97: 0.3365880583 | H97: 383.5358523 | O97: =O96+1 -> 67 | P97: EC-S6HR | Q97: EC-S6HR | AS97: =AS96+1 -> 66 | AT97: 0.01241341707 | AU97: 0.2266703051 | AV97: =( $AP$6*AU97 + $AP$7*AU96 + $AP$9*AV96 )/$AP$8 -> 0.03328898933
A98: 68 | B98: 39 | C98: 0.3 | D98: 176 | E98: 2941.995 | F98: 176 | G98: 0.3439142603 | H98: 383.5358523 | O98: 68 | P98: EC-S6SR | Q98: EC-S6SR | AS98: 67 | AT98: 0.01260149915 | AU98: 0.2335911386 | AV98: 0.03476433568
A99: 69 | B99: 40 | C99: 0.3 | D99: 170 | E99: 2941.995 | F99: 170 | G99: 0.3519015658 | H99: 383.5358523 | O99: 69 | P99: EC-S7LR | Q99: EC-S7LR | AS99: 68 | AT99: 0.01278958123 | AU99: 0.2406160447 | AV99: 0.03628088646
A100: 70 | B100: -1 | C100: -1 | D100: -1 | E100: -1 | F100: -1 | G100: -1 | H100: -1 | O100: 70 | P100: EC-S7MR | Q100: EC-S7MR | AS100: 69 | AT100: 0.0129776633 | AU100: 0.2477450236 | AV100: 0.03783911287
A101: 71 | B101: -1 | C101: -1 | D101: -1 | E101: -1 | F101: -1 | G101: -1 | H101: -1 | O101: 71 | P101: EC-S7HR | Q101: EC-S7HR | AS101: 70 | AT101: 0.01316574538 | AU101: 0.2549780751 | AV101: 0.03943948258
A102: 72 | B102: -1 | C102: -1 | D102: -1 | E102: -1 | F102: -1 | G102: -1 | H102: -1 | O102: 72 | P102: EC-S7SR | Q102: EC-S7SR | AS102: 71 | AT102: 0.01335382746 | AU102: 0.2623151993 | AV102: 0.04108245977
A103: 73 | B103: -1 | C103: -1 | D103: -1 | E103: -1 | F103: -1 | G103: -1 | H103: -1 | O103: 73 | P103: EC-S6LAHR | Q103: EC-S6LAHR | AS103: 72 | AT103: 0.01354190953 | AU103: 0.2697563962 | AV103: 0.04276850511
A104: 74 | B104: -1 | C104: -1 | D104: -1 | E104: -1 | F104: -1 | G104: -1 | H104: -1 | O104: 74 | P104: EC-S6MAHR | Q104: EC-S6MAHR | AS104: 73 | AT104: 0.01372999161 | AU104: 0.2773016657 | AV104: 0.04449807584
A105: 75 | B105: -1 | C105: -1 | D105: -1 | E105: -1 | F105: -1 | G105: -1 | H105: -1 | O105: 75 | P105: EC-S6HAHR | Q105: EC-S6HAHR | AS105: 74 | AT105: 0.01391807369 | AU105: 0.284951008 | AV105: 0.04627162577
A106: 76 | B106: -1 | C106: -1 | D106: -1 | E106: -1 | F106: -1 | G106: -1 | H106: -1 | O106: 76 | P106: EC-S6SAHR | Q106: EC-S6SAHR | AS106: 75 | AT106: 0.01410615576 | AU106: 0.2927044229 | AV106: 0.04808960531
A107: 77 | B107: -1 | C107: -1 | D107: -1 | E107: -1 | F107: -1 | G107: -1 | H107: -1 | O107: 77 | P107: EC-S7LAHR | Q107: EC-S7LAHR | AS107: 76 | AT107: 0.01429423784 | AU107: 0.3005619105 | AV107: 0.04995246148
A108: 78 | B108: -1 | C108: -1 | D108: -1 | E108: -1 | F108: -1 | G108: -1 | H108: -1 | O108: 78 | P108: EC-S7MAHR | Q108: EC-S7MAHR | AS108: 77 | AT108: 0.01448231992 | AU108: 0.3085234708 | AV108: 0.05186063797
A109: 79 | B109: -1 | C109: -1 | D109: -1 | E109: -1 | F109: -1 | G109: -1 | H109: -1 | O109: 79 | P109: EC-S7HAHR | Q109: EC-S7HAHR | AS109: 78 | AT109: 0.01467040199 | AU109: 0.3165891038 | AV109: 0.05381457512
A110: 80 | B110: -1 | C110: -1 | D110: -1 | E110: -1 | F110: -1 | G110: -1 | H110: -1 | O110: 80 | P110: EC-S7SAHR | Q110: EC-S7SAHR | AS110: 79 | AT110: 0.01485848407 | AU110: 0.3247588095 | AV110: 0.05581471
A111: 81 | B111: -1 | C111: -1 | D111: -1 | E111: -1 | F111: -1 | G111: -1 | H111: -1 | O111: 81 | P111: EC-RR6LR | Q111: EC-RR6LR | AS111: 80 | AT111: 0.01504656615 | AU111: 0.3330325879 | AV111: 0.05786147638
A112: 82 | B112: -1 | C112: -1 | D112: -1 | E112: -1 | F112: -1 | G112: -1 | H112: -1 | O112: 82 | P112: EC-RR6MR | Q112: EC-RR6MR | AS112: 81 | AT112: 0.01523464823 | AU112: 0.3414104389 | AV112: 0.05995530479
A113: 83 | B113: -1 | C113: -1 | D113: -1 | E113: -1 | F113: -1 | G113: -1 | H113: -1 | O113: 83 | P113: EC-RR6HR | Q113: EC-RR6HR | AS113: 82 | AT113: 0.0154227303 | AU113: 0.3498923626 | AV113: 0.06209662252
A114: 84 | B114: -1 | C114: -1 | D114: -1 | E114: -1 | F114: -1 | G114: -1 | H114: -1 | O114: 84 | P114: EC-RR6SR | Q114: EC-RR6SR | AS114: 83 | AT114: 0.01561081238 | AU114: 0.358478359 | AV114: 0.06428585368
A115: 85 | B115: -1 | C115: -1 | D115: -1 | E115: -1 | F115: -1 | G115: -1 | H115: -1 | O115: 85 | P115: EC-RR7LR | Q115: EC-RR7LR | AS115: 84 | AT115: 0.01579889446 | AU115: 0.3671684281 | AV115: 0.06652341918
A116: 86 | B116: -1 | C116: -1 | D116: -1 | E116: -1 | F116: -1 | G116: -1 | H116: -1 | O116: 86 | P116: EC-RR7MR | Q116: EC-RR7MR | AS116: 85 | AT116: 0.01598697653 | AU116: 0.3759625699 | AV116: 0.06880973679
A117: 87 | B117: -1 | C117: -1 | D117: -1 | E117: -1 | F117: -1 | G117: -1 | H117: -1 | O117: 87 | P117: EC-RR7HR | Q117: EC-RR7HR | AS117: 86 | AT117: 0.01617505861 | AU117: 0.3848607843 | AV117: 0.07114522114
A118: 88 | B118: -1 | C118: -1 | D118: -1 | E118: -1 | F118: -1 | G118: -1 | H118: -1 | O118: 88 | P118: EC-RR7SR | Q118: EC-RR7SR | AS118: 87 | AT118: 0.01636314069 | AU118: 0.3938630715 | AV118: 0.07353028375
A119: 89 | B119: -1 | C119: -1 | D119: -1 | E119: -1 | F119: -1 | G119: -1 | H119: -1 | O119: 89 | P119: EC-RR6LAHR | Q119: EC-RR6LAHR | AS119: 88 | AT119: 0.01655122276 | AU119: 0.4029694313 | AV119: 0.07596533307
A120: 90 | B120: -1 | C120: -1 | D120: -1 | E120: -1 | F120: -1 | G120: -1 | H120: -1 | O120: 90 | P120: EC-RR6MAHR | Q120: EC-RR6MAHR | AS120: 89 | AT120: 0.01673930484 | AU120: 0.4121798638 | AV120: 0.07845077447
A121: 91 | B121: -1 | C121: -1 | D121: -1 | E121: -1 | F121: -1 | G121: -1 | H121: -1 | O121: 91 | P121: EC-RR6HAHR | Q121: EC-RR6HAHR | AS121: 90 | AT121: 0.01692738692 | AU121: 0.421494369 | AV121: 0.0809870103
A122: 92 | B122: -1 | C122: -1 | D122: -1 | E122: -1 | F122: -1 | G122: -1 | H122: -1 | O122: 92 | P122: EC-RR6SAHR | Q122: EC-RR6SAHR | AS122: 91 | AT122: 0.01711546899 | AU122: 0.4309129469 | AV122: 0.08357443988
A123: 93 | B123: -1 | C123: -1 | D123: -1 | E123: -1 | F123: -1 | G123: -1 | H123: -1 | O123: 93 | P123: EC-RR7LAHR | Q123: EC-RR7LAHR | AS123: 92 | AT123: 0.01730355107 | AU123: 0.4404355974 | AV123: 0.08621345954
A124: 94 | B124: -1 | C124: -1 | D124: -1 | E124: -1 | F124: -1 | G124: -1 | H124: -1 | O124: 94 | P124: EC-RR7MAHR | Q124: EC-RR7MAHR | AS124: 93 | AT124: 0.01749163315 | AU124: 0.4500623207 | AV124: 0.08890446265
A125: 95 | B125: -1 | C125: -1 | D125: -1 | E125: -1 | F125: -1 | G125: -1 | H125: -1 | O125: 95 | P125: EC-RR7HAHR | Q125: EC-RR7HAHR | AS125: 94 | AT125: 0.01767971522 | AU125: 0.4597931166 | AV125: 0.09164783962
A126: 96 | B126: -1 | C126: -1 | D126: -1 | E126: -1 | F126: -1 | G126: -1 | H126: -1 | O126: 96 | P126: EC-RR7SAHR | Q126: EC-RR7SAHR | AS126: 95 | AT126: 0.0178677973 | AU126: 0.4696279852 | AV126: 0.09444397793
A127: 97 | B127: -1 | C127: -1 | D127: -1 | E127: -1 | F127: -1 | G127: -1 | H127: -1 | O127: 97 | P127: EC-S4L | Q127: EC-S4L | AS127: 96 | AT127: 0.01805587938 | AU127: 0.4795669265 | AV127: 0.09729326217
A128: 98 | B128: -1 | C128: -1 | D128: -1 | E128: -1 | F128: -1 | G128: -1 | H128: -1 | O128: 98 | P128: EC-S4M | Q128: EC-S4M | AS128: 97 | AT128: 0.01824396145 | AU128: 0.4896099405 | AV128: 0.100196074
A129: 99 | B129: -1 | C129: -1 | D129: -1 | E129: -1 | F129: -1 | G129: -1 | H129: -1 | O129: 99 | P129: EC-S4H | Q129: EC-S4H | AS129: 98 | AT129: 0.01843204353 | AU129: 0.4997570271 | AV129: 0.1031527924
A130: 100 | B130: -1 | C130: -1 | D130: -1 | E130: -1 | F130: -1 | G130: -1 | H130: -1 | O130: 100 | P130: EC-S4S | Q130: EC-S4S | AS130: 99 | AT130: 0.01862012561 | AU130: 0.5100081865 | AV130: 0.1061637932
A131: 101 | B131: -1 | C131: -1 | D131: -1 | E131: -1 | F131: -1 | G131: -1 | H131: -1 | O131: 101 | P131: EC-RR4L | Q131: EC-RR4L | AS131: 100 | AT131: 0.01880820769 | AU131: 0.5203634185 | AV131: 0.1092294496
A132: 102 | B132: -1 | C132: -1 | D132: -1 | E132: -1 | F132: -1 | G132: -1 | H132: -1 | O132: 102 | P132: EC-RR4M | Q132: EC-RR4M | AS132: =AS131+1 -> 101 | AT132: 0.01899628976 | AU132: 0.5308227232 | AV132: 0.1123501321
A133: 103 | B133: -1 | C133: -1 | D133: -1 | E133: -1 | F133: -1 | G133: -1 | H133: -1 | O133: 103 | P133: EC-RR4H | Q133: EC-RR4H | AS133: 102 | AT133: 0.01918437184 | AU133: 0.5413861006 | AV133: 0.1155262083
A134: 104 | B134: -1 | C134: -1 | D134: -1 | E134: -1 | F134: -1 | G134: -1 | H134: -1 | O134: 104 | P134: EC-RR4S | Q134: EC-RR4S | AS134: 103 | AT134: 0.01937245392 | AU134: 0.5520535507 | AV134: 0.1187580429
A135: 105 | B135: -1 | C135: -1 | D135: -1 | E135: -1 | F135: -1 | G135: -1 | H135: -1 | O135: 105 | P135: EC-RR6LW | Q135: EC-RR6LW | AS135: 104 | AT135: 0.01956053599 | AU135: 0.5628250735 | AV135: 0.1220459982
A136: 106 | B136: -1 | C136: -1 | D136: -1 | E136: -1 | F136: -1 | G136: -1 | H136: -1 | O136: 106 | P136: EC-RR6MW | Q136: EC-RR6MW | AS136: 105 | AT136: 0.01974861807 | AU136: 0.5737006689 | AV136: 0.1253904335
A137: 107 | B137: -1 | C137: -1 | D137: -1 | E137: -1 | F137: -1 | G137: -1 | H137: -1 | O137: 107 | P137: EC-RR6HW | Q137: EC-RR6HW | AS137: 106 | AT137: 0.01993670015 | AU137: 0.5846803371 | AV137: 0.1287917055
A138: 108 | B138: -1 | C138: -1 | D138: -1 | E138: -1 | F138: -1 | G138: -1 | H138: -1 | O138: 108 | P138: EC-RR6SW | Q138: EC-RR6SW | AS138: 107 | AT138: 0.02012478222 | AU138: 0.5957640779 | AV138: 0.1322501683
A139: 109 | B139: -1 | C139: -1 | D139: -1 | E139: -1 | F139: -1 | G139: -1 | H139: -1 | O139: 109 | P139: EC-RR7LW | Q139: EC-RR7LW | AS139: 108 | AT139: 0.0203128643 | AU139: 0.6069518914 | AV139: 0.1357661732
A140: 110 | B140: -1 | C140: -1 | D140: -1 | E140: -1 | F140: -1 | G140: -1 | H140: -1 | O140: 110 | P140: EC-RR7MW | Q140: EC-RR7MW | AS140: 109 | AT140: 0.02050094638 | AU140: 0.6182437775 | AV140: 0.1393400691
A141: 111 | B141: -1 | C141: -1 | D141: -1 | E141: -1 | F141: -1 | G141: -1 | H141: -1 | O141: 111 | P141: EC-RR7HW | Q141: EC-RR7HW | AS141: 110 | AT141: 0.02068902845 | AU141: 0.6296397364 | AV141: 0.142972202
A142: 112 | B142: -1 | C142: -1 | D142: -1 | E142: -1 | F142: -1 | G142: -1 | H142: -1 | O142: 112 | P142: EC-RR7SW | Q142: EC-RR7SW | AS142: 111 | AT142: 0.02087711053 | AU142: 0.641139768 | AV142: 0.1466629154
A143: 113 | B143: -1 | C143: -1 | D143: -1 | E143: -1 | F143: -1 | G143: -1 | H143: -1 | O143: 113 | P143: EC-B6S | Q143: EC-B6S | AS143: 112 | AT143: 0.02106519261 | AU143: 0.6527438722 | AV143: 0.1504125505
A144: 114 | B144: -1 | C144: -1 | D144: -1 | E144: -1 | F144: -1 | G144: -1 | H144: -1 | O144: 114 | P144: EC-B6SU | Q144: EC-B6SU | AS144: 113 | AT144: 0.02125327468 | AU144: 0.6644520491 | AV144: 0.1542214455
A145: 115 | B145: -1 | C145: -1 | D145: -1 | E145: -1 | F145: -1 | G145: -1 | H145: -1 | O145: 115 | P145: EC-B7S | Q145: EC-B7S | AS145: 114 | AT145: 0.02144135676 | AU145: 0.6762642987 | AV145: 0.1580899363
A146: 116 | B146: -1 | C146: -1 | D146: -1 | E146: -1 | F146: -1 | G146: -1 | H146: -1 | O146: 116 | P146: EC-B7SU | Q146: EC-B7SU | AS146: 115 | AT146: 0.02162943884 | AU146: 0.688180621 | AV146: 0.1620183563
A147: 117 | B147: -1 | C147: -1 | D147: -1 | E147: -1 | F147: -1 | G147: -1 | H147: -1 | O147: 117 | P147: EC-S4LR | Q147: EC-S4LR | AS147: 116 | AT147: 0.02181752092 | AU147: 0.700201016 | AV147: 0.1660070364
A148: 118 | B148: -1 | C148: -1 | D148: -1 | E148: -1 | F148: -1 | G148: -1 | H148: -1 | O148: 118 | P148: EC-S4MR | Q148: EC-S4MR | AS148: 117 | AT148: 0.02200560299 | AU148: 0.7123254836 | AV148: 0.170056305
A149: 119 | B149: -1 | C149: -1 | D149: -1 | E149: -1 | F149: -1 | G149: -1 | H149: -1 | O149: 119 | P149: EC-S4HR | Q149: EC-S4HR | AS149: 118 | AT149: 0.02219368507 | AU149: 0.7245540239 | AV149: 0.1741664878
A150: 120 | B150: -1 | C150: -1 | D150: -1 | E150: -1 | F150: -1 | G150: -1 | H150: -1 | O150: 120 | P150: EC-S4SR | Q150: EC-S4SR | AS150: 119 | AT150: 0.02238176715 | AU150: 0.736886637 | AV150: 0.1783379086
A151: 121 | B151: -1 | C151: -1 | D151: -1 | E151: -1 | F151: -1 | G151: -1 | H151: -1 | O151: 121 | P151: EC-RR4LR | Q151: EC-RR4LR | AS151: 120 | AT151: 0.02256984922 | AU151: 0.7493233227 | AV151: 0.1825708882
A152: 122 | B152: -1 | C152: -1 | D152: -1 | E152: -1 | F152: -1 | G152: -1 | H152: -1 | O152: 122 | P152: EC-RR4MR | Q152: EC-RR4MR | AS152: 121 | AT152: 0.0227579313 | AU152: 0.7618640811 | AV152: 0.1868657453
A153: 123 | B153: -1 | C153: -1 | D153: -1 | E153: -1 | F153: -1 | G153: -1 | H153: -1 | O153: 123 | P153: EC-RR4HR | Q153: EC-RR4HR | AS153: 122 | AT153: 0.02294601338 | AU153: 0.7745089121 | AV153: 0.1912227962
A154: 124 | B154: -1 | C154: -1 | D154: -1 | E154: -1 | F154: -1 | G154: -1 | H154: -1 | O154: 124 | P154: EC-RR4SR | Q154: EC-RR4SR | AS154: 123 | AT154: 0.02313409545 | AU154: 0.7872578159 | AV154: 0.1956423548
A155: 125 | B155: -1 | C155: -1 | D155: -1 | E155: -1 | F155: -1 | G155: -1 | H155: -1 | O155: 125 | P155: EC-ST15L | Q155: EC-ST15L | AS155: 124 | AT155: 0.02332217753 | AU155: 0.8001107923 | AV155: 0.2001247325
A156: 126 | B156: -1 | C156: -1 | D156: -1 | E156: -1 | F156: -1 | G156: -1 | H156: -1 | O156: 126 | P156: EC-RTC12 | Q156: EC-RTC12 | AS156: 125 | AT156: 0.02351025961 | AU156: 0.8130678414 | AV156: 0.2046702387
A157: 127 | B157: -1 | C157: -1 | D157: -1 | E157: -1 | F157: -1 | G157: -1 | H157: -1 | O157: 127 | P157: EC-WS10L | Q157: EC-WS10L | AS157: 126 | AT157: 0.02369834168 | AU157: 0.8261289632 | AV157: 0.2092791802
A158: 128 | B158: -1 | C158: -1 | D158: -1 | E158: -1 | F158: -1 | G158: -1 | H158: -1 | O158: 128 | P158: EC-WS10M | Q158: EC-WS10M | AS158: 127 | AT158: 0.02388642376 | AU158: 0.8392941577 | AV158: 0.2139518615
A159: =A158+1 -> 129 | B159: -1 | C159: -1 | D159: -1 | E159: -1 | F159: -1 | G159: -1 | H159: -1 | O159: 129 | P159: EC-WS10H | Q159: EC-WS10H | AS159: 128 | AT159: =$AP$18/$N$7*AS159 -> 0.02407450584 | AU159: 0.8525634249 | AV159: 0.218688585
A160: 130 | B160: -1 | C160: -1 | D160: -1 | E160: -1 | F160: -1 | G160: -1 | H160: -1 | O160: 130 | P160: EC-WS10S | Q160: EC-WS10S | AS160: 129 | AT160: 0.02426258791 | AU160: =IF(($N$4*AT160^2/2)<=$AP$13,($N$4*AT160^2/2), IF(($AP$13+$N$6*(AT160-$AP$12))<=$AP$17, ($AP$13+$N$6*(AT160-$AP$12)), IF(AU159<$D$14, ($AP$17+($N$6-$N$5*(AT160-$AP$16)/2)*(AT160-$AP$16)), $D$14))) -> 0.8659367648 | AV160: 0.2234896507
A161: 131 | B161: -1 | C161: -1 | D161: -1 | E161: -1 | F161: -1 | G161: -1 | H161: -1 | O161: =O160+1 -> 131 | P161: EC-WS12L | Q161: EC-WS12L | AS161: 130 | AT161: 0.02445066999 | AU161: 0.8794141773 | AV161: =( $AP$6*AU161 + $AP$7*AU160 + $AP$9*AV160 )/$AP$8 -> 0.2283553563
A162: 132 | B162: -1 | C162: -1 | D162: -1 | E162: -1 | F162: -1 | G162: -1 | H162: -1 | O162: 132 | P162: EC-WS12M | Q162: EC-WS12M | AS162: 131 | AT162: 0.02463875207 | AU162: 0.8929956625 | AV162: 0.2332859975
A163: 133 | B163: -1 | C163: -1 | D163: -1 | E163: -1 | F163: -1 | G163: -1 | H163: -1 | O163: 133 | P163: EC-WS12H | Q163: EC-WS12H | AS163: 132 | AT163: 0.02482683414 | AU163: 0.9066812204 | AV163: 0.2382818675
A164: 134 | B164: -1 | C164: -1 | D164: -1 | E164: -1 | F164: -1 | G164: -1 | H164: -1 | O164: 134 | P164: EC-WS12S | Q164: EC-WS12S | AS164: 133 | AT164: 0.02501491622 | AU164: 0.920470851 | AV164: 0.2433432576
A165: 135 | B165: -1 | C165: -1 | D165: -1 | E165: -1 | F165: -1 | G165: -1 | H165: -1 | O165: 135 | P165: EC-RP5L | Q165: EC-RP5L | AS165: 134 | AT165: 0.0252029983 | AU165: 0.9343645543 | AV165: 0.2484704566
A166: 136 | B166: -1 | C166: -1 | D166: -1 | E166: -1 | F166: -1 | G166: -1 | H166: -1 | O166: 136 | P166: EC-RP5M | Q166: EC-RP5M | AS166: 135 | AT166: 0.02539108038 | AU166: 0.9483623303 | AV166: 0.2536637514
A167: 137 | B167: -1 | C167: -1 | D167: -1 | E167: -1 | F167: -1 | G167: -1 | H167: -1 | O167: 137 | P167: EC-RP5H | Q167: EC-RP5H | AS167: 136 | AT167: 0.02557916245 | AU167: 0.9624641789 | AV167: 0.2589234265
A168: 138 | B168: -1 | C168: -1 | D168: -1 | E168: -1 | F168: -1 | G168: -1 | H168: -1 | O168: 138 | P168: EC-RP5S | Q168: EC-RP5S | AS168: 137 | AT168: 0.02576724453 | AU168: 0.9766701002 | AV168: 0.2642497645
A169: 139 | B169: -1 | C169: -1 | D169: -1 | E169: -1 | F169: -1 | G169: -1 | H169: -1 | O169: 139 | P169: EC-GD5L | Q169: EC-GD5L | AS169: 138 | AT169: 0.02595532661 | AU169: 0.9909800942 | AV169: 0.2696430459
A170: 140 | B170: -1 | C170: -1 | D170: -1 | E170: -1 | F170: -1 | G170: -1 | H170: -1 | O170: 140 | P170: EC-GD5M | Q170: EC-GD5M | AS170: 139 | AT170: 0.02614340868 | AU170: 1.005394161 | AV170: 0.2751035488
A171: 141 | B171: -1 | C171: -1 | D171: -1 | E171: -1 | F171: -1 | G171: -1 | H171: -1 | O171: 141 | P171: EC-GD5H | Q171: EC-GD5H | AS171: 140 | AT171: 0.02633149076 | AU171: 1.0199123 | AV171: 0.2806315495
A172: 142 | B172: -1 | C172: -1 | D172: -1 | E172: -1 | F172: -1 | G172: -1 | H172: -1 | O172: 142 | P172: EC-GD5S | Q172: EC-GD5S | AS172: 141 | AT172: 0.02651957284 | AU172: 1.034534512 | AV172: 0.286227322
A173: 143 | B173: -1 | C173: -1 | D173: -1 | E173: -1 | F173: -1 | G173: -1 | H173: -1 | O173: 143 | P173: EC-TC5L(50st) | Q173: EC-TC5L(50st) | AS173: 142 | AT173: 0.02670765491 | AU173: 1.049260797 | AV173: 0.2918911386
A174: 144 | B174: -1 | C174: -1 | D174: -1 | E174: -1 | F174: -1 | G174: -1 | H174: -1 | O174: 144 | P174: EC-TC5L(100st) | Q174: EC-TC5L(100st) | AS174: 143 | AT174: 0.02689573699 | AU174: 1.064091155 | AV174: 0.2976232692
A175: 145 | B175: -1 | C175: -1 | D175: -1 | E175: -1 | F175: -1 | G175: -1 | H175: -1 | O175: 145 | P175: EC-TC5L(150st) | Q175: EC-TC5L(150st) | AS175: 144 | AT175: 0.02708381907 | AU175: 1.079025585 | AV175: 0.3034239819
A176: 146 | B176: -1 | C176: -1 | D176: -1 | E176: -1 | F176: -1 | G176: -1 | H176: -1 | O176: 146 | P176: EC-TC5M(50st) | Q176: EC-TC5M(50st) | AS176: 145 | AT176: 0.02727190114 | AU176: 1.094064087 | AV176: 0.3092935425
A177: 147 | B177: -1 | C177: -1 | D177: -1 | E177: -1 | F177: -1 | G177: -1 | H177: -1 | O177: 147 | P177: EC-TC5M(100st) | Q177: EC-TC5M(100st) | AS177: 146 | AT177: 0.02745998322 | AU177: 1.109206663 | AV177: 0.3152322153
A178: 148 | B178: -1 | C178: -1 | D178: -1 | E178: -1 | F178: -1 | G178: -1 | H178: -1 | O178: 148 | P178: EC-TC5M(150st) | Q178: EC-TC5M(150st) | AS178: 147 | AT178: 0.0276480653 | AU178: 1.124453311 | AV178: 0.3212402621
A179: 149 | B179: -1 | C179: -1 | D179: -1 | E179: -1 | F179: -1 | G179: -1 | H179: -1 | O179: 149 | P179: EC-TC5H(50st) | Q179: EC-TC5H(50st) | AS179: 148 | AT179: 0.02783614737 | AU179: 1.139804032 | AV179: 0.3273179431
A180: 150 | B180: -1 | C180: -1 | D180: -1 | E180: -1 | F180: -1 | G180: -1 | H180: -1 | O180: 150 | P180: EC-TC5H(100st) | Q180: EC-TC5H(100st) | AS180: 149 | AT180: 0.02802422945 | AU180: 1.155258825 | AV180: 0.3334655164
A181: 151 | B181: -1 | C181: -1 | D181: -1 | E181: -1 | F181: -1 | G181: -1 | H181: -1 | O181: 151 | P181: EC-TC5H(150st) | Q181: EC-TC5H(150st) | AS181: 150 | AT181: 0.02821231153 | AU181: 1.170817692 | AV181: 0.3396832381
A182: 152 | B182: -1 | C182: -1 | D182: -1 | E182: -1 | F182: -1 | G182: -1 | H182: -1 | O182: 152 | P182: EC-TC5S(50st) | Q182: EC-TC5S(50st) | AS182: 151 | AT182: 0.0284003936 | AU182: 1.186480631 | AV182: 0.3459713626
A183: 153 | B183: -1 | C183: -1 | D183: -1 | E183: -1 | F183: -1 | G183: -1 | H183: -1 | O183: 153 | P183: EC-TC5S(100st) | Q183: EC-TC5S(100st) | AS183: =AS182+1 -> 152 | AT183: 0.02858847568 | AU183: 1.202247642 | AV183: 0.3523301421
A184: 154 | B184: -1 | C184: -1 | D184: -1 | E184: -1 | F184: -1 | G184: -1 | H184: -1 | O184: 154 | P184: EC-TC5S(150st) | Q184: EC-TC5S(150st) | AS184: 153 | AT184: 0.02877655776 | AU184: 1.218118726 | AV184: 0.3587598272
A185: 155 | B185: -1 | C185: -1 | D185: -1 | E185: -1 | F185: -1 | G185: -1 | H185: -1 | O185: 155 | P185: EC-TW5L(50st) | Q185: EC-TW5L(50st) | AS185: 154 | AT185: 0.02896463984 | AU185: 1.234093883 | AV185: 0.3652606665
A186: 156 | B186: -1 | C186: -1 | D186: -1 | E186: -1 | F186: -1 | G186: -1 | H186: -1 | O186: 156 | P186: EC-TW5L(100st) | Q186: EC-TW5L(100st) | AS186: 155 | AT186: 0.02915272191 | AU186: 1.250173113 | AV186: 0.3718329066
A187: 157 | B187: -1 | C187: -1 | D187: -1 | E187: -1 | F187: -1 | G187: -1 | H187: -1 | O187: 157 | P187: EC-TW5L(150st) | Q187: EC-TW5L(150st) | AS187: 156 | AT187: 0.02934080399 | AU187: 1.266356415 | AV187: 0.3784767925
A188: 158 | B188: -1 | C188: -1 | D188: -1 | E188: -1 | F188: -1 | G188: -1 | H188: -1 | O188: 158 | P188: EC-TW5M(50st) | Q188: EC-TW5M(50st) | AS188: 157 | AT188: 0.02952888607 | AU188: 1.28264379 | AV188: 0.3851925671
A189: 159 | B189: -1 | C189: -1 | D189: -1 | E189: -1 | F189: -1 | G189: -1 | H189: -1 | O189: 159 | P189: EC-TW5M(100st) | Q189: EC-TW5M(100st) | AS189: 158 | AT189: 0.02971696814 | AU189: 1.299035238 | AV189: 0.3919804718
A190: 160 | B190: -1 | C190: -1 | D190: -1 | E190: -1 | F190: -1 | G190: -1 | H190: -1 | O190: 160 | P190: EC-TW5M(150st) | Q190: EC-TW5M(150st) | AS190: 159 | AT190: 0.02990505022 | AU190: 1.315530758 | AV190: 0.3988407459
A191: 161 | B191: -1 | C191: -1 | D191: -1 | E191: -1 | F191: -1 | G191: -1 | H191: -1 | O191: 161 | P191: EC-TW5H(50st) | Q191: EC-TW5H(50st) | AS191: 160 | AT191: 0.0300931323 | AU191: 1.332130351 | AV191: 0.4057736271
A192: 162 | B192: -1 | C192: -1 | D192: -1 | E192: -1 | F192: -1 | G192: -1 | H192: -1 | O192: 162 | P192: EC-TW5H(100st) | Q192: EC-TW5H(100st) | AS192: 161 | AT192: 0.03028121437 | AU192: 1.348834017 | AV192: 0.4127793511
A193: 163 | B193: -1 | C193: -1 | D193: -1 | E193: -1 | F193: -1 | G193: -1 | H193: -1 | O193: 163 | P193: EC-TW5H(150st) | Q193: EC-TW5H(150st) | AS193: 162 | AT193: 0.03046929645 | AU193: 1.365641756 | AV193: 0.4198581521
A194: 164 | B194: -1 | C194: -1 | D194: -1 | E194: -1 | F194: -1 | G194: -1 | H194: -1 | O194: 164 | P194: EC-TW5S(50st) | Q194: EC-TW5S(50st) | AS194: 163 | AT194: 0.03065737853 | AU194: 1.382553567 | AV194: 0.4270102624
A195: 165 | B195: -1 | C195: -1 | D195: -1 | E195: -1 | F195: -1 | G195: -1 | H195: -1 | O195: 165 | P195: EC-TW5S(100st) | Q195: EC-TW5S(100st) | AS195: 164 | AT195: 0.0308454606 | AU195: 1.39956945 | AV195: 0.4342359125
A196: 166 | B196: -1 | C196: -1 | D196: -1 | E196: -1 | F196: -1 | G196: -1 | H196: -1 | O196: 166 | P196: EC-TW5S(150st) | Q196: EC-TW5S(150st) | AS196: 165 | AT196: 0.03103354268 | AU196: 1.416689407 | AV196: 0.4415353313
A197: 167 | B197: -1 | C197: -1 | D197: -1 | E197: -1 | F197: -1 | G197: -1 | H197: -1 | O197: 167 | P197: EC-RR6XLAH | Q197: EC-RR6XLAH | AS197: 166 | AT197: 0.03122162476 | AU197: 1.433913436 | AV197: 0.448908746
A198: 168 | B198: -1 | C198: -1 | D198: -1 | E198: -1 | F198: -1 | G198: -1 | H198: -1 | O198: 168 | P198: EC-RR6XMAH | Q198: EC-RR6XMAH | AS198: 167 | AT198: 0.03140970683 | AU198: 1.451241538 | AV198: 0.4563563818
A199: 169 | B199: -1 | C199: -1 | D199: -1 | E199: -1 | F199: -1 | G199: -1 | H199: -1 | O199: 169 | P199: EC-RR6XHAH | Q199: EC-RR6XHAH | AS199: 168 | AT199: 0.03159778891 | AU199: 1.468673712 | AV199: 0.4638784627
A200: 170 | B200: -1 | C200: -1 | D200: -1 | E200: -1 | F200: -1 | G200: -1 | H200: -1 | O200: 170 | P200: EC-RR6XSAH | Q200: EC-RR6XSAH | AS200: 169 | AT200: 0.03178587099 | AU200: 1.48620996 | AV200: 0.4714752106
A201: 171 | B201: -1 | C201: -1 | D201: -1 | E201: -1 | F201: -1 | G201: -1 | H201: -1 | O201: 171 | P201: EC-RR7XLAH | Q201: EC-RR7XLAH | AS201: 170 | AT201: 0.03197395307 | AU201: 1.50385028 | AV201: 0.479146846
A202: 172 | B202: -1 | C202: -1 | D202: -1 | E202: -1 | F202: -1 | G202: -1 | H202: -1 | O202: 172 | P202: EC-RR7XMAH | Q202: EC-RR7XMAH | AS202: 171 | AT202: 0.03216203514 | AU202: 1.521594672 | AV202: 0.4868935876
A203: 173 | B203: -1 | C203: -1 | D203: -1 | E203: -1 | F203: -1 | G203: -1 | H203: -1 | O203: 173 | P203: EC-RR7XHAH | Q203: EC-RR7XHAH | AS203: 172 | AT203: 0.03235011722 | AU203: 1.539443137 | AV203: 0.4947156525
... 922 more rows

Sheet DataSerch (hidden)
A1: 選択型式 | B1: メカ機種データレコード | M1: $217 | N1: ：「メカ機種データ」範囲検索 | S1: $217 | T1: ⇒⇒⇒ | U1: $217
A2: =CycleTime!C6 -> EC-S6L | B2: № | C2: =ModelData!$B$2 -> ｱｸﾁｭｴｰﾀ型式 | H2: =ModelData!$C$2 -> 最小ｽﾄﾛｰｸ | I2: =ModelData!$D$2 -> 最大ｽﾄﾛｰｸ | J2: =ModelData!$E$2 -> 動作種別 | N2: ：「モータ機種データ」範囲検索
B3: =MATCH(A2,ModelData!$B$4:$B$217,0) -> 1 | C3: =LOOKUP(B3,ModelData!$A$4:$A$217,ModelData!$B$4:$B$217) -> EC-S6L | H3: =LOOKUP(B3,ModelData!$A$4:$A$217,ModelData!$C$4:$C$217) -> 50 | I3: =LOOKUP(B3,ModelData!$A$4:$A$217,ModelData!$D$4:$D$217) -> 400 | J3: =LOOKUP(B3,ModelData!$A$4:$A$217,ModelData!$E$4:$E$217) -> 0 | M3: $217 | N3: ：「リードデータ」範囲検索 | S3: $217 | T3: ⇒⇒⇒ | U3: $217
A4: リード | E4: [kg] | F4: [mm] | G4: [mm] | H4: [mm] | I4: [mm] | J4: 0/1 | K4: [K] | M4: $783 | N4: ：「ストロークデータ」範囲検索 | S4: $783 | T4: ⇒⇒⇒ | U4: $783
A5: =CycleTime!C8 -> 3 | E5: =E3/10 -> 0 | F5: =F3/10 -> 0 | G5: =G3 -> 0 | H5: =H3 -> 50 | I5: =I3 -> 400 | J5: =J3 -> 0 | M5: $7777 | N5: ：「搬送負荷データ」範囲検索 | S5: $7777 | T5: ⇒⇒⇒ | U5: $7777
M6: $18396 | N6: ：「加減速・速度データ」範囲検索 | S6: $18396 | T6: ⇒⇒⇒ | U6: $18396
A7: ストローク | B7: モータ機種レコード
A8: =CycleTime!C10 -> 50
A10: 設置姿勢 | D10: [Nm/A] | E10: [A] | F10: [kgm^2] | G10: [Nm] | H10: [Nm] | I10: [rad/s] | J10: [rad/s] | K10: [rad/s] | L10: [Nm/(rad/s)] | M10: [K] | N10: [K] | O10: [s]
A11: =IF(CycleTime!C12=CycleTime!AE20,0,1) -> 0 | D11: =D9/10000 -> 0 | E11: =E9/1000 -> 0 | F11: =F9*0.000000001 -> 0 | G11: =G9/1000 -> 0 | H11: =H9/1000 -> 0 | I11: =I9/1000 -> 0 | J11: =J9/1000 -> 0 | K11: =K9/1000 -> 0 | L11: =L9*0.000001 -> 0 | M11: =M9/10 -> 0 | N11: =N9/10 -> 0 | O11: =O9/100 -> 0
A13: 搬送負荷質量 | B13: リレーション | F13: リードデータレコード | I13: =LOOKUP(C15,LeadData!$A$4:$A$217,LeadData!$J$4:$J$217) -> EC-S6L (リード=3mm)
A14: =CycleTime!B31 -> 12 | C14: ﾘｰﾄﾞ№ | D14: ｽﾄﾛｰｸ№ | E14: 負荷№ | F14: =LeadData!$B$2 -> ﾘｰﾄﾞ長 | H14: =LeadData!$C$2 -> 水平定格加速度 | I14: =LeadData!$D$2 -> 垂直定格加速度 | J14: =LeadData!$E$2 -> 水平最大加速度 | K14: =LeadData!$F$2 -> 垂直最大加速度 | O14: =LeadData!$G$2 -> ｷﾞｱ比分子 | P14: =LeadData!$H$2 -> ｷﾞｱ比分母 | R14: =LeadData!$I$2 -> ｽﾄﾛｰｸ刻み
B15: =ModelData!$F$2 -> リンク[0] | C15: =LOOKUP(B3,ModelData!$A$4:$A$217,ModelData!$F$4:$F$217) -> 1 | D15: =LOOKUP(B3,ModelData!$A$4:$A$217,ModelData!$G$4:$G$217) -> 1 | E15: =LOOKUP(B3,ModelData!$A$4:$A$217,ModelData!$H$4:$H$217) -> 1 | F15: =LOOKUP(C15,LeadData!$A$4:$A$217,LeadData!$B$4:$B$217) -> 3000 | H15: =LOOKUP(C15,LeadData!$A$4:$A$217,LeadData!$C$4:$C$217) -> 2941995 | I15: =LOOKUP(C15,LeadData!$A$4:$A$217,LeadData!$D$4:$D$217) -> 2941995 | J15: =LOOKUP(C15,LeadData!$A$4:$A$217,LeadData!$E$4:$E$217) -> 9806650 | K15: =LOOKUP(C15,LeadData!$A$4:$A$217,LeadData!$F$4:$F$217) -> 4903325 | O15: =LOOKUP(C15,LeadData!$A$4:$A$217,LeadData!$G$4:$G$217) -> 1 | P15: =LOOKUP(C15,LeadData!$A$4:$A$217,LeadData!$H$4:$H$217) -> 1 | R15: =LOOKUP(C15,LeadData!$A$4:$A$217,LeadData!$I$4:$I$217) -> 50
B16: =ModelData!$I$2 -> リンク[1] | C16: =LOOKUP(B3,ModelData!$A$4:$A$217,ModelData!$I$4:$I$217) -> -1 | D16: =LOOKUP(B3,ModelData!$A$4:$A$217,ModelData!$J$4:$J$217) -> -1 | E16: =LOOKUP(B3,ModelData!$A$4:$A$217,ModelData!$K$4:$K$217) -> -1 | F16: =LOOKUP(C16,LeadData!$A$4:$A$217,LeadData!$B$4:$B$217) ->  | H16: =LOOKUP(C16,LeadData!$A$4:$A$217,LeadData!$C$4:$C$217) ->  | I16: =LOOKUP(C16,LeadData!$A$4:$A$217,LeadData!$D$4:$D$217) ->  | J16: =LOOKUP(C16,LeadData!$A$4:$A$217,LeadData!$E$4:$E$217) ->  | K16: =LOOKUP(C16,LeadData!$A$4:$A$217,LeadData!$F$4:$F$217) ->  | O16: =LOOKUP(C16,LeadData!$A$4:$A$217,LeadData!$G$4:$G$217) ->  | P16: =LOOKUP(C16,LeadData!$A$4:$A$217,LeadData!$H$4:$H$217) ->  | R16: =LOOKUP(C16,LeadData!$A$4:$A$217,LeadData!$I$4:$I$217) -> 
B17: =ModelData!$L$2 -> リンク[2] | C17: =LOOKUP(B3,ModelData!$A$4:$A$217,ModelData!$L$4:$L$217) -> -1 | D17: =LOOKUP(B3,ModelData!$A$4:$A$217,ModelData!$M$4:$M$217) -> -1 | E17: =LOOKUP(B3,ModelData!$A$4:$A$217,ModelData!$N$4:$N$217) -> -1 | F17: =LOOKUP(C17,LeadData!$A$4:$A$217,LeadData!$B$4:$B$217) ->  | H17: =LOOKUP(C17,LeadData!$A$4:$A$217,LeadData!$C$4:$C$217) ->  | I17: =LOOKUP(C17,LeadData!$A$4:$A$217,LeadData!$D$4:$D$217) ->  | J17: =LOOKUP(C17,LeadData!$A$4:$A$217,LeadData!$E$4:$E$217) ->  | K17: =LOOKUP(C17,LeadData!$A$4:$A$217,LeadData!$F$4:$F$217) ->  | O17: =LOOKUP(C17,LeadData!$A$4:$A$217,LeadData!$G$4:$G$217) ->  | P17: =LOOKUP(C17,LeadData!$A$4:$A$217,LeadData!$H$4:$H$217) ->  | R17: =LOOKUP(C17,LeadData!$A$4:$A$217,LeadData!$I$4:$I$217) -> 
B18: =ModelData!$O$2 -> リンク[3] | C18: =LOOKUP(B3,ModelData!$A$4:$A$217,ModelData!$O$4:$O$217) -> -1 | D18: =LOOKUP(B3,ModelData!$A$4:$A$217,ModelData!$P$4:$P$217) -> -1 | E18: =LOOKUP(B3,ModelData!$A$4:$A$217,ModelData!$Q$4:$Q$217) -> -1 | F18: =LOOKUP(C18,LeadData!$A$4:$A$217,LeadData!$B$4:$B$217) ->  | H18: =LOOKUP(C18,LeadData!$A$4:$A$217,LeadData!$C$4:$C$217) ->  | I18: =LOOKUP(C18,LeadData!$A$4:$A$217,LeadData!$D$4:$D$217) ->  | J18: =LOOKUP(C18,LeadData!$A$4:$A$217,LeadData!$E$4:$E$217) ->  | K18: =LOOKUP(C18,LeadData!$A$4:$A$217,LeadData!$F$4:$F$217) ->  | O18: =LOOKUP(C18,LeadData!$A$4:$A$217,LeadData!$G$4:$G$217) ->  | P18: =LOOKUP(C18,LeadData!$A$4:$A$217,LeadData!$H$4:$H$217) ->  | R18: =LOOKUP(C18,LeadData!$A$4:$A$217,LeadData!$I$4:$I$217) -> 
B19: =ModelData!$R$2 -> リンク[4] | C19: =LOOKUP(B3,ModelData!$A$4:$A$217,ModelData!$R$4:$R$217) -> -1 | D19: =LOOKUP(B3,ModelData!$A$4:$A$217,ModelData!$S$4:$S$217) -> -1 | E19: =LOOKUP(B3,ModelData!$A$4:$A$217,ModelData!$T$4:$T$217) -> -1 | F19: =LOOKUP(C19,LeadData!$A$4:$A$217,LeadData!$B$4:$B$217) ->  | H19: =LOOKUP(C19,LeadData!$A$4:$A$217,LeadData!$C$4:$C$217) ->  | I19: =LOOKUP(C19,LeadData!$A$4:$A$217,LeadData!$D$4:$D$217) ->  | J19: =LOOKUP(C19,LeadData!$A$4:$A$217,LeadData!$E$4:$E$217) ->  | K19: =LOOKUP(C19,LeadData!$A$4:$A$217,LeadData!$F$4:$F$217) ->  | O19: =LOOKUP(C19,LeadData!$A$4:$A$217,LeadData!$G$4:$G$217) ->  | P19: =LOOKUP(C19,LeadData!$A$4:$A$217,LeadData!$H$4:$H$217) ->  | R19: =LOOKUP(C19,LeadData!$A$4:$A$217,LeadData!$I$4:$I$217) -> 
B20: =ModelData!$U$2 -> リンク[5] | C20: =LOOKUP(B3,ModelData!$A$4:$A$217,ModelData!$U$4:$U$217) -> -1 | D20: =LOOKUP(B3,ModelData!$A$4:$A$217,ModelData!$V$4:$V$217) -> -1 | E20: =LOOKUP(B3,ModelData!$A$4:$A$217,ModelData!$W$4:$W$217) -> -1 | F20: =LOOKUP(C20,LeadData!$A$4:$A$217,LeadData!$B$4:$B$217) ->  | H20: =LOOKUP(C20,LeadData!$A$4:$A$217,LeadData!$C$4:$C$217) ->  | I20: =LOOKUP(C20,LeadData!$A$4:$A$217,LeadData!$D$4:$D$217) ->  | J20: =LOOKUP(C20,LeadData!$A$4:$A$217,LeadData!$E$4:$E$217) ->  | K20: =LOOKUP(C20,LeadData!$A$4:$A$217,LeadData!$F$4:$F$217) ->  | O20: =LOOKUP(C20,LeadData!$A$4:$A$217,LeadData!$G$4:$G$217) ->  | P20: =LOOKUP(C20,LeadData!$A$4:$A$217,LeadData!$H$4:$H$217) ->  | R20: =LOOKUP(C20,LeadData!$A$4:$A$217,LeadData!$I$4:$I$217) -> 
B21: =ModelData!$X$2 -> リンク[6] | C21: =LOOKUP(B3,ModelData!$A$4:$A$217,ModelData!$X$4:$X$217) -> -1 | D21: =LOOKUP(B3,ModelData!$A$4:$A$217,ModelData!$Y$4:$Y$217) -> -1 | E21: =LOOKUP(B3,ModelData!$A$4:$A$217,ModelData!$Z$4:$Z$217) -> -1 | F21: =LOOKUP(C21,LeadData!$A$4:$A$217,LeadData!$B$4:$B$217) ->  | H21: =LOOKUP(C21,LeadData!$A$4:$A$217,LeadData!$C$4:$C$217) ->  | I21: =LOOKUP(C21,LeadData!$A$4:$A$217,LeadData!$D$4:$D$217) ->  | J21: =LOOKUP(C21,LeadData!$A$4:$A$217,LeadData!$E$4:$E$217) ->  | K21: =LOOKUP(C21,LeadData!$A$4:$A$217,LeadData!$F$4:$F$217) ->  | O21: =LOOKUP(C21,LeadData!$A$4:$A$217,LeadData!$G$4:$G$217) ->  | P21: =LOOKUP(C21,LeadData!$A$4:$A$217,LeadData!$H$4:$H$217) ->  | R21: =LOOKUP(C21,LeadData!$A$4:$A$217,LeadData!$I$4:$I$217) -> 
B22: =ModelData!$AA$2 -> リンク[7] | C22: =LOOKUP(B3,ModelData!$A$4:$A$217,ModelData!$AA$4:$AA$217) -> -1 | D22: =LOOKUP(B3,ModelData!$A$4:$A$217,ModelData!$AB$4:$AB$217) -> -1 | E22: =LOOKUP(B3,ModelData!$A$4:$A$217,ModelData!$AC$4:$AC$217) -> -1 | F22: =LOOKUP(C22,LeadData!$A$4:$A$217,LeadData!$B$4:$B$217) ->  | H22: =LOOKUP(C22,LeadData!$A$4:$A$217,LeadData!$C$4:$C$217) ->  | I22: =LOOKUP(C22,LeadData!$A$4:$A$217,LeadData!$D$4:$D$217) ->  | J22: =LOOKUP(C22,LeadData!$A$4:$A$217,LeadData!$E$4:$E$217) ->  | K22: =LOOKUP(C22,LeadData!$A$4:$A$217,LeadData!$F$4:$F$217) ->  | O22: =LOOKUP(C22,LeadData!$A$4:$A$217,LeadData!$G$4:$G$217) ->  | P22: =LOOKUP(C22,LeadData!$A$4:$A$217,LeadData!$H$4:$H$217) ->  | R22: =LOOKUP(C22,LeadData!$A$4:$A$217,LeadData!$I$4:$I$217) -> 
B23: リードリストとリレーション | F23: リードデータレコードの物理量変換
B24: ﾘｰﾄﾞﾘｽﾄ | D24: リンク | F24: =LeadData!$B$2 -> ﾘｰﾄﾞ長 | H24: =LeadData!$C$2 -> 水平定格加速度 | I24: =LeadData!$D$2 -> 垂直定格加速度 | J24: =LeadData!$E$2 -> 水平最大加速度 | K24: =LeadData!$F$2 -> 垂直最大加速度 | O24: =LeadData!$G$2 -> ｷﾞｱ比分子 | P24: =LeadData!$H$2 -> ｷﾞｱ比分母 | R24: =LeadData!$I$2 -> ｽﾄﾛｰｸ刻み
B25: № | C25: ﾃﾞｰﾀ | D25: =D14 -> ｽﾄﾛｰｸ№ | E25: =E14 -> 負荷№ | F25: [mm] | G25: [kgm^2] | H25: [m/s^2] | I25: [m/s^2] | J25: [m/s^2] | K25: [m/s^2] | L25: [Nm] | M25: [Nms] | N25: [Nm] | R25: [mm]
B26: 1 | C26: =IF(C15=-1,"- - -",IF(F26<=0,P26/O26,F26)) -> 3 | D26: =D15 -> 1 | E26: 1 | F26: =F15/1000 -> 3 | G26: =G15*0.000000001 -> 0 | H26: =H15*0.000001 -> 2.941995 | I26: 2.941995 | J26: 9.80665 | K26: 4.903325 | O26: =O15 -> 1 | P26: =P15 -> 1 | R26: =R15 -> 50
B27: =B26+1 -> 2 | C27: - - - | D27: -1 | E27: -1 | G27: 0 | O27: =O16 ->  | R27: =R16 -> 
B28: =B27+1 -> 3 | C28: - - - | D28: -1 | E28: -1 | G28: 0
B29: 4 | C29: - - - | D29: -1 | E29: -1 | G29: 0
B30: 5 | C30: - - - | D30: -1 | E30: -1 | G30: 0
B31: 6 | C31: - - - | D31: -1 | E31: -1 | G31: 0
B32: 7 | C32: - - - | D32: -1 | E32: -1 | G32: 0
B33: 8 | C33: - - - | D33: -1 | E33: -1 | G33: 0
B35: リードリスト選択№ | D35: =MATCH(A5,C26:C33,0) -> 1 | E35: ストロークデータレコード | H35: =LOOKUP(C37,StrokeData!$A$4:$A$783,StrokeData!$M$4:$M$783) -> EC-S6L (リード3)
B36: № | C36: stﾚｺｰﾄﾞ№ | D36: =StrokeData!$B$2 -> ｽﾄﾛｰｸ長 | E36: =StrokeData!$C$2 -> 有効ｽﾄﾛｰｸ補正 | G36: =StrokeData!$D$2 -> 基準ｹﾞｲﾝ用搬送質量 | H36: =StrokeData!$E$2 -> 水平可搬質量 | I36: =StrokeData!$F$2 -> 垂直可搬質量 | J36: =StrokeData!$G$2 -> 最大速度 | K36: =StrokeData!$H$2 -> 位置ｹﾞｲﾝ | L36: =StrokeData!$I$2 -> FFｹﾞｲﾝ | M36: =StrokeData!$J$2 -> 速度制御帯域 | S36: =StrokeData!$K$2 -> 前ﾃﾞｰﾀ№ | T36: =StrokeData!$L$2 -> 次ﾃﾞｰﾀ№
B37: 1 | C37: =LOOKUP(D35,B26:B33,D26:D33) -> 1 | D37: =LOOKUP(C37,StrokeData!$A$4:$A$783,StrokeData!$B$4:$B$783) -> 200 | E37: =LOOKUP(C37,StrokeData!$A$4:$A$783,StrokeData!$C$4:$C$783) -> 0 | G37: =LOOKUP(C37,StrokeData!$A$4:$A$783,StrokeData!$D$4:$D$783) -> 40000 | H37: =LOOKUP(C37,StrokeData!$A$4:$A$783,StrokeData!$E$4:$E$783) -> 40000 | I37: =LOOKUP(C37,StrokeData!$A$4:$A$783,StrokeData!$F$4:$F$783) -> 12500 | J37: =LOOKUP(C37,StrokeData!$A$4:$A$783,StrokeData!$G$4:$G$783) -> 225 | K37: =LOOKUP(C37,StrokeData!$A$4:$A$783,StrokeData!$H$4:$H$783) -> 40 | L37: =LOOKUP(C37,StrokeData!$A$4:$A$783,StrokeData!$I$4:$I$783) -> 0 | M37: =LOOKUP(C37,StrokeData!$A$4:$A$783,StrokeData!$J$4:$J$783) -> 240 | S37: =LOOKUP(C37,StrokeData!$A$4:$A$783,StrokeData!$K$4:$K$783) -> -1 | T37: =LOOKUP(C37,StrokeData!$A$4:$A$783,StrokeData!$L$4:$L$783) -> 2
B38: =B37+1 -> 2 | C38: =IF(C37=-1,-1,LOOKUP(C37,StrokeData!$A$4:$A$783,StrokeData!$L$4:$L$783)) -> 2 | D38: =LOOKUP(C38,StrokeData!$A$4:$A$783,StrokeData!$B$4:$B$783) -> 250 | E38: =LOOKUP(C38,StrokeData!$A$4:$A$783,StrokeData!$C$4:$C$783) -> 0 | G38: =LOOKUP(C38,StrokeData!$A$4:$A$783,StrokeData!$D$4:$D$783) -> 40000 | H38: =LOOKUP(C38,StrokeData!$A$4:$A$783,StrokeData!$E$4:$E$783) -> 40000 | I38: =LOOKUP(C38,StrokeData!$A$4:$A$783,StrokeData!$F$4:$F$783) -> 12500 | J38: =LOOKUP(C38,StrokeData!$A$4:$A$783,StrokeData!$G$4:$G$783) -> 188 | K38: =LOOKUP(C38,StrokeData!$A$4:$A$783,StrokeData!$H$4:$H$783) -> 40 | L38: =LOOKUP(C38,StrokeData!$A$4:$A$783,StrokeData!$I$4:$I$783) -> 0 | M38: =LOOKUP(C38,StrokeData!$A$4:$A$783,StrokeData!$J$4:$J$783) -> 240 | S38: =LOOKUP(C38,StrokeData!$A$4:$A$783,StrokeData!$K$4:$K$783) -> 1 | T38: =LOOKUP(C38,StrokeData!$A$4:$A$783,StrokeData!$L$4:$L$783) -> 3
B39: =B38+1 -> 3 | C39: =IF(C38=-1,-1,LOOKUP(C38,StrokeData!$A$4:$A$783,StrokeData!$L$4:$L$783)) -> 3 | D39: =LOOKUP(C39,StrokeData!$A$4:$A$783,StrokeData!$B$4:$B$783) -> 300 | E39: =LOOKUP(C39,StrokeData!$A$4:$A$783,StrokeData!$C$4:$C$783) -> 0 | G39: =LOOKUP(C39,StrokeData!$A$4:$A$783,StrokeData!$D$4:$D$783) -> 40000 | H39: =LOOKUP(C39,StrokeData!$A$4:$A$783,StrokeData!$E$4:$E$783) -> 40000 | I39: =LOOKUP(C39,StrokeData!$A$4:$A$783,StrokeData!$F$4:$F$783) -> 12500 | J39: =LOOKUP(C39,StrokeData!$A$4:$A$783,StrokeData!$G$4:$G$783) -> 134 | K39: =LOOKUP(C39,StrokeData!$A$4:$A$783,StrokeData!$H$4:$H$783) -> 40 | L39: =LOOKUP(C39,StrokeData!$A$4:$A$783,StrokeData!$I$4:$I$783) -> 0 | M39: =LOOKUP(C39,StrokeData!$A$4:$A$783,StrokeData!$J$4:$J$783) -> 240 | S39: =LOOKUP(C39,StrokeData!$A$4:$A$783,StrokeData!$K$4:$K$783) -> 2 | T39: =LOOKUP(C39,StrokeData!$A$4:$A$783,StrokeData!$L$4:$L$783) -> 4
B40: 4 | C40: =IF(C39=-1,-1,LOOKUP(C39,StrokeData!$A$4:$A$783,StrokeData!$L$4:$L$783)) -> 4 | D40: =LOOKUP(C40,StrokeData!$A$4:$A$783,StrokeData!$B$4:$B$783) -> 350 | E40: =LOOKUP(C40,StrokeData!$A$4:$A$783,StrokeData!$C$4:$C$783) -> 0 | G40: =LOOKUP(C40,StrokeData!$A$4:$A$783,StrokeData!$D$4:$D$783) -> 40000 | H40: =LOOKUP(C40,StrokeData!$A$4:$A$783,StrokeData!$E$4:$E$783) -> 40000 | I40: =LOOKUP(C40,StrokeData!$A$4:$A$783,StrokeData!$F$4:$F$783) -> 12500 | J40: =LOOKUP(C40,StrokeData!$A$4:$A$783,StrokeData!$G$4:$G$783) -> 100 | K40: =LOOKUP(C40,StrokeData!$A$4:$A$783,StrokeData!$H$4:$H$783) -> 40 | L40: =LOOKUP(C40,StrokeData!$A$4:$A$783,StrokeData!$I$4:$I$783) -> 0 | M40: =LOOKUP(C40,StrokeData!$A$4:$A$783,StrokeData!$J$4:$J$783) -> 240 | S40: =LOOKUP(C40,StrokeData!$A$4:$A$783,StrokeData!$K$4:$K$783) -> 3 | T40: =LOOKUP(C40,StrokeData!$A$4:$A$783,StrokeData!$L$4:$L$783) -> 5
B41: 5 | C41: =IF(C40=-1,-1,LOOKUP(C40,StrokeData!$A$4:$A$783,StrokeData!$L$4:$L$783)) -> 5 | D41: =LOOKUP(C41,StrokeData!$A$4:$A$783,StrokeData!$B$4:$B$783) -> 400 | E41: =LOOKUP(C41,StrokeData!$A$4:$A$783,StrokeData!$C$4:$C$783) -> 0 | G41: =LOOKUP(C41,StrokeData!$A$4:$A$783,StrokeData!$D$4:$D$783) -> 40000 | H41: =LOOKUP(C41,StrokeData!$A$4:$A$783,StrokeData!$E$4:$E$783) -> 40000 | I41: =LOOKUP(C41,StrokeData!$A$4:$A$783,StrokeData!$F$4:$F$783) -> 12500 | J41: =LOOKUP(C41,StrokeData!$A$4:$A$783,StrokeData!$G$4:$G$783) -> 78 | K41: =LOOKUP(C41,StrokeData!$A$4:$A$783,StrokeData!$H$4:$H$783) -> 40 | L41: =LOOKUP(C41,StrokeData!$A$4:$A$783,StrokeData!$I$4:$I$783) -> 0 | M41: =LOOKUP(C41,StrokeData!$A$4:$A$783,StrokeData!$J$4:$J$783) -> 240 | S41: =LOOKUP(C41,StrokeData!$A$4:$A$783,StrokeData!$K$4:$K$783) -> 4 | T41: =LOOKUP(C41,StrokeData!$A$4:$A$783,StrokeData!$L$4:$L$783) -> -1
B42: 6 | C42: =IF(C41=-1,-1,LOOKUP(C41,StrokeData!$A$4:$A$783,StrokeData!$L$4:$L$783)) -> -1 | D42: =LOOKUP(C42,StrokeData!$A$4:$A$783,StrokeData!$B$4:$B$783) ->  | E42: =LOOKUP(C42,StrokeData!$A$4:$A$783,StrokeData!$C$4:$C$783) ->  | G42: =LOOKUP(C42,StrokeData!$A$4:$A$783,StrokeData!$D$4:$D$783) ->  | H42: =LOOKUP(C42,StrokeData!$A$4:$A$783,StrokeData!$E$4:$E$783) ->  | I42: =LOOKUP(C42,StrokeData!$A$4:$A$783,StrokeData!$F$4:$F$783) ->  | J42: =LOOKUP(C42,StrokeData!$A$4:$A$783,StrokeData!$G$4:$G$783) ->  | K42: =LOOKUP(C42,StrokeData!$A$4:$A$783,StrokeData!$H$4:$H$783) ->  | L42: =LOOKUP(C42,StrokeData!$A$4:$A$783,StrokeData!$I$4:$I$783) ->  | M42: =LOOKUP(C42,StrokeData!$A$4:$A$783,StrokeData!$J$4:$J$783) ->  | S42: =LOOKUP(C42,StrokeData!$A$4:$A$783,StrokeData!$K$4:$K$783) ->  | T42: =LOOKUP(C42,StrokeData!$A$4:$A$783,StrokeData!$L$4:$L$783) -> 
B43: 7 | C43: =IF(C42=-1,-1,LOOKUP(C42,StrokeData!$A$4:$A$783,StrokeData!$L$4:$L$783)) -> -1 | D43: =LOOKUP(C43,StrokeData!$A$4:$A$783,StrokeData!$B$4:$B$783) ->  | E43: =LOOKUP(C43,StrokeData!$A$4:$A$783,StrokeData!$C$4:$C$783) ->  | G43: =LOOKUP(C43,StrokeData!$A$4:$A$783,StrokeData!$D$4:$D$783) ->  | H43: =LOOKUP(C43,StrokeData!$A$4:$A$783,StrokeData!$E$4:$E$783) ->  | I43: =LOOKUP(C43,StrokeData!$A$4:$A$783,StrokeData!$F$4:$F$783) ->  | J43: =LOOKUP(C43,StrokeData!$A$4:$A$783,StrokeData!$G$4:$G$783) ->  | K43: =LOOKUP(C43,StrokeData!$A$4:$A$783,StrokeData!$H$4:$H$783) ->  | L43: =LOOKUP(C43,StrokeData!$A$4:$A$783,StrokeData!$I$4:$I$783) ->  | M43: =LOOKUP(C43,StrokeData!$A$4:$A$783,StrokeData!$J$4:$J$783) ->  | S43: =LOOKUP(C43,StrokeData!$A$4:$A$783,StrokeData!$K$4:$K$783) ->  | T43: =LOOKUP(C43,StrokeData!$A$4:$A$783,StrokeData!$L$4:$L$783) -> 
B44: 8 | C44: =IF(C43=-1,-1,LOOKUP(C43,StrokeData!$A$4:$A$783,StrokeData!$L$4:$L$783)) -> -1 | D44: =LOOKUP(C44,StrokeData!$A$4:$A$783,StrokeData!$B$4:$B$783) ->  | E44: =LOOKUP(C44,StrokeData!$A$4:$A$783,StrokeData!$C$4:$C$783) ->  | G44: =LOOKUP(C44,StrokeData!$A$4:$A$783,StrokeData!$D$4:$D$783) ->  | H44: =LOOKUP(C44,StrokeData!$A$4:$A$783,StrokeData!$E$4:$E$783) ->  | I44: =LOOKUP(C44,StrokeData!$A$4:$A$783,StrokeData!$F$4:$F$783) ->  | J44: =LOOKUP(C44,StrokeData!$A$4:$A$783,StrokeData!$G$4:$G$783) ->  | K44: =LOOKUP(C44,StrokeData!$A$4:$A$783,StrokeData!$H$4:$H$783) ->  | L44: =LOOKUP(C44,StrokeData!$A$4:$A$783,StrokeData!$I$4:$I$783) ->  | M44: =LOOKUP(C44,StrokeData!$A$4:$A$783,StrokeData!$J$4:$J$783) ->  | S44: =LOOKUP(C44,StrokeData!$A$4:$A$783,StrokeData!$K$4:$K$783) ->  | T44: =LOOKUP(C44,StrokeData!$A$4:$A$783,StrokeData!$L$4:$L$783) -> 
B45: 9 | C45: =IF(C44=-1,-1,LOOKUP(C44,StrokeData!$A$4:$A$783,StrokeData!$L$4:$L$783)) -> -1 | D45: =LOOKUP(C45,StrokeData!$A$4:$A$783,StrokeData!$B$4:$B$783) ->  | E45: =LOOKUP(C45,StrokeData!$A$4:$A$783,StrokeData!$C$4:$C$783) ->  | G45: =LOOKUP(C45,StrokeData!$A$4:$A$783,StrokeData!$D$4:$D$783) ->  | H45: =LOOKUP(C45,StrokeData!$A$4:$A$783,StrokeData!$E$4:$E$783) ->  | I45: =LOOKUP(C45,StrokeData!$A$4:$A$783,StrokeData!$F$4:$F$783) ->  | J45: =LOOKUP(C45,StrokeData!$A$4:$A$783,StrokeData!$G$4:$G$783) ->  | K45: =LOOKUP(C45,StrokeData!$A$4:$A$783,StrokeData!$H$4:$H$783) ->  | L45: =LOOKUP(C45,StrokeData!$A$4:$A$783,StrokeData!$I$4:$I$783) ->  | M45: =LOOKUP(C45,StrokeData!$A$4:$A$783,StrokeData!$J$4:$J$783) ->  | S45: =LOOKUP(C45,StrokeData!$A$4:$A$783,StrokeData!$K$4:$K$783) ->  | T45: =LOOKUP(C45,StrokeData!$A$4:$A$783,StrokeData!$L$4:$L$783) -> 
B46: 10 | C46: =IF(C45=-1,-1,LOOKUP(C45,StrokeData!$A$4:$A$783,StrokeData!$L$4:$L$783)) -> -1 | D46: =LOOKUP(C46,StrokeData!$A$4:$A$783,StrokeData!$B$4:$B$783) ->  | E46: =LOOKUP(C46,StrokeData!$A$4:$A$783,StrokeData!$C$4:$C$783) ->  | G46: =LOOKUP(C46,StrokeData!$A$4:$A$783,StrokeData!$D$4:$D$783) ->  | H46: =LOOKUP(C46,StrokeData!$A$4:$A$783,StrokeData!$E$4:$E$783) ->  | I46: =LOOKUP(C46,StrokeData!$A$4:$A$783,StrokeData!$F$4:$F$783) ->  | J46: =LOOKUP(C46,StrokeData!$A$4:$A$783,StrokeData!$G$4:$G$783) ->  | K46: =LOOKUP(C46,StrokeData!$A$4:$A$783,StrokeData!$H$4:$H$783) ->  | L46: =LOOKUP(C46,StrokeData!$A$4:$A$783,StrokeData!$I$4:$I$783) ->  | M46: =LOOKUP(C46,StrokeData!$A$4:$A$783,StrokeData!$J$4:$J$783) ->  | S46: =LOOKUP(C46,StrokeData!$A$4:$A$783,StrokeData!$K$4:$K$783) ->  | T46: =LOOKUP(C46,StrokeData!$A$4:$A$783,StrokeData!$L$4:$L$783) -> 
B47: 11 | C47: =IF(C46=-1,-1,LOOKUP(C46,StrokeData!$A$4:$A$783,StrokeData!$L$4:$L$783)) -> -1 | D47: =LOOKUP(C47,StrokeData!$A$4:$A$783,StrokeData!$B$4:$B$783) ->  | E47: =LOOKUP(C47,StrokeData!$A$4:$A$783,StrokeData!$C$4:$C$783) ->  | G47: =LOOKUP(C47,StrokeData!$A$4:$A$783,StrokeData!$D$4:$D$783) ->  | H47: =LOOKUP(C47,StrokeData!$A$4:$A$783,StrokeData!$E$4:$E$783) ->  | I47: =LOOKUP(C47,StrokeData!$A$4:$A$783,StrokeData!$F$4:$F$783) ->  | J47: =LOOKUP(C47,StrokeData!$A$4:$A$783,StrokeData!$G$4:$G$783) ->  | K47: =LOOKUP(C47,StrokeData!$A$4:$A$783,StrokeData!$H$4:$H$783) ->  | L47: =LOOKUP(C47,StrokeData!$A$4:$A$783,StrokeData!$I$4:$I$783) ->  | M47: =LOOKUP(C47,StrokeData!$A$4:$A$783,StrokeData!$J$4:$J$783) ->  | S47: =LOOKUP(C47,StrokeData!$A$4:$A$783,StrokeData!$K$4:$K$783) ->  | T47: =LOOKUP(C47,StrokeData!$A$4:$A$783,StrokeData!$L$4:$L$783) -> 
B48: 12 | C48: =IF(C47=-1,-1,LOOKUP(C47,StrokeData!$A$4:$A$783,StrokeData!$L$4:$L$783)) -> -1 | D48: =LOOKUP(C48,StrokeData!$A$4:$A$783,StrokeData!$B$4:$B$783) ->  | E48: =LOOKUP(C48,StrokeData!$A$4:$A$783,StrokeData!$C$4:$C$783) ->  | G48: =LOOKUP(C48,StrokeData!$A$4:$A$783,StrokeData!$D$4:$D$783) ->  | H48: =LOOKUP(C48,StrokeData!$A$4:$A$783,StrokeData!$E$4:$E$783) ->  | I48: =LOOKUP(C48,StrokeData!$A$4:$A$783,StrokeData!$F$4:$F$783) ->  | J48: =LOOKUP(C48,StrokeData!$A$4:$A$783,StrokeData!$G$4:$G$783) ->  | K48: =LOOKUP(C48,StrokeData!$A$4:$A$783,StrokeData!$H$4:$H$783) ->  | L48: =LOOKUP(C48,StrokeData!$A$4:$A$783,StrokeData!$I$4:$I$783) ->  | M48: =LOOKUP(C48,StrokeData!$A$4:$A$783,StrokeData!$J$4:$J$783) ->  | S48: =LOOKUP(C48,StrokeData!$A$4:$A$783,StrokeData!$K$4:$K$783) ->  | T48: =LOOKUP(C48,StrokeData!$A$4:$A$783,StrokeData!$L$4:$L$783) -> 
B49: 13 | C49: =IF(C48=-1,-1,LOOKUP(C48,StrokeData!$A$4:$A$783,StrokeData!$L$4:$L$783)) -> -1 | D49: =LOOKUP(C49,StrokeData!$A$4:$A$783,StrokeData!$B$4:$B$783) ->  | E49: =LOOKUP(C49,StrokeData!$A$4:$A$783,StrokeData!$C$4:$C$783) ->  | G49: =LOOKUP(C49,StrokeData!$A$4:$A$783,StrokeData!$D$4:$D$783) ->  | H49: =LOOKUP(C49,StrokeData!$A$4:$A$783,StrokeData!$E$4:$E$783) ->  | I49: =LOOKUP(C49,StrokeData!$A$4:$A$783,StrokeData!$F$4:$F$783) ->  | J49: =LOOKUP(C49,StrokeData!$A$4:$A$783,StrokeData!$G$4:$G$783) ->  | K49: =LOOKUP(C49,StrokeData!$A$4:$A$783,StrokeData!$H$4:$H$783) ->  | L49: =LOOKUP(C49,StrokeData!$A$4:$A$783,StrokeData!$I$4:$I$783) ->  | M49: =LOOKUP(C49,StrokeData!$A$4:$A$783,StrokeData!$J$4:$J$783) ->  | S49: =LOOKUP(C49,StrokeData!$A$4:$A$783,StrokeData!$K$4:$K$783) ->  | T49: =LOOKUP(C49,StrokeData!$A$4:$A$783,StrokeData!$L$4:$L$783) -> 
B50: 14 | C50: =IF(C49=-1,-1,LOOKUP(C49,StrokeData!$A$4:$A$783,StrokeData!$L$4:$L$783)) -> -1 | D50: =LOOKUP(C50,StrokeData!$A$4:$A$783,StrokeData!$B$4:$B$783) ->  | E50: =LOOKUP(C50,StrokeData!$A$4:$A$783,StrokeData!$C$4:$C$783) ->  | G50: =LOOKUP(C50,StrokeData!$A$4:$A$783,StrokeData!$D$4:$D$783) ->  | H50: =LOOKUP(C50,StrokeData!$A$4:$A$783,StrokeData!$E$4:$E$783) ->  | I50: =LOOKUP(C50,StrokeData!$A$4:$A$783,StrokeData!$F$4:$F$783) ->  | J50: =LOOKUP(C50,StrokeData!$A$4:$A$783,StrokeData!$G$4:$G$783) ->  | K50: =LOOKUP(C50,StrokeData!$A$4:$A$783,StrokeData!$H$4:$H$783) ->  | L50: =LOOKUP(C50,StrokeData!$A$4:$A$783,StrokeData!$I$4:$I$783) ->  | M50: =LOOKUP(C50,StrokeData!$A$4:$A$783,StrokeData!$J$4:$J$783) ->  | S50: =LOOKUP(C50,StrokeData!$A$4:$A$783,StrokeData!$K$4:$K$783) ->  | T50: =LOOKUP(C50,StrokeData!$A$4:$A$783,StrokeData!$L$4:$L$783) -> 
B51: 15 | C51: =IF(C50=-1,-1,LOOKUP(C50,StrokeData!$A$4:$A$783,StrokeData!$L$4:$L$783)) -> -1 | D51: =LOOKUP(C51,StrokeData!$A$4:$A$783,StrokeData!$B$4:$B$783) ->  | E51: =LOOKUP(C51,StrokeData!$A$4:$A$783,StrokeData!$C$4:$C$783) ->  | G51: =LOOKUP(C51,StrokeData!$A$4:$A$783,StrokeData!$D$4:$D$783) ->  | H51: =LOOKUP(C51,StrokeData!$A$4:$A$783,StrokeData!$E$4:$E$783) ->  | I51: =LOOKUP(C51,StrokeData!$A$4:$A$783,StrokeData!$F$4:$F$783) ->  | J51: =LOOKUP(C51,StrokeData!$A$4:$A$783,StrokeData!$G$4:$G$783) ->  | K51: =LOOKUP(C51,StrokeData!$A$4:$A$783,StrokeData!$H$4:$H$783) ->  | L51: =LOOKUP(C51,StrokeData!$A$4:$A$783,StrokeData!$I$4:$I$783) ->  | M51: =LOOKUP(C51,StrokeData!$A$4:$A$783,StrokeData!$J$4:$J$783) ->  | S51: =LOOKUP(C51,StrokeData!$A$4:$A$783,StrokeData!$K$4:$K$783) ->  | T51: =LOOKUP(C51,StrokeData!$A$4:$A$783,StrokeData!$L$4:$L$783) -> 
B52: 16 | C52: =IF(C51=-1,-1,LOOKUP(C51,StrokeData!$A$4:$A$783,StrokeData!$L$4:$L$783)) -> -1 | D52: =LOOKUP(C52,StrokeData!$A$4:$A$783,StrokeData!$B$4:$B$783) ->  | E52: =LOOKUP(C52,StrokeData!$A$4:$A$783,StrokeData!$C$4:$C$783) ->  | G52: =LOOKUP(C52,StrokeData!$A$4:$A$783,StrokeData!$D$4:$D$783) ->  | H52: =LOOKUP(C52,StrokeData!$A$4:$A$783,StrokeData!$E$4:$E$783) ->  | I52: =LOOKUP(C52,StrokeData!$A$4:$A$783,StrokeData!$F$4:$F$783) ->  | J52: =LOOKUP(C52,StrokeData!$A$4:$A$783,StrokeData!$G$4:$G$783) ->  | K52: =LOOKUP(C52,StrokeData!$A$4:$A$783,StrokeData!$H$4:$H$783) ->  | L52: =LOOKUP(C52,StrokeData!$A$4:$A$783,StrokeData!$I$4:$I$783) ->  | M52: =LOOKUP(C52,StrokeData!$A$4:$A$783,StrokeData!$J$4:$J$783) ->  | S52: =LOOKUP(C52,StrokeData!$A$4:$A$783,StrokeData!$K$4:$K$783) ->  | T52: =LOOKUP(C52,StrokeData!$A$4:$A$783,StrokeData!$L$4:$L$783) -> 
B53: 17 | C53: =IF(C52=-1,-1,LOOKUP(C52,StrokeData!$A$4:$A$783,StrokeData!$L$4:$L$783)) -> -1 | D53: =LOOKUP(C53,StrokeData!$A$4:$A$783,StrokeData!$B$4:$B$783) ->  | E53: =LOOKUP(C53,StrokeData!$A$4:$A$783,StrokeData!$C$4:$C$783) ->  | G53: =LOOKUP(C53,StrokeData!$A$4:$A$783,StrokeData!$D$4:$D$783) ->  | H53: =LOOKUP(C53,StrokeData!$A$4:$A$783,StrokeData!$E$4:$E$783) ->  | I53: =LOOKUP(C53,StrokeData!$A$4:$A$783,StrokeData!$F$4:$F$783) ->  | J53: =LOOKUP(C53,StrokeData!$A$4:$A$783,StrokeData!$G$4:$G$783) ->  | K53: =LOOKUP(C53,StrokeData!$A$4:$A$783,StrokeData!$H$4:$H$783) ->  | L53: =LOOKUP(C53,StrokeData!$A$4:$A$783,StrokeData!$I$4:$I$783) ->  | M53: =LOOKUP(C53,StrokeData!$A$4:$A$783,StrokeData!$J$4:$J$783) ->  | S53: =LOOKUP(C53,StrokeData!$A$4:$A$783,StrokeData!$K$4:$K$783) ->  | T53: =LOOKUP(C53,StrokeData!$A$4:$A$783,StrokeData!$L$4:$L$783) -> 
B54: 18 | C54: =IF(C53=-1,-1,LOOKUP(C53,StrokeData!$A$4:$A$783,StrokeData!$L$4:$L$783)) -> -1 | D54: =LOOKUP(C54,StrokeData!$A$4:$A$783,StrokeData!$B$4:$B$783) ->  | E54: =LOOKUP(C54,StrokeData!$A$4:$A$783,StrokeData!$C$4:$C$783) ->  | G54: =LOOKUP(C54,StrokeData!$A$4:$A$783,StrokeData!$D$4:$D$783) ->  | H54: =LOOKUP(C54,StrokeData!$A$4:$A$783,StrokeData!$E$4:$E$783) ->  | I54: =LOOKUP(C54,StrokeData!$A$4:$A$783,StrokeData!$F$4:$F$783) ->  | J54: =LOOKUP(C54,StrokeData!$A$4:$A$783,StrokeData!$G$4:$G$783) ->  | K54: =LOOKUP(C54,StrokeData!$A$4:$A$783,StrokeData!$H$4:$H$783) ->  | L54: =LOOKUP(C54,StrokeData!$A$4:$A$783,StrokeData!$I$4:$I$783) ->  | M54: =LOOKUP(C54,StrokeData!$A$4:$A$783,StrokeData!$J$4:$J$783) ->  | S54: =LOOKUP(C54,StrokeData!$A$4:$A$783,StrokeData!$K$4:$K$783) ->  | T54: =LOOKUP(C54,StrokeData!$A$4:$A$783,StrokeData!$L$4:$L$783) -> 
B55: 19 | C55: =IF(C54=-1,-1,LOOKUP(C54,StrokeData!$A$4:$A$783,StrokeData!$L$4:$L$783)) -> -1 | D55: =LOOKUP(C55,StrokeData!$A$4:$A$783,StrokeData!$B$4:$B$783) ->  | E55: =LOOKUP(C55,StrokeData!$A$4:$A$783,StrokeData!$C$4:$C$783) ->  | G55: =LOOKUP(C55,StrokeData!$A$4:$A$783,StrokeData!$D$4:$D$783) ->  | H55: =LOOKUP(C55,StrokeData!$A$4:$A$783,StrokeData!$E$4:$E$783) ->  | I55: =LOOKUP(C55,StrokeData!$A$4:$A$783,StrokeData!$F$4:$F$783) ->  | J55: =LOOKUP(C55,StrokeData!$A$4:$A$783,StrokeData!$G$4:$G$783) ->  | K55: =LOOKUP(C55,StrokeData!$A$4:$A$783,StrokeData!$H$4:$H$783) ->  | L55: =LOOKUP(C55,StrokeData!$A$4:$A$783,StrokeData!$I$4:$I$783) ->  | M55: =LOOKUP(C55,StrokeData!$A$4:$A$783,StrokeData!$J$4:$J$783) ->  | S55: =LOOKUP(C55,StrokeData!$A$4:$A$783,StrokeData!$K$4:$K$783) ->  | T55: =LOOKUP(C55,StrokeData!$A$4:$A$783,StrokeData!$L$4:$L$783) -> 
B56: 20 | C56: =IF(C55=-1,-1,LOOKUP(C55,StrokeData!$A$4:$A$783,StrokeData!$L$4:$L$783)) -> -1 | D56: =LOOKUP(C56,StrokeData!$A$4:$A$783,StrokeData!$B$4:$B$783) ->  | E56: =LOOKUP(C56,StrokeData!$A$4:$A$783,StrokeData!$C$4:$C$783) ->  | G56: =LOOKUP(C56,StrokeData!$A$4:$A$783,StrokeData!$D$4:$D$783) ->  | H56: =LOOKUP(C56,StrokeData!$A$4:$A$783,StrokeData!$E$4:$E$783) ->  | I56: =LOOKUP(C56,StrokeData!$A$4:$A$783,StrokeData!$F$4:$F$783) ->  | J56: =LOOKUP(C56,StrokeData!$A$4:$A$783,StrokeData!$G$4:$G$783) ->  | K56: =LOOKUP(C56,StrokeData!$A$4:$A$783,StrokeData!$H$4:$H$783) ->  | L56: =LOOKUP(C56,StrokeData!$A$4:$A$783,StrokeData!$I$4:$I$783) ->  | M56: =LOOKUP(C56,StrokeData!$A$4:$A$783,StrokeData!$J$4:$J$783) ->  | S56: =LOOKUP(C56,StrokeData!$A$4:$A$783,StrokeData!$K$4:$K$783) ->  | T56: =LOOKUP(C56,StrokeData!$A$4:$A$783,StrokeData!$L$4:$L$783) -> 
D57: ストローク | E57: =H5 -> 50 | F57: mm | G57: ～ | H57: =I5 -> 400 | I57: mm | K57: 刻み | L57: =LOOKUP(D35,B26:B33,R26:R33) -> 50 | M57: mm | O57: 慣性係数 | P57: =IF($J$5=1,0.000001,0.001) -> 0.001 | Q57: 有効桁数 | R57: =IF($J$5=1,6,3) -> 3
B58: stﾘｽﾄ検索用(降順) | D58: № | E58: =StrokeData!$B$2 -> ｽﾄﾛｰｸ長 | F58: stﾘｽﾄ№ | G58: =StrokeData!$C$2 -> 有効ｽﾄﾛｰｸ補正 | I58: =StrokeData!$D$2 -> 基準ｹﾞｲﾝ用搬送質量 | J58: =StrokeData!$E$2 -> 水平可搬質量 | K58: =StrokeData!$F$2 -> 垂直可搬質量 | L58: =StrokeData!$G$2 -> 最大速度 | M58: =StrokeData!$H$2 -> 位置ｹﾞｲﾝ | N58: =StrokeData!$I$2 -> FFｹﾞｲﾝ | O58: =StrokeData!$J$2 -> 速度制御帯域
B59: =B36 -> № | C59: =D36 -> ｽﾄﾛｰｸ長 | D59: 0 | E59: =H4 -> [mm] | G59: [mm] | H59: [kg/mm] | I59: =IF(J5=1,"[kgm^2]","[kg]") -> [kg] | J59: =IF(J5=1,"[kgm^2]","[kg]") -> [kg] | K59: =IF(J5=1,"[kgm^2]","[kg]") -> [kg] | L59: [mm/s] | M59: [1/s] | N59: [%] | O59: [rad/s] | Q59: [s] | T59: [Nm/rad]
B60: =B56 -> 20 | C60: =D56 ->  | D60: 1 | E60: =IF( (E57+L57*D59)<=H57,(E57+L57*D59),"- - -") -> 50 | F60: =(B60+1)-MATCH(E60,C60:C79,-1) -> 1 | G60: =LOOKUP(F60,B37:B56,E37:E56) -> 0 | H60: =LOOKUP(F60,$B$37:$B$56,$F$37:$F$56)*0.001 -> 0 | I60: =LOOKUP(F60,B37:B56,G37:G56)*$P$57 -> 40 | J60: =LOOKUP(F60,B37:B56,H37:H56)*$P$57 -> 40 | K60: =LOOKUP(F60,B37:B56,I37:I56)*$P$57 -> 12.5 | L60: =LOOKUP(F60,B37:B56,J37:J56) -> 225 | M60: =LOOKUP(F60,B37:B56,K37:K56) -> 40 | N60: =LOOKUP(F60,B37:B56,L37:L56) -> 0 | O60: =LOOKUP(F60,B37:B56,M37:M56) -> 240 | P60: =LOOKUP(F60,$B$37:$B$56,$N$37:$N$56) -> 0 | Q60: =LOOKUP(F60,$B$37:$B$56,$O$37:$O$56) -> 0 | R60: =LOOKUP(F60,$B$37:$B$56,$P$37:$P$56) -> 0 | S60: =LOOKUP(F60,$B$37:$B$56,$Q$37:$Q$56) -> 0 | T60: =LOOKUP(F60,$B$37:$B$56,$R$37:$R$56) -> 0
B61: =B55 -> 19 | C61: =D55 ->  | D61: =D60+1 -> 2 | E61: =IF( (E57+L57*D60)<=H57,(E57+L57*D60),"- - -") -> 100 | F61: =(B60+1)-MATCH(E61,C60:C79,-1) -> 1 | G61: =LOOKUP(F61,B37:B56,E37:E56) -> 0 | H61: 0 | I61: =LOOKUP(F61,B37:B56,G37:G56)*$P$57 -> 40 | J61: =LOOKUP(F61,B37:B56,H37:H56)*$P$57 -> 40 | K61: =LOOKUP(F61,B37:B56,I37:I56)*$P$57 -> 12.5 | L61: =LOOKUP(F61,B37:B56,J37:J56) -> 225 | M61: =LOOKUP(F61,B37:B56,K37:K56) -> 40 | N61: =LOOKUP(F61,B37:B56,L37:L56) -> 0 | O61: =LOOKUP(F61,B37:B56,M37:M56) -> 240 | P61: 0 | Q61: 0 | R61: 0 | S61: 0 | T61: 0
B62: =B54 -> 18 | C62: =D54 ->  | D62: =D61+1 -> 3 | E62: =IF( (E57+L57*D61)<=H57,(E57+L57*D61),"- - -") -> 150 | F62: =(B60+1)-MATCH(E62,C60:C79,-1) -> 1 | G62: =LOOKUP(F62,B37:B56,E37:E56) -> 0 | H62: 0 | I62: =LOOKUP(F62,B37:B56,G37:G56)*$P$57 -> 40 | J62: =LOOKUP(F62,B37:B56,H37:H56)*$P$57 -> 40 | K62: =LOOKUP(F62,B37:B56,I37:I56)*$P$57 -> 12.5 | L62: =LOOKUP(F62,B37:B56,J37:J56) -> 225 | M62: =LOOKUP(F62,B37:B56,K37:K56) -> 40 | N62: =LOOKUP(F62,B37:B56,L37:L56) -> 0 | O62: =LOOKUP(F62,B37:B56,M37:M56) -> 240 | P62: 0 | Q62: 0 | R62: 0 | S62: 0 | T62: 0
B63: =B53 -> 17 | C63: =D53 ->  | D63: 4 | E63: =IF( (E57+L57*D62)<=H57,(E57+L57*D62),"- - -") -> 200 | F63: =(B60+1)-MATCH(E63,C60:C79,-1) -> 1 | G63: =LOOKUP(F63,B37:B56,E37:E56) -> 0 | H63: 0 | I63: =LOOKUP(F63,B37:B56,G37:G56)*$P$57 -> 40 | J63: =LOOKUP(F63,B37:B56,H37:H56)*$P$57 -> 40 | K63: =LOOKUP(F63,B37:B56,I37:I56)*$P$57 -> 12.5 | L63: =LOOKUP(F63,B37:B56,J37:J56) -> 225 | M63: =LOOKUP(F63,B37:B56,K37:K56) -> 40 | N63: =LOOKUP(F63,B37:B56,L37:L56) -> 0 | O63: =LOOKUP(F63,B37:B56,M37:M56) -> 240 | P63: 0 | Q63: 0 | R63: 0 | S63: 0 | T63: 0
B64: =B52 -> 16 | C64: =D52 ->  | D64: 5 | E64: =IF( (E57+L57*D63)<=H57,(E57+L57*D63),"- - -") -> 250 | F64: =(B60+1)-MATCH(E64,C60:C79,-1) -> 2 | G64: =LOOKUP(F64,B37:B56,E37:E56) -> 0 | H64: 0 | I64: =LOOKUP(F64,B37:B56,G37:G56)*$P$57 -> 40 | J64: =LOOKUP(F64,B37:B56,H37:H56)*$P$57 -> 40 | K64: =LOOKUP(F64,B37:B56,I37:I56)*$P$57 -> 12.5 | L64: =LOOKUP(F64,B37:B56,J37:J56) -> 188 | M64: =LOOKUP(F64,B37:B56,K37:K56) -> 40 | N64: =LOOKUP(F64,B37:B56,L37:L56) -> 0 | O64: =LOOKUP(F64,B37:B56,M37:M56) -> 240 | P64: 0 | Q64: 0 | R64: 0 | S64: 0 | T64: 0
B65: =B51 -> 15 | C65: =D51 ->  | D65: 6 | E65: =IF( (E57+L57*D64)<=H57,(E57+L57*D64),"- - -") -> 300 | F65: =(B60+1)-MATCH(E65,C60:C79,-1) -> 3 | G65: =LOOKUP(F65,B37:B56,E37:E56) -> 0 | H65: 0 | I65: =LOOKUP(F65,B37:B56,G37:G56)*$P$57 -> 40 | J65: =LOOKUP(F65,B37:B56,H37:H56)*$P$57 -> 40 | K65: =LOOKUP(F65,B37:B56,I37:I56)*$P$57 -> 12.5 | L65: =LOOKUP(F65,B37:B56,J37:J56) -> 134 | M65: =LOOKUP(F65,B37:B56,K37:K56) -> 40 | N65: =LOOKUP(F65,B37:B56,L37:L56) -> 0 | O65: =LOOKUP(F65,B37:B56,M37:M56) -> 240 | P65: 0 | Q65: 0 | R65: 0 | S65: 0 | T65: 0
B66: =B50 -> 14 | C66: =D50 ->  | D66: 7 | E66: =IF( (E57+L57*D65)<=H57,(E57+L57*D65),"- - -") -> 350 | F66: =(B60+1)-MATCH(E66,C60:C79,-1) -> 4 | G66: =LOOKUP(F66,B37:B56,E37:E56) -> 0 | H66: 0 | I66: =LOOKUP(F66,B37:B56,G37:G56)*$P$57 -> 40 | J66: =LOOKUP(F66,B37:B56,H37:H56)*$P$57 -> 40 | K66: =LOOKUP(F66,B37:B56,I37:I56)*$P$57 -> 12.5 | L66: =LOOKUP(F66,B37:B56,J37:J56) -> 100 | M66: =LOOKUP(F66,B37:B56,K37:K56) -> 40 | N66: =LOOKUP(F66,B37:B56,L37:L56) -> 0 | O66: =LOOKUP(F66,B37:B56,M37:M56) -> 240 | P66: 0 | Q66: 0 | R66: 0 | S66: 0 | T66: 0
B67: =B49 -> 13 | C67: =D49 ->  | D67: 8 | E67: =IF( (E57+L57*D66)<=H57,(E57+L57*D66),"- - -") -> 400 | F67: =(B60+1)-MATCH(E67,C60:C79,-1) -> 5 | G67: =LOOKUP(F67,B37:B56,E37:E56) -> 0 | H67: 0 | I67: =LOOKUP(F67,B37:B56,G37:G56)*$P$57 -> 40 | J67: =LOOKUP(F67,B37:B56,H37:H56)*$P$57 -> 40 | K67: =LOOKUP(F67,B37:B56,I37:I56)*$P$57 -> 12.5 | L67: =LOOKUP(F67,B37:B56,J37:J56) -> 78 | M67: =LOOKUP(F67,B37:B56,K37:K56) -> 40 | N67: =LOOKUP(F67,B37:B56,L37:L56) -> 0 | O67: =LOOKUP(F67,B37:B56,M37:M56) -> 240 | P67: 0 | Q67: 0 | R67: 0 | S67: 0 | T67: 0
B68: =B48 -> 12 | C68: =D48 ->  | D68: 9 | E68: =IF( (E57+L57*D67)<=H57,(E57+L57*D67),"- - -") -> - - - | F68: =(B60+1)-MATCH(E68,C60:C79,-1) ->  | G68: =LOOKUP(F68,B37:B56,E37:E56) ->  | I68: =LOOKUP(F68,B37:B56,G37:G56)*$P$57 ->  | J68: =LOOKUP(F68,B37:B56,H37:H56)*$P$57 ->  | K68: =LOOKUP(F68,B37:B56,I37:I56)*$P$57 ->  | L68: =LOOKUP(F68,B37:B56,J37:J56) ->  | M68: =LOOKUP(F68,B37:B56,K37:K56) ->  | N68: =LOOKUP(F68,B37:B56,L37:L56) ->  | O68: =LOOKUP(F68,B37:B56,M37:M56) -> 
B69: =B47 -> 11 | C69: =D47 ->  | D69: 10 | E69: =IF( (E57+L57*D68)<=H57,(E57+L57*D68),"- - -") -> - - - | F69: =(B60+1)-MATCH(E69,C60:C79,-1) ->  | G69: =LOOKUP(F69,B37:B56,E37:E56) ->  | I69: =LOOKUP(F69,B37:B56,G37:G56)*$P$57 ->  | J69: =LOOKUP(F69,B37:B56,H37:H56)*$P$57 ->  | K69: =LOOKUP(F69,B37:B56,I37:I56)*$P$57 ->  | L69: =LOOKUP(F69,B37:B56,J37:J56) ->  | M69: =LOOKUP(F69,B37:B56,K37:K56) ->  | N69: =LOOKUP(F69,B37:B56,L37:L56) ->  | O69: =LOOKUP(F69,B37:B56,M37:M56) -> 
B70: =B46 -> 10 | C70: =D46 ->  | D70: 11 | E70: =IF( (E57+L57*D69)<=H57,(E57+L57*D69),"- - -") -> - - - | F70: =(B60+1)-MATCH(E70,C60:C79,-1) ->  | G70: =LOOKUP(F70,B37:B56,E37:E56) ->  | I70: =LOOKUP(F70,B37:B56,G37:G56)*$P$57 ->  | J70: =LOOKUP(F70,B37:B56,H37:H56)*$P$57 ->  | K70: =LOOKUP(F70,B37:B56,I37:I56)*$P$57 ->  | L70: =LOOKUP(F70,B37:B56,J37:J56) ->  | M70: =LOOKUP(F70,B37:B56,K37:K56) ->  | N70: =LOOKUP(F70,B37:B56,L37:L56) ->  | O70: =LOOKUP(F70,B37:B56,M37:M56) -> 
B71: =B45 -> 9 | C71: =D45 ->  | D71: 12 | E71: =IF( (E57+L57*D70)<=H57,(E57+L57*D70),"- - -") -> - - - | F71: =(B60+1)-MATCH(E71,C60:C79,-1) ->  | G71: =LOOKUP(F71,B37:B56,E37:E56) ->  | I71: =LOOKUP(F71,B37:B56,G37:G56)*$P$57 ->  | J71: =LOOKUP(F71,B37:B56,H37:H56)*$P$57 ->  | K71: =LOOKUP(F71,B37:B56,I37:I56)*$P$57 ->  | L71: =LOOKUP(F71,B37:B56,J37:J56) ->  | M71: =LOOKUP(F71,B37:B56,K37:K56) ->  | N71: =LOOKUP(F71,B37:B56,L37:L56) ->  | O71: =LOOKUP(F71,B37:B56,M37:M56) -> 
B72: =B44 -> 8 | C72: =D44 ->  | D72: 13 | E72: =IF( (E57+L57*D71)<=H57,(E57+L57*D71),"- - -") -> - - - | F72: =(B60+1)-MATCH(E72,C60:C79,-1) ->  | G72: =LOOKUP(F72,B37:B56,E37:E56) ->  | I72: =LOOKUP(F72,B37:B56,G37:G56)*$P$57 ->  | J72: =LOOKUP(F72,B37:B56,H37:H56)*$P$57 ->  | K72: =LOOKUP(F72,B37:B56,I37:I56)*$P$57 ->  | L72: =LOOKUP(F72,B37:B56,J37:J56) ->  | M72: =LOOKUP(F72,B37:B56,K37:K56) ->  | N72: =LOOKUP(F72,B37:B56,L37:L56) ->  | O72: =LOOKUP(F72,B37:B56,M37:M56) -> 
B73: =B43 -> 7 | C73: =D43 ->  | D73: 14 | E73: =IF( (E57+L57*D72)<=H57,(E57+L57*D72),"- - -") -> - - - | F73: =(B60+1)-MATCH(E73,C60:C79,-1) ->  | G73: =LOOKUP(F73,B37:B56,E37:E56) ->  | I73: =LOOKUP(F73,B37:B56,G37:G56)*$P$57 ->  | J73: =LOOKUP(F73,B37:B56,H37:H56)*$P$57 ->  | K73: =LOOKUP(F73,B37:B56,I37:I56)*$P$57 ->  | L73: =LOOKUP(F73,B37:B56,J37:J56) ->  | M73: =LOOKUP(F73,B37:B56,K37:K56) ->  | N73: =LOOKUP(F73,B37:B56,L37:L56) ->  | O73: =LOOKUP(F73,B37:B56,M37:M56) -> 
B74: =B42 -> 6 | C74: =D42 ->  | D74: 15 | E74: =IF( (E57+L57*D73)<=H57,(E57+L57*D73),"- - -") -> - - - | F74: =(B60+1)-MATCH(E74,C60:C79,-1) ->  | G74: =LOOKUP(F74,B37:B56,E37:E56) ->  | I74: =LOOKUP(F74,B37:B56,G37:G56)*$P$57 ->  | J74: =LOOKUP(F74,B37:B56,H37:H56)*$P$57 ->  | K74: =LOOKUP(F74,B37:B56,I37:I56)*$P$57 ->  | L74: =LOOKUP(F74,B37:B56,J37:J56) ->  | M74: =LOOKUP(F74,B37:B56,K37:K56) ->  | N74: =LOOKUP(F74,B37:B56,L37:L56) ->  | O74: =LOOKUP(F74,B37:B56,M37:M56) -> 
B75: =B41 -> 5 | C75: =D41 -> 400 | D75: 16 | E75: =IF( (E57+L57*D74)<=H57,(E57+L57*D74),"- - -") -> - - - | F75: =(B60+1)-MATCH(E75,C60:C79,-1) ->  | G75: =LOOKUP(F75,B37:B56,E37:E56) ->  | I75: =LOOKUP(F75,B37:B56,G37:G56)*$P$57 ->  | J75: =LOOKUP(F75,B37:B56,H37:H56)*$P$57 ->  | K75: =LOOKUP(F75,B37:B56,I37:I56)*$P$57 ->  | L75: =LOOKUP(F75,B37:B56,J37:J56) ->  | M75: =LOOKUP(F75,B37:B56,K37:K56) ->  | N75: =LOOKUP(F75,B37:B56,L37:L56) ->  | O75: =LOOKUP(F75,B37:B56,M37:M56) -> 
B76: =B40 -> 4 | C76: =D40 -> 350 | D76: 17 | E76: =IF( (E57+L57*D75)<=H57,(E57+L57*D75),"- - -") -> - - - | F76: =(B60+1)-MATCH(E76,C60:C79,-1) ->  | G76: =LOOKUP(F76,B37:B56,E37:E56) ->  | I76: =LOOKUP(F76,B37:B56,G37:G56)*$P$57 ->  | J76: =LOOKUP(F76,B37:B56,H37:H56)*$P$57 ->  | K76: =LOOKUP(F76,B37:B56,I37:I56)*$P$57 ->  | L76: =LOOKUP(F76,B37:B56,J37:J56) ->  | M76: =LOOKUP(F76,B37:B56,K37:K56) ->  | N76: =LOOKUP(F76,B37:B56,L37:L56) ->  | O76: =LOOKUP(F76,B37:B56,M37:M56) -> 
B77: =B39 -> 3 | C77: =D39 -> 300 | D77: 18 | E77: =IF( (E57+L57*D76)<=H57,(E57+L57*D76),"- - -") -> - - - | F77: =(B60+1)-MATCH(E77,C60:C79,-1) ->  | G77: =LOOKUP(F77,B37:B56,E37:E56) ->  | I77: =LOOKUP(F77,B37:B56,G37:G56)*$P$57 ->  | J77: =LOOKUP(F77,B37:B56,H37:H56)*$P$57 ->  | K77: =LOOKUP(F77,B37:B56,I37:I56)*$P$57 ->  | L77: =LOOKUP(F77,B37:B56,J37:J56) ->  | M77: =LOOKUP(F77,B37:B56,K37:K56) ->  | N77: =LOOKUP(F77,B37:B56,L37:L56) ->  | O77: =LOOKUP(F77,B37:B56,M37:M56) -> 
B78: =B38 -> 2 | C78: =D38 -> 250 | D78: 19 | E78: =IF( (E57+L57*D77)<=H57,(E57+L57*D77),"- - -") -> - - - | F78: =(B60+1)-MATCH(E78,C60:C79,-1) ->  | G78: =LOOKUP(F78,B37:B56,E37:E56) ->  | I78: =LOOKUP(F78,B37:B56,G37:G56)*$P$57 ->  | J78: =LOOKUP(F78,B37:B56,H37:H56)*$P$57 ->  | K78: =LOOKUP(F78,B37:B56,I37:I56)*$P$57 ->  | L78: =LOOKUP(F78,B37:B56,J37:J56) ->  | M78: =LOOKUP(F78,B37:B56,K37:K56) ->  | N78: =LOOKUP(F78,B37:B56,L37:L56) ->  | O78: =LOOKUP(F78,B37:B56,M37:M56) -> 
B79: =B37 -> 1 | C79: =D37 -> 200 | D79: 20 | E79: =IF( (E57+L57*D78)<=H57,(E57+L57*D78),"- - -") -> - - - | F79: =(B60+1)-MATCH(E79,C60:C79,-1) ->  | G79: =LOOKUP(F79,B37:B56,E37:E56) ->  | I79: =LOOKUP(F79,B37:B56,G37:G56)*$P$57 ->  | J79: =LOOKUP(F79,B37:B56,H37:H56)*$P$57 ->  | K79: =LOOKUP(F79,B37:B56,I37:I56)*$P$57 ->  | L79: =LOOKUP(F79,B37:B56,J37:J56) ->  | M79: =LOOKUP(F79,B37:B56,K37:K56) ->  | N79: =LOOKUP(F79,B37:B56,L37:L56) ->  | O79: =LOOKUP(F79,B37:B56,M37:M56) -> 
D80: 21 | E80: =IF( (E57+L57*D79)<=H57,(E57+L57*D79),"- - -") -> - - - | F80: =(B60+1)-MATCH(E80,C60:C79,-1) ->  | G80: =LOOKUP(F80,B37:B56,E37:E56) ->  | I80: =LOOKUP(F80,B37:B56,G37:G56)*$P$57 ->  | J80: =LOOKUP(F80,B37:B56,H37:H56)*$P$57 ->  | K80: =LOOKUP(F80,B37:B56,I37:I56)*$P$57 ->  | L80: =LOOKUP(F80,B37:B56,J37:J56) ->  | M80: =LOOKUP(F80,B37:B56,K37:K56) ->  | N80: =LOOKUP(F80,B37:B56,L37:L56) ->  | O80: =LOOKUP(F80,B37:B56,M37:M56) -> 
D81: 22 | E81: =IF( (E57+L57*D80)<=H57,(E57+L57*D80),"- - -") -> - - - | F81: =(B60+1)-MATCH(E81,C60:C79,-1) ->  | G81: =LOOKUP(F81,B37:B56,E37:E56) ->  | I81: =LOOKUP(F81,B37:B56,G37:G56)*$P$57 ->  | J81: =LOOKUP(F81,B37:B56,H37:H56)*$P$57 ->  | K81: =LOOKUP(F81,B37:B56,I37:I56)*$P$57 ->  | L81: =LOOKUP(F81,B37:B56,J37:J56) ->  | M81: =LOOKUP(F81,B37:B56,K37:K56) ->  | N81: =LOOKUP(F81,B37:B56,L37:L56) ->  | O81: =LOOKUP(F81,B37:B56,M37:M56) -> 
D82: 23 | E82: =IF( (E57+L57*D81)<=H57,(E57+L57*D81),"- - -") -> - - - | F82: =(B60+1)-MATCH(E82,C60:C79,-1) ->  | G82: =LOOKUP(F82,B37:B56,E37:E56) ->  | I82: =LOOKUP(F82,B37:B56,G37:G56)*$P$57 ->  | J82: =LOOKUP(F82,B37:B56,H37:H56)*$P$57 ->  | K82: =LOOKUP(F82,B37:B56,I37:I56)*$P$57 ->  | L82: =LOOKUP(F82,B37:B56,J37:J56) ->  | M82: =LOOKUP(F82,B37:B56,K37:K56) ->  | N82: =LOOKUP(F82,B37:B56,L37:L56) ->  | O82: =LOOKUP(F82,B37:B56,M37:M56) -> 
D83: 24 | E83: =IF( (E57+L57*D82)<=H57,(E57+L57*D82),"- - -") -> - - - | F83: =(B60+1)-MATCH(E83,C60:C79,-1) ->  | G83: =LOOKUP(F83,B37:B56,E37:E56) ->  | I83: =LOOKUP(F83,B37:B56,G37:G56)*$P$57 ->  | J83: =LOOKUP(F83,B37:B56,H37:H56)*$P$57 ->  | K83: =LOOKUP(F83,B37:B56,I37:I56)*$P$57 ->  | L83: =LOOKUP(F83,B37:B56,J37:J56) ->  | M83: =LOOKUP(F83,B37:B56,K37:K56) ->  | N83: =LOOKUP(F83,B37:B56,L37:L56) ->  | O83: =LOOKUP(F83,B37:B56,M37:M56) -> 
D84: 25 | E84: =IF( (E57+L57*D83)<=H57,(E57+L57*D83),"- - -") -> - - - | F84: =(B60+1)-MATCH(E84,C60:C79,-1) ->  | G84: =LOOKUP(F84,B37:B56,E37:E56) ->  | I84: =LOOKUP(F84,B37:B56,G37:G56)*$P$57 ->  | J84: =LOOKUP(F84,B37:B56,H37:H56)*$P$57 ->  | K84: =LOOKUP(F84,B37:B56,I37:I56)*$P$57 ->  | L84: =LOOKUP(F84,B37:B56,J37:J56) ->  | M84: =LOOKUP(F84,B37:B56,K37:K56) ->  | N84: =LOOKUP(F84,B37:B56,L37:L56) ->  | O84: =LOOKUP(F84,B37:B56,M37:M56) -> 
D85: 26 | E85: =IF( (E57+L57*D84)<=H57,(E57+L57*D84),"- - -") -> - - - | F85: =(B60+1)-MATCH(E85,C60:C79,-1) ->  | G85: =LOOKUP(F85,B37:B56,E37:E56) ->  | I85: =LOOKUP(F85,B37:B56,G37:G56)*$P$57 ->  | J85: =LOOKUP(F85,B37:B56,H37:H56)*$P$57 ->  | K85: =LOOKUP(F85,B37:B56,I37:I56)*$P$57 ->  | L85: =LOOKUP(F85,B37:B56,J37:J56) ->  | M85: =LOOKUP(F85,B37:B56,K37:K56) ->  | N85: =LOOKUP(F85,B37:B56,L37:L56) ->  | O85: =LOOKUP(F85,B37:B56,M37:M56) -> 
D86: 27 | E86: =IF( (E57+L57*D85)<=H57,(E57+L57*D85),"- - -") -> - - - | F86: =(B60+1)-MATCH(E86,C60:C79,-1) ->  | G86: =LOOKUP(F86,B37:B56,E37:E56) ->  | I86: =LOOKUP(F86,B37:B56,G37:G56)*$P$57 ->  | J86: =LOOKUP(F86,B37:B56,H37:H56)*$P$57 ->  | K86: =LOOKUP(F86,B37:B56,I37:I56)*$P$57 ->  | L86: =LOOKUP(F86,B37:B56,J37:J56) ->  | M86: =LOOKUP(F86,B37:B56,K37:K56) ->  | N86: =LOOKUP(F86,B37:B56,L37:L56) ->  | O86: =LOOKUP(F86,B37:B56,M37:M56) -> 
D87: 28 | E87: =IF( (E57+L57*D86)<=H57,(E57+L57*D86),"- - -") -> - - - | F87: =(B60+1)-MATCH(E87,C60:C79,-1) ->  | G87: =LOOKUP(F87,B37:B56,E37:E56) ->  | I87: =LOOKUP(F87,B37:B56,G37:G56)*$P$57 ->  | J87: =LOOKUP(F87,B37:B56,H37:H56)*$P$57 ->  | K87: =LOOKUP(F87,B37:B56,I37:I56)*$P$57 ->  | L87: =LOOKUP(F87,B37:B56,J37:J56) ->  | M87: =LOOKUP(F87,B37:B56,K37:K56) ->  | N87: =LOOKUP(F87,B37:B56,L37:L56) ->  | O87: =LOOKUP(F87,B37:B56,M37:M56) -> 
D88: 29 | E88: =IF( (E57+L57*D87)<=H57,(E57+L57*D87),"- - -") -> - - - | F88: =(B60+1)-MATCH(E88,C60:C79,-1) ->  | G88: =LOOKUP(F88,B37:B56,E37:E56) ->  | I88: =LOOKUP(F88,B37:B56,G37:G56)*$P$57 ->  | J88: =LOOKUP(F88,B37:B56,H37:H56)*$P$57 ->  | K88: =LOOKUP(F88,B37:B56,I37:I56)*$P$57 ->  | L88: =LOOKUP(F88,B37:B56,J37:J56) ->  | M88: =LOOKUP(F88,B37:B56,K37:K56) ->  | N88: =LOOKUP(F88,B37:B56,L37:L56) ->  | O88: =LOOKUP(F88,B37:B56,M37:M56) -> 
D89: 30 | E89: =IF( (E57+L57*D88)<=H57,(E57+L57*D88),"- - -") -> - - - | F89: =(B60+1)-MATCH(E89,C60:C79,-1) ->  | G89: =LOOKUP(F89,B37:B56,E37:E56) ->  | I89: =LOOKUP(F89,B37:B56,G37:G56)*$P$57 ->  | J89: =LOOKUP(F89,B37:B56,H37:H56)*$P$57 ->  | K89: =LOOKUP(F89,B37:B56,I37:I56)*$P$57 ->  | L89: =LOOKUP(F89,B37:B56,J37:J56) ->  | M89: =LOOKUP(F89,B37:B56,K37:K56) ->  | N89: =LOOKUP(F89,B37:B56,L37:L56) ->  | O89: =LOOKUP(F89,B37:B56,M37:M56) -> 
D90: =D89+1 -> 31 | E90: =IF( (E57+L57*D89)<=H57,(E57+L57*D89),"- - -") -> - - - | F90: =(B60+1)-MATCH(E90,C60:C79,-1) ->  | G90: =LOOKUP(F90,B37:B56,E37:E56) ->  | I90: =LOOKUP(F90,B37:B56,G37:G56)*$P$57 ->  | J90: =LOOKUP(F90,B37:B56,H37:H56)*$P$57 ->  | K90: =LOOKUP(F90,B37:B56,I37:I56)*$P$57 ->  | L90: =LOOKUP(F90,B37:B56,J37:J56) ->  | M90: =LOOKUP(F90,B37:B56,K37:K56) ->  | N90: =LOOKUP(F90,B37:B56,L37:L56) ->  | O90: =LOOKUP(F90,B37:B56,M37:M56) -> 
D91: 32 | E91: =IF( (E57+L57*D90)<=H57,(E57+L57*D90),"- - -") -> - - - | F91: =(B60+1)-MATCH(E91,C60:C79,-1) ->  | G91: =LOOKUP(F91,B37:B56,E37:E56) ->  | I91: =LOOKUP(F91,B37:B56,G37:G56)*$P$57 ->  | J91: =LOOKUP(F91,B37:B56,H37:H56)*$P$57 ->  | K91: =LOOKUP(F91,B37:B56,I37:I56)*$P$57 ->  | L91: =LOOKUP(F91,B37:B56,J37:J56) ->  | M91: =LOOKUP(F91,B37:B56,K37:K56) ->  | N91: =LOOKUP(F91,B37:B56,L37:L56) ->  | O91: =LOOKUP(F91,B37:B56,M37:M56) -> 
D92: 33 | E92: =IF( (E57+L57*D91)<=H57,(E57+L57*D91),"- - -") -> - - - | F92: =(B60+1)-MATCH(E92,C60:C79,-1) ->  | G92: =LOOKUP(F92,B37:B56,E37:E56) ->  | H92: =LOOKUP(F92,$B$37:$B$56,$F$37:$F$56)*0.001 ->  | I92: =LOOKUP(F92,B37:B56,G37:G56)*$P$57 ->  | J92: =LOOKUP(F92,B37:B56,H37:H56)*$P$57 ->  | K92: =LOOKUP(F92,B37:B56,I37:I56)*$P$57 ->  | L92: =LOOKUP(F92,B37:B56,J37:J56) ->  | M92: =LOOKUP(F92,B37:B56,K37:K56) ->  | N92: =LOOKUP(F92,B37:B56,L37:L56) ->  | O92: =LOOKUP(F92,B37:B56,M37:M56) ->  | P92: =LOOKUP(F92,$B$37:$B$56,$N$37:$N$56) ->  | Q92: =LOOKUP(F92,$B$37:$B$56,$O$37:$O$56) ->  | R92: =LOOKUP(F92,$B$37:$B$56,$P$37:$P$56) ->  | S92: =LOOKUP(F92,$B$37:$B$56,$Q$37:$Q$56) ->  | T92: =LOOKUP(F92,$B$37:$B$56,$R$37:$R$56) -> 
D93: 34 | E93: =IF( (E57+L57*D92)<=H57,(E57+L57*D92),"- - -") -> - - - | F93: =(B60+1)-MATCH(E93,C60:C79,-1) ->  | G93: =LOOKUP(F93,B37:B56,E37:E56) ->  | I93: =LOOKUP(F93,B37:B56,G37:G56)*$P$57 ->  | J93: =LOOKUP(F93,B37:B56,H37:H56)*$P$57 ->  | K93: =LOOKUP(F93,B37:B56,I37:I56)*$P$57 ->  | L93: =LOOKUP(F93,B37:B56,J37:J56) ->  | M93: =LOOKUP(F93,B37:B56,K37:K56) ->  | N93: =LOOKUP(F93,B37:B56,L37:L56) ->  | O93: =LOOKUP(F93,B37:B56,M37:M56) -> 
D94: 35 | E94: =IF( (E57+L57*D93)<=H57,(E57+L57*D93),"- - -") -> - - - | F94: =(B60+1)-MATCH(E94,C60:C79,-1) ->  | G94: =LOOKUP(F94,B37:B56,E37:E56) ->  | I94: =LOOKUP(F94,B37:B56,G37:G56)*$P$57 ->  | J94: =LOOKUP(F94,B37:B56,H37:H56)*$P$57 ->  | K94: =LOOKUP(F94,B37:B56,I37:I56)*$P$57 ->  | L94: =LOOKUP(F94,B37:B56,J37:J56) ->  | M94: =LOOKUP(F94,B37:B56,K37:K56) ->  | N94: =LOOKUP(F94,B37:B56,L37:L56) ->  | O94: =LOOKUP(F94,B37:B56,M37:M56) -> 
D95: 36 | E95: =IF( (E57+L57*D94)<=H57,(E57+L57*D94),"- - -") -> - - - | F95: =(B60+1)-MATCH(E95,C60:C79,-1) ->  | G95: =LOOKUP(F95,B37:B56,E37:E56) ->  | I95: =LOOKUP(F95,B37:B56,G37:G56)*$P$57 ->  | J95: =LOOKUP(F95,B37:B56,H37:H56)*$P$57 ->  | K95: =LOOKUP(F95,B37:B56,I37:I56)*$P$57 ->  | L95: =LOOKUP(F95,B37:B56,J37:J56) ->  | M95: =LOOKUP(F95,B37:B56,K37:K56) ->  | N95: =LOOKUP(F95,B37:B56,L37:L56) ->  | O95: =LOOKUP(F95,B37:B56,M37:M56) -> 
D96: 37 | E96: =IF( (E57+L57*D95)<=H57,(E57+L57*D95),"- - -") -> - - - | F96: =(B60+1)-MATCH(E96,C60:C79,-1) ->  | G96: =LOOKUP(F96,B37:B56,E37:E56) ->  | I96: =LOOKUP(F96,B37:B56,G37:G56)*$P$57 ->  | J96: =LOOKUP(F96,B37:B56,H37:H56)*$P$57 ->  | K96: =LOOKUP(F96,B37:B56,I37:I56)*$P$57 ->  | L96: =LOOKUP(F96,B37:B56,J37:J56) ->  | M96: =LOOKUP(F96,B37:B56,K37:K56) ->  | N96: =LOOKUP(F96,B37:B56,L37:L56) ->  | O96: =LOOKUP(F96,B37:B56,M37:M56) -> 
D97: 38 | E97: =IF( (E57+L57*D96)<=H57,(E57+L57*D96),"- - -") -> - - - | F97: =(B60+1)-MATCH(E97,C60:C79,-1) ->  | G97: =LOOKUP(F97,B37:B56,E37:E56) ->  | I97: =LOOKUP(F97,B37:B56,G37:G56)*$P$57 ->  | J97: =LOOKUP(F97,B37:B56,H37:H56)*$P$57 ->  | K97: =LOOKUP(F97,B37:B56,I37:I56)*$P$57 ->  | L97: =LOOKUP(F97,B37:B56,J37:J56) ->  | M97: =LOOKUP(F97,B37:B56,K37:K56) ->  | N97: =LOOKUP(F97,B37:B56,L37:L56) ->  | O97: =LOOKUP(F97,B37:B56,M37:M56) -> 
D98: 39 | E98: =IF( (E57+L57*D97)<=H57,(E57+L57*D97),"- - -") -> - - - | F98: =(B60+1)-MATCH(E98,C60:C79,-1) ->  | G98: =LOOKUP(F98,B37:B56,E37:E56) ->  | I98: =LOOKUP(F98,B37:B56,G37:G56)*$P$57 ->  | J98: =LOOKUP(F98,B37:B56,H37:H56)*$P$57 ->  | K98: =LOOKUP(F98,B37:B56,I37:I56)*$P$57 ->  | L98: =LOOKUP(F98,B37:B56,J37:J56) ->  | M98: =LOOKUP(F98,B37:B56,K37:K56) ->  | N98: =LOOKUP(F98,B37:B56,L37:L56) ->  | O98: =LOOKUP(F98,B37:B56,M37:M56) -> 
D99: 40 | E99: =IF( (E57+L57*D98)<=H57,(E57+L57*D98),"- - -") -> - - - | F99: =(B60+1)-MATCH(E99,C60:C79,-1) ->  | G99: =LOOKUP(F99,B37:B56,E37:E56) ->  | I99: =LOOKUP(F99,B37:B56,G37:G56)*$P$57 ->  | J99: =LOOKUP(F99,B37:B56,H37:H56)*$P$57 ->  | K99: =LOOKUP(F99,B37:B56,I37:I56)*$P$57 ->  | L99: =LOOKUP(F99,B37:B56,J37:J56) ->  | M99: =LOOKUP(F99,B37:B56,K37:K56) ->  | N99: =LOOKUP(F99,B37:B56,L37:L56) ->  | O99: =LOOKUP(F99,B37:B56,M37:M56) -> 
D100: 41 | E100: =IF( (E57+L57*D99)<=H57,(E57+L57*D99),"- - -") -> - - - | F100: =(B60+1)-MATCH(E100,C60:C79,-1) ->  | G100: =LOOKUP(F100,B37:B56,E37:E56) ->  | I100: =LOOKUP(F100,B37:B56,G37:G56)*$P$57 ->  | J100: =LOOKUP(F100,B37:B56,H37:H56)*$P$57 ->  | K100: =LOOKUP(F100,B37:B56,I37:I56)*$P$57 ->  | L100: =LOOKUP(F100,B37:B56,J37:J56) ->  | M100: =LOOKUP(F100,B37:B56,K37:K56) ->  | N100: =LOOKUP(F100,B37:B56,L37:L56) ->  | O100: =LOOKUP(F100,B37:B56,M37:M56) -> 
D101: 42 | E101: =IF( (E57+L57*D100)<=H57,(E57+L57*D100),"- - -") -> - - - | F101: =(B60+1)-MATCH(E101,C60:C79,-1) ->  | G101: =LOOKUP(F101,B37:B56,E37:E56) ->  | I101: =LOOKUP(F101,B37:B56,G37:G56)*$P$57 ->  | J101: =LOOKUP(F101,B37:B56,H37:H56)*$P$57 ->  | K101: =LOOKUP(F101,B37:B56,I37:I56)*$P$57 ->  | L101: =LOOKUP(F101,B37:B56,J37:J56) ->  | M101: =LOOKUP(F101,B37:B56,K37:K56) ->  | N101: =LOOKUP(F101,B37:B56,L37:L56) ->  | O101: =LOOKUP(F101,B37:B56,M37:M56) -> 
D102: 43 | E102: =IF( (E57+L57*D101)<=H57,(E57+L57*D101),"- - -") -> - - - | F102: =(B60+1)-MATCH(E102,C60:C79,-1) ->  | G102: =LOOKUP(F102,B37:B56,E37:E56) ->  | I102: =LOOKUP(F102,B37:B56,G37:G56)*$P$57 ->  | J102: =LOOKUP(F102,B37:B56,H37:H56)*$P$57 ->  | K102: =LOOKUP(F102,B37:B56,I37:I56)*$P$57 ->  | L102: =LOOKUP(F102,B37:B56,J37:J56) ->  | M102: =LOOKUP(F102,B37:B56,K37:K56) ->  | N102: =LOOKUP(F102,B37:B56,L37:L56) ->  | O102: =LOOKUP(F102,B37:B56,M37:M56) -> 
D103: 44 | E103: =IF( (E57+L57*D102)<=H57,(E57+L57*D102),"- - -") -> - - - | F103: =(B60+1)-MATCH(E103,C60:C79,-1) ->  | G103: =LOOKUP(F103,B37:B56,E37:E56) ->  | I103: =LOOKUP(F103,B37:B56,G37:G56)*$P$57 ->  | J103: =LOOKUP(F103,B37:B56,H37:H56)*$P$57 ->  | K103: =LOOKUP(F103,B37:B56,I37:I56)*$P$57 ->  | L103: =LOOKUP(F103,B37:B56,J37:J56) ->  | M103: =LOOKUP(F103,B37:B56,K37:K56) ->  | N103: =LOOKUP(F103,B37:B56,L37:L56) ->  | O103: =LOOKUP(F103,B37:B56,M37:M56) -> 
D104: 45 | E104: =IF( (E57+L57*D103)<=H57,(E57+L57*D103),"- - -") -> - - - | F104: =(B60+1)-MATCH(E104,C60:C79,-1) ->  | G104: =LOOKUP(F104,B37:B56,E37:E56) ->  | I104: =LOOKUP(F104,B37:B56,G37:G56)*$P$57 ->  | J104: =LOOKUP(F104,B37:B56,H37:H56)*$P$57 ->  | K104: =LOOKUP(F104,B37:B56,I37:I56)*$P$57 ->  | L104: =LOOKUP(F104,B37:B56,J37:J56) ->  | M104: =LOOKUP(F104,B37:B56,K37:K56) ->  | N104: =LOOKUP(F104,B37:B56,L37:L56) ->  | O104: =LOOKUP(F104,B37:B56,M37:M56) -> 
D105: 46 | E105: =IF( (E57+L57*D104)<=H57,(E57+L57*D104),"- - -") -> - - - | F105: =(B60+1)-MATCH(E105,C60:C79,-1) ->  | G105: =LOOKUP(F105,B37:B56,E37:E56) ->  | I105: =LOOKUP(F105,B37:B56,G37:G56)*$P$57 ->  | J105: =LOOKUP(F105,B37:B56,H37:H56)*$P$57 ->  | K105: =LOOKUP(F105,B37:B56,I37:I56)*$P$57 ->  | L105: =LOOKUP(F105,B37:B56,J37:J56) ->  | M105: =LOOKUP(F105,B37:B56,K37:K56) ->  | N105: =LOOKUP(F105,B37:B56,L37:L56) ->  | O105: =LOOKUP(F105,B37:B56,M37:M56) -> 
D106: 47 | E106: =IF( (E57+L57*D105)<=H57,(E57+L57*D105),"- - -") -> - - - | F106: =(B60+1)-MATCH(E106,C60:C79,-1) ->  | G106: =LOOKUP(F106,B37:B56,E37:E56) ->  | I106: =LOOKUP(F106,B37:B56,G37:G56)*$P$57 ->  | J106: =LOOKUP(F106,B37:B56,H37:H56)*$P$57 ->  | K106: =LOOKUP(F106,B37:B56,I37:I56)*$P$57 ->  | L106: =LOOKUP(F106,B37:B56,J37:J56) ->  | M106: =LOOKUP(F106,B37:B56,K37:K56) ->  | N106: =LOOKUP(F106,B37:B56,L37:L56) ->  | O106: =LOOKUP(F106,B37:B56,M37:M56) -> 
D107: 48 | E107: =IF( (E57+L57*D106)<=H57,(E57+L57*D106),"- - -") -> - - - | F107: =(B60+1)-MATCH(E107,C60:C79,-1) ->  | G107: =LOOKUP(F107,B37:B56,E37:E56) ->  | I107: =LOOKUP(F107,B37:B56,G37:G56)*$P$57 ->  | J107: =LOOKUP(F107,B37:B56,H37:H56)*$P$57 ->  | K107: =LOOKUP(F107,B37:B56,I37:I56)*$P$57 ->  | L107: =LOOKUP(F107,B37:B56,J37:J56) ->  | M107: =LOOKUP(F107,B37:B56,K37:K56) ->  | N107: =LOOKUP(F107,B37:B56,L37:L56) ->  | O107: =LOOKUP(F107,B37:B56,M37:M56) -> 
D108: 49 | E108: =IF( (E57+L57*D107)<=H57,(E57+L57*D107),"- - -") -> - - - | F108: =(B60+1)-MATCH(E108,C60:C79,-1) ->  | G108: =LOOKUP(F108,B37:B56,E37:E56) ->  | I108: =LOOKUP(F108,B37:B56,G37:G56)*$P$57 ->  | J108: =LOOKUP(F108,B37:B56,H37:H56)*$P$57 ->  | K108: =LOOKUP(F108,B37:B56,I37:I56)*$P$57 ->  | L108: =LOOKUP(F108,B37:B56,J37:J56) ->  | M108: =LOOKUP(F108,B37:B56,K37:K56) ->  | N108: =LOOKUP(F108,B37:B56,L37:L56) ->  | O108: =LOOKUP(F108,B37:B56,M37:M56) -> 
D109: 50 | E109: =IF( (E57+L57*D108)<=H57,(E57+L57*D108),"- - -") -> - - - | F109: =(B60+1)-MATCH(E109,C60:C79,-1) ->  | G109: =LOOKUP(F109,B37:B56,E37:E56) ->  | I109: =LOOKUP(F109,B37:B56,G37:G56)*$P$57 ->  | J109: =LOOKUP(F109,B37:B56,H37:H56)*$P$57 ->  | K109: =LOOKUP(F109,B37:B56,I37:I56)*$P$57 ->  | L109: =LOOKUP(F109,B37:B56,J37:J56) ->  | M109: =LOOKUP(F109,B37:B56,K37:K56) ->  | N109: =LOOKUP(F109,B37:B56,L37:L56) ->  | O109: =LOOKUP(F109,B37:B56,M37:M56) -> 
B112: 搬送負荷データレコード | E112: =LOOKUP(C114,MassDataLink!$A$4:$A$7777,MassDataLink!$G$4:$G$7777) -> EC-S6L-水平 | J112: 設置姿勢で絞込み | L112: - - - | N112: 加減速・速度データレコード
B113: № | C113: Ldﾚｺｰﾄﾞ№ | D113: =MassDataLink!B2 -> ｱｸﾁｭｴｰﾀ姿勢 | E113: =MassDataLink!C2 -> 搬送負荷質量 | F113: =MassDataLink!D2 -> 加減速・速度ﾃﾞｰﾀ | G113: =MassDataLink!E2 -> 前ﾃﾞｰﾀ№ | H113: =MassDataLink!F2 -> 次ﾃﾞｰﾀ№ | J113: № | K113: 搬送負荷質量 | L113: avﾚｺｰﾄﾞ№ | N113: 備考 | O113: =LOOKUP(O115,AccVelDataLink!$A$4:$A$18396,AccVelDataLink!$F$4:$F$18396) -> EC-S6L-水平
B114: 1 | C114: =LOOKUP(D35,B26:B33,E26:E33) -> 1 | D114: =LOOKUP(C114,MassDataLink!$A$4:$A$7777,MassDataLink!$B$4:$B$7777) -> 0 | E114: =LOOKUP(C114,MassDataLink!$A$4:$A$7777,MassDataLink!$C$4:$C$7777) -> 12000 | F114: =LOOKUP(C114,MassDataLink!$A$4:$A$7777,MassDataLink!$D$4:$D$7777) -> 1 | G114: =LOOKUP(C114,MassDataLink!$A$4:$A$7777,MassDataLink!$E$4:$E$7777) -> -1 | H114: =LOOKUP(C114,MassDataLink!$A$4:$A$7777,MassDataLink!$F$4:$F$7777) -> 2 | J114: 1 | K114: =IF(C114=-1,$L$112,IF($A$11=D114,ROUND((E114*$P$57),$R$57),$L$112)) -> 12 | L114: =IF(K114=$L$112,$L$112,F114) -> 1 | N114: № | O114: avﾚｺｰﾄﾞ№ | P114: 加速度 | Q114: 速度 | R114: 前ﾃﾞｰﾀ | S114: 次ﾃﾞｰﾀ
B115: =B114+1 -> 2 | C115: =IF(C114=-1,-1,H114) -> 2 | D115: =LOOKUP(C115,MassDataLink!$A$4:$A$7777,MassDataLink!$B$4:$B$7777) -> 0 | E115: =LOOKUP(C115,MassDataLink!$A$4:$A$7777,MassDataLink!$C$4:$C$7777) -> 13000 | F115: =LOOKUP(C115,MassDataLink!$A$4:$A$7777,MassDataLink!$D$4:$D$7777) -> 2 | G115: =LOOKUP(C115,MassDataLink!$A$4:$A$7777,MassDataLink!$E$4:$E$7777) -> 1 | H115: =LOOKUP(C115,MassDataLink!$A$4:$A$7777,MassDataLink!$F$4:$F$7777) -> 3 | J115: =J114+1 -> 2 | K115: =IF(C115=-1,$L$112,IF($A$11=D115,ROUND((E115*$P$57),$R$57),$L$112)) -> 13 | L115: =IF(K115=$L$112,$L$112,F115) -> 2 | N115: 1 | O115: =LOOKUP(A14,K114:K163,L114:L163) -> 1 | P115: =LOOKUP(O115,AccVelDataLink!$A$4:$A$18396,AccVelDataLink!$B$4:$B$18396) -> 9806650 | Q115: =LOOKUP(O115,AccVelDataLink!$A$4:$A$18396,AccVelDataLink!$C$4:$C$18396) -> 225 | R115: =LOOKUP(O115,AccVelDataLink!$A$4:$A$18396,AccVelDataLink!$D$4:$D$18396) -> -1 | S115: =LOOKUP(O115,AccVelDataLink!$A$4:$A$18396,AccVelDataLink!$E$4:$E$18396) -> -1
B116: =B115+1 -> 3 | C116: =IF(C115=-1,-1,H115) -> 3 | D116: =LOOKUP(C116,MassDataLink!$A$4:$A$7777,MassDataLink!$B$4:$B$7777) -> 0 | E116: =LOOKUP(C116,MassDataLink!$A$4:$A$7777,MassDataLink!$C$4:$C$7777) -> 14000 | F116: =LOOKUP(C116,MassDataLink!$A$4:$A$7777,MassDataLink!$D$4:$D$7777) -> 3 | G116: =LOOKUP(C116,MassDataLink!$A$4:$A$7777,MassDataLink!$E$4:$E$7777) -> 2 | H116: =LOOKUP(C116,MassDataLink!$A$4:$A$7777,MassDataLink!$F$4:$F$7777) -> 4 | J116: =J115+1 -> 3 | K116: 14 | L116: 3 | N116: =N115+1 -> 2 | O116: =IF(O115=-1,-1,S115) -> -1 | P116: =LOOKUP(O116,AccVelDataLink!$A$4:$A$18396,AccVelDataLink!$B$4:$B$18396) ->  | Q116: =LOOKUP(O116,AccVelDataLink!$A$4:$A$18396,AccVelDataLink!$C$4:$C$18396) ->  | R116: =LOOKUP(O116,AccVelDataLink!$A$4:$A$18396,AccVelDataLink!$D$4:$D$18396) ->  | S116: =LOOKUP(O116,AccVelDataLink!$A$4:$A$18396,AccVelDataLink!$E$4:$E$18396) -> 
B117: =B116+1 -> 4 | C117: =IF(C116=-1,-1,H116) -> 4 | D117: =LOOKUP(C117,MassDataLink!$A$4:$A$7777,MassDataLink!$B$4:$B$7777) -> 0 | E117: =LOOKUP(C117,MassDataLink!$A$4:$A$7777,MassDataLink!$C$4:$C$7777) -> 15000 | F117: =LOOKUP(C117,MassDataLink!$A$4:$A$7777,MassDataLink!$D$4:$D$7777) -> 4 | G117: =LOOKUP(C117,MassDataLink!$A$4:$A$7777,MassDataLink!$E$4:$E$7777) -> 3 | H117: =LOOKUP(C117,MassDataLink!$A$4:$A$7777,MassDataLink!$F$4:$F$7777) -> 5 | J117: =J116+1 -> 4 | K117: 15 | L117: 4 | N117: 3 | O117: =IF(O116=-1,-1,S116) -> -1 | P117: =LOOKUP(O117,AccVelDataLink!$A$4:$A$18396,AccVelDataLink!$B$4:$B$18396) ->  | Q117: =LOOKUP(O117,AccVelDataLink!$A$4:$A$18396,AccVelDataLink!$C$4:$C$18396) ->  | R117: =LOOKUP(O117,AccVelDataLink!$A$4:$A$18396,AccVelDataLink!$D$4:$D$18396) ->  | S117: =LOOKUP(O117,AccVelDataLink!$A$4:$A$18396,AccVelDataLink!$E$4:$E$18396) -> 
B118: =B117+1 -> 5 | C118: =IF(C117=-1,-1,H117) -> 5 | D118: =LOOKUP(C118,MassDataLink!$A$4:$A$7777,MassDataLink!$B$4:$B$7777) -> 0 | E118: =LOOKUP(C118,MassDataLink!$A$4:$A$7777,MassDataLink!$C$4:$C$7777) -> 16000 | F118: =LOOKUP(C118,MassDataLink!$A$4:$A$7777,MassDataLink!$D$4:$D$7777) -> 5 | G118: =LOOKUP(C118,MassDataLink!$A$4:$A$7777,MassDataLink!$E$4:$E$7777) -> 4 | H118: =LOOKUP(C118,MassDataLink!$A$4:$A$7777,MassDataLink!$F$4:$F$7777) -> 6 | J118: =J117+1 -> 5 | K118: 16 | L118: 5 | N118: 4 | O118: -1 | P118: =LOOKUP(O118,AccVelDataLink!$A$4:$A$18396,AccVelDataLink!$B$4:$B$18396) ->  | Q118: =LOOKUP(O118,AccVelDataLink!$A$4:$A$18396,AccVelDataLink!$C$4:$C$18396) ->  | R118: =LOOKUP(O118,AccVelDataLink!$A$4:$A$18396,AccVelDataLink!$D$4:$D$18396) ->  | S118: =LOOKUP(O118,AccVelDataLink!$A$4:$A$18396,AccVelDataLink!$E$4:$E$18396) -> 
B119: =B118+1 -> 6 | C119: =IF(C118=-1,-1,H118) -> 6 | D119: =LOOKUP(C119,MassDataLink!$A$4:$A$7777,MassDataLink!$B$4:$B$7777) -> 0 | E119: =LOOKUP(C119,MassDataLink!$A$4:$A$7777,MassDataLink!$C$4:$C$7777) -> 17000 | F119: =LOOKUP(C119,MassDataLink!$A$4:$A$7777,MassDataLink!$D$4:$D$7777) -> 7 | G119: =LOOKUP(C119,MassDataLink!$A$4:$A$7777,MassDataLink!$E$4:$E$7777) -> 5 | H119: =LOOKUP(C119,MassDataLink!$A$4:$A$7777,MassDataLink!$F$4:$F$7777) -> 7 | J119: =J118+1 -> 6 | K119: 17 | L119: 7 | N119: 5 | O119: -1 | P119: =LOOKUP(O119,AccVelDataLink!$A$4:$A$18396,AccVelDataLink!$B$4:$B$18396) ->  | Q119: =LOOKUP(O119,AccVelDataLink!$A$4:$A$18396,AccVelDataLink!$C$4:$C$18396) ->  | R119: =LOOKUP(O119,AccVelDataLink!$A$4:$A$18396,AccVelDataLink!$D$4:$D$18396) ->  | S119: =LOOKUP(O119,AccVelDataLink!$A$4:$A$18396,AccVelDataLink!$E$4:$E$18396) -> 
B120: 7 | C120: 7 | D120: =LOOKUP(C120,MassDataLink!$A$4:$A$7777,MassDataLink!$B$4:$B$7777) -> 0 | E120: =LOOKUP(C120,MassDataLink!$A$4:$A$7777,MassDataLink!$C$4:$C$7777) -> 18000 | F120: =LOOKUP(C120,MassDataLink!$A$4:$A$7777,MassDataLink!$D$4:$D$7777) -> 9 | G120: =LOOKUP(C120,MassDataLink!$A$4:$A$7777,MassDataLink!$E$4:$E$7777) -> 6 | H120: =LOOKUP(C120,MassDataLink!$A$4:$A$7777,MassDataLink!$F$4:$F$7777) -> 8 | J120: 7 | K120: 18 | L120: 9 | N120: 6 | O120: -1 | P120: =LOOKUP(O120,AccVelDataLink!$A$4:$A$18396,AccVelDataLink!$B$4:$B$18396) ->  | Q120: =LOOKUP(O120,AccVelDataLink!$A$4:$A$18396,AccVelDataLink!$C$4:$C$18396) ->  | R120: =LOOKUP(O120,AccVelDataLink!$A$4:$A$18396,AccVelDataLink!$D$4:$D$18396) ->  | S120: =LOOKUP(O120,AccVelDataLink!$A$4:$A$18396,AccVelDataLink!$E$4:$E$18396) -> 
B121: 8 | C121: 8 | D121: =LOOKUP(C121,MassDataLink!$A$4:$A$7777,MassDataLink!$B$4:$B$7777) -> 0 | E121: =LOOKUP(C121,MassDataLink!$A$4:$A$7777,MassDataLink!$C$4:$C$7777) -> 19000 | F121: =LOOKUP(C121,MassDataLink!$A$4:$A$7777,MassDataLink!$D$4:$D$7777) -> 11 | G121: =LOOKUP(C121,MassDataLink!$A$4:$A$7777,MassDataLink!$E$4:$E$7777) -> 7 | H121: =LOOKUP(C121,MassDataLink!$A$4:$A$7777,MassDataLink!$F$4:$F$7777) -> 9 | J121: 8 | K121: 19 | L121: 11 | N121: 7 | O121: -1 | P121: =LOOKUP(O121,AccVelDataLink!$A$4:$A$18396,AccVelDataLink!$B$4:$B$18396) ->  | Q121: =LOOKUP(O121,AccVelDataLink!$A$4:$A$18396,AccVelDataLink!$C$4:$C$18396) ->  | R121: =LOOKUP(O121,AccVelDataLink!$A$4:$A$18396,AccVelDataLink!$D$4:$D$18396) ->  | S121: =LOOKUP(O121,AccVelDataLink!$A$4:$A$18396,AccVelDataLink!$E$4:$E$18396) -> 
B122: 9 | C122: 9 | D122: =LOOKUP(C122,MassDataLink!$A$4:$A$7777,MassDataLink!$B$4:$B$7777) -> 0 | E122: =LOOKUP(C122,MassDataLink!$A$4:$A$7777,MassDataLink!$C$4:$C$7777) -> 20000 | F122: =LOOKUP(C122,MassDataLink!$A$4:$A$7777,MassDataLink!$D$4:$D$7777) -> 13 | G122: =LOOKUP(C122,MassDataLink!$A$4:$A$7777,MassDataLink!$E$4:$E$7777) -> 8 | H122: =LOOKUP(C122,MassDataLink!$A$4:$A$7777,MassDataLink!$F$4:$F$7777) -> 10 | J122: 9 | K122: 20 | L122: 13 | N122: 8 | O122: -1 | P122: =LOOKUP(O122,AccVelDataLink!$A$4:$A$18396,AccVelDataLink!$B$4:$B$18396) ->  | Q122: =LOOKUP(O122,AccVelDataLink!$A$4:$A$18396,AccVelDataLink!$C$4:$C$18396) ->  | R122: =LOOKUP(O122,AccVelDataLink!$A$4:$A$18396,AccVelDataLink!$D$4:$D$18396) ->  | S122: =LOOKUP(O122,AccVelDataLink!$A$4:$A$18396,AccVelDataLink!$E$4:$E$18396) -> 
B123: 10 | C123: 10 | D123: =LOOKUP(C123,MassDataLink!$A$4:$A$7777,MassDataLink!$B$4:$B$7777) -> 0 | E123: =LOOKUP(C123,MassDataLink!$A$4:$A$7777,MassDataLink!$C$4:$C$7777) -> 21000 | F123: =LOOKUP(C123,MassDataLink!$A$4:$A$7777,MassDataLink!$D$4:$D$7777) -> 16 | G123: =LOOKUP(C123,MassDataLink!$A$4:$A$7777,MassDataLink!$E$4:$E$7777) -> 9 | H123: =LOOKUP(C123,MassDataLink!$A$4:$A$7777,MassDataLink!$F$4:$F$7777) -> 11 | J123: 10 | K123: 21 | L123: 16 | N123: 9 | O123: -1 | P123: =LOOKUP(O123,AccVelDataLink!$A$4:$A$18396,AccVelDataLink!$B$4:$B$18396) ->  | Q123: =LOOKUP(O123,AccVelDataLink!$A$4:$A$18396,AccVelDataLink!$C$4:$C$18396) ->  | R123: =LOOKUP(O123,AccVelDataLink!$A$4:$A$18396,AccVelDataLink!$D$4:$D$18396) ->  | S123: =LOOKUP(O123,AccVelDataLink!$A$4:$A$18396,AccVelDataLink!$E$4:$E$18396) -> 
B124: 11 | C124: 11 | D124: =LOOKUP(C124,MassDataLink!$A$4:$A$7777,MassDataLink!$B$4:$B$7777) -> 0 | E124: =LOOKUP(C124,MassDataLink!$A$4:$A$7777,MassDataLink!$C$4:$C$7777) -> 22000 | F124: =LOOKUP(C124,MassDataLink!$A$4:$A$7777,MassDataLink!$D$4:$D$7777) -> 19 | G124: =LOOKUP(C124,MassDataLink!$A$4:$A$7777,MassDataLink!$E$4:$E$7777) -> 10 | H124: =LOOKUP(C124,MassDataLink!$A$4:$A$7777,MassDataLink!$F$4:$F$7777) -> 12 | J124: 11 | K124: 22 | L124: 19 | N124: 10 | O124: -1 | P124: =LOOKUP(O124,AccVelDataLink!$A$4:$A$18396,AccVelDataLink!$B$4:$B$18396) ->  | Q124: =LOOKUP(O124,AccVelDataLink!$A$4:$A$18396,AccVelDataLink!$C$4:$C$18396) ->  | R124: =LOOKUP(O124,AccVelDataLink!$A$4:$A$18396,AccVelDataLink!$D$4:$D$18396) ->  | S124: =LOOKUP(O124,AccVelDataLink!$A$4:$A$18396,AccVelDataLink!$E$4:$E$18396) -> 
B125: 12 | C125: 12 | D125: =LOOKUP(C125,MassDataLink!$A$4:$A$7777,MassDataLink!$B$4:$B$7777) -> 0 | E125: =LOOKUP(C125,MassDataLink!$A$4:$A$7777,MassDataLink!$C$4:$C$7777) -> 23000 | F125: =LOOKUP(C125,MassDataLink!$A$4:$A$7777,MassDataLink!$D$4:$D$7777) -> 22 | G125: =LOOKUP(C125,MassDataLink!$A$4:$A$7777,MassDataLink!$E$4:$E$7777) -> 11 | H125: =LOOKUP(C125,MassDataLink!$A$4:$A$7777,MassDataLink!$F$4:$F$7777) -> 13 | J125: 12 | K125: 23 | L125: 22 | O125: 加速度系数 | P125: 1e-06
B126: 13 | C126: 13 | D126: =LOOKUP(C126,MassDataLink!$A$4:$A$7777,MassDataLink!$B$4:$B$7777) -> 0 | E126: =LOOKUP(C126,MassDataLink!$A$4:$A$7777,MassDataLink!$C$4:$C$7777) -> 24000 | F126: =LOOKUP(C126,MassDataLink!$A$4:$A$7777,MassDataLink!$D$4:$D$7777) -> 25 | G126: =LOOKUP(C126,MassDataLink!$A$4:$A$7777,MassDataLink!$E$4:$E$7777) -> 12 | H126: =LOOKUP(C126,MassDataLink!$A$4:$A$7777,MassDataLink!$F$4:$F$7777) -> 14 | J126: 13 | K126: 24 | L126: 25 | N126: G | O126: № | P126: 加速度 | Q126: 速度
B127: 14 | C127: 14 | D127: =LOOKUP(C127,MassDataLink!$A$4:$A$7777,MassDataLink!$B$4:$B$7777) -> 0 | E127: =LOOKUP(C127,MassDataLink!$A$4:$A$7777,MassDataLink!$C$4:$C$7777) -> 25000 | F127: =LOOKUP(C127,MassDataLink!$A$4:$A$7777,MassDataLink!$D$4:$D$7777) -> 28 | G127: =LOOKUP(C127,MassDataLink!$A$4:$A$7777,MassDataLink!$E$4:$E$7777) -> 13 | H127: =LOOKUP(C127,MassDataLink!$A$4:$A$7777,MassDataLink!$F$4:$F$7777) -> 15 | J127: 14 | K127: 25 | L127: 28 | N127: =LeadData!A1 -> 9.80665 | O127: 1 | P127: =IF(O115=-1,$L$112,(P115/$N$127)*$P$125) -> 1 | Q127: =IF(O115=-1,$L$112,Q115) -> 225
B128: 15 | C128: 15 | D128: =LOOKUP(C128,MassDataLink!$A$4:$A$7777,MassDataLink!$B$4:$B$7777) -> 0 | E128: =LOOKUP(C128,MassDataLink!$A$4:$A$7777,MassDataLink!$C$4:$C$7777) -> 26000 | F128: =LOOKUP(C128,MassDataLink!$A$4:$A$7777,MassDataLink!$D$4:$D$7777) -> 31 | G128: =LOOKUP(C128,MassDataLink!$A$4:$A$7777,MassDataLink!$E$4:$E$7777) -> 14 | H128: =LOOKUP(C128,MassDataLink!$A$4:$A$7777,MassDataLink!$F$4:$F$7777) -> 16 | J128: 15 | K128: 26 | L128: 31 | O128: =O127+1 -> 2 | P128: =IF(O116=-1,$L$112,(P116/$N$127)*$P$125) -> - - - | Q128: =IF(O116=-1,$L$112,Q116) -> - - -
B129: 16 | C129: 16 | D129: =LOOKUP(C129,MassDataLink!$A$4:$A$7777,MassDataLink!$B$4:$B$7777) -> 0 | E129: =LOOKUP(C129,MassDataLink!$A$4:$A$7777,MassDataLink!$C$4:$C$7777) -> 27000 | F129: =LOOKUP(C129,MassDataLink!$A$4:$A$7777,MassDataLink!$D$4:$D$7777) -> 34 | G129: =LOOKUP(C129,MassDataLink!$A$4:$A$7777,MassDataLink!$E$4:$E$7777) -> 15 | H129: =LOOKUP(C129,MassDataLink!$A$4:$A$7777,MassDataLink!$F$4:$F$7777) -> 17 | J129: 16 | K129: 27 | L129: 34 | O129: 3 | P129: - - - | Q129: - - -
B130: 17 | C130: 17 | D130: =LOOKUP(C130,MassDataLink!$A$4:$A$7777,MassDataLink!$B$4:$B$7777) -> 0 | E130: =LOOKUP(C130,MassDataLink!$A$4:$A$7777,MassDataLink!$C$4:$C$7777) -> 28000 | F130: =LOOKUP(C130,MassDataLink!$A$4:$A$7777,MassDataLink!$D$4:$D$7777) -> 37 | G130: =LOOKUP(C130,MassDataLink!$A$4:$A$7777,MassDataLink!$E$4:$E$7777) -> 16 | H130: =LOOKUP(C130,MassDataLink!$A$4:$A$7777,MassDataLink!$F$4:$F$7777) -> 18 | J130: 17 | K130: 28 | L130: 37 | O130: 4 | P130: - - - | Q130: - - -
B131: 18 | C131: 18 | D131: =LOOKUP(C131,MassDataLink!$A$4:$A$7777,MassDataLink!$B$4:$B$7777) -> 0 | E131: =LOOKUP(C131,MassDataLink!$A$4:$A$7777,MassDataLink!$C$4:$C$7777) -> 29000 | F131: =LOOKUP(C131,MassDataLink!$A$4:$A$7777,MassDataLink!$D$4:$D$7777) -> 41 | G131: =LOOKUP(C131,MassDataLink!$A$4:$A$7777,MassDataLink!$E$4:$E$7777) -> 17 | H131: =LOOKUP(C131,MassDataLink!$A$4:$A$7777,MassDataLink!$F$4:$F$7777) -> 19 | J131: 18 | K131: 29 | L131: 41 | O131: 5 | P131: - - - | Q131: - - -
B132: 19 | C132: 19 | D132: =LOOKUP(C132,MassDataLink!$A$4:$A$7777,MassDataLink!$B$4:$B$7777) -> 0 | E132: =LOOKUP(C132,MassDataLink!$A$4:$A$7777,MassDataLink!$C$4:$C$7777) -> 30000 | F132: =LOOKUP(C132,MassDataLink!$A$4:$A$7777,MassDataLink!$D$4:$D$7777) -> 45 | G132: =LOOKUP(C132,MassDataLink!$A$4:$A$7777,MassDataLink!$E$4:$E$7777) -> 18 | H132: =LOOKUP(C132,MassDataLink!$A$4:$A$7777,MassDataLink!$F$4:$F$7777) -> 20 | J132: 19 | K132: 30 | L132: 45 | O132: 6 | P132: - - - | Q132: - - -
B133: 20 | C133: 20 | D133: =LOOKUP(C133,MassDataLink!$A$4:$A$7777,MassDataLink!$B$4:$B$7777) -> 0 | E133: =LOOKUP(C133,MassDataLink!$A$4:$A$7777,MassDataLink!$C$4:$C$7777) -> 31000 | F133: =LOOKUP(C133,MassDataLink!$A$4:$A$7777,MassDataLink!$D$4:$D$7777) -> 49 | G133: =LOOKUP(C133,MassDataLink!$A$4:$A$7777,MassDataLink!$E$4:$E$7777) -> 19 | H133: =LOOKUP(C133,MassDataLink!$A$4:$A$7777,MassDataLink!$F$4:$F$7777) -> 21 | J133: 20 | K133: 31 | L133: 49 | O133: 7 | P133: - - - | Q133: - - -
B134: 21 | C134: 21 | D134: =LOOKUP(C134,MassDataLink!$A$4:$A$7777,MassDataLink!$B$4:$B$7777) -> 0 | E134: =LOOKUP(C134,MassDataLink!$A$4:$A$7777,MassDataLink!$C$4:$C$7777) -> 32000 | F134: =LOOKUP(C134,MassDataLink!$A$4:$A$7777,MassDataLink!$D$4:$D$7777) -> 53 | G134: =LOOKUP(C134,MassDataLink!$A$4:$A$7777,MassDataLink!$E$4:$E$7777) -> 20 | H134: =LOOKUP(C134,MassDataLink!$A$4:$A$7777,MassDataLink!$F$4:$F$7777) -> 22 | J134: 21 | K134: 32 | L134: 53 | O134: 8 | P134: - - - | Q134: - - -
B135: 22 | C135: 22 | D135: =LOOKUP(C135,MassDataLink!$A$4:$A$7777,MassDataLink!$B$4:$B$7777) -> 0 | E135: =LOOKUP(C135,MassDataLink!$A$4:$A$7777,MassDataLink!$C$4:$C$7777) -> 33000 | F135: =LOOKUP(C135,MassDataLink!$A$4:$A$7777,MassDataLink!$D$4:$D$7777) -> 56 | G135: =LOOKUP(C135,MassDataLink!$A$4:$A$7777,MassDataLink!$E$4:$E$7777) -> 21 | H135: =LOOKUP(C135,MassDataLink!$A$4:$A$7777,MassDataLink!$F$4:$F$7777) -> 23 | J135: 22 | K135: 33 | L135: 56 | O135: 9 | P135: - - - | Q135: - - -
B136: 23 | C136: 23 | D136: =LOOKUP(C136,MassDataLink!$A$4:$A$7777,MassDataLink!$B$4:$B$7777) -> 0 | E136: =LOOKUP(C136,MassDataLink!$A$4:$A$7777,MassDataLink!$C$4:$C$7777) -> 34000 | F136: =LOOKUP(C136,MassDataLink!$A$4:$A$7777,MassDataLink!$D$4:$D$7777) -> 59 | G136: =LOOKUP(C136,MassDataLink!$A$4:$A$7777,MassDataLink!$E$4:$E$7777) -> 22 | H136: =LOOKUP(C136,MassDataLink!$A$4:$A$7777,MassDataLink!$F$4:$F$7777) -> 24 | J136: 23 | K136: 34 | L136: 59 | O136: 10 | P136: - - - | Q136: - - -
B137: =B136+1 -> 24 | C137: =IF(C136=-1,-1,H136) -> 24 | D137: =LOOKUP(C137,MassDataLink!$A$4:$A$7777,MassDataLink!$B$4:$B$7777) -> 0 | E137: =LOOKUP(C137,MassDataLink!$A$4:$A$7777,MassDataLink!$C$4:$C$7777) -> 35000 | F137: =LOOKUP(C137,MassDataLink!$A$4:$A$7777,MassDataLink!$D$4:$D$7777) -> 62 | G137: =LOOKUP(C137,MassDataLink!$A$4:$A$7777,MassDataLink!$E$4:$E$7777) -> 23 | H137: =LOOKUP(C137,MassDataLink!$A$4:$A$7777,MassDataLink!$F$4:$F$7777) -> 25 | J137: 24 | K137: 35 | L137: 62
B138: 25 | C138: 25 | D138: =LOOKUP(C138,MassDataLink!$A$4:$A$7777,MassDataLink!$B$4:$B$7777) -> 0 | E138: =LOOKUP(C138,MassDataLink!$A$4:$A$7777,MassDataLink!$C$4:$C$7777) -> 36000 | F138: =LOOKUP(C138,MassDataLink!$A$4:$A$7777,MassDataLink!$D$4:$D$7777) -> 65 | G138: =LOOKUP(C138,MassDataLink!$A$4:$A$7777,MassDataLink!$E$4:$E$7777) -> 24 | H138: =LOOKUP(C138,MassDataLink!$A$4:$A$7777,MassDataLink!$F$4:$F$7777) -> 26 | J138: 25 | K138: 36 | L138: 65
B139: 26 | C139: 26 | D139: =LOOKUP(C139,MassDataLink!$A$4:$A$7777,MassDataLink!$B$4:$B$7777) -> 0 | E139: =LOOKUP(C139,MassDataLink!$A$4:$A$7777,MassDataLink!$C$4:$C$7777) -> 37000 | F139: =LOOKUP(C139,MassDataLink!$A$4:$A$7777,MassDataLink!$D$4:$D$7777) -> 66 | G139: =LOOKUP(C139,MassDataLink!$A$4:$A$7777,MassDataLink!$E$4:$E$7777) -> 25 | H139: =LOOKUP(C139,MassDataLink!$A$4:$A$7777,MassDataLink!$F$4:$F$7777) -> 27 | J139: 26 | K139: 37 | L139: 66
B140: 27 | C140: 27 | D140: =LOOKUP(C140,MassDataLink!$A$4:$A$7777,MassDataLink!$B$4:$B$7777) -> 0 | E140: =LOOKUP(C140,MassDataLink!$A$4:$A$7777,MassDataLink!$C$4:$C$7777) -> 38000 | F140: =LOOKUP(C140,MassDataLink!$A$4:$A$7777,MassDataLink!$D$4:$D$7777) -> 67 | G140: =LOOKUP(C140,MassDataLink!$A$4:$A$7777,MassDataLink!$E$4:$E$7777) -> 26 | H140: =LOOKUP(C140,MassDataLink!$A$4:$A$7777,MassDataLink!$F$4:$F$7777) -> 28 | J140: 27 | K140: 38 | L140: 67
B141: 28 | C141: 28 | D141: =LOOKUP(C141,MassDataLink!$A$4:$A$7777,MassDataLink!$B$4:$B$7777) -> 0 | E141: =LOOKUP(C141,MassDataLink!$A$4:$A$7777,MassDataLink!$C$4:$C$7777) -> 39000 | F141: =LOOKUP(C141,MassDataLink!$A$4:$A$7777,MassDataLink!$D$4:$D$7777) -> 68 | G141: =LOOKUP(C141,MassDataLink!$A$4:$A$7777,MassDataLink!$E$4:$E$7777) -> 27 | H141: =LOOKUP(C141,MassDataLink!$A$4:$A$7777,MassDataLink!$F$4:$F$7777) -> 29 | J141: 28 | K141: 39 | L141: 68
B142: 29 | C142: 29 | D142: =LOOKUP(C142,MassDataLink!$A$4:$A$7777,MassDataLink!$B$4:$B$7777) -> 0 | E142: =LOOKUP(C142,MassDataLink!$A$4:$A$7777,MassDataLink!$C$4:$C$7777) -> 40000 | F142: =LOOKUP(C142,MassDataLink!$A$4:$A$7777,MassDataLink!$D$4:$D$7777) -> 69 | G142: =LOOKUP(C142,MassDataLink!$A$4:$A$7777,MassDataLink!$E$4:$E$7777) -> 28 | H142: =LOOKUP(C142,MassDataLink!$A$4:$A$7777,MassDataLink!$F$4:$F$7777) -> 30 | J142: 29 | K142: 40 | L142: 69
B143: 30 | C143: 30 | D143: =LOOKUP(C143,MassDataLink!$A$4:$A$7777,MassDataLink!$B$4:$B$7777) -> 1 | E143: =LOOKUP(C143,MassDataLink!$A$4:$A$7777,MassDataLink!$C$4:$C$7777) -> 6000 | F143: =LOOKUP(C143,MassDataLink!$A$4:$A$7777,MassDataLink!$D$4:$D$7777) -> 70 | G143: =LOOKUP(C143,MassDataLink!$A$4:$A$7777,MassDataLink!$E$4:$E$7777) -> 29 | H143: =LOOKUP(C143,MassDataLink!$A$4:$A$7777,MassDataLink!$F$4:$F$7777) -> 31 | J143: 30 | K143: - - - | L143: - - -
B144: =B143+1 -> 31 | C144: =IF(C143=-1,-1,H143) -> 31 | D144: =LOOKUP(C144,MassDataLink!$A$4:$A$7777,MassDataLink!$B$4:$B$7777) -> 1 | E144: =LOOKUP(C144,MassDataLink!$A$4:$A$7777,MassDataLink!$C$4:$C$7777) -> 7000 | F144: =LOOKUP(C144,MassDataLink!$A$4:$A$7777,MassDataLink!$D$4:$D$7777) -> 71 | G144: =LOOKUP(C144,MassDataLink!$A$4:$A$7777,MassDataLink!$E$4:$E$7777) -> 30 | H144: =LOOKUP(C144,MassDataLink!$A$4:$A$7777,MassDataLink!$F$4:$F$7777) -> 32 | J144: 31 | K144: - - - | L144: - - -
B145: 32 | C145: 32 | D145: =LOOKUP(C145,MassDataLink!$A$4:$A$7777,MassDataLink!$B$4:$B$7777) -> 1 | E145: =LOOKUP(C145,MassDataLink!$A$4:$A$7777,MassDataLink!$C$4:$C$7777) -> 8000 | F145: =LOOKUP(C145,MassDataLink!$A$4:$A$7777,MassDataLink!$D$4:$D$7777) -> 72 | G145: =LOOKUP(C145,MassDataLink!$A$4:$A$7777,MassDataLink!$E$4:$E$7777) -> 31 | H145: =LOOKUP(C145,MassDataLink!$A$4:$A$7777,MassDataLink!$F$4:$F$7777) -> 33 | J145: 32 | K145: - - - | L145: - - -
B146: 33 | C146: 33 | D146: =LOOKUP(C146,MassDataLink!$A$4:$A$7777,MassDataLink!$B$4:$B$7777) -> 1 | E146: =LOOKUP(C146,MassDataLink!$A$4:$A$7777,MassDataLink!$C$4:$C$7777) -> 9000 | F146: =LOOKUP(C146,MassDataLink!$A$4:$A$7777,MassDataLink!$D$4:$D$7777) -> 73 | G146: =LOOKUP(C146,MassDataLink!$A$4:$A$7777,MassDataLink!$E$4:$E$7777) -> 32 | H146: =LOOKUP(C146,MassDataLink!$A$4:$A$7777,MassDataLink!$F$4:$F$7777) -> 34 | J146: 33 | K146: - - - | L146: - - -
B147: 34 | C147: 34 | D147: =LOOKUP(C147,MassDataLink!$A$4:$A$7777,MassDataLink!$B$4:$B$7777) -> 1 | E147: =LOOKUP(C147,MassDataLink!$A$4:$A$7777,MassDataLink!$C$4:$C$7777) -> 10000 | F147: =LOOKUP(C147,MassDataLink!$A$4:$A$7777,MassDataLink!$D$4:$D$7777) -> 75 | G147: =LOOKUP(C147,MassDataLink!$A$4:$A$7777,MassDataLink!$E$4:$E$7777) -> 33 | H147: =LOOKUP(C147,MassDataLink!$A$4:$A$7777,MassDataLink!$F$4:$F$7777) -> 35 | J147: 34 | K147: - - - | L147: - - -
B148: 35 | C148: 35 | D148: =LOOKUP(C148,MassDataLink!$A$4:$A$7777,MassDataLink!$B$4:$B$7777) -> 1 | E148: =LOOKUP(C148,MassDataLink!$A$4:$A$7777,MassDataLink!$C$4:$C$7777) -> 11000 | F148: =LOOKUP(C148,MassDataLink!$A$4:$A$7777,MassDataLink!$D$4:$D$7777) -> 77 | G148: =LOOKUP(C148,MassDataLink!$A$4:$A$7777,MassDataLink!$E$4:$E$7777) -> 34 | H148: =LOOKUP(C148,MassDataLink!$A$4:$A$7777,MassDataLink!$F$4:$F$7777) -> 36 | J148: 35 | K148: - - - | L148: - - -
B149: 36 | C149: 36 | D149: =LOOKUP(C149,MassDataLink!$A$4:$A$7777,MassDataLink!$B$4:$B$7777) -> 1 | E149: =LOOKUP(C149,MassDataLink!$A$4:$A$7777,MassDataLink!$C$4:$C$7777) -> 12000 | F149: =LOOKUP(C149,MassDataLink!$A$4:$A$7777,MassDataLink!$D$4:$D$7777) -> 79 | G149: =LOOKUP(C149,MassDataLink!$A$4:$A$7777,MassDataLink!$E$4:$E$7777) -> 35 | H149: =LOOKUP(C149,MassDataLink!$A$4:$A$7777,MassDataLink!$F$4:$F$7777) -> 37 | J149: 36 | K149: - - - | L149: - - -
B150: 37 | C150: 37 | D150: =LOOKUP(C150,MassDataLink!$A$4:$A$7777,MassDataLink!$B$4:$B$7777) -> 1 | E150: =LOOKUP(C150,MassDataLink!$A$4:$A$7777,MassDataLink!$C$4:$C$7777) -> 12500 | F150: =LOOKUP(C150,MassDataLink!$A$4:$A$7777,MassDataLink!$D$4:$D$7777) -> 81 | G150: =LOOKUP(C150,MassDataLink!$A$4:$A$7777,MassDataLink!$E$4:$E$7777) -> 36 | H150: =LOOKUP(C150,MassDataLink!$A$4:$A$7777,MassDataLink!$F$4:$F$7777) -> -1 | J150: 37 | K150: - - - | L150: - - -
B151: 38 | C151: -1 | D151: =LOOKUP(C151,MassDataLink!$A$4:$A$7777,MassDataLink!$B$4:$B$7777) ->  | E151: =LOOKUP(C151,MassDataLink!$A$4:$A$7777,MassDataLink!$C$4:$C$7777) ->  | F151: =LOOKUP(C151,MassDataLink!$A$4:$A$7777,MassDataLink!$D$4:$D$7777) ->  | G151: =LOOKUP(C151,MassDataLink!$A$4:$A$7777,MassDataLink!$E$4:$E$7777) ->  | H151: =LOOKUP(C151,MassDataLink!$A$4:$A$7777,MassDataLink!$F$4:$F$7777) ->  | J151: 38 | K151: - - - | L151: - - -
B152: 39 | C152: -1 | D152: =LOOKUP(C152,MassDataLink!$A$4:$A$7777,MassDataLink!$B$4:$B$7777) ->  | E152: =LOOKUP(C152,MassDataLink!$A$4:$A$7777,MassDataLink!$C$4:$C$7777) ->  | F152: =LOOKUP(C152,MassDataLink!$A$4:$A$7777,MassDataLink!$D$4:$D$7777) ->  | G152: =LOOKUP(C152,MassDataLink!$A$4:$A$7777,MassDataLink!$E$4:$E$7777) ->  | H152: =LOOKUP(C152,MassDataLink!$A$4:$A$7777,MassDataLink!$F$4:$F$7777) ->  | J152: 39 | K152: - - - | L152: - - -
B153: 40 | C153: -1 | D153: =LOOKUP(C153,MassDataLink!$A$4:$A$7777,MassDataLink!$B$4:$B$7777) ->  | E153: =LOOKUP(C153,MassDataLink!$A$4:$A$7777,MassDataLink!$C$4:$C$7777) ->  | F153: =LOOKUP(C153,MassDataLink!$A$4:$A$7777,MassDataLink!$D$4:$D$7777) ->  | G153: =LOOKUP(C153,MassDataLink!$A$4:$A$7777,MassDataLink!$E$4:$E$7777) ->  | H153: =LOOKUP(C153,MassDataLink!$A$4:$A$7777,MassDataLink!$F$4:$F$7777) ->  | J153: 40 | K153: - - - | L153: - - -
B154: 41 | C154: -1 | D154: =LOOKUP(C154,MassDataLink!$A$4:$A$7777,MassDataLink!$B$4:$B$7777) ->  | E154: =LOOKUP(C154,MassDataLink!$A$4:$A$7777,MassDataLink!$C$4:$C$7777) ->  | F154: =LOOKUP(C154,MassDataLink!$A$4:$A$7777,MassDataLink!$D$4:$D$7777) ->  | G154: =LOOKUP(C154,MassDataLink!$A$4:$A$7777,MassDataLink!$E$4:$E$7777) ->  | H154: =LOOKUP(C154,MassDataLink!$A$4:$A$7777,MassDataLink!$F$4:$F$7777) ->  | J154: 41 | K154: - - - | L154: - - -
B155: 42 | C155: -1 | D155: =LOOKUP(C155,MassDataLink!$A$4:$A$7777,MassDataLink!$B$4:$B$7777) ->  | E155: =LOOKUP(C155,MassDataLink!$A$4:$A$7777,MassDataLink!$C$4:$C$7777) ->  | F155: =LOOKUP(C155,MassDataLink!$A$4:$A$7777,MassDataLink!$D$4:$D$7777) ->  | G155: =LOOKUP(C155,MassDataLink!$A$4:$A$7777,MassDataLink!$E$4:$E$7777) ->  | H155: =LOOKUP(C155,MassDataLink!$A$4:$A$7777,MassDataLink!$F$4:$F$7777) ->  | J155: 42 | K155: - - - | L155: - - -
B156: 43 | C156: -1 | D156: =LOOKUP(C156,MassDataLink!$A$4:$A$7777,MassDataLink!$B$4:$B$7777) ->  | E156: =LOOKUP(C156,MassDataLink!$A$4:$A$7777,MassDataLink!$C$4:$C$7777) ->  | F156: =LOOKUP(C156,MassDataLink!$A$4:$A$7777,MassDataLink!$D$4:$D$7777) ->  | G156: =LOOKUP(C156,MassDataLink!$A$4:$A$7777,MassDataLink!$E$4:$E$7777) ->  | H156: =LOOKUP(C156,MassDataLink!$A$4:$A$7777,MassDataLink!$F$4:$F$7777) ->  | J156: 43 | K156: - - - | L156: - - -
B157: 44 | C157: -1 | D157: =LOOKUP(C157,MassDataLink!$A$4:$A$7777,MassDataLink!$B$4:$B$7777) ->  | E157: =LOOKUP(C157,MassDataLink!$A$4:$A$7777,MassDataLink!$C$4:$C$7777) ->  | F157: =LOOKUP(C157,MassDataLink!$A$4:$A$7777,MassDataLink!$D$4:$D$7777) ->  | G157: =LOOKUP(C157,MassDataLink!$A$4:$A$7777,MassDataLink!$E$4:$E$7777) ->  | H157: =LOOKUP(C157,MassDataLink!$A$4:$A$7777,MassDataLink!$F$4:$F$7777) ->  | J157: 44 | K157: - - - | L157: - - -
B158: 45 | C158: -1 | D158: =LOOKUP(C158,MassDataLink!$A$4:$A$7777,MassDataLink!$B$4:$B$7777) ->  | E158: =LOOKUP(C158,MassDataLink!$A$4:$A$7777,MassDataLink!$C$4:$C$7777) ->  | F158: =LOOKUP(C158,MassDataLink!$A$4:$A$7777,MassDataLink!$D$4:$D$7777) ->  | G158: =LOOKUP(C158,MassDataLink!$A$4:$A$7777,MassDataLink!$E$4:$E$7777) ->  | H158: =LOOKUP(C158,MassDataLink!$A$4:$A$7777,MassDataLink!$F$4:$F$7777) ->  | J158: 45 | K158: - - - | L158: - - -
B159: 46 | C159: -1 | D159: =LOOKUP(C159,MassDataLink!$A$4:$A$7777,MassDataLink!$B$4:$B$7777) ->  | E159: =LOOKUP(C159,MassDataLink!$A$4:$A$7777,MassDataLink!$C$4:$C$7777) ->  | F159: =LOOKUP(C159,MassDataLink!$A$4:$A$7777,MassDataLink!$D$4:$D$7777) ->  | G159: =LOOKUP(C159,MassDataLink!$A$4:$A$7777,MassDataLink!$E$4:$E$7777) ->  | H159: =LOOKUP(C159,MassDataLink!$A$4:$A$7777,MassDataLink!$F$4:$F$7777) ->  | J159: 46 | K159: - - - | L159: - - -
B160: 47 | C160: -1 | D160: =LOOKUP(C160,MassDataLink!$A$4:$A$7777,MassDataLink!$B$4:$B$7777) ->  | E160: =LOOKUP(C160,MassDataLink!$A$4:$A$7777,MassDataLink!$C$4:$C$7777) ->  | F160: =LOOKUP(C160,MassDataLink!$A$4:$A$7777,MassDataLink!$D$4:$D$7777) ->  | G160: =LOOKUP(C160,MassDataLink!$A$4:$A$7777,MassDataLink!$E$4:$E$7777) ->  | H160: =LOOKUP(C160,MassDataLink!$A$4:$A$7777,MassDataLink!$F$4:$F$7777) ->  | J160: 47 | K160: - - - | L160: - - -
B161: 48 | C161: -1 | D161: =LOOKUP(C161,MassDataLink!$A$4:$A$7777,MassDataLink!$B$4:$B$7777) ->  | E161: =LOOKUP(C161,MassDataLink!$A$4:$A$7777,MassDataLink!$C$4:$C$7777) ->  | F161: =LOOKUP(C161,MassDataLink!$A$4:$A$7777,MassDataLink!$D$4:$D$7777) ->  | G161: =LOOKUP(C161,MassDataLink!$A$4:$A$7777,MassDataLink!$E$4:$E$7777) ->  | H161: =LOOKUP(C161,MassDataLink!$A$4:$A$7777,MassDataLink!$F$4:$F$7777) ->  | J161: 48 | K161: - - - | L161: - - -
B162: 49 | C162: -1 | D162: =LOOKUP(C162,MassDataLink!$A$4:$A$7777,MassDataLink!$B$4:$B$7777) ->  | E162: =LOOKUP(C162,MassDataLink!$A$4:$A$7777,MassDataLink!$C$4:$C$7777) ->  | F162: =LOOKUP(C162,MassDataLink!$A$4:$A$7777,MassDataLink!$D$4:$D$7777) ->  | G162: =LOOKUP(C162,MassDataLink!$A$4:$A$7777,MassDataLink!$E$4:$E$7777) ->  | H162: =LOOKUP(C162,MassDataLink!$A$4:$A$7777,MassDataLink!$F$4:$F$7777) ->  | J162: 49 | K162: - - - | L162: - - -
B163: 50 | C163: -1 | D163: =LOOKUP(C163,MassDataLink!$A$4:$A$7777,MassDataLink!$B$4:$B$7777) ->  | E163: =LOOKUP(C163,MassDataLink!$A$4:$A$7777,MassDataLink!$C$4:$C$7777) ->  | F163: =LOOKUP(C163,MassDataLink!$A$4:$A$7777,MassDataLink!$D$4:$D$7777) ->  | G163: =LOOKUP(C163,MassDataLink!$A$4:$A$7777,MassDataLink!$E$4:$E$7777) ->  | H163: =LOOKUP(C163,MassDataLink!$A$4:$A$7777,MassDataLink!$F$4:$F$7777) ->  | J163: 50 | K163: - - - | L163: - - -
B164: =B163+1 -> 51 | C164: =IF(C163=-1,-1,H163) -> -1 | D164: =LOOKUP(C164,MassDataLink!$A$4:$A$7777,MassDataLink!$B$4:$B$7777) ->  | E164: =LOOKUP(C164,MassDataLink!$A$4:$A$7777,MassDataLink!$C$4:$C$7777) ->  | F164: =LOOKUP(C164,MassDataLink!$A$4:$A$7777,MassDataLink!$D$4:$D$7777) ->  | G164: =LOOKUP(C164,MassDataLink!$A$4:$A$7777,MassDataLink!$E$4:$E$7777) ->  | H164: =LOOKUP(C164,MassDataLink!$A$4:$A$7777,MassDataLink!$F$4:$F$7777) ->  | J164: =J163+1 -> 51 | K164: =IF(C164=-1,$L$112,IF($A$11=D164,ROUND((E164*$P$57),$R$57),$L$112)) -> - - - | L164: =IF(K164=$L$112,$L$112,F164) -> - - -
B165: 52 | C165: -1 | D165: =LOOKUP(C165,MassDataLink!$A$4:$A$7777,MassDataLink!$B$4:$B$7777) ->  | E165: =LOOKUP(C165,MassDataLink!$A$4:$A$7777,MassDataLink!$C$4:$C$7777) ->  | F165: =LOOKUP(C165,MassDataLink!$A$4:$A$7777,MassDataLink!$D$4:$D$7777) ->  | G165: =LOOKUP(C165,MassDataLink!$A$4:$A$7777,MassDataLink!$E$4:$E$7777) ->  | H165: =LOOKUP(C165,MassDataLink!$A$4:$A$7777,MassDataLink!$F$4:$F$7777) ->  | J165: 52 | K165: - - - | L165: - - -
B166: 53 | C166: -1 | D166: =LOOKUP(C166,MassDataLink!$A$4:$A$7777,MassDataLink!$B$4:$B$7777) ->  | E166: =LOOKUP(C166,MassDataLink!$A$4:$A$7777,MassDataLink!$C$4:$C$7777) ->  | F166: =LOOKUP(C166,MassDataLink!$A$4:$A$7777,MassDataLink!$D$4:$D$7777) ->  | G166: =LOOKUP(C166,MassDataLink!$A$4:$A$7777,MassDataLink!$E$4:$E$7777) ->  | H166: =LOOKUP(C166,MassDataLink!$A$4:$A$7777,MassDataLink!$F$4:$F$7777) ->  | J166: 53 | K166: - - - | L166: - - -
B167: 54 | C167: -1 | D167: =LOOKUP(C167,MassDataLink!$A$4:$A$7777,MassDataLink!$B$4:$B$7777) ->  | E167: =LOOKUP(C167,MassDataLink!$A$4:$A$7777,MassDataLink!$C$4:$C$7777) ->  | F167: =LOOKUP(C167,MassDataLink!$A$4:$A$7777,MassDataLink!$D$4:$D$7777) ->  | G167: =LOOKUP(C167,MassDataLink!$A$4:$A$7777,MassDataLink!$E$4:$E$7777) ->  | H167: =LOOKUP(C167,MassDataLink!$A$4:$A$7777,MassDataLink!$F$4:$F$7777) ->  | J167: 54 | K167: - - - | L167: - - -
B168: 55 | C168: -1 | D168: =LOOKUP(C168,MassDataLink!$A$4:$A$7777,MassDataLink!$B$4:$B$7777) ->  | E168: =LOOKUP(C168,MassDataLink!$A$4:$A$7777,MassDataLink!$C$4:$C$7777) ->  | F168: =LOOKUP(C168,MassDataLink!$A$4:$A$7777,MassDataLink!$D$4:$D$7777) ->  | G168: =LOOKUP(C168,MassDataLink!$A$4:$A$7777,MassDataLink!$E$4:$E$7777) ->  | H168: =LOOKUP(C168,MassDataLink!$A$4:$A$7777,MassDataLink!$F$4:$F$7777) ->  | J168: 55 | K168: - - - | L168: - - -
B169: 56 | C169: -1 | D169: =LOOKUP(C169,MassDataLink!$A$4:$A$7777,MassDataLink!$B$4:$B$7777) ->  | E169: =LOOKUP(C169,MassDataLink!$A$4:$A$7777,MassDataLink!$C$4:$C$7777) ->  | F169: =LOOKUP(C169,MassDataLink!$A$4:$A$7777,MassDataLink!$D$4:$D$7777) ->  | G169: =LOOKUP(C169,MassDataLink!$A$4:$A$7777,MassDataLink!$E$4:$E$7777) ->  | H169: =LOOKUP(C169,MassDataLink!$A$4:$A$7777,MassDataLink!$F$4:$F$7777) ->  | J169: 56 | K169: - - - | L169: - - -
B170: 57 | C170: -1 | D170: =LOOKUP(C170,MassDataLink!$A$4:$A$7777,MassDataLink!$B$4:$B$7777) ->  | E170: =LOOKUP(C170,MassDataLink!$A$4:$A$7777,MassDataLink!$C$4:$C$7777) ->  | F170: =LOOKUP(C170,MassDataLink!$A$4:$A$7777,MassDataLink!$D$4:$D$7777) ->  | G170: =LOOKUP(C170,MassDataLink!$A$4:$A$7777,MassDataLink!$E$4:$E$7777) ->  | H170: =LOOKUP(C170,MassDataLink!$A$4:$A$7777,MassDataLink!$F$4:$F$7777) ->  | J170: 57 | K170: - - - | L170: - - -
B171: 58 | C171: -1 | D171: =LOOKUP(C171,MassDataLink!$A$4:$A$7777,MassDataLink!$B$4:$B$7777) ->  | E171: =LOOKUP(C171,MassDataLink!$A$4:$A$7777,MassDataLink!$C$4:$C$7777) ->  | F171: =LOOKUP(C171,MassDataLink!$A$4:$A$7777,MassDataLink!$D$4:$D$7777) ->  | G171: =LOOKUP(C171,MassDataLink!$A$4:$A$7777,MassDataLink!$E$4:$E$7777) ->  | H171: =LOOKUP(C171,MassDataLink!$A$4:$A$7777,MassDataLink!$F$4:$F$7777) ->  | J171: 58 | K171: - - - | L171: - - -
B172: 59 | C172: -1 | D172: =LOOKUP(C172,MassDataLink!$A$4:$A$7777,MassDataLink!$B$4:$B$7777) ->  | E172: =LOOKUP(C172,MassDataLink!$A$4:$A$7777,MassDataLink!$C$4:$C$7777) ->  | F172: =LOOKUP(C172,MassDataLink!$A$4:$A$7777,MassDataLink!$D$4:$D$7777) ->  | G172: =LOOKUP(C172,MassDataLink!$A$4:$A$7777,MassDataLink!$E$4:$E$7777) ->  | H172: =LOOKUP(C172,MassDataLink!$A$4:$A$7777,MassDataLink!$F$4:$F$7777) ->  | J172: 59 | K172: - - - | L172: - - -
B173: 60 | C173: -1 | D173: =LOOKUP(C173,MassDataLink!$A$4:$A$7777,MassDataLink!$B$4:$B$7777) ->  | E173: =LOOKUP(C173,MassDataLink!$A$4:$A$7777,MassDataLink!$C$4:$C$7777) ->  | F173: =LOOKUP(C173,MassDataLink!$A$4:$A$7777,MassDataLink!$D$4:$D$7777) ->  | G173: =LOOKUP(C173,MassDataLink!$A$4:$A$7777,MassDataLink!$E$4:$E$7777) ->  | H173: =LOOKUP(C173,MassDataLink!$A$4:$A$7777,MassDataLink!$F$4:$F$7777) ->  | J173: 60 | K173: - - - | L173: - - -
B174: 61 | C174: -1 | D174: =LOOKUP(C174,MassDataLink!$A$4:$A$7777,MassDataLink!$B$4:$B$7777) ->  | E174: =LOOKUP(C174,MassDataLink!$A$4:$A$7777,MassDataLink!$C$4:$C$7777) ->  | F174: =LOOKUP(C174,MassDataLink!$A$4:$A$7777,MassDataLink!$D$4:$D$7777) ->  | G174: =LOOKUP(C174,MassDataLink!$A$4:$A$7777,MassDataLink!$E$4:$E$7777) ->  | H174: =LOOKUP(C174,MassDataLink!$A$4:$A$7777,MassDataLink!$F$4:$F$7777) ->  | J174: 61 | K174: - - - | L174: - - -
B175: 62 | C175: -1 | D175: =LOOKUP(C175,MassDataLink!$A$4:$A$7777,MassDataLink!$B$4:$B$7777) ->  | E175: =LOOKUP(C175,MassDataLink!$A$4:$A$7777,MassDataLink!$C$4:$C$7777) ->  | F175: =LOOKUP(C175,MassDataLink!$A$4:$A$7777,MassDataLink!$D$4:$D$7777) ->  | G175: =LOOKUP(C175,MassDataLink!$A$4:$A$7777,MassDataLink!$E$4:$E$7777) ->  | H175: =LOOKUP(C175,MassDataLink!$A$4:$A$7777,MassDataLink!$F$4:$F$7777) ->  | J175: 62 | K175: - - - | L175: - - -
B176: 63 | C176: -1 | D176: =LOOKUP(C176,MassDataLink!$A$4:$A$7777,MassDataLink!$B$4:$B$7777) ->  | E176: =LOOKUP(C176,MassDataLink!$A$4:$A$7777,MassDataLink!$C$4:$C$7777) ->  | F176: =LOOKUP(C176,MassDataLink!$A$4:$A$7777,MassDataLink!$D$4:$D$7777) ->  | G176: =LOOKUP(C176,MassDataLink!$A$4:$A$7777,MassDataLink!$E$4:$E$7777) ->  | H176: =LOOKUP(C176,MassDataLink!$A$4:$A$7777,MassDataLink!$F$4:$F$7777) ->  | J176: 63 | K176: - - - | L176: - - -
B177: 64 | C177: -1 | D177: =LOOKUP(C177,MassDataLink!$A$4:$A$7777,MassDataLink!$B$4:$B$7777) ->  | E177: =LOOKUP(C177,MassDataLink!$A$4:$A$7777,MassDataLink!$C$4:$C$7777) ->  | F177: =LOOKUP(C177,MassDataLink!$A$4:$A$7777,MassDataLink!$D$4:$D$7777) ->  | G177: =LOOKUP(C177,MassDataLink!$A$4:$A$7777,MassDataLink!$E$4:$E$7777) ->  | H177: =LOOKUP(C177,MassDataLink!$A$4:$A$7777,MassDataLink!$F$4:$F$7777) ->  | J177: 64 | K177: - - - | L177: - - -
B178: 65 | C178: -1 | D178: =LOOKUP(C178,MassDataLink!$A$4:$A$7777,MassDataLink!$B$4:$B$7777) ->  | E178: =LOOKUP(C178,MassDataLink!$A$4:$A$7777,MassDataLink!$C$4:$C$7777) ->  | F178: =LOOKUP(C178,MassDataLink!$A$4:$A$7777,MassDataLink!$D$4:$D$7777) ->  | G178: =LOOKUP(C178,MassDataLink!$A$4:$A$7777,MassDataLink!$E$4:$E$7777) ->  | H178: =LOOKUP(C178,MassDataLink!$A$4:$A$7777,MassDataLink!$F$4:$F$7777) ->  | J178: 65 | K178: - - - | L178: - - -
B179: 66 | C179: -1 | D179: =LOOKUP(C179,MassDataLink!$A$4:$A$7777,MassDataLink!$B$4:$B$7777) ->  | E179: =LOOKUP(C179,MassDataLink!$A$4:$A$7777,MassDataLink!$C$4:$C$7777) ->  | F179: =LOOKUP(C179,MassDataLink!$A$4:$A$7777,MassDataLink!$D$4:$D$7777) ->  | G179: =LOOKUP(C179,MassDataLink!$A$4:$A$7777,MassDataLink!$E$4:$E$7777) ->  | H179: =LOOKUP(C179,MassDataLink!$A$4:$A$7777,MassDataLink!$F$4:$F$7777) ->  | J179: 66 | K179: - - - | L179: - - -
B180: 67 | C180: -1 | D180: =LOOKUP(C180,MassDataLink!$A$4:$A$7777,MassDataLink!$B$4:$B$7777) ->  | E180: =LOOKUP(C180,MassDataLink!$A$4:$A$7777,MassDataLink!$C$4:$C$7777) ->  | F180: =LOOKUP(C180,MassDataLink!$A$4:$A$7777,MassDataLink!$D$4:$D$7777) ->  | G180: =LOOKUP(C180,MassDataLink!$A$4:$A$7777,MassDataLink!$E$4:$E$7777) ->  | H180: =LOOKUP(C180,MassDataLink!$A$4:$A$7777,MassDataLink!$F$4:$F$7777) ->  | J180: 67 | K180: - - - | L180: - - -
B181: 68 | C181: -1 | D181: =LOOKUP(C181,MassDataLink!$A$4:$A$7777,MassDataLink!$B$4:$B$7777) ->  | E181: =LOOKUP(C181,MassDataLink!$A$4:$A$7777,MassDataLink!$C$4:$C$7777) ->  | F181: =LOOKUP(C181,MassDataLink!$A$4:$A$7777,MassDataLink!$D$4:$D$7777) ->  | G181: =LOOKUP(C181,MassDataLink!$A$4:$A$7777,MassDataLink!$E$4:$E$7777) ->  | H181: =LOOKUP(C181,MassDataLink!$A$4:$A$7777,MassDataLink!$F$4:$F$7777) ->  | J181: 68 | K181: - - - | L181: - - -
B182: 69 | C182: -1 | D182: =LOOKUP(C182,MassDataLink!$A$4:$A$7777,MassDataLink!$B$4:$B$7777) ->  | E182: =LOOKUP(C182,MassDataLink!$A$4:$A$7777,MassDataLink!$C$4:$C$7777) ->  | F182: =LOOKUP(C182,MassDataLink!$A$4:$A$7777,MassDataLink!$D$4:$D$7777) ->  | G182: =LOOKUP(C182,MassDataLink!$A$4:$A$7777,MassDataLink!$E$4:$E$7777) ->  | H182: =LOOKUP(C182,MassDataLink!$A$4:$A$7777,MassDataLink!$F$4:$F$7777) ->  | J182: 69 | K182: - - - | L182: - - -
B183: 70 | C183: -1 | D183: =LOOKUP(C183,MassDataLink!$A$4:$A$7777,MassDataLink!$B$4:$B$7777) ->  | E183: =LOOKUP(C183,MassDataLink!$A$4:$A$7777,MassDataLink!$C$4:$C$7777) ->  | F183: =LOOKUP(C183,MassDataLink!$A$4:$A$7777,MassDataLink!$D$4:$D$7777) ->  | G183: =LOOKUP(C183,MassDataLink!$A$4:$A$7777,MassDataLink!$E$4:$E$7777) ->  | H183: =LOOKUP(C183,MassDataLink!$A$4:$A$7777,MassDataLink!$F$4:$F$7777) ->  | J183: 70 | K183: - - - | L183: - - -
B184: 71 | C184: -1 | D184: =LOOKUP(C184,MassDataLink!$A$4:$A$7777,MassDataLink!$B$4:$B$7777) ->  | E184: =LOOKUP(C184,MassDataLink!$A$4:$A$7777,MassDataLink!$C$4:$C$7777) ->  | F184: =LOOKUP(C184,MassDataLink!$A$4:$A$7777,MassDataLink!$D$4:$D$7777) ->  | G184: =LOOKUP(C184,MassDataLink!$A$4:$A$7777,MassDataLink!$E$4:$E$7777) ->  | H184: =LOOKUP(C184,MassDataLink!$A$4:$A$7777,MassDataLink!$F$4:$F$7777) ->  | J184: 71 | K184: - - - | L184: - - -
B185: 72 | C185: -1 | D185: =LOOKUP(C185,MassDataLink!$A$4:$A$7777,MassDataLink!$B$4:$B$7777) ->  | E185: =LOOKUP(C185,MassDataLink!$A$4:$A$7777,MassDataLink!$C$4:$C$7777) ->  | F185: =LOOKUP(C185,MassDataLink!$A$4:$A$7777,MassDataLink!$D$4:$D$7777) ->  | G185: =LOOKUP(C185,MassDataLink!$A$4:$A$7777,MassDataLink!$E$4:$E$7777) ->  | H185: =LOOKUP(C185,MassDataLink!$A$4:$A$7777,MassDataLink!$F$4:$F$7777) ->  | J185: 72 | K185: - - - | L185: - - -
B186: 73 | C186: -1 | D186: =LOOKUP(C186,MassDataLink!$A$4:$A$7777,MassDataLink!$B$4:$B$7777) ->  | E186: =LOOKUP(C186,MassDataLink!$A$4:$A$7777,MassDataLink!$C$4:$C$7777) ->  | F186: =LOOKUP(C186,MassDataLink!$A$4:$A$7777,MassDataLink!$D$4:$D$7777) ->  | G186: =LOOKUP(C186,MassDataLink!$A$4:$A$7777,MassDataLink!$E$4:$E$7777) ->  | H186: =LOOKUP(C186,MassDataLink!$A$4:$A$7777,MassDataLink!$F$4:$F$7777) ->  | J186: 73 | K186: - - - | L186: - - -
B187: 74 | C187: -1 | D187: =LOOKUP(C187,MassDataLink!$A$4:$A$7777,MassDataLink!$B$4:$B$7777) ->  | E187: =LOOKUP(C187,MassDataLink!$A$4:$A$7777,MassDataLink!$C$4:$C$7777) ->  | F187: =LOOKUP(C187,MassDataLink!$A$4:$A$7777,MassDataLink!$D$4:$D$7777) ->  | G187: =LOOKUP(C187,MassDataLink!$A$4:$A$7777,MassDataLink!$E$4:$E$7777) ->  | H187: =LOOKUP(C187,MassDataLink!$A$4:$A$7777,MassDataLink!$F$4:$F$7777) ->  | J187: 74 | K187: - - - | L187: - - -
B188: 75 | C188: -1 | D188: =LOOKUP(C188,MassDataLink!$A$4:$A$7777,MassDataLink!$B$4:$B$7777) ->  | E188: =LOOKUP(C188,MassDataLink!$A$4:$A$7777,MassDataLink!$C$4:$C$7777) ->  | F188: =LOOKUP(C188,MassDataLink!$A$4:$A$7777,MassDataLink!$D$4:$D$7777) ->  | G188: =LOOKUP(C188,MassDataLink!$A$4:$A$7777,MassDataLink!$E$4:$E$7777) ->  | H188: =LOOKUP(C188,MassDataLink!$A$4:$A$7777,MassDataLink!$F$4:$F$7777) ->  | J188: 75 | K188: - - - | L188: - - -
B189: 76 | C189: -1 | D189: =LOOKUP(C189,MassDataLink!$A$4:$A$7777,MassDataLink!$B$4:$B$7777) ->  | E189: =LOOKUP(C189,MassDataLink!$A$4:$A$7777,MassDataLink!$C$4:$C$7777) ->  | F189: =LOOKUP(C189,MassDataLink!$A$4:$A$7777,MassDataLink!$D$4:$D$7777) ->  | G189: =LOOKUP(C189,MassDataLink!$A$4:$A$7777,MassDataLink!$E$4:$E$7777) ->  | H189: =LOOKUP(C189,MassDataLink!$A$4:$A$7777,MassDataLink!$F$4:$F$7777) ->  | J189: 76 | K189: - - - | L189: - - -
B190: 77 | C190: -1 | D190: =LOOKUP(C190,MassDataLink!$A$4:$A$7777,MassDataLink!$B$4:$B$7777) ->  | E190: =LOOKUP(C190,MassDataLink!$A$4:$A$7777,MassDataLink!$C$4:$C$7777) ->  | F190: =LOOKUP(C190,MassDataLink!$A$4:$A$7777,MassDataLink!$D$4:$D$7777) ->  | G190: =LOOKUP(C190,MassDataLink!$A$4:$A$7777,MassDataLink!$E$4:$E$7777) ->  | H190: =LOOKUP(C190,MassDataLink!$A$4:$A$7777,MassDataLink!$F$4:$F$7777) ->  | J190: 77 | K190: - - - | L190: - - -
B191: 78 | C191: -1 | D191: =LOOKUP(C191,MassDataLink!$A$4:$A$7777,MassDataLink!$B$4:$B$7777) ->  | E191: =LOOKUP(C191,MassDataLink!$A$4:$A$7777,MassDataLink!$C$4:$C$7777) ->  | F191: =LOOKUP(C191,MassDataLink!$A$4:$A$7777,MassDataLink!$D$4:$D$7777) ->  | G191: =LOOKUP(C191,MassDataLink!$A$4:$A$7777,MassDataLink!$E$4:$E$7777) ->  | H191: =LOOKUP(C191,MassDataLink!$A$4:$A$7777,MassDataLink!$F$4:$F$7777) ->  | J191: 78 | K191: - - - | L191: - - -
B192: 79 | C192: -1 | D192: =LOOKUP(C192,MassDataLink!$A$4:$A$7777,MassDataLink!$B$4:$B$7777) ->  | E192: =LOOKUP(C192,MassDataLink!$A$4:$A$7777,MassDataLink!$C$4:$C$7777) ->  | F192: =LOOKUP(C192,MassDataLink!$A$4:$A$7777,MassDataLink!$D$4:$D$7777) ->  | G192: =LOOKUP(C192,MassDataLink!$A$4:$A$7777,MassDataLink!$E$4:$E$7777) ->  | H192: =LOOKUP(C192,MassDataLink!$A$4:$A$7777,MassDataLink!$F$4:$F$7777) ->  | J192: 79 | K192: - - - | L192: - - -
B193: 80 | C193: -1 | D193: =LOOKUP(C193,MassDataLink!$A$4:$A$7777,MassDataLink!$B$4:$B$7777) ->  | E193: =LOOKUP(C193,MassDataLink!$A$4:$A$7777,MassDataLink!$C$4:$C$7777) ->  | F193: =LOOKUP(C193,MassDataLink!$A$4:$A$7777,MassDataLink!$D$4:$D$7777) ->  | G193: =LOOKUP(C193,MassDataLink!$A$4:$A$7777,MassDataLink!$E$4:$E$7777) ->  | H193: =LOOKUP(C193,MassDataLink!$A$4:$A$7777,MassDataLink!$F$4:$F$7777) ->  | J193: 80 | K193: - - - | L193: - - -
B194: 81 | C194: -1 | D194: =LOOKUP(C194,MassDataLink!$A$4:$A$7777,MassDataLink!$B$4:$B$7777) ->  | E194: =LOOKUP(C194,MassDataLink!$A$4:$A$7777,MassDataLink!$C$4:$C$7777) ->  | F194: =LOOKUP(C194,MassDataLink!$A$4:$A$7777,MassDataLink!$D$4:$D$7777) ->  | G194: =LOOKUP(C194,MassDataLink!$A$4:$A$7777,MassDataLink!$E$4:$E$7777) ->  | H194: =LOOKUP(C194,MassDataLink!$A$4:$A$7777,MassDataLink!$F$4:$F$7777) ->  | J194: 81 | K194: - - - | L194: - - -
B195: 82 | C195: -1 | D195: =LOOKUP(C195,MassDataLink!$A$4:$A$7777,MassDataLink!$B$4:$B$7777) ->  | E195: =LOOKUP(C195,MassDataLink!$A$4:$A$7777,MassDataLink!$C$4:$C$7777) ->  | F195: =LOOKUP(C195,MassDataLink!$A$4:$A$7777,MassDataLink!$D$4:$D$7777) ->  | G195: =LOOKUP(C195,MassDataLink!$A$4:$A$7777,MassDataLink!$E$4:$E$7777) ->  | H195: =LOOKUP(C195,MassDataLink!$A$4:$A$7777,MassDataLink!$F$4:$F$7777) ->  | J195: 82 | K195: - - - | L195: - - -
B196: 83 | C196: -1 | D196: =LOOKUP(C196,MassDataLink!$A$4:$A$7777,MassDataLink!$B$4:$B$7777) ->  | E196: =LOOKUP(C196,MassDataLink!$A$4:$A$7777,MassDataLink!$C$4:$C$7777) ->  | F196: =LOOKUP(C196,MassDataLink!$A$4:$A$7777,MassDataLink!$D$4:$D$7777) ->  | G196: =LOOKUP(C196,MassDataLink!$A$4:$A$7777,MassDataLink!$E$4:$E$7777) ->  | H196: =LOOKUP(C196,MassDataLink!$A$4:$A$7777,MassDataLink!$F$4:$F$7777) ->  | J196: 83 | K196: - - - | L196: - - -
B197: 84 | C197: -1 | D197: =LOOKUP(C197,MassDataLink!$A$4:$A$7777,MassDataLink!$B$4:$B$7777) ->  | E197: =LOOKUP(C197,MassDataLink!$A$4:$A$7777,MassDataLink!$C$4:$C$7777) ->  | F197: =LOOKUP(C197,MassDataLink!$A$4:$A$7777,MassDataLink!$D$4:$D$7777) ->  | G197: =LOOKUP(C197,MassDataLink!$A$4:$A$7777,MassDataLink!$E$4:$E$7777) ->  | H197: =LOOKUP(C197,MassDataLink!$A$4:$A$7777,MassDataLink!$F$4:$F$7777) ->  | J197: 84 | K197: - - - | L197: - - -
B198: 85 | C198: -1 | D198: =LOOKUP(C198,MassDataLink!$A$4:$A$7777,MassDataLink!$B$4:$B$7777) ->  | E198: =LOOKUP(C198,MassDataLink!$A$4:$A$7777,MassDataLink!$C$4:$C$7777) ->  | F198: =LOOKUP(C198,MassDataLink!$A$4:$A$7777,MassDataLink!$D$4:$D$7777) ->  | G198: =LOOKUP(C198,MassDataLink!$A$4:$A$7777,MassDataLink!$E$4:$E$7777) ->  | H198: =LOOKUP(C198,MassDataLink!$A$4:$A$7777,MassDataLink!$F$4:$F$7777) ->  | J198: 85 | K198: - - - | L198: - - -
B199: 86 | C199: -1 | D199: =LOOKUP(C199,MassDataLink!$A$4:$A$7777,MassDataLink!$B$4:$B$7777) ->  | E199: =LOOKUP(C199,MassDataLink!$A$4:$A$7777,MassDataLink!$C$4:$C$7777) ->  | F199: =LOOKUP(C199,MassDataLink!$A$4:$A$7777,MassDataLink!$D$4:$D$7777) ->  | G199: =LOOKUP(C199,MassDataLink!$A$4:$A$7777,MassDataLink!$E$4:$E$7777) ->  | H199: =LOOKUP(C199,MassDataLink!$A$4:$A$7777,MassDataLink!$F$4:$F$7777) ->  | J199: 86 | K199: - - - | L199: - - -
B200: 87 | C200: -1 | D200: =LOOKUP(C200,MassDataLink!$A$4:$A$7777,MassDataLink!$B$4:$B$7777) ->  | E200: =LOOKUP(C200,MassDataLink!$A$4:$A$7777,MassDataLink!$C$4:$C$7777) ->  | F200: =LOOKUP(C200,MassDataLink!$A$4:$A$7777,MassDataLink!$D$4:$D$7777) ->  | G200: =LOOKUP(C200,MassDataLink!$A$4:$A$7777,MassDataLink!$E$4:$E$7777) ->  | H200: =LOOKUP(C200,MassDataLink!$A$4:$A$7777,MassDataLink!$F$4:$F$7777) ->  | J200: 87 | K200: - - - | L200: - - -
B201: 88 | C201: -1 | D201: =LOOKUP(C201,MassDataLink!$A$4:$A$7777,MassDataLink!$B$4:$B$7777) ->  | E201: =LOOKUP(C201,MassDataLink!$A$4:$A$7777,MassDataLink!$C$4:$C$7777) ->  | F201: =LOOKUP(C201,MassDataLink!$A$4:$A$7777,MassDataLink!$D$4:$D$7777) ->  | G201: =LOOKUP(C201,MassDataLink!$A$4:$A$7777,MassDataLink!$E$4:$E$7777) ->  | H201: =LOOKUP(C201,MassDataLink!$A$4:$A$7777,MassDataLink!$F$4:$F$7777) ->  | J201: 88 | K201: - - - | L201: - - -
B202: 89 | C202: -1 | D202: =LOOKUP(C202,MassDataLink!$A$4:$A$7777,MassDataLink!$B$4:$B$7777) ->  | E202: =LOOKUP(C202,MassDataLink!$A$4:$A$7777,MassDataLink!$C$4:$C$7777) ->  | F202: =LOOKUP(C202,MassDataLink!$A$4:$A$7777,MassDataLink!$D$4:$D$7777) ->  | G202: =LOOKUP(C202,MassDataLink!$A$4:$A$7777,MassDataLink!$E$4:$E$7777) ->  | H202: =LOOKUP(C202,MassDataLink!$A$4:$A$7777,MassDataLink!$F$4:$F$7777) ->  | J202: 89 | K202: - - - | L202: - - -
B203: 90 | C203: -1 | D203: =LOOKUP(C203,MassDataLink!$A$4:$A$7777,MassDataLink!$B$4:$B$7777) ->  | E203: =LOOKUP(C203,MassDataLink!$A$4:$A$7777,MassDataLink!$C$4:$C$7777) ->  | F203: =LOOKUP(C203,MassDataLink!$A$4:$A$7777,MassDataLink!$D$4:$D$7777) ->  | G203: =LOOKUP(C203,MassDataLink!$A$4:$A$7777,MassDataLink!$E$4:$E$7777) ->  | H203: =LOOKUP(C203,MassDataLink!$A$4:$A$7777,MassDataLink!$F$4:$F$7777) ->  | J203: 90 | K203: - - - | L203: - - -
B204: 91 | C204: -1 | D204: =LOOKUP(C204,MassDataLink!$A$4:$A$7777,MassDataLink!$B$4:$B$7777) ->  | E204: =LOOKUP(C204,MassDataLink!$A$4:$A$7777,MassDataLink!$C$4:$C$7777) ->  | F204: =LOOKUP(C204,MassDataLink!$A$4:$A$7777,MassDataLink!$D$4:$D$7777) ->  | G204: =LOOKUP(C204,MassDataLink!$A$4:$A$7777,MassDataLink!$E$4:$E$7777) ->  | H204: =LOOKUP(C204,MassDataLink!$A$4:$A$7777,MassDataLink!$F$4:$F$7777) ->  | J204: 91 | K204: - - - | L204: - - -
B205: 92 | C205: -1 | D205: =LOOKUP(C205,MassDataLink!$A$4:$A$7777,MassDataLink!$B$4:$B$7777) ->  | E205: =LOOKUP(C205,MassDataLink!$A$4:$A$7777,MassDataLink!$C$4:$C$7777) ->  | F205: =LOOKUP(C205,MassDataLink!$A$4:$A$7777,MassDataLink!$D$4:$D$7777) ->  | G205: =LOOKUP(C205,MassDataLink!$A$4:$A$7777,MassDataLink!$E$4:$E$7777) ->  | H205: =LOOKUP(C205,MassDataLink!$A$4:$A$7777,MassDataLink!$F$4:$F$7777) ->  | J205: 92 | K205: - - - | L205: - - -
... 133 more rows

Sheet ModelData (hidden)
B1: 1 | C1: 6 | D1: 7 | E1: 8 | F1: 10 | G1: 11 | H1: 12 | I1: 13 | J1: 14 | K1: 15 | L1: 16 | M1: 17 | N1: 18 | O1: 19 | P1: 20 | Q1: 21 | R1: 22 | S1: 23 | T1: 24 | U1: 25 | V1: 26 | W1: 27 | X1: 28 | Y1: 29 | Z1: 30 | AA1: 31 | AB1: 32 | AC1: 33
A2: データ№ | B2: ｱｸﾁｭｴｰﾀ型式 | C2: 最小ｽﾄﾛｰｸ | D2: 最大ｽﾄﾛｰｸ | E2: 動作種別 | F2: リンク[0] | I2: リンク[1] | L2: リンク[2] | O2: リンク[3] | R2: リンク[4] | U2: リンク[5] | X2: リンク[6] | AA2: リンク[7]
A3: 0 | C3: ㎜ | D3: ㎜ | E3: 1/0:回/直 | F3: ﾘｰﾄﾞ | G3: ｽﾄﾛｰｸ | H3: 搬送負荷 | I3: ﾘｰﾄﾞ | J3: ｽﾄﾛｰｸ | K3: 搬送負荷 | L3: ﾘｰﾄﾞ | M3: ｽﾄﾛｰｸ | N3: 搬送負荷 | O3: ﾘｰﾄﾞ | P3: ｽﾄﾛｰｸ | Q3: 搬送負荷 | R3: ﾘｰﾄﾞ | S3: ｽﾄﾛｰｸ | T3: 搬送負荷 | U3: ﾘｰﾄﾞ | V3: ｽﾄﾛｰｸ | W3: 搬送負荷 | X3: ﾘｰﾄﾞ | Y3: ｽﾄﾛｰｸ | Z3: 搬送負荷 | AA3: ﾘｰﾄﾞ | AB3: ｽﾄﾛｰｸ | AC3: 搬送負荷
A4: 1 | B4: EC-S6L | C4: 50 | D4: 400 | E4: 0 | F4: 1 | G4: 1 | H4: 1 | I4: -1 | J4: -1 | K4: -1 | L4: -1 | M4: -1 | N4: -1 | O4: -1 | P4: -1 | Q4: -1 | R4: -1 | S4: -1 | T4: -1 | U4: -1 | V4: -1 | W4: -1 | X4: -1 | Y4: -1 | Z4: -1 | AA4: -1 | AB4: -1 | AC4: -1
A5: 2 | B5: EC-S6M | C5: 50 | D5: 400 | E5: 0 | F5: 2 | G5: 6 | H5: 38 | I5: -1 | J5: -1 | K5: -1 | L5: -1 | M5: -1 | N5: -1 | O5: -1 | P5: -1 | Q5: -1 | R5: -1 | S5: -1 | T5: -1 | U5: -1 | V5: -1 | W5: -1 | X5: -1 | Y5: -1 | Z5: -1 | AA5: -1 | AB5: -1 | AC5: -1
A6: 3 | B6: EC-S6H | C6: 50 | D6: 400 | E6: 0 | F6: 3 | G6: 11 | H6: 75 | I6: -1 | J6: -1 | K6: -1 | L6: -1 | M6: -1 | N6: -1 | O6: -1 | P6: -1 | Q6: -1 | R6: -1 | S6: -1 | T6: -1 | U6: -1 | V6: -1 | W6: -1 | X6: -1 | Y6: -1 | Z6: -1 | AA6: -1 | AB6: -1 | AC6: -1
A7: 4 | B7: EC-S6S | C7: 50 | D7: 400 | E7: 0 | F7: 4 | G7: 15 | H7: 101 | I7: -1 | J7: -1 | K7: -1 | L7: -1 | M7: -1 | N7: -1 | O7: -1 | P7: -1 | Q7: -1 | R7: -1 | S7: -1 | T7: -1 | U7: -1 | V7: -1 | W7: -1 | X7: -1 | Y7: -1 | Z7: -1 | AA7: -1 | AB7: -1 | AC7: -1
A8: 5 | B8: EC-S7L | C8: 50 | D8: 500 | E8: 0 | F8: 5 | G8: 18 | H8: 117 | I8: -1 | J8: -1 | K8: -1 | L8: -1 | M8: -1 | N8: -1 | O8: -1 | P8: -1 | Q8: -1 | R8: -1 | S8: -1 | T8: -1 | U8: -1 | V8: -1 | W8: -1 | X8: -1 | Y8: -1 | Z8: -1 | AA8: -1 | AB8: -1 | AC8: -1
A9: 6 | B9: EC-S7M | C9: 50 | D9: 500 | E9: 0 | F9: 6 | G9: 23 | H9: 176 | I9: -1 | J9: -1 | K9: -1 | L9: -1 | M9: -1 | N9: -1 | O9: -1 | P9: -1 | Q9: -1 | R9: -1 | S9: -1 | T9: -1 | U9: -1 | V9: -1 | W9: -1 | X9: -1 | Y9: -1 | Z9: -1 | AA9: -1 | AB9: -1 | AC9: -1
A10: 7 | B10: EC-S7H | C10: 50 | D10: 500 | E10: 0 | F10: 7 | G10: 28 | H10: 240 | I10: -1 | J10: -1 | K10: -1 | L10: -1 | M10: -1 | N10: -1 | O10: -1 | P10: -1 | Q10: -1 | R10: -1 | S10: -1 | T10: -1 | U10: -1 | V10: -1 | W10: -1 | X10: -1 | Y10: -1 | Z10: -1 | AA10: -1 | AB10: -1 | AC10: -1
A11: 8 | B11: EC-S7S | C11: 50 | D11: 500 | E11: 0 | F11: 8 | G11: 33 | H11: 292 | I11: -1 | J11: -1 | K11: -1 | L11: -1 | M11: -1 | N11: -1 | O11: -1 | P11: -1 | Q11: -1 | R11: -1 | S11: -1 | T11: -1 | U11: -1 | V11: -1 | W11: -1 | X11: -1 | Y11: -1 | Z11: -1 | AA11: -1 | AB11: -1 | AC11: -1
A12: 9 | B12: EC-R6L | C12: 50 | D12: 300 | E12: 0 | F12: 9 | G12: 37 | H12: 328 | I12: -1 | J12: -1 | K12: -1 | L12: -1 | M12: -1 | N12: -1 | O12: -1 | P12: -1 | Q12: -1 | R12: -1 | S12: -1 | T12: -1 | U12: -1 | V12: -1 | W12: -1 | X12: -1 | Y12: -1 | Z12: -1 | AA12: -1 | AB12: -1 | AC12: -1
A13: 10 | B13: EC-R6M | C13: 50 | D13: 300 | E13: 0 | F13: 10 | G13: 40 | H13: 394 | I13: -1 | J13: -1 | K13: -1 | L13: -1 | M13: -1 | N13: -1 | O13: -1 | P13: -1 | Q13: -1 | R13: -1 | S13: -1 | T13: -1 | U13: -1 | V13: -1 | W13: -1 | X13: -1 | Y13: -1 | Z13: -1 | AA13: -1 | AB13: -1 | AC13: -1
A14: 11 | B14: EC-R6H | C14: 50 | D14: 300 | E14: 0 | F14: 11 | G14: 43 | H14: 444 | I14: -1 | J14: -1 | K14: -1 | L14: -1 | M14: -1 | N14: -1 | O14: -1 | P14: -1 | Q14: -1 | R14: -1 | S14: -1 | T14: -1 | U14: -1 | V14: -1 | W14: -1 | X14: -1 | Y14: -1 | Z14: -1 | AA14: -1 | AB14: -1 | AC14: -1
A15: 12 | B15: EC-R6S | C15: 50 | D15: 300 | E15: 0 | F15: 12 | G15: 45 | H15: 473 | I15: -1 | J15: -1 | K15: -1 | L15: -1 | M15: -1 | N15: -1 | O15: -1 | P15: -1 | Q15: -1 | R15: -1 | S15: -1 | T15: -1 | U15: -1 | V15: -1 | W15: -1 | X15: -1 | Y15: -1 | Z15: -1 | AA15: -1 | AB15: -1 | AC15: -1
A16: 13 | B16: EC-R7L | C16: 50 | D16: 300 | E16: 0 | F16: 13 | G16: 46 | H16: 480 | I16: -1 | J16: -1 | K16: -1 | L16: -1 | M16: -1 | N16: -1 | O16: -1 | P16: -1 | Q16: -1 | R16: -1 | S16: -1 | T16: -1 | U16: -1 | V16: -1 | W16: -1 | X16: -1 | Y16: -1 | Z16: -1 | AA16: -1 | AB16: -1 | AC16: -1
A17: 14 | B17: EC-R7M | C17: 50 | D17: 300 | E17: 0 | F17: 14 | G17: 47 | H17: 564 | I17: -1 | J17: -1 | K17: -1 | L17: -1 | M17: -1 | N17: -1 | O17: -1 | P17: -1 | Q17: -1 | R17: -1 | S17: -1 | T17: -1 | U17: -1 | V17: -1 | W17: -1 | X17: -1 | Y17: -1 | Z17: -1 | AA17: -1 | AB17: -1 | AC17: -1
A18: 15 | B18: EC-R7H | C18: 50 | D18: 300 | E18: 0 | F18: 15 | G18: 48 | H18: 642 | I18: -1 | J18: -1 | K18: -1 | L18: -1 | M18: -1 | N18: -1 | O18: -1 | P18: -1 | Q18: -1 | R18: -1 | S18: -1 | T18: -1 | U18: -1 | V18: -1 | W18: -1 | X18: -1 | Y18: -1 | Z18: -1 | AA18: -1 | AB18: -1 | AC18: -1
A19: 16 | B19: EC-R7S | C19: 50 | D19: 300 | E19: 0 | F19: 16 | G19: 49 | H19: 700 | I19: -1 | J19: -1 | K19: -1 | L19: -1 | M19: -1 | N19: -1 | O19: -1 | P19: -1 | Q19: -1 | R19: -1 | S19: -1 | T19: -1 | U19: -1 | V19: -1 | W19: -1 | X19: -1 | Y19: -1 | Z19: -1 | AA19: -1 | AB19: -1 | AC19: -1
A20: 17 | B20: EC-RR6L | C20: 65 | D20: 315 | E20: 0 | F20: 17 | G20: 50 | H20: 328 | I20: -1 | J20: -1 | K20: -1 | L20: -1 | M20: -1 | N20: -1 | O20: -1 | P20: -1 | Q20: -1 | R20: -1 | S20: -1 | T20: -1 | U20: -1 | V20: -1 | W20: -1 | X20: -1 | Y20: -1 | Z20: -1 | AA20: -1 | AB20: -1 | AC20: -1
A21: 18 | B21: EC-RR6M | C21: 65 | D21: 315 | E21: 0 | F21: 18 | G21: 53 | H21: 394 | I21: -1 | J21: -1 | K21: -1 | L21: -1 | M21: -1 | N21: -1 | O21: -1 | P21: -1 | Q21: -1 | R21: -1 | S21: -1 | T21: -1 | U21: -1 | V21: -1 | W21: -1 | X21: -1 | Y21: -1 | Z21: -1 | AA21: -1 | AB21: -1 | AC21: -1
A22: 19 | B22: EC-RR6H | C22: 65 | D22: 315 | E22: 0 | F22: 19 | G22: 56 | H22: 444 | I22: -1 | J22: -1 | K22: -1 | L22: -1 | M22: -1 | N22: -1 | O22: -1 | P22: -1 | Q22: -1 | R22: -1 | S22: -1 | T22: -1 | U22: -1 | V22: -1 | W22: -1 | X22: -1 | Y22: -1 | Z22: -1 | AA22: -1 | AB22: -1 | AC22: -1
A23: 20 | B23: EC-RR6S | C23: 65 | D23: 315 | E23: 0 | F23: 20 | G23: 59 | H23: 473 | I23: -1 | J23: -1 | K23: -1 | L23: -1 | M23: -1 | N23: -1 | O23: -1 | P23: -1 | Q23: -1 | R23: -1 | S23: -1 | T23: -1 | U23: -1 | V23: -1 | W23: -1 | X23: -1 | Y23: -1 | Z23: -1 | AA23: -1 | AB23: -1 | AC23: -1
A24: 21 | B24: EC-RR7L | C24: 65 | D24: 315 | E24: 0 | F24: 21 | G24: 60 | H24: 480 | I24: -1 | J24: -1 | K24: -1 | L24: -1 | M24: -1 | N24: -1 | O24: -1 | P24: -1 | Q24: -1 | R24: -1 | S24: -1 | T24: -1 | U24: -1 | V24: -1 | W24: -1 | X24: -1 | Y24: -1 | Z24: -1 | AA24: -1 | AB24: -1 | AC24: -1
A25: 22 | B25: EC-RR7M | C25: 65 | D25: 315 | E25: 0 | F25: 22 | G25: 61 | H25: 564 | I25: -1 | J25: -1 | K25: -1 | L25: -1 | M25: -1 | N25: -1 | O25: -1 | P25: -1 | Q25: -1 | R25: -1 | S25: -1 | T25: -1 | U25: -1 | V25: -1 | W25: -1 | X25: -1 | Y25: -1 | Z25: -1 | AA25: -1 | AB25: -1 | AC25: -1
A26: 23 | B26: EC-RR7H | C26: 65 | D26: 315 | E26: 0 | F26: 23 | G26: 62 | H26: 642 | I26: -1 | J26: -1 | K26: -1 | L26: -1 | M26: -1 | N26: -1 | O26: -1 | P26: -1 | Q26: -1 | R26: -1 | S26: -1 | T26: -1 | U26: -1 | V26: -1 | W26: -1 | X26: -1 | Y26: -1 | Z26: -1 | AA26: -1 | AB26: -1 | AC26: -1
A27: 24 | B27: EC-RR7S | C27: 65 | D27: 315 | E27: 0 | F27: 24 | G27: 63 | H27: 700 | I27: -1 | J27: -1 | K27: -1 | L27: -1 | M27: -1 | N27: -1 | O27: -1 | P27: -1 | Q27: -1 | R27: -1 | S27: -1 | T27: -1 | U27: -1 | V27: -1 | W27: -1 | X27: -1 | Y27: -1 | Z27: -1 | AA27: -1 | AB27: -1 | AC27: -1
A28: 25 | B28: EC-R6LW | C28: 50 | D28: 300 | E28: 0 | F28: 25 | G28: 64 | H28: 328 | I28: -1 | J28: -1 | K28: -1 | L28: -1 | M28: -1 | N28: -1 | O28: -1 | P28: -1 | Q28: -1 | R28: -1 | S28: -1 | T28: -1 | U28: -1 | V28: -1 | W28: -1 | X28: -1 | Y28: -1 | Z28: -1 | AA28: -1 | AB28: -1 | AC28: -1
A29: 26 | B29: EC-R6MW | C29: 50 | D29: 300 | E29: 0 | F29: 26 | G29: 67 | H29: 394 | I29: -1 | J29: -1 | K29: -1 | L29: -1 | M29: -1 | N29: -1 | O29: -1 | P29: -1 | Q29: -1 | R29: -1 | S29: -1 | T29: -1 | U29: -1 | V29: -1 | W29: -1 | X29: -1 | Y29: -1 | Z29: -1 | AA29: -1 | AB29: -1 | AC29: -1
A30: 27 | B30: EC-R6HW | C30: 50 | D30: 300 | E30: 0 | F30: 27 | G30: 70 | H30: 444 | I30: -1 | J30: -1 | K30: -1 | L30: -1 | M30: -1 | N30: -1 | O30: -1 | P30: -1 | Q30: -1 | R30: -1 | S30: -1 | T30: -1 | U30: -1 | V30: -1 | W30: -1 | X30: -1 | Y30: -1 | Z30: -1 | AA30: -1 | AB30: -1 | AC30: -1
A31: 28 | B31: EC-R6SW | C31: 50 | D31: 300 | E31: 0 | F31: 28 | G31: 72 | H31: 473 | I31: -1 | J31: -1 | K31: -1 | L31: -1 | M31: -1 | N31: -1 | O31: -1 | P31: -1 | Q31: -1 | R31: -1 | S31: -1 | T31: -1 | U31: -1 | V31: -1 | W31: -1 | X31: -1 | Y31: -1 | Z31: -1 | AA31: -1 | AB31: -1 | AC31: -1
A32: 29 | B32: EC-R7LW | C32: 50 | D32: 300 | E32: 0 | F32: 29 | G32: 73 | H32: 480 | I32: -1 | J32: -1 | K32: -1 | L32: -1 | M32: -1 | N32: -1 | O32: -1 | P32: -1 | Q32: -1 | R32: -1 | S32: -1 | T32: -1 | U32: -1 | V32: -1 | W32: -1 | X32: -1 | Y32: -1 | Z32: -1 | AA32: -1 | AB32: -1 | AC32: -1
A33: 30 | B33: EC-R7MW | C33: 50 | D33: 300 | E33: 0 | F33: 30 | G33: 74 | H33: 564 | I33: -1 | J33: -1 | K33: -1 | L33: -1 | M33: -1 | N33: -1 | O33: -1 | P33: -1 | Q33: -1 | R33: -1 | S33: -1 | T33: -1 | U33: -1 | V33: -1 | W33: -1 | X33: -1 | Y33: -1 | Z33: -1 | AA33: -1 | AB33: -1 | AC33: -1
A34: 31 | B34: EC-R7HW | C34: 50 | D34: 300 | E34: 0 | F34: 31 | G34: 75 | H34: 642 | I34: -1 | J34: -1 | K34: -1 | L34: -1 | M34: -1 | N34: -1 | O34: -1 | P34: -1 | Q34: -1 | R34: -1 | S34: -1 | T34: -1 | U34: -1 | V34: -1 | W34: -1 | X34: -1 | Y34: -1 | Z34: -1 | AA34: -1 | AB34: -1 | AC34: -1
A35: 32 | B35: EC-R7SW | C35: 50 | D35: 300 | E35: 0 | F35: 32 | G35: 76 | H35: 700 | I35: -1 | J35: -1 | K35: -1 | L35: -1 | M35: -1 | N35: -1 | O35: -1 | P35: -1 | Q35: -1 | R35: -1 | S35: -1 | T35: -1 | U35: -1 | V35: -1 | W35: -1 | X35: -1 | Y35: -1 | Z35: -1 | AA35: -1 | AB35: -1 | AC35: -1
A36: 33 | B36: EC-S6LH | C36: 50 | D36: 400 | E36: 0 | F36: 33 | G36: 77 | H36: 1 | I36: -1 | J36: -1 | K36: -1 | L36: -1 | M36: -1 | N36: -1 | O36: -1 | P36: -1 | Q36: -1 | R36: -1 | S36: -1 | T36: -1 | U36: -1 | V36: -1 | W36: -1 | X36: -1 | Y36: -1 | Z36: -1 | AA36: -1 | AB36: -1 | AC36: -1
A37: 34 | B37: EC-S6MH | C37: 50 | D37: 400 | E37: 0 | F37: 34 | G37: 82 | H37: 38 | I37: -1 | J37: -1 | K37: -1 | L37: -1 | M37: -1 | N37: -1 | O37: -1 | P37: -1 | Q37: -1 | R37: -1 | S37: -1 | T37: -1 | U37: -1 | V37: -1 | W37: -1 | X37: -1 | Y37: -1 | Z37: -1 | AA37: -1 | AB37: -1 | AC37: -1
A38: 35 | B38: EC-S6HH | C38: 50 | D38: 400 | E38: 0 | F38: 35 | G38: 87 | H38: 75 | I38: -1 | J38: -1 | K38: -1 | L38: -1 | M38: -1 | N38: -1 | O38: -1 | P38: -1 | Q38: -1 | R38: -1 | S38: -1 | T38: -1 | U38: -1 | V38: -1 | W38: -1 | X38: -1 | Y38: -1 | Z38: -1 | AA38: -1 | AB38: -1 | AC38: -1
A39: 36 | B39: EC-S6SH | C39: 50 | D39: 400 | E39: 0 | F39: 36 | G39: 91 | H39: 101 | I39: -1 | J39: -1 | K39: -1 | L39: -1 | M39: -1 | N39: -1 | O39: -1 | P39: -1 | Q39: -1 | R39: -1 | S39: -1 | T39: -1 | U39: -1 | V39: -1 | W39: -1 | X39: -1 | Y39: -1 | Z39: -1 | AA39: -1 | AB39: -1 | AC39: -1
A40: 37 | B40: EC-S7LH | C40: 50 | D40: 500 | E40: 0 | F40: 37 | G40: 94 | H40: 117 | I40: -1 | J40: -1 | K40: -1 | L40: -1 | M40: -1 | N40: -1 | O40: -1 | P40: -1 | Q40: -1 | R40: -1 | S40: -1 | T40: -1 | U40: -1 | V40: -1 | W40: -1 | X40: -1 | Y40: -1 | Z40: -1 | AA40: -1 | AB40: -1 | AC40: -1
A41: 38 | B41: EC-S7MH | C41: 50 | D41: 500 | E41: 0 | F41: 38 | G41: 99 | H41: 176 | I41: -1 | J41: -1 | K41: -1 | L41: -1 | M41: -1 | N41: -1 | O41: -1 | P41: -1 | Q41: -1 | R41: -1 | S41: -1 | T41: -1 | U41: -1 | V41: -1 | W41: -1 | X41: -1 | Y41: -1 | Z41: -1 | AA41: -1 | AB41: -1 | AC41: -1
A42: 39 | B42: EC-S7HH | C42: 50 | D42: 500 | E42: 0 | F42: 39 | G42: 104 | H42: 240 | I42: -1 | J42: -1 | K42: -1 | L42: -1 | M42: -1 | N42: -1 | O42: -1 | P42: -1 | Q42: -1 | R42: -1 | S42: -1 | T42: -1 | U42: -1 | V42: -1 | W42: -1 | X42: -1 | Y42: -1 | Z42: -1 | AA42: -1 | AB42: -1 | AC42: -1
A43: 40 | B43: EC-S7SH | C43: 50 | D43: 500 | E43: 0 | F43: 40 | G43: 109 | H43: 292 | I43: -1 | J43: -1 | K43: -1 | L43: -1 | M43: -1 | N43: -1 | O43: -1 | P43: -1 | Q43: -1 | R43: -1 | S43: -1 | T43: -1 | U43: -1 | V43: -1 | W43: -1 | X43: -1 | Y43: -1 | Z43: -1 | AA43: -1 | AB43: -1 | AC43: -1
A44: 41 | B44: EC-RR6LH | C44: 50 | D44: 300 | E44: 0 | F44: 41 | G44: 113 | H44: 725 | I44: -1 | J44: -1 | K44: -1 | L44: -1 | M44: -1 | N44: -1 | O44: -1 | P44: -1 | Q44: -1 | R44: -1 | S44: -1 | T44: -1 | U44: -1 | V44: -1 | W44: -1 | X44: -1 | Y44: -1 | Z44: -1 | AA44: -1 | AB44: -1 | AC44: -1
A45: 42 | B45: EC-RR6MH | C45: 50 | D45: 300 | E45: 0 | F45: 42 | G45: 116 | H45: 798 | I45: -1 | J45: -1 | K45: -1 | L45: -1 | M45: -1 | N45: -1 | O45: -1 | P45: -1 | Q45: -1 | R45: -1 | S45: -1 | T45: -1 | U45: -1 | V45: -1 | W45: -1 | X45: -1 | Y45: -1 | Z45: -1 | AA45: -1 | AB45: -1 | AC45: -1
A46: 43 | B46: EC-RR6HH | C46: 50 | D46: 300 | E46: 0 | F46: 43 | G46: 119 | H46: 848 | I46: -1 | J46: -1 | K46: -1 | L46: -1 | M46: -1 | N46: -1 | O46: -1 | P46: -1 | Q46: -1 | R46: -1 | S46: -1 | T46: -1 | U46: -1 | V46: -1 | W46: -1 | X46: -1 | Y46: -1 | Z46: -1 | AA46: -1 | AB46: -1 | AC46: -1
A47: 44 | B47: EC-RR6SH | C47: 50 | D47: 300 | E47: 0 | F47: 44 | G47: 122 | H47: 877 | I47: -1 | J47: -1 | K47: -1 | L47: -1 | M47: -1 | N47: -1 | O47: -1 | P47: -1 | Q47: -1 | R47: -1 | S47: -1 | T47: -1 | U47: -1 | V47: -1 | W47: -1 | X47: -1 | Y47: -1 | Z47: -1 | AA47: -1 | AB47: -1 | AC47: -1
A48: 45 | B48: EC-RR7LH | C48: 50 | D48: 300 | E48: 0 | F48: 45 | G48: 123 | H48: 884 | I48: -1 | J48: -1 | K48: -1 | L48: -1 | M48: -1 | N48: -1 | O48: -1 | P48: -1 | Q48: -1 | R48: -1 | S48: -1 | T48: -1 | U48: -1 | V48: -1 | W48: -1 | X48: -1 | Y48: -1 | Z48: -1 | AA48: -1 | AB48: -1 | AC48: -1
A49: 46 | B49: EC-RR7MH | C49: 50 | D49: 300 | E49: 0 | F49: 46 | G49: 124 | H49: 977 | I49: -1 | J49: -1 | K49: -1 | L49: -1 | M49: -1 | N49: -1 | O49: -1 | P49: -1 | Q49: -1 | R49: -1 | S49: -1 | T49: -1 | U49: -1 | V49: -1 | W49: -1 | X49: -1 | Y49: -1 | Z49: -1 | AA49: -1 | AB49: -1 | AC49: -1
A50: 47 | B50: EC-RR7HH | C50: 50 | D50: 300 | E50: 0 | F50: 47 | G50: 125 | H50: 1055 | I50: -1 | J50: -1 | K50: -1 | L50: -1 | M50: -1 | N50: -1 | O50: -1 | P50: -1 | Q50: -1 | R50: -1 | S50: -1 | T50: -1 | U50: -1 | V50: -1 | W50: -1 | X50: -1 | Y50: -1 | Z50: -1 | AA50: -1 | AB50: -1 | AC50: -1
A51: 48 | B51: EC-RR7SH | C51: 50 | D51: 300 | E51: 0 | F51: 48 | G51: 126 | H51: 1113 | I51: -1 | J51: -1 | K51: -1 | L51: -1 | M51: -1 | N51: -1 | O51: -1 | P51: -1 | Q51: -1 | R51: -1 | S51: -1 | T51: -1 | U51: -1 | V51: -1 | W51: -1 | X51: -1 | Y51: -1 | Z51: -1 | AA51: -1 | AB51: -1 | AC51: -1
A52: 49 | B52: EC-S6LAH | C52: 50 | D52: 800 | E52: 0 | F52: 49 | G52: 127 | H52: 1138 | I52: -1 | J52: -1 | K52: -1 | L52: -1 | M52: -1 | N52: -1 | O52: -1 | P52: -1 | Q52: -1 | R52: -1 | S52: -1 | T52: -1 | U52: -1 | V52: -1 | W52: -1 | X52: -1 | Y52: -1 | Z52: -1 | AA52: -1 | AB52: -1 | AC52: -1
A53: 50 | B53: EC-S6MAH | C53: 50 | D53: 800 | E53: 0 | F53: 50 | G53: 136 | H53: 1179 | I53: -1 | J53: -1 | K53: -1 | L53: -1 | M53: -1 | N53: -1 | O53: -1 | P53: -1 | Q53: -1 | R53: -1 | S53: -1 | T53: -1 | U53: -1 | V53: -1 | W53: -1 | X53: -1 | Y53: -1 | Z53: -1 | AA53: -1 | AB53: -1 | AC53: -1
A54: 51 | B54: EC-S6HAH | C54: 50 | D54: 800 | E54: 0 | F54: 51 | G54: 145 | H54: 1216 | I54: -1 | J54: -1 | K54: -1 | L54: -1 | M54: -1 | N54: -1 | O54: -1 | P54: -1 | Q54: -1 | R54: -1 | S54: -1 | T54: -1 | U54: -1 | V54: -1 | W54: -1 | X54: -1 | Y54: -1 | Z54: -1 | AA54: -1 | AB54: -1 | AC54: -1
A55: 52 | B55: EC-S6SAH | C55: 50 | D55: 800 | E55: 0 | F55: 52 | G55: 154 | H55: 1247 | I55: -1 | J55: -1 | K55: -1 | L55: -1 | M55: -1 | N55: -1 | O55: -1 | P55: -1 | Q55: -1 | R55: -1 | S55: -1 | T55: -1 | U55: -1 | V55: -1 | W55: -1 | X55: -1 | Y55: -1 | Z55: -1 | AA55: -1 | AB55: -1 | AC55: -1
A56: 53 | B56: EC-S7LAH | C56: 50 | D56: 800 | E56: 0 | F56: 53 | G56: 162 | H56: 1269 | I56: -1 | J56: -1 | K56: -1 | L56: -1 | M56: -1 | N56: -1 | O56: -1 | P56: -1 | Q56: -1 | R56: -1 | S56: -1 | T56: -1 | U56: -1 | V56: -1 | W56: -1 | X56: -1 | Y56: -1 | Z56: -1 | AA56: -1 | AB56: -1 | AC56: -1
A57: 54 | B57: EC-S7MAH | C57: 50 | D57: 800 | E57: 0 | F57: 54 | G57: 168 | H57: 1334 | I57: -1 | J57: -1 | K57: -1 | L57: -1 | M57: -1 | N57: -1 | O57: -1 | P57: -1 | Q57: -1 | R57: -1 | S57: -1 | T57: -1 | U57: -1 | V57: -1 | W57: -1 | X57: -1 | Y57: -1 | Z57: -1 | AA57: -1 | AB57: -1 | AC57: -1
A58: 55 | B58: EC-S7HAH | C58: 50 | D58: 800 | E58: 0 | F58: 55 | G58: 174 | H58: 1398 | I58: -1 | J58: -1 | K58: -1 | L58: -1 | M58: -1 | N58: -1 | O58: -1 | P58: -1 | Q58: -1 | R58: -1 | S58: -1 | T58: -1 | U58: -1 | V58: -1 | W58: -1 | X58: -1 | Y58: -1 | Z58: -1 | AA58: -1 | AB58: -1 | AC58: -1
A59: 56 | B59: EC-S7SAH | C59: 50 | D59: 800 | E59: 0 | F59: 56 | G59: 181 | H59: 1453 | I59: -1 | J59: -1 | K59: -1 | L59: -1 | M59: -1 | N59: -1 | O59: -1 | P59: -1 | Q59: -1 | R59: -1 | S59: -1 | T59: -1 | U59: -1 | V59: -1 | W59: -1 | X59: -1 | Y59: -1 | Z59: -1 | AA59: -1 | AB59: -1 | AC59: -1
A60: 57 | B60: EC-RR6LAH | C60: 50 | D60: 550 | E60: 0 | F60: 57 | G60: 772 | H60: 7362 | I60: -1 | J60: -1 | K60: -1 | L60: -1 | M60: -1 | N60: -1 | O60: -1 | P60: -1 | Q60: -1 | R60: -1 | S60: -1 | T60: -1 | U60: -1 | V60: -1 | W60: -1 | X60: -1 | Y60: -1 | Z60: -1 | AA60: -1 | AB60: -1 | AC60: -1
A61: 58 | B61: EC-RR6MAH | C61: 50 | D61: 550 | E61: 0 | F61: 58 | G61: 773 | H61: 7435 | I61: -1 | J61: -1 | K61: -1 | L61: -1 | M61: -1 | N61: -1 | O61: -1 | P61: -1 | Q61: -1 | R61: -1 | S61: -1 | T61: -1 | U61: -1 | V61: -1 | W61: -1 | X61: -1 | Y61: -1 | Z61: -1 | AA61: -1 | AB61: -1 | AC61: -1
A62: 59 | B62: EC-RR6HAH | C62: 50 | D62: 550 | E62: 0 | F62: 59 | G62: 774 | H62: 7485 | I62: -1 | J62: -1 | K62: -1 | L62: -1 | M62: -1 | N62: -1 | O62: -1 | P62: -1 | Q62: -1 | R62: -1 | S62: -1 | T62: -1 | U62: -1 | V62: -1 | W62: -1 | X62: -1 | Y62: -1 | Z62: -1 | AA62: -1 | AB62: -1 | AC62: -1
A63: 60 | B63: EC-RR6SAH | C63: 50 | D63: 550 | E63: 0 | F63: 60 | G63: 775 | H63: 7514 | I63: -1 | J63: -1 | K63: -1 | L63: -1 | M63: -1 | N63: -1 | O63: -1 | P63: -1 | Q63: -1 | R63: -1 | S63: -1 | T63: -1 | U63: -1 | V63: -1 | W63: -1 | X63: -1 | Y63: -1 | Z63: -1 | AA63: -1 | AB63: -1 | AC63: -1
A64: 61 | B64: EC-RR7LAH | C64: 50 | D64: 700 | E64: 0 | F64: 61 | G64: 776 | H64: 7521 | I64: -1 | J64: -1 | K64: -1 | L64: -1 | M64: -1 | N64: -1 | O64: -1 | P64: -1 | Q64: -1 | R64: -1 | S64: -1 | T64: -1 | U64: -1 | V64: -1 | W64: -1 | X64: -1 | Y64: -1 | Z64: -1 | AA64: -1 | AB64: -1 | AC64: -1
A65: 62 | B65: EC-RR7MAH | C65: 50 | D65: 700 | E65: 0 | F65: 62 | G65: 777 | H65: 7614 | I65: -1 | J65: -1 | K65: -1 | L65: -1 | M65: -1 | N65: -1 | O65: -1 | P65: -1 | Q65: -1 | R65: -1 | S65: -1 | T65: -1 | U65: -1 | V65: -1 | W65: -1 | X65: -1 | Y65: -1 | Z65: -1 | AA65: -1 | AB65: -1 | AC65: -1
A66: 63 | B66: EC-RR7HAH | C66: 50 | D66: 700 | E66: 0 | F66: 63 | G66: 778 | H66: 7692 | I66: -1 | J66: -1 | K66: -1 | L66: -1 | M66: -1 | N66: -1 | O66: -1 | P66: -1 | Q66: -1 | R66: -1 | S66: -1 | T66: -1 | U66: -1 | V66: -1 | W66: -1 | X66: -1 | Y66: -1 | Z66: -1 | AA66: -1 | AB66: -1 | AC66: -1
A67: 64 | B67: EC-RR7SAH | C67: 50 | D67: 700 | E67: 0 | F67: 64 | G67: 780 | H67: 7750 | I67: -1 | J67: -1 | K67: -1 | L67: -1 | M67: -1 | N67: -1 | O67: -1 | P67: -1 | Q67: -1 | R67: -1 | S67: -1 | T67: -1 | U67: -1 | V67: -1 | W67: -1 | X67: -1 | Y67: -1 | Z67: -1 | AA67: -1 | AB67: -1 | AC67: -1
A68: 65 | B68: EC-S6LR | C68: 50 | D68: 400 | E68: 0 | F68: 65 | G68: 194 | H68: 1911 | I68: -1 | J68: -1 | K68: -1 | L68: -1 | M68: -1 | N68: -1 | O68: -1 | P68: -1 | Q68: -1 | R68: -1 | S68: -1 | T68: -1 | U68: -1 | V68: -1 | W68: -1 | X68: -1 | Y68: -1 | Z68: -1 | AA68: -1 | AB68: -1 | AC68: -1
A69: 66 | B69: EC-S6MR | C69: 50 | D69: 400 | E69: 0 | F69: 66 | G69: 199 | H69: 1953 | I69: -1 | J69: -1 | K69: -1 | L69: -1 | M69: -1 | N69: -1 | O69: -1 | P69: -1 | Q69: -1 | R69: -1 | S69: -1 | T69: -1 | U69: -1 | V69: -1 | W69: -1 | X69: -1 | Y69: -1 | Z69: -1 | AA69: -1 | AB69: -1 | AC69: -1
A70: 67 | B70: EC-S6HR | C70: 50 | D70: 400 | E70: 0 | F70: 67 | G70: 204 | H70: 1989 | I70: -1 | J70: -1 | K70: -1 | L70: -1 | M70: -1 | N70: -1 | O70: -1 | P70: -1 | Q70: -1 | R70: -1 | S70: -1 | T70: -1 | U70: -1 | V70: -1 | W70: -1 | X70: -1 | Y70: -1 | Z70: -1 | AA70: -1 | AB70: -1 | AC70: -1
A71: 68 | B71: EC-S6SR | C71: 50 | D71: 400 | E71: 0 | F71: 68 | G71: 208 | H71: 2017 | I71: -1 | J71: -1 | K71: -1 | L71: -1 | M71: -1 | N71: -1 | O71: -1 | P71: -1 | Q71: -1 | R71: -1 | S71: -1 | T71: -1 | U71: -1 | V71: -1 | W71: -1 | X71: -1 | Y71: -1 | Z71: -1 | AA71: -1 | AB71: -1 | AC71: -1
A72: 69 | B72: EC-S7LR | C72: 50 | D72: 500 | E72: 0 | F72: 69 | G72: 211 | H72: 2032 | I72: -1 | J72: -1 | K72: -1 | L72: -1 | M72: -1 | N72: -1 | O72: -1 | P72: -1 | Q72: -1 | R72: -1 | S72: -1 | T72: -1 | U72: -1 | V72: -1 | W72: -1 | X72: -1 | Y72: -1 | Z72: -1 | AA72: -1 | AB72: -1 | AC72: -1
A73: 70 | B73: EC-S7MR | C73: 50 | D73: 500 | E73: 0 | F73: 70 | G73: 216 | H73: 2096 | I73: -1 | J73: -1 | K73: -1 | L73: -1 | M73: -1 | N73: -1 | O73: -1 | P73: -1 | Q73: -1 | R73: -1 | S73: -1 | T73: -1 | U73: -1 | V73: -1 | W73: -1 | X73: -1 | Y73: -1 | Z73: -1 | AA73: -1 | AB73: -1 | AC73: -1
A74: 71 | B74: EC-S7HR | C74: 50 | D74: 500 | E74: 0 | F74: 71 | G74: 221 | H74: 2162 | I74: -1 | J74: -1 | K74: -1 | L74: -1 | M74: -1 | N74: -1 | O74: -1 | P74: -1 | Q74: -1 | R74: -1 | S74: -1 | T74: -1 | U74: -1 | V74: -1 | W74: -1 | X74: -1 | Y74: -1 | Z74: -1 | AA74: -1 | AB74: -1 | AC74: -1
A75: 72 | B75: EC-S7SR | C75: 50 | D75: 500 | E75: 0 | F75: 72 | G75: 226 | H75: 2219 | I75: -1 | J75: -1 | K75: -1 | L75: -1 | M75: -1 | N75: -1 | O75: -1 | P75: -1 | Q75: -1 | R75: -1 | S75: -1 | T75: -1 | U75: -1 | V75: -1 | W75: -1 | X75: -1 | Y75: -1 | Z75: -1 | AA75: -1 | AB75: -1 | AC75: -1
A76: 73 | B76: EC-S6LAHR | C76: 50 | D76: 800 | E76: 0 | F76: 73 | G76: 230 | H76: 2259 | I76: -1 | J76: -1 | K76: -1 | L76: -1 | M76: -1 | N76: -1 | O76: -1 | P76: -1 | Q76: -1 | R76: -1 | S76: -1 | T76: -1 | U76: -1 | V76: -1 | W76: -1 | X76: -1 | Y76: -1 | Z76: -1 | AA76: -1 | AB76: -1 | AC76: -1
A77: 74 | B77: EC-S6MAHR | C77: 50 | D77: 800 | E77: 0 | F77: 74 | G77: 239 | H77: 2310 | I77: -1 | J77: -1 | K77: -1 | L77: -1 | M77: -1 | N77: -1 | O77: -1 | P77: -1 | Q77: -1 | R77: -1 | S77: -1 | T77: -1 | U77: -1 | V77: -1 | W77: -1 | X77: -1 | Y77: -1 | Z77: -1 | AA77: -1 | AB77: -1 | AC77: -1
A78: 75 | B78: EC-S6HAHR | C78: 50 | D78: 800 | E78: 0 | F78: 75 | G78: 248 | H78: 2345 | I78: -1 | J78: -1 | K78: -1 | L78: -1 | M78: -1 | N78: -1 | O78: -1 | P78: -1 | Q78: -1 | R78: -1 | S78: -1 | T78: -1 | U78: -1 | V78: -1 | W78: -1 | X78: -1 | Y78: -1 | Z78: -1 | AA78: -1 | AB78: -1 | AC78: -1
A79: 76 | B79: EC-S6SAHR | C79: 50 | D79: 800 | E79: 0 | F79: 76 | G79: 257 | H79: 2377 | I79: -1 | J79: -1 | K79: -1 | L79: -1 | M79: -1 | N79: -1 | O79: -1 | P79: -1 | Q79: -1 | R79: -1 | S79: -1 | T79: -1 | U79: -1 | V79: -1 | W79: -1 | X79: -1 | Y79: -1 | Z79: -1 | AA79: -1 | AB79: -1 | AC79: -1
A80: 77 | B80: EC-S7LAHR | C80: 50 | D80: 800 | E80: 0 | F80: 77 | G80: 264 | H80: 2397 | I80: -1 | J80: -1 | K80: -1 | L80: -1 | M80: -1 | N80: -1 | O80: -1 | P80: -1 | Q80: -1 | R80: -1 | S80: -1 | T80: -1 | U80: -1 | V80: -1 | W80: -1 | X80: -1 | Y80: -1 | Z80: -1 | AA80: -1 | AB80: -1 | AC80: -1
A81: 78 | B81: EC-S7MAHR | C81: 50 | D81: 800 | E81: 0 | F81: 78 | G81: 269 | H81: 2468 | I81: -1 | J81: -1 | K81: -1 | L81: -1 | M81: -1 | N81: -1 | O81: -1 | P81: -1 | Q81: -1 | R81: -1 | S81: -1 | T81: -1 | U81: -1 | V81: -1 | W81: -1 | X81: -1 | Y81: -1 | Z81: -1 | AA81: -1 | AB81: -1 | AC81: -1
A82: 79 | B82: EC-S7HAHR | C82: 50 | D82: 800 | E82: 0 | F82: 79 | G82: 275 | H82: 2534 | I82: -1 | J82: -1 | K82: -1 | L82: -1 | M82: -1 | N82: -1 | O82: -1 | P82: -1 | Q82: -1 | R82: -1 | S82: -1 | T82: -1 | U82: -1 | V82: -1 | W82: -1 | X82: -1 | Y82: -1 | Z82: -1 | AA82: -1 | AB82: -1 | AC82: -1
A83: 80 | B83: EC-S7SAHR | C83: 50 | D83: 800 | E83: 0 | F83: 80 | G83: 281 | H83: 2591 | I83: -1 | J83: -1 | K83: -1 | L83: -1 | M83: -1 | N83: -1 | O83: -1 | P83: -1 | Q83: -1 | R83: -1 | S83: -1 | T83: -1 | U83: -1 | V83: -1 | W83: -1 | X83: -1 | Y83: -1 | Z83: -1 | AA83: -1 | AB83: -1 | AC83: -1
A84: 81 | B84: EC-RR6LR | C84: 65 | D84: 315 | E84: 0 | F84: 81 | G84: 286 | H84: 2632 | I84: -1 | J84: -1 | K84: -1 | L84: -1 | M84: -1 | N84: -1 | O84: -1 | P84: -1 | Q84: -1 | R84: -1 | S84: -1 | T84: -1 | U84: -1 | V84: -1 | W84: -1 | X84: -1 | Y84: -1 | Z84: -1 | AA84: -1 | AB84: -1 | AC84: -1
A85: 82 | B85: EC-RR6MR | C85: 65 | D85: 315 | E85: 0 | F85: 82 | G85: 289 | H85: 2695 | I85: -1 | J85: -1 | K85: -1 | L85: -1 | M85: -1 | N85: -1 | O85: -1 | P85: -1 | Q85: -1 | R85: -1 | S85: -1 | T85: -1 | U85: -1 | V85: -1 | W85: -1 | X85: -1 | Y85: -1 | Z85: -1 | AA85: -1 | AB85: -1 | AC85: -1
A86: 83 | B86: EC-RR6HR | C86: 65 | D86: 315 | E86: 0 | F86: 83 | G86: 292 | H86: 2745 | I86: -1 | J86: -1 | K86: -1 | L86: -1 | M86: -1 | N86: -1 | O86: -1 | P86: -1 | Q86: -1 | R86: -1 | S86: -1 | T86: -1 | U86: -1 | V86: -1 | W86: -1 | X86: -1 | Y86: -1 | Z86: -1 | AA86: -1 | AB86: -1 | AC86: -1
A87: 84 | B87: EC-RR6SR | C87: 65 | D87: 315 | E87: 0 | F87: 84 | G87: 295 | H87: 2774 | I87: -1 | J87: -1 | K87: -1 | L87: -1 | M87: -1 | N87: -1 | O87: -1 | P87: -1 | Q87: -1 | R87: -1 | S87: -1 | T87: -1 | U87: -1 | V87: -1 | W87: -1 | X87: -1 | Y87: -1 | Z87: -1 | AA87: -1 | AB87: -1 | AC87: -1
A88: 85 | B88: EC-RR7LR | C88: 65 | D88: 315 | E88: 0 | F88: 85 | G88: 296 | H88: 2781 | I88: -1 | J88: -1 | K88: -1 | L88: -1 | M88: -1 | N88: -1 | O88: -1 | P88: -1 | Q88: -1 | R88: -1 | S88: -1 | T88: -1 | U88: -1 | V88: -1 | W88: -1 | X88: -1 | Y88: -1 | Z88: -1 | AA88: -1 | AB88: -1 | AC88: -1
A89: 86 | B89: EC-RR7MR | C89: 65 | D89: 315 | E89: 0 | F89: 86 | G89: 297 | H89: 2867 | I89: -1 | J89: -1 | K89: -1 | L89: -1 | M89: -1 | N89: -1 | O89: -1 | P89: -1 | Q89: -1 | R89: -1 | S89: -1 | T89: -1 | U89: -1 | V89: -1 | W89: -1 | X89: -1 | Y89: -1 | Z89: -1 | AA89: -1 | AB89: -1 | AC89: -1
A90: 87 | B90: EC-RR7HR | C90: 65 | D90: 315 | E90: 0 | F90: 87 | G90: 298 | H90: 2940 | I90: -1 | J90: -1 | K90: -1 | L90: -1 | M90: -1 | N90: -1 | O90: -1 | P90: -1 | Q90: -1 | R90: -1 | S90: -1 | T90: -1 | U90: -1 | V90: -1 | W90: -1 | X90: -1 | Y90: -1 | Z90: -1 | AA90: -1 | AB90: -1 | AC90: -1
A91: 88 | B91: EC-RR7SR | C91: 65 | D91: 315 | E91: 0 | F91: 88 | G91: 299 | H91: 3000 | I91: -1 | J91: -1 | K91: -1 | L91: -1 | M91: -1 | N91: -1 | O91: -1 | P91: -1 | Q91: -1 | R91: -1 | S91: -1 | T91: -1 | U91: -1 | V91: -1 | W91: -1 | X91: -1 | Y91: -1 | Z91: -1 | AA91: -1 | AB91: -1 | AC91: -1
A92: 89 | B92: EC-RR6LAHR | C92: 50 | D92: 400 | E92: 0 | F92: 89 | G92: 300 | H92: 3026 | I92: -1 | J92: -1 | K92: -1 | L92: -1 | M92: -1 | N92: -1 | O92: -1 | P92: -1 | Q92: -1 | R92: -1 | S92: -1 | T92: -1 | U92: -1 | V92: -1 | W92: -1 | X92: -1 | Y92: -1 | Z92: -1 | AA92: -1 | AB92: -1 | AC92: -1
A93: 90 | B93: EC-RR6MAHR | C93: 50 | D93: 400 | E93: 0 | F93: 90 | G93: 301 | H93: 3101 | I93: -1 | J93: -1 | K93: -1 | L93: -1 | M93: -1 | N93: -1 | O93: -1 | P93: -1 | Q93: -1 | R93: -1 | S93: -1 | T93: -1 | U93: -1 | V93: -1 | W93: -1 | X93: -1 | Y93: -1 | Z93: -1 | AA93: -1 | AB93: -1 | AC93: -1
A94: 91 | B94: EC-RR6HAHR | C94: 50 | D94: 400 | E94: 0 | F94: 91 | G94: 302 | H94: 3155 | I94: -1 | J94: -1 | K94: -1 | L94: -1 | M94: -1 | N94: -1 | O94: -1 | P94: -1 | Q94: -1 | R94: -1 | S94: -1 | T94: -1 | U94: -1 | V94: -1 | W94: -1 | X94: -1 | Y94: -1 | Z94: -1 | AA94: -1 | AB94: -1 | AC94: -1
A95: 92 | B95: EC-RR6SAHR | C95: 50 | D95: 400 | E95: 0 | F95: 92 | G95: 303 | H95: 3184 | I95: -1 | J95: -1 | K95: -1 | L95: -1 | M95: -1 | N95: -1 | O95: -1 | P95: -1 | Q95: -1 | R95: -1 | S95: -1 | T95: -1 | U95: -1 | V95: -1 | W95: -1 | X95: -1 | Y95: -1 | Z95: -1 | AA95: -1 | AB95: -1 | AC95: -1
A96: 93 | B96: EC-RR7LAHR | C96: 50 | D96: 500 | E96: 0 | F96: 93 | G96: 304 | H96: 3191 | I96: -1 | J96: -1 | K96: -1 | L96: -1 | M96: -1 | N96: -1 | O96: -1 | P96: -1 | Q96: -1 | R96: -1 | S96: -1 | T96: -1 | U96: -1 | V96: -1 | W96: -1 | X96: -1 | Y96: -1 | Z96: -1 | AA96: -1 | AB96: -1 | AC96: -1
A97: 94 | B97: EC-RR7MAHR | C97: 50 | D97: 500 | E97: 0 | F97: 94 | G97: 305 | H97: 3293 | I97: -1 | J97: -1 | K97: -1 | L97: -1 | M97: -1 | N97: -1 | O97: -1 | P97: -1 | Q97: -1 | R97: -1 | S97: -1 | T97: -1 | U97: -1 | V97: -1 | W97: -1 | X97: -1 | Y97: -1 | Z97: -1 | AA97: -1 | AB97: -1 | AC97: -1
A98: 95 | B98: EC-RR7HAHR | C98: 50 | D98: 500 | E98: 0 | F98: 95 | G98: 306 | H98: 3366 | I98: -1 | J98: -1 | K98: -1 | L98: -1 | M98: -1 | N98: -1 | O98: -1 | P98: -1 | Q98: -1 | R98: -1 | S98: -1 | T98: -1 | U98: -1 | V98: -1 | W98: -1 | X98: -1 | Y98: -1 | Z98: -1 | AA98: -1 | AB98: -1 | AC98: -1
A99: 96 | B99: EC-RR7SAHR | C99: 50 | D99: 500 | E99: 0 | F99: 96 | G99: 307 | H99: 3426 | I99: -1 | J99: -1 | K99: -1 | L99: -1 | M99: -1 | N99: -1 | O99: -1 | P99: -1 | Q99: -1 | R99: -1 | S99: -1 | T99: -1 | U99: -1 | V99: -1 | W99: -1 | X99: -1 | Y99: -1 | Z99: -1 | AA99: -1 | AB99: -1 | AC99: -1
A100: 97 | B100: EC-S4L | C100: 50 | D100: 300 | E100: 0 | F100: 97 | G100: 308 | H100: 3451 | I100: -1 | J100: -1 | K100: -1 | L100: -1 | M100: -1 | N100: -1 | O100: -1 | P100: -1 | Q100: -1 | R100: -1 | S100: -1 | T100: -1 | U100: -1 | V100: -1 | W100: -1 | X100: -1 | Y100: -1 | Z100: -1 | AA100: -1 | AB100: -1 | AC100: -1
A101: 98 | B101: EC-S4M | C101: 50 | D101: 300 | E101: 0 | F101: 98 | G101: 311 | H101: 3454 | I101: -1 | J101: -1 | K101: -1 | L101: -1 | M101: -1 | N101: -1 | O101: -1 | P101: -1 | Q101: -1 | R101: -1 | S101: -1 | T101: -1 | U101: -1 | V101: -1 | W101: -1 | X101: -1 | Y101: -1 | Z101: -1 | AA101: -1 | AB101: -1 | AC101: -1
A102: 99 | B102: EC-S4H | C102: 50 | D102: 300 | E102: 0 | F102: 99 | G102: 314 | H102: 3462 | I102: -1 | J102: -1 | K102: -1 | L102: -1 | M102: -1 | N102: -1 | O102: -1 | P102: -1 | Q102: -1 | R102: -1 | S102: -1 | T102: -1 | U102: -1 | V102: -1 | W102: -1 | X102: -1 | Y102: -1 | Z102: -1 | AA102: -1 | AB102: -1 | AC102: -1
A103: 100 | B103: EC-S4S | C103: 50 | D103: 300 | E103: 0 | F103: 100 | G103: 317 | H103: 3478 | I103: -1 | J103: -1 | K103: -1 | L103: -1 | M103: -1 | N103: -1 | O103: -1 | P103: -1 | Q103: -1 | R103: -1 | S103: -1 | T103: -1 | U103: -1 | V103: -1 | W103: -1 | X103: -1 | Y103: -1 | Z103: -1 | AA103: -1 | AB103: -1 | AC103: -1
A104: 101 | B104: EC-RR4L | C104: 50 | D104: 300 | E104: 0 | F104: 101 | G104: 320 | H104: 3489 | I104: -1 | J104: -1 | K104: -1 | L104: -1 | M104: -1 | N104: -1 | O104: -1 | P104: -1 | Q104: -1 | R104: -1 | S104: -1 | T104: -1 | U104: -1 | V104: -1 | W104: -1 | X104: -1 | Y104: -1 | Z104: -1 | AA104: -1 | AB104: -1 | AC104: -1
A105: 102 | B105: EC-RR4M | C105: 50 | D105: 300 | E105: 0 | F105: 102 | G105: 324 | H105: 3499 | I105: -1 | J105: -1 | K105: -1 | L105: -1 | M105: -1 | N105: -1 | O105: -1 | P105: -1 | Q105: -1 | R105: -1 | S105: -1 | T105: -1 | U105: -1 | V105: -1 | W105: -1 | X105: -1 | Y105: -1 | Z105: -1 | AA105: -1 | AB105: -1 | AC105: -1
A106: 103 | B106: EC-RR4H | C106: 50 | D106: 300 | E106: 0 | F106: 103 | G106: 328 | H106: 3518 | I106: -1 | J106: -1 | K106: -1 | L106: -1 | M106: -1 | N106: -1 | O106: -1 | P106: -1 | Q106: -1 | R106: -1 | S106: -1 | T106: -1 | U106: -1 | V106: -1 | W106: -1 | X106: -1 | Y106: -1 | Z106: -1 | AA106: -1 | AB106: -1 | AC106: -1
A107: 104 | B107: EC-RR4S | C107: 50 | D107: 300 | E107: 0 | F107: 104 | G107: 332 | H107: 3543 | I107: -1 | J107: -1 | K107: -1 | L107: -1 | M107: -1 | N107: -1 | O107: -1 | P107: -1 | Q107: -1 | R107: -1 | S107: -1 | T107: -1 | U107: -1 | V107: -1 | W107: -1 | X107: -1 | Y107: -1 | Z107: -1 | AA107: -1 | AB107: -1 | AC107: -1
A108: 105 | B108: EC-RR6LW | C108: 65 | D108: 315 | E108: 0 | F108: 105 | G108: 335 | H108: 3559 | I108: -1 | J108: -1 | K108: -1 | L108: -1 | M108: -1 | N108: -1 | O108: -1 | P108: -1 | Q108: -1 | R108: -1 | S108: -1 | T108: -1 | U108: -1 | V108: -1 | W108: -1 | X108: -1 | Y108: -1 | Z108: -1 | AA108: -1 | AB108: -1 | AC108: -1
A109: 106 | B109: EC-RR6MW | C109: 65 | D109: 315 | E109: 0 | F109: 106 | G109: 338 | H109: 3625 | I109: -1 | J109: -1 | K109: -1 | L109: -1 | M109: -1 | N109: -1 | O109: -1 | P109: -1 | Q109: -1 | R109: -1 | S109: -1 | T109: -1 | U109: -1 | V109: -1 | W109: -1 | X109: -1 | Y109: -1 | Z109: -1 | AA109: -1 | AB109: -1 | AC109: -1
A110: 107 | B110: EC-RR6HW | C110: 65 | D110: 315 | E110: 0 | F110: 107 | G110: 341 | H110: 3675 | I110: -1 | J110: -1 | K110: -1 | L110: -1 | M110: -1 | N110: -1 | O110: -1 | P110: -1 | Q110: -1 | R110: -1 | S110: -1 | T110: -1 | U110: -1 | V110: -1 | W110: -1 | X110: -1 | Y110: -1 | Z110: -1 | AA110: -1 | AB110: -1 | AC110: -1
A111: 108 | B111: EC-RR6SW | C111: 65 | D111: 315 | E111: 0 | F111: 108 | G111: 344 | H111: 3704 | I111: -1 | J111: -1 | K111: -1 | L111: -1 | M111: -1 | N111: -1 | O111: -1 | P111: -1 | Q111: -1 | R111: -1 | S111: -1 | T111: -1 | U111: -1 | V111: -1 | W111: -1 | X111: -1 | Y111: -1 | Z111: -1 | AA111: -1 | AB111: -1 | AC111: -1
A112: 109 | B112: EC-RR7LW | C112: 65 | D112: 315 | E112: 0 | F112: 109 | G112: 345 | H112: 3711 | I112: -1 | J112: -1 | K112: -1 | L112: -1 | M112: -1 | N112: -1 | O112: -1 | P112: -1 | Q112: -1 | R112: -1 | S112: -1 | T112: -1 | U112: -1 | V112: -1 | W112: -1 | X112: -1 | Y112: -1 | Z112: -1 | AA112: -1 | AB112: -1 | AC112: -1
A113: 110 | B113: EC-RR7MW | C113: 65 | D113: 315 | E113: 0 | F113: 110 | G113: 346 | H113: 3795 | I113: -1 | J113: -1 | K113: -1 | L113: -1 | M113: -1 | N113: -1 | O113: -1 | P113: -1 | Q113: -1 | R113: -1 | S113: -1 | T113: -1 | U113: -1 | V113: -1 | W113: -1 | X113: -1 | Y113: -1 | Z113: -1 | AA113: -1 | AB113: -1 | AC113: -1
A114: 111 | B114: EC-RR7HW | C114: 65 | D114: 315 | E114: 0 | F114: 111 | G114: 347 | H114: 3873 | I114: -1 | J114: -1 | K114: -1 | L114: -1 | M114: -1 | N114: -1 | O114: -1 | P114: -1 | Q114: -1 | R114: -1 | S114: -1 | T114: -1 | U114: -1 | V114: -1 | W114: -1 | X114: -1 | Y114: -1 | Z114: -1 | AA114: -1 | AB114: -1 | AC114: -1
A115: 112 | B115: EC-RR7SW | C115: 65 | D115: 315 | E115: 0 | F115: 112 | G115: 348 | H115: 3931 | I115: -1 | J115: -1 | K115: -1 | L115: -1 | M115: -1 | N115: -1 | O115: -1 | P115: -1 | Q115: -1 | R115: -1 | S115: -1 | T115: -1 | U115: -1 | V115: -1 | W115: -1 | X115: -1 | Y115: -1 | Z115: -1 | AA115: -1 | AB115: -1 | AC115: -1
A116: 113 | B116: EC-B6S | C116: 300 | D116: 2600 | E116: 0 | F116: 113 | G116: 349 | H116: 3969 | I116: -1 | J116: -1 | K116: -1 | L116: -1 | M116: -1 | N116: -1 | O116: -1 | P116: -1 | Q116: -1 | R116: -1 | S116: -1 | T116: -1 | U116: -1 | V116: -1 | W116: -1 | X116: -1 | Y116: -1 | Z116: -1 | AA116: -1 | AB116: -1 | AC116: -1 | AD116: ↓Ver.1.1 追加
A117: 114 | B117: EC-B6SU | C117: 300 | D117: 2600 | E117: 0 | F117: 114 | G117: 350 | H117: 3969 | I117: -1 | J117: -1 | K117: -1 | L117: -1 | M117: -1 | N117: -1 | O117: -1 | P117: -1 | Q117: -1 | R117: -1 | S117: -1 | T117: -1 | U117: -1 | V117: -1 | W117: -1 | X117: -1 | Y117: -1 | Z117: -1 | AA117: -1 | AB117: -1 | AC117: -1
A118: 115 | B118: EC-B7S | C118: 300 | D118: 2600 | E118: 0 | F118: 115 | G118: 351 | H118: 4003 | I118: -1 | J118: -1 | K118: -1 | L118: -1 | M118: -1 | N118: -1 | O118: -1 | P118: -1 | Q118: -1 | R118: -1 | S118: -1 | T118: -1 | U118: -1 | V118: -1 | W118: -1 | X118: -1 | Y118: -1 | Z118: -1 | AA118: -1 | AB118: -1 | AC118: -1
A119: 116 | B119: EC-B7SU | C119: 300 | D119: 2600 | E119: 0 | F119: 116 | G119: 352 | H119: 4003 | I119: -1 | J119: -1 | K119: -1 | L119: -1 | M119: -1 | N119: -1 | O119: -1 | P119: -1 | Q119: -1 | R119: -1 | S119: -1 | T119: -1 | U119: -1 | V119: -1 | W119: -1 | X119: -1 | Y119: -1 | Z119: -1 | AA119: -1 | AB119: -1 | AC119: -1
A120: 117 | B120: EC-S4LR | C120: 50 | D120: 300 | E120: 0 | F120: 117 | G120: 353 | H120: 4024 | I120: -1 | J120: -1 | K120: -1 | L120: -1 | M120: -1 | N120: -1 | O120: -1 | P120: -1 | Q120: -1 | R120: -1 | S120: -1 | T120: -1 | U120: -1 | V120: -1 | W120: -1 | X120: -1 | Y120: -1 | Z120: -1 | AA120: -1 | AB120: -1 | AC120: -1
A121: 118 | B121: EC-S4MR | C121: 50 | D121: 300 | E121: 0 | F121: 118 | G121: 356 | H121: 4027 | I121: -1 | J121: -1 | K121: -1 | L121: -1 | M121: -1 | N121: -1 | O121: -1 | P121: -1 | Q121: -1 | R121: -1 | S121: -1 | T121: -1 | U121: -1 | V121: -1 | W121: -1 | X121: -1 | Y121: -1 | Z121: -1 | AA121: -1 | AB121: -1 | AC121: -1
A122: 119 | B122: EC-S4HR | C122: 50 | D122: 300 | E122: 0 | F122: 119 | G122: 359 | H122: 4038 | I122: -1 | J122: -1 | K122: -1 | L122: -1 | M122: -1 | N122: -1 | O122: -1 | P122: -1 | Q122: -1 | R122: -1 | S122: -1 | T122: -1 | U122: -1 | V122: -1 | W122: -1 | X122: -1 | Y122: -1 | Z122: -1 | AA122: -1 | AB122: -1 | AC122: -1
A123: 120 | B123: EC-S4SR | C123: 50 | D123: 300 | E123: 0 | F123: 120 | G123: 362 | H123: 4054 | I123: -1 | J123: -1 | K123: -1 | L123: -1 | M123: -1 | N123: -1 | O123: -1 | P123: -1 | Q123: -1 | R123: -1 | S123: -1 | T123: -1 | U123: -1 | V123: -1 | W123: -1 | X123: -1 | Y123: -1 | Z123: -1 | AA123: -1 | AB123: -1 | AC123: -1
A124: 121 | B124: EC-RR4LR | C124: 50 | D124: 300 | E124: 0 | F124: 121 | G124: 365 | H124: 4066 | I124: -1 | J124: -1 | K124: -1 | L124: -1 | M124: -1 | N124: -1 | O124: -1 | P124: -1 | Q124: -1 | R124: -1 | S124: -1 | T124: -1 | U124: -1 | V124: -1 | W124: -1 | X124: -1 | Y124: -1 | Z124: -1 | AA124: -1 | AB124: -1 | AC124: -1
A125: 122 | B125: EC-RR4MR | C125: 50 | D125: 300 | E125: 0 | F125: 122 | G125: 369 | H125: 4076 | I125: -1 | J125: -1 | K125: -1 | L125: -1 | M125: -1 | N125: -1 | O125: -1 | P125: -1 | Q125: -1 | R125: -1 | S125: -1 | T125: -1 | U125: -1 | V125: -1 | W125: -1 | X125: -1 | Y125: -1 | Z125: -1 | AA125: -1 | AB125: -1 | AC125: -1
A126: 123 | B126: EC-RR4HR | C126: 50 | D126: 300 | E126: 0 | F126: 123 | G126: 373 | H126: 4100 | I126: -1 | J126: -1 | K126: -1 | L126: -1 | M126: -1 | N126: -1 | O126: -1 | P126: -1 | Q126: -1 | R126: -1 | S126: -1 | T126: -1 | U126: -1 | V126: -1 | W126: -1 | X126: -1 | Y126: -1 | Z126: -1 | AA126: -1 | AB126: -1 | AC126: -1
A127: 124 | B127: EC-RR4SR | C127: 50 | D127: 300 | E127: 0 | F127: 124 | G127: 377 | H127: 4119 | I127: -1 | J127: -1 | K127: -1 | L127: -1 | M127: -1 | N127: -1 | O127: -1 | P127: -1 | Q127: -1 | R127: -1 | S127: -1 | T127: -1 | U127: -1 | V127: -1 | W127: -1 | X127: -1 | Y127: -1 | Z127: -1 | AA127: -1 | AB127: -1 | AC127: -1
A128: 125 | B128: EC-ST15L | C128: 50 | D128: 50 | E128: 0 | F128: 125 | G128: 381 | H128: 4135 | I128: -1 | J128: -1 | K128: -1 | L128: -1 | M128: -1 | N128: -1 | O128: -1 | P128: -1 | Q128: -1 | R128: -1 | S128: -1 | T128: -1 | U128: -1 | V128: -1 | W128: -1 | X128: -1 | Y128: -1 | Z128: -1 | AA128: -1 | AB128: -1 | AC128: -1
A129: 126 | B129: EC-RTC12 | C129: 330 | D129: 330 | E129: 1 | F129: 126 | G129: 382 | H129: 4158 | I129: -1 | J129: -1 | K129: -1 | L129: -1 | M129: -1 | N129: -1 | O129: -1 | P129: -1 | Q129: -1 | R129: -1 | S129: -1 | T129: -1 | U129: -1 | V129: -1 | W129: -1 | X129: -1 | Y129: -1 | Z129: -1 | AA129: -1 | AB129: -1 | AC129: -1 | AD129: ↑Ver.1.1 追加
A130: 127 | B130: EC-WS10L | C130: 50 | D130: 500 | E130: 0 | F130: 127 | G130: 383 | H130: 4398 | I130: -1 | J130: -1 | K130: -1 | L130: -1 | M130: -1 | N130: -1 | O130: -1 | P130: -1 | Q130: -1 | R130: -1 | S130: -1 | T130: -1 | U130: -1 | V130: -1 | W130: -1 | X130: -1 | Y130: -1 | Z130: -1 | AA130: -1 | AB130: -1 | AC130: -1 | AD130: ↓Ver.1.2 追加
A131: 128 | B131: EC-WS10M | C131: 50 | D131: 500 | E131: 0 | F131: 128 | G131: 390 | H131: 4419 | I131: -1 | J131: -1 | K131: -1 | L131: -1 | M131: -1 | N131: -1 | O131: -1 | P131: -1 | Q131: -1 | R131: -1 | S131: -1 | T131: -1 | U131: -1 | V131: -1 | W131: -1 | X131: -1 | Y131: -1 | Z131: -1 | AA131: -1 | AB131: -1 | AC131: -1
A132: 129 | B132: EC-WS10H | C132: 50 | D132: 500 | E132: 0 | F132: 129 | G132: 397 | H132: 4447 | I132: -1 | J132: -1 | K132: -1 | L132: -1 | M132: -1 | N132: -1 | O132: -1 | P132: -1 | Q132: -1 | R132: -1 | S132: -1 | T132: -1 | U132: -1 | V132: -1 | W132: -1 | X132: -1 | Y132: -1 | Z132: -1 | AA132: -1 | AB132: -1 | AC132: -1
A133: 130 | B133: EC-WS10S | C133: 50 | D133: 500 | E133: 0 | F133: 130 | G133: 404 | H133: 4462 | I133: -1 | J133: -1 | K133: -1 | L133: -1 | M133: -1 | N133: -1 | O133: -1 | P133: -1 | Q133: -1 | R133: -1 | S133: -1 | T133: -1 | U133: -1 | V133: -1 | W133: -1 | X133: -1 | Y133: -1 | Z133: -1 | AA133: -1 | AB133: -1 | AC133: -1
A134: 131 | B134: EC-WS12L | C134: 50 | D134: 800 | E134: 0 | F134: 131 | G134: 411 | H134: 4469 | I134: -1 | J134: -1 | K134: -1 | L134: -1 | M134: -1 | N134: -1 | O134: -1 | P134: -1 | Q134: -1 | R134: -1 | S134: -1 | T134: -1 | U134: -1 | V134: -1 | W134: -1 | X134: -1 | Y134: -1 | Z134: -1 | AA134: -1 | AB134: -1 | AC134: -1
A135: 132 | B135: EC-WS12M | C135: 50 | D135: 800 | E135: 0 | F135: 132 | G135: 423 | H135: 4524 | I135: -1 | J135: -1 | K135: -1 | L135: -1 | M135: -1 | N135: -1 | O135: -1 | P135: -1 | Q135: -1 | R135: -1 | S135: -1 | T135: -1 | U135: -1 | V135: -1 | W135: -1 | X135: -1 | Y135: -1 | Z135: -1 | AA135: -1 | AB135: -1 | AC135: -1
A136: 133 | B136: EC-WS12H | C136: 50 | D136: 800 | E136: 0 | F136: 133 | G136: 435 | H136: 4568 | I136: -1 | J136: -1 | K136: -1 | L136: -1 | M136: -1 | N136: -1 | O136: -1 | P136: -1 | Q136: -1 | R136: -1 | S136: -1 | T136: -1 | U136: -1 | V136: -1 | W136: -1 | X136: -1 | Y136: -1 | Z136: -1 | AA136: -1 | AB136: -1 | AC136: -1
A137: 134 | B137: EC-WS12S | C137: 50 | D137: 800 | E137: 0 | F137: 134 | G137: 447 | H137: 4592 | I137: -1 | J137: -1 | K137: -1 | L137: -1 | M137: -1 | N137: -1 | O137: -1 | P137: -1 | Q137: -1 | R137: -1 | S137: -1 | T137: -1 | U137: -1 | V137: -1 | W137: -1 | X137: -1 | Y137: -1 | Z137: -1 | AA137: -1 | AB137: -1 | AC137: -1
A138: 135 | B138: EC-RP5L | C138: 50 | D138: 150 | E138: 0 | F138: 135 | G138: 459 | H138: 4608 | I138: -1 | J138: -1 | K138: -1 | L138: -1 | M138: -1 | N138: -1 | O138: -1 | P138: -1 | Q138: -1 | R138: -1 | S138: -1 | T138: -1 | U138: -1 | V138: -1 | W138: -1 | X138: -1 | Y138: -1 | Z138: -1 | AA138: -1 | AB138: -1 | AC138: -1
A139: 136 | B139: EC-RP5M | C139: 50 | D139: 150 | E139: 0 | F139: 136 | G139: 460 | H139: 4640 | I139: -1 | J139: -1 | K139: -1 | L139: -1 | M139: -1 | N139: -1 | O139: -1 | P139: -1 | Q139: -1 | R139: -1 | S139: -1 | T139: -1 | U139: -1 | V139: -1 | W139: -1 | X139: -1 | Y139: -1 | Z139: -1 | AA139: -1 | AB139: -1 | AC139: -1
A140: 137 | B140: EC-RP5H | C140: 50 | D140: 150 | E140: 0 | F140: 137 | G140: 461 | H140: 4669 | I140: -1 | J140: -1 | K140: -1 | L140: -1 | M140: -1 | N140: -1 | O140: -1 | P140: -1 | Q140: -1 | R140: -1 | S140: -1 | T140: -1 | U140: -1 | V140: -1 | W140: -1 | X140: -1 | Y140: -1 | Z140: -1 | AA140: -1 | AB140: -1 | AC140: -1
A141: 138 | B141: EC-RP5S | C141: 50 | D141: 150 | E141: 0 | F141: 138 | G141: 462 | H141: 4696 | I141: -1 | J141: -1 | K141: -1 | L141: -1 | M141: -1 | N141: -1 | O141: -1 | P141: -1 | Q141: -1 | R141: -1 | S141: -1 | T141: -1 | U141: -1 | V141: -1 | W141: -1 | X141: -1 | Y141: -1 | Z141: -1 | AA141: -1 | AB141: -1 | AC141: -1
A142: 139 | B142: EC-GD5L | C142: 50 | D142: 150 | E142: 0 | F142: 139 | G142: 463 | H142: 4711 | I142: -1 | J142: -1 | K142: -1 | L142: -1 | M142: -1 | N142: -1 | O142: -1 | P142: -1 | Q142: -1 | R142: -1 | S142: -1 | T142: -1 | U142: -1 | V142: -1 | W142: -1 | X142: -1 | Y142: -1 | Z142: -1 | AA142: -1 | AB142: -1 | AC142: -1
A143: 140 | B143: EC-GD5M | C143: 50 | D143: 150 | E143: 0 | F143: 140 | G143: 464 | H143: 4743 | I143: -1 | J143: -1 | K143: -1 | L143: -1 | M143: -1 | N143: -1 | O143: -1 | P143: -1 | Q143: -1 | R143: -1 | S143: -1 | T143: -1 | U143: -1 | V143: -1 | W143: -1 | X143: -1 | Y143: -1 | Z143: -1 | AA143: -1 | AB143: -1 | AC143: -1
A144: 141 | B144: EC-GD5H | C144: 50 | D144: 150 | E144: 0 | F144: 141 | G144: 465 | H144: 4772 | I144: -1 | J144: -1 | K144: -1 | L144: -1 | M144: -1 | N144: -1 | O144: -1 | P144: -1 | Q144: -1 | R144: -1 | S144: -1 | T144: -1 | U144: -1 | V144: -1 | W144: -1 | X144: -1 | Y144: -1 | Z144: -1 | AA144: -1 | AB144: -1 | AC144: -1
A145: 142 | B145: EC-GD5S | C145: 50 | D145: 150 | E145: 0 | F145: 142 | G145: 466 | H145: 4799 | I145: -1 | J145: -1 | K145: -1 | L145: -1 | M145: -1 | N145: -1 | O145: -1 | P145: -1 | Q145: -1 | R145: -1 | S145: -1 | T145: -1 | U145: -1 | V145: -1 | W145: -1 | X145: -1 | Y145: -1 | Z145: -1 | AA145: -1 | AB145: -1 | AC145: -1
A146: 143 | B146: EC-TC5L(50st) | C146: 50 | D146: 50 | E146: 0 | F146: 143 | G146: 467 | H146: 4814 | I146: -1 | J146: -1 | K146: -1 | L146: -1 | M146: -1 | N146: -1 | O146: -1 | P146: -1 | Q146: -1 | R146: -1 | S146: -1 | T146: -1 | U146: -1 | V146: -1 | W146: -1 | X146: -1 | Y146: -1 | Z146: -1 | AA146: -1 | AB146: -1 | AC146: -1
A147: 144 | B147: EC-TC5L(100st) | C147: 100 | D147: 100 | E147: 0 | F147: 144 | G147: 468 | H147: 4832 | I147: -1 | J147: -1 | K147: -1 | L147: -1 | M147: -1 | N147: -1 | O147: -1 | P147: -1 | Q147: -1 | R147: -1 | S147: -1 | T147: -1 | U147: -1 | V147: -1 | W147: -1 | X147: -1 | Y147: -1 | Z147: -1 | AA147: -1 | AB147: -1 | AC147: -1
A148: 145 | B148: EC-TC5L(150st) | C148: 150 | D148: 150 | E148: 0 | F148: 145 | G148: 469 | H148: 4844 | I148: -1 | J148: -1 | K148: -1 | L148: -1 | M148: -1 | N148: -1 | O148: -1 | P148: -1 | Q148: -1 | R148: -1 | S148: -1 | T148: -1 | U148: -1 | V148: -1 | W148: -1 | X148: -1 | Y148: -1 | Z148: -1 | AA148: -1 | AB148: -1 | AC148: -1
A149: 146 | B149: EC-TC5M(50st) | C149: 50 | D149: 50 | E149: 0 | F149: 146 | G149: 470 | H149: 4856 | I149: -1 | J149: -1 | K149: -1 | L149: -1 | M149: -1 | N149: -1 | O149: -1 | P149: -1 | Q149: -1 | R149: -1 | S149: -1 | T149: -1 | U149: -1 | V149: -1 | W149: -1 | X149: -1 | Y149: -1 | Z149: -1 | AA149: -1 | AB149: -1 | AC149: -1
A150: 147 | B150: EC-TC5M(100st) | C150: 100 | D150: 100 | E150: 0 | F150: 147 | G150: 471 | H150: 4876 | I150: -1 | J150: -1 | K150: -1 | L150: -1 | M150: -1 | N150: -1 | O150: -1 | P150: -1 | Q150: -1 | R150: -1 | S150: -1 | T150: -1 | U150: -1 | V150: -1 | W150: -1 | X150: -1 | Y150: -1 | Z150: -1 | AA150: -1 | AB150: -1 | AC150: -1
A151: 148 | B151: EC-TC5M(150st) | C151: 150 | D151: 150 | E151: 0 | F151: 148 | G151: 472 | H151: 4890 | I151: -1 | J151: -1 | K151: -1 | L151: -1 | M151: -1 | N151: -1 | O151: -1 | P151: -1 | Q151: -1 | R151: -1 | S151: -1 | T151: -1 | U151: -1 | V151: -1 | W151: -1 | X151: -1 | Y151: -1 | Z151: -1 | AA151: -1 | AB151: -1 | AC151: -1
A152: 149 | B152: EC-TC5H(50st) | C152: 50 | D152: 50 | E152: 0 | F152: 149 | G152: 473 | H152: 4901 | I152: -1 | J152: -1 | K152: -1 | L152: -1 | M152: -1 | N152: -1 | O152: -1 | P152: -1 | Q152: -1 | R152: -1 | S152: -1 | T152: -1 | U152: -1 | V152: -1 | W152: -1 | X152: -1 | Y152: -1 | Z152: -1 | AA152: -1 | AB152: -1 | AC152: -1
A153: 150 | B153: EC-TC5H(100st) | C153: 100 | D153: 100 | E153: 0 | F153: 150 | G153: 474 | H153: 4919 | I153: -1 | J153: -1 | K153: -1 | L153: -1 | M153: -1 | N153: -1 | O153: -1 | P153: -1 | Q153: -1 | R153: -1 | S153: -1 | T153: -1 | U153: -1 | V153: -1 | W153: -1 | X153: -1 | Y153: -1 | Z153: -1 | AA153: -1 | AB153: -1 | AC153: -1
A154: 151 | B154: EC-TC5H(150st) | C154: 150 | D154: 150 | E154: 0 | F154: 151 | G154: 475 | H154: 4935 | I154: -1 | J154: -1 | K154: -1 | L154: -1 | M154: -1 | N154: -1 | O154: -1 | P154: -1 | Q154: -1 | R154: -1 | S154: -1 | T154: -1 | U154: -1 | V154: -1 | W154: -1 | X154: -1 | Y154: -1 | Z154: -1 | AA154: -1 | AB154: -1 | AC154: -1
A155: 152 | B155: EC-TC5S(50st) | C155: 50 | D155: 50 | E155: 0 | F155: 152 | G155: 476 | H155: 4947 | I155: -1 | J155: -1 | K155: -1 | L155: -1 | M155: -1 | N155: -1 | O155: -1 | P155: -1 | Q155: -1 | R155: -1 | S155: -1 | T155: -1 | U155: -1 | V155: -1 | W155: -1 | X155: -1 | Y155: -1 | Z155: -1 | AA155: -1 | AB155: -1 | AC155: -1
A156: 153 | B156: EC-TC5S(100st) | C156: 100 | D156: 100 | E156: 0 | F156: 153 | G156: 477 | H156: 4953 | I156: -1 | J156: -1 | K156: -1 | L156: -1 | M156: -1 | N156: -1 | O156: -1 | P156: -1 | Q156: -1 | R156: -1 | S156: -1 | T156: -1 | U156: -1 | V156: -1 | W156: -1 | X156: -1 | Y156: -1 | Z156: -1 | AA156: -1 | AB156: -1 | AC156: -1
A157: 154 | B157: EC-TC5S(150st) | C157: 150 | D157: 150 | E157: 0 | F157: 154 | G157: 478 | H157: 4963 | I157: -1 | J157: -1 | K157: -1 | L157: -1 | M157: -1 | N157: -1 | O157: -1 | P157: -1 | Q157: -1 | R157: -1 | S157: -1 | T157: -1 | U157: -1 | V157: -1 | W157: -1 | X157: -1 | Y157: -1 | Z157: -1 | AA157: -1 | AB157: -1 | AC157: -1
A158: 155 | B158: EC-TW5L(50st) | C158: 50 | D158: 50 | E158: 0 | F158: 155 | G158: 479 | H158: 4973 | I158: -1 | J158: -1 | K158: -1 | L158: -1 | M158: -1 | N158: -1 | O158: -1 | P158: -1 | Q158: -1 | R158: -1 | S158: -1 | T158: -1 | U158: -1 | V158: -1 | W158: -1 | X158: -1 | Y158: -1 | Z158: -1 | AA158: -1 | AB158: -1 | AC158: -1
A159: 156 | B159: EC-TW5L(100st) | C159: 100 | D159: 100 | E159: 0 | F159: 156 | G159: 480 | H159: 4983 | I159: -1 | J159: -1 | K159: -1 | L159: -1 | M159: -1 | N159: -1 | O159: -1 | P159: -1 | Q159: -1 | R159: -1 | S159: -1 | T159: -1 | U159: -1 | V159: -1 | W159: -1 | X159: -1 | Y159: -1 | Z159: -1 | AA159: -1 | AB159: -1 | AC159: -1
A160: 157 | B160: EC-TW5L(150st) | C160: 150 | D160: 150 | E160: 0 | F160: 157 | G160: 481 | H160: 4991 | I160: -1 | J160: -1 | K160: -1 | L160: -1 | M160: -1 | N160: -1 | O160: -1 | P160: -1 | Q160: -1 | R160: -1 | S160: -1 | T160: -1 | U160: -1 | V160: -1 | W160: -1 | X160: -1 | Y160: -1 | Z160: -1 | AA160: -1 | AB160: -1 | AC160: -1
A161: 158 | B161: EC-TW5M(50st) | C161: 50 | D161: 50 | E161: 0 | F161: 158 | G161: 482 | H161: 4999 | I161: -1 | J161: -1 | K161: -1 | L161: -1 | M161: -1 | N161: -1 | O161: -1 | P161: -1 | Q161: -1 | R161: -1 | S161: -1 | T161: -1 | U161: -1 | V161: -1 | W161: -1 | X161: -1 | Y161: -1 | Z161: -1 | AA161: -1 | AB161: -1 | AC161: -1
A162: 159 | B162: EC-TW5M(100st) | C162: 100 | D162: 100 | E162: 0 | F162: 159 | G162: 483 | H162: 5027 | I162: -1 | J162: -1 | K162: -1 | L162: -1 | M162: -1 | N162: -1 | O162: -1 | P162: -1 | Q162: -1 | R162: -1 | S162: -1 | T162: -1 | U162: -1 | V162: -1 | W162: -1 | X162: -1 | Y162: -1 | Z162: -1 | AA162: -1 | AB162: -1 | AC162: -1
A163: 160 | B163: EC-TW5M(150st) | C163: 150 | D163: 150 | E163: 0 | F163: 160 | G163: 484 | H163: 5050 | I163: -1 | J163: -1 | K163: -1 | L163: -1 | M163: -1 | N163: -1 | O163: -1 | P163: -1 | Q163: -1 | R163: -1 | S163: -1 | T163: -1 | U163: -1 | V163: -1 | W163: -1 | X163: -1 | Y163: -1 | Z163: -1 | AA163: -1 | AB163: -1 | AC163: -1
A164: 161 | B164: EC-TW5H(50st) | C164: 50 | D164: 50 | E164: 0 | F164: 161 | G164: 485 | H164: 5067 | I164: -1 | J164: -1 | K164: -1 | L164: -1 | M164: -1 | N164: -1 | O164: -1 | P164: -1 | Q164: -1 | R164: -1 | S164: -1 | T164: -1 | U164: -1 | V164: -1 | W164: -1 | X164: -1 | Y164: -1 | Z164: -1 | AA164: -1 | AB164: -1 | AC164: -1
A165: 162 | B165: EC-TW5H(100st) | C165: 100 | D165: 100 | E165: 0 | F165: 162 | G165: 486 | H165: 5088 | I165: -1 | J165: -1 | K165: -1 | L165: -1 | M165: -1 | N165: -1 | O165: -1 | P165: -1 | Q165: -1 | R165: -1 | S165: -1 | T165: -1 | U165: -1 | V165: -1 | W165: -1 | X165: -1 | Y165: -1 | Z165: -1 | AA165: -1 | AB165: -1 | AC165: -1
A166: 163 | B166: EC-TW5H(150st) | C166: 150 | D166: 150 | E166: 0 | F166: 163 | G166: 487 | H166: 5112 | I166: -1 | J166: -1 | K166: -1 | L166: -1 | M166: -1 | N166: -1 | O166: -1 | P166: -1 | Q166: -1 | R166: -1 | S166: -1 | T166: -1 | U166: -1 | V166: -1 | W166: -1 | X166: -1 | Y166: -1 | Z166: -1 | AA166: -1 | AB166: -1 | AC166: -1
A167: 164 | B167: EC-TW5S(50st) | C167: 50 | D167: 50 | E167: 0 | F167: 164 | G167: 488 | H167: 5129 | I167: -1 | J167: -1 | K167: -1 | L167: -1 | M167: -1 | N167: -1 | O167: -1 | P167: -1 | Q167: -1 | R167: -1 | S167: -1 | T167: -1 | U167: -1 | V167: -1 | W167: -1 | X167: -1 | Y167: -1 | Z167: -1 | AA167: -1 | AB167: -1 | AC167: -1
A168: 165 | B168: EC-TW5S(100st) | C168: 100 | D168: 100 | E168: 0 | F168: 165 | G168: 489 | H168: 5135 | I168: -1 | J168: -1 | K168: -1 | L168: -1 | M168: -1 | N168: -1 | O168: -1 | P168: -1 | Q168: -1 | R168: -1 | S168: -1 | T168: -1 | U168: -1 | V168: -1 | W168: -1 | X168: -1 | Y168: -1 | Z168: -1 | AA168: -1 | AB168: -1 | AC168: -1
A169: 166 | B169: EC-TW5S(150st) | C169: 150 | D169: 150 | E169: 0 | F169: 166 | G169: 490 | H169: 5146 | I169: -1 | J169: -1 | K169: -1 | L169: -1 | M169: -1 | N169: -1 | O169: -1 | P169: -1 | Q169: -1 | R169: -1 | S169: -1 | T169: -1 | U169: -1 | V169: -1 | W169: -1 | X169: -1 | Y169: -1 | Z169: -1 | AA169: -1 | AB169: -1 | AC169: -1
A170: 167 | B170: EC-RR6XLAH | C170: 600 | D170: 1000 | E170: 0 | F170: 167 | G170: 491 | H170: 5159 | I170: -1 | J170: -1 | K170: -1 | L170: -1 | M170: -1 | N170: -1 | O170: -1 | P170: -1 | Q170: -1 | R170: -1 | S170: -1 | T170: -1 | U170: -1 | V170: -1 | W170: -1 | X170: -1 | Y170: -1 | Z170: -1 | AA170: -1 | AB170: -1 | AC170: -1
A171: 168 | B171: EC-RR6XMAH | C171: 600 | D171: 1000 | E171: 0 | F171: 168 | G171: 492 | H171: 5216 | I171: -1 | J171: -1 | K171: -1 | L171: -1 | M171: -1 | N171: -1 | O171: -1 | P171: -1 | Q171: -1 | R171: -1 | S171: -1 | T171: -1 | U171: -1 | V171: -1 | W171: -1 | X171: -1 | Y171: -1 | Z171: -1 | AA171: -1 | AB171: -1 | AC171: -1
A172: 169 | B172: EC-RR6XHAH | C172: 600 | D172: 1000 | E172: 0 | F172: 169 | G172: 493 | H172: 5260 | I172: -1 | J172: -1 | K172: -1 | L172: -1 | M172: -1 | N172: -1 | O172: -1 | P172: -1 | Q172: -1 | R172: -1 | S172: -1 | T172: -1 | U172: -1 | V172: -1 | W172: -1 | X172: -1 | Y172: -1 | Z172: -1 | AA172: -1 | AB172: -1 | AC172: -1
A173: 170 | B173: EC-RR6XSAH | C173: 600 | D173: 1000 | E173: 0 | F173: 170 | G173: 494 | H173: 5290 | I173: -1 | J173: -1 | K173: -1 | L173: -1 | M173: -1 | N173: -1 | O173: -1 | P173: -1 | Q173: -1 | R173: -1 | S173: -1 | T173: -1 | U173: -1 | V173: -1 | W173: -1 | X173: -1 | Y173: -1 | Z173: -1 | AA173: -1 | AB173: -1 | AC173: -1
A174: 171 | B174: EC-RR7XLAH | C174: 750 | D174: 1000 | E174: 0 | F174: 171 | G174: 495 | H174: 5298 | I174: -1 | J174: -1 | K174: -1 | L174: -1 | M174: -1 | N174: -1 | O174: -1 | P174: -1 | Q174: -1 | R174: -1 | S174: -1 | T174: -1 | U174: -1 | V174: -1 | W174: -1 | X174: -1 | Y174: -1 | Z174: -1 | AA174: -1 | AB174: -1 | AC174: -1
A175: 172 | B175: EC-RR7XMAH | C175: 750 | D175: 1000 | E175: 0 | F175: 172 | G175: 496 | H175: 5391 | I175: -1 | J175: -1 | K175: -1 | L175: -1 | M175: -1 | N175: -1 | O175: -1 | P175: -1 | Q175: -1 | R175: -1 | S175: -1 | T175: -1 | U175: -1 | V175: -1 | W175: -1 | X175: -1 | Y175: -1 | Z175: -1 | AA175: -1 | AB175: -1 | AC175: -1
A176: 173 | B176: EC-RR7XHAH | C176: 750 | D176: 1000 | E176: 0 | F176: 173 | G176: 497 | H176: 5469 | I176: -1 | J176: -1 | K176: -1 | L176: -1 | M176: -1 | N176: -1 | O176: -1 | P176: -1 | Q176: -1 | R176: -1 | S176: -1 | T176: -1 | U176: -1 | V176: -1 | W176: -1 | X176: -1 | Y176: -1 | Z176: -1 | AA176: -1 | AB176: -1 | AC176: -1
A177: 174 | B177: EC-RR7XSAH | C177: 750 | D177: 1000 | E177: 0 | F177: 174 | G177: 498 | H177: 5530 | I177: -1 | J177: -1 | K177: -1 | L177: -1 | M177: -1 | N177: -1 | O177: -1 | P177: -1 | Q177: -1 | R177: -1 | S177: -1 | T177: -1 | U177: -1 | V177: -1 | W177: -1 | X177: -1 | Y177: -1 | Z177: -1 | AA177: -1 | AB177: -1 | AC177: -1
A178: 175 | B178: EC-S6L-W | C178: 200 | D178: 400 | E178: 0 | F178: 175 | G178: 499 | H178: 5554 | I178: -1 | J178: -1 | K178: -1 | L178: -1 | M178: -1 | N178: -1 | O178: -1 | P178: -1 | Q178: -1 | R178: -1 | S178: -1 | T178: -1 | U178: -1 | V178: -1 | W178: -1 | X178: -1 | Y178: -1 | Z178: -1 | AA178: -1 | AB178: -1 | AC178: -1
A179: 176 | B179: EC-S6M-W | C179: 200 | D179: 400 | E179: 0 | F179: 176 | G179: 504 | H179: 5601 | I179: -1 | J179: -1 | K179: -1 | L179: -1 | M179: -1 | N179: -1 | O179: -1 | P179: -1 | Q179: -1 | R179: -1 | S179: -1 | T179: -1 | U179: -1 | V179: -1 | W179: -1 | X179: -1 | Y179: -1 | Z179: -1 | AA179: -1 | AB179: -1 | AC179: -1
A180: 177 | B180: EC-S6H-W | C180: 200 | D180: 400 | E180: 0 | F180: 177 | G180: 509 | H180: 5635 | I180: -1 | J180: -1 | K180: -1 | L180: -1 | M180: -1 | N180: -1 | O180: -1 | P180: -1 | Q180: -1 | R180: -1 | S180: -1 | T180: -1 | U180: -1 | V180: -1 | W180: -1 | X180: -1 | Y180: -1 | Z180: -1 | AA180: -1 | AB180: -1 | AC180: -1
A181: 178 | B181: EC-S7L-W | C181: 200 | D181: 500 | E181: 0 | F181: 178 | G181: 514 | H181: 5659 | I181: -1 | J181: -1 | K181: -1 | L181: -1 | M181: -1 | N181: -1 | O181: -1 | P181: -1 | Q181: -1 | R181: -1 | S181: -1 | T181: -1 | U181: -1 | V181: -1 | W181: -1 | X181: -1 | Y181: -1 | Z181: -1 | AA181: -1 | AB181: -1 | AC181: -1
A182: 179 | B182: EC-S7M-W | C182: 200 | D182: 500 | E182: 0 | F182: 179 | G182: 519 | H182: 5718 | I182: -1 | J182: -1 | K182: -1 | L182: -1 | M182: -1 | N182: -1 | O182: -1 | P182: -1 | Q182: -1 | R182: -1 | S182: -1 | T182: -1 | U182: -1 | V182: -1 | W182: -1 | X182: -1 | Y182: -1 | Z182: -1 | AA182: -1 | AB182: -1 | AC182: -1
A183: 180 | B183: EC-S7H-W | C183: 200 | D183: 500 | E183: 0 | F183: 180 | G183: 524 | H183: 5781 | I183: -1 | J183: -1 | K183: -1 | L183: -1 | M183: -1 | N183: -1 | O183: -1 | P183: -1 | Q183: -1 | R183: -1 | S183: -1 | T183: -1 | U183: -1 | V183: -1 | W183: -1 | X183: -1 | Y183: -1 | Z183: -1 | AA183: -1 | AB183: -1 | AC183: -1
A184: 181 | B184: EC-S6LR-W | C184: 200 | D184: 400 | E184: 0 | F184: 181 | G184: 529 | H184: 5824 | I184: -1 | J184: -1 | K184: -1 | L184: -1 | M184: -1 | N184: -1 | O184: -1 | P184: -1 | Q184: -1 | R184: -1 | S184: -1 | T184: -1 | U184: -1 | V184: -1 | W184: -1 | X184: -1 | Y184: -1 | Z184: -1 | AA184: -1 | AB184: -1 | AC184: -1
A185: 182 | B185: EC-S6MR-W | C185: 200 | D185: 400 | E185: 0 | F185: 182 | G185: 534 | H185: 5868 | I185: -1 | J185: -1 | K185: -1 | L185: -1 | M185: -1 | N185: -1 | O185: -1 | P185: -1 | Q185: -1 | R185: -1 | S185: -1 | T185: -1 | U185: -1 | V185: -1 | W185: -1 | X185: -1 | Y185: -1 | Z185: -1 | AA185: -1 | AB185: -1 | AC185: -1
A186: 183 | B186: EC-S6HR-W | C186: 200 | D186: 400 | E186: 0 | F186: 183 | G186: 539 | H186: 5902 | I186: -1 | J186: -1 | K186: -1 | L186: -1 | M186: -1 | N186: -1 | O186: -1 | P186: -1 | Q186: -1 | R186: -1 | S186: -1 | T186: -1 | U186: -1 | V186: -1 | W186: -1 | X186: -1 | Y186: -1 | Z186: -1 | AA186: -1 | AB186: -1 | AC186: -1
A187: 184 | B187: EC-S7LR-W | C187: 200 | D187: 500 | E187: 0 | F187: 184 | G187: 544 | H187: 5924 | I187: -1 | J187: -1 | K187: -1 | L187: -1 | M187: -1 | N187: -1 | O187: -1 | P187: -1 | Q187: -1 | R187: -1 | S187: -1 | T187: -1 | U187: -1 | V187: -1 | W187: -1 | X187: -1 | Y187: -1 | Z187: -1 | AA187: -1 | AB187: -1 | AC187: -1
A188: 185 | B188: EC-S7MR-W | C188: 200 | D188: 500 | E188: 0 | F188: 185 | G188: 549 | H188: 5975 | I188: -1 | J188: -1 | K188: -1 | L188: -1 | M188: -1 | N188: -1 | O188: -1 | P188: -1 | Q188: -1 | R188: -1 | S188: -1 | T188: -1 | U188: -1 | V188: -1 | W188: -1 | X188: -1 | Y188: -1 | Z188: -1 | AA188: -1 | AB188: -1 | AC188: -1
A189: 186 | B189: EC-S7HR-W | C189: 200 | D189: 500 | E189: 0 | F189: 186 | G189: 554 | H189: 6032 | I189: -1 | J189: -1 | K189: -1 | L189: -1 | M189: -1 | N189: -1 | O189: -1 | P189: -1 | Q189: -1 | R189: -1 | S189: -1 | T189: -1 | U189: -1 | V189: -1 | W189: -1 | X189: -1 | Y189: -1 | Z189: -1 | AA189: -1 | AB189: -1 | AC189: -1
A190: 187 | B190: EC-S6LAH-W | C190: 200 | D190: 800 | E190: 0 | F190: 187 | G190: 559 | H190: 6074 | I190: -1 | J190: -1 | K190: -1 | L190: -1 | M190: -1 | N190: -1 | O190: -1 | P190: -1 | Q190: -1 | R190: -1 | S190: -1 | T190: -1 | U190: -1 | V190: -1 | W190: -1 | X190: -1 | Y190: -1 | Z190: -1 | AA190: -1 | AB190: -1 | AC190: -1
A191: 188 | B191: EC-S6MAH-W | C191: 200 | D191: 800 | E191: 0 | F191: 188 | G191: 568 | H191: 6125 | I191: -1 | J191: -1 | K191: -1 | L191: -1 | M191: -1 | N191: -1 | O191: -1 | P191: -1 | Q191: -1 | R191: -1 | S191: -1 | T191: -1 | U191: -1 | V191: -1 | W191: -1 | X191: -1 | Y191: -1 | Z191: -1 | AA191: -1 | AB191: -1 | AC191: -1
A192: 189 | B192: EC-S6HAH-W | C192: 200 | D192: 800 | E192: 0 | F192: 189 | G192: 577 | H192: 6159 | I192: -1 | J192: -1 | K192: -1 | L192: -1 | M192: -1 | N192: -1 | O192: -1 | P192: -1 | Q192: -1 | R192: -1 | S192: -1 | T192: -1 | U192: -1 | V192: -1 | W192: -1 | X192: -1 | Y192: -1 | Z192: -1 | AA192: -1 | AB192: -1 | AC192: -1
A193: 190 | B193: EC-S7LAH-W | C193: 200 | D193: 800 | E193: 0 | F193: 190 | G193: 586 | H193: 6183 | I193: -1 | J193: -1 | K193: -1 | L193: -1 | M193: -1 | N193: -1 | O193: -1 | P193: -1 | Q193: -1 | R193: -1 | S193: -1 | T193: -1 | U193: -1 | V193: -1 | W193: -1 | X193: -1 | Y193: -1 | Z193: -1 | AA193: -1 | AB193: -1 | AC193: -1
A194: 191 | B194: EC-S7MAH-W | C194: 200 | D194: 800 | E194: 0 | F194: 191 | G194: 592 | H194: 6248 | I194: -1 | J194: -1 | K194: -1 | L194: -1 | M194: -1 | N194: -1 | O194: -1 | P194: -1 | Q194: -1 | R194: -1 | S194: -1 | T194: -1 | U194: -1 | V194: -1 | W194: -1 | X194: -1 | Y194: -1 | Z194: -1 | AA194: -1 | AB194: -1 | AC194: -1
A195: 192 | B195: EC-S7HAH-W | C195: 200 | D195: 800 | E195: 0 | F195: 192 | G195: 598 | H195: 6311 | I195: -1 | J195: -1 | K195: -1 | L195: -1 | M195: -1 | N195: -1 | O195: -1 | P195: -1 | Q195: -1 | R195: -1 | S195: -1 | T195: -1 | U195: -1 | V195: -1 | W195: -1 | X195: -1 | Y195: -1 | Z195: -1 | AA195: -1 | AB195: -1 | AC195: -1
A196: 193 | B196: EC-S6LAHR-W | C196: 200 | D196: 800 | E196: 0 | F196: 193 | G196: 605 | H196: 6354 | I196: -1 | J196: -1 | K196: -1 | L196: -1 | M196: -1 | N196: -1 | O196: -1 | P196: -1 | Q196: -1 | R196: -1 | S196: -1 | T196: -1 | U196: -1 | V196: -1 | W196: -1 | X196: -1 | Y196: -1 | Z196: -1 | AA196: -1 | AB196: -1 | AC196: -1
A197: 194 | B197: EC-S6MAHR-W | C197: 200 | D197: 800 | E197: 0 | F197: 194 | G197: 614 | H197: 6402 | I197: -1 | J197: -1 | K197: -1 | L197: -1 | M197: -1 | N197: -1 | O197: -1 | P197: -1 | Q197: -1 | R197: -1 | S197: -1 | T197: -1 | U197: -1 | V197: -1 | W197: -1 | X197: -1 | Y197: -1 | Z197: -1 | AA197: -1 | AB197: -1 | AC197: -1
A198: 195 | B198: EC-S6HAHR-W | C198: 200 | D198: 800 | E198: 0 | F198: 195 | G198: 623 | H198: 6436 | I198: -1 | J198: -1 | K198: -1 | L198: -1 | M198: -1 | N198: -1 | O198: -1 | P198: -1 | Q198: -1 | R198: -1 | S198: -1 | T198: -1 | U198: -1 | V198: -1 | W198: -1 | X198: -1 | Y198: -1 | Z198: -1 | AA198: -1 | AB198: -1 | AC198: -1
A199: 196 | B199: EC-S7LAHR-W | C199: 200 | D199: 800 | E199: 0 | F199: 196 | G199: 632 | H199: 6458 | I199: -1 | J199: -1 | K199: -1 | L199: -1 | M199: -1 | N199: -1 | O199: -1 | P199: -1 | Q199: -1 | R199: -1 | S199: -1 | T199: -1 | U199: -1 | V199: -1 | W199: -1 | X199: -1 | Y199: -1 | Z199: -1 | AA199: -1 | AB199: -1 | AC199: -1
A200: 197 | B200: EC-S7MAHR-W | C200: 200 | D200: 800 | E200: 0 | F200: 197 | G200: 636 | H200: 6515 | I200: -1 | J200: -1 | K200: -1 | L200: -1 | M200: -1 | N200: -1 | O200: -1 | P200: -1 | Q200: -1 | R200: -1 | S200: -1 | T200: -1 | U200: -1 | V200: -1 | W200: -1 | X200: -1 | Y200: -1 | Z200: -1 | AA200: -1 | AB200: -1 | AC200: -1
... 17 more rows

Sheet LeadData (hidden)
A1: 9.80665 | B1: 1 | C1: 3 | D1: 4 | E1: 5 | F1: 6 | G1: 10 | H1: 11 | I1: 14
A2: データ№ | B2: ﾘｰﾄﾞ長 | C2: 水平定格加速度 | D2: 垂直定格加速度 | E2: 水平最大加速度 | F2: 垂直最大加速度 | G2: ｷﾞｱ比分子 | H2: ｷﾞｱ比分母 | I2: ｽﾄﾛｰｸ刻み | J2: 備考
A3: =ModelData!A3 -> 0 | B3: 0.001㎜ | C3: 0.001mm/s^2 | D3: 0.001mm/s^2 | E3: 0.001mm/s^2 | F3: 0.001mm/s^2 | I3: mm
A4: 1 | B4: 3000 | C4: 2941995 | D4: 2941995 | E4: 9806650 | F4: 4903325 | G4: 1 | H4: 1 | I4: 50 | J4: EC-S6L (リード=3mm)
A5: 2 | B5: 6000 | C5: 2941995 | D5: 2941995 | E5: 9806650 | F5: 4903325 | G5: 1 | H5: 1 | I5: 50 | J5: EC-S6M (リード=6mm)
A6: 3 | B6: 12000 | C6: 2941995 | D6: 2941995 | E6: 9806650 | F6: 4903325 | G6: 1 | H6: 1 | I6: 50 | J6: EC-S6H (リード=12mm)
A7: 4 | B7: 20000 | C7: 2941995 | D7: 2941995 | E7: 9806650 | F7: 4903325 | G7: 1 | H7: 1 | I7: 50 | J7: EC-S6S (リード=20mm)
A8: 5 | B8: 4000 | C8: 2941995 | D8: 2941995 | E8: 9806650 | F8: 4903325 | G8: 1 | H8: 1 | I8: 50 | J8: EC-S7L (リード=4mm)
A9: 6 | B9: 8000 | C9: 2941995 | D9: 2941995 | E9: 9806650 | F9: 4903325 | G9: 1 | H9: 1 | I9: 50 | J9: EC-S7M (リード=8mm)
A10: 7 | B10: 16000 | C10: 2941995 | D10: 2941995 | E10: 9806650 | F10: 4903325 | G10: 1 | H10: 1 | I10: 50 | J10: EC-S7H (リード=16mm)
A11: 8 | B11: 24000 | C11: 2941995 | D11: 2941995 | E11: 9806650 | F11: 4903325 | G11: 1 | H11: 1 | I11: 50 | J11: EC-S7S (リード=24mm)
A12: 9 | B12: 3000 | C12: 2941995 | D12: 2941995 | E12: 9806650 | F12: 4903325 | G12: 1 | H12: 1 | I12: 50 | J12: EC-R6L (リード=3mm)
A13: 10 | B13: 6000 | C13: 2941995 | D13: 2941995 | E13: 9806650 | F13: 4903325 | G13: 1 | H13: 1 | I13: 50 | J13: EC-R6M (リード=6mm)
A14: 11 | B14: 12000 | C14: 2941995 | D14: 2941995 | E14: 9806650 | F14: 4903325 | G14: 1 | H14: 1 | I14: 50 | J14: EC-R6H (リード=12mm)
A15: 12 | B15: 20000 | C15: 2941995 | D15: 2941995 | E15: 9806650 | F15: 4903325 | G15: 1 | H15: 1 | I15: 50 | J15: EC-R6S (リード=20mm)
A16: 13 | B16: 4000 | C16: 2941995 | D16: 2941995 | E16: 9806650 | F16: 4903325 | G16: 1 | H16: 1 | I16: 50 | J16: EC-R7L (リード=4mm)
A17: 14 | B17: 8000 | C17: 2941995 | D17: 2941995 | E17: 9806650 | F17: 4903325 | G17: 1 | H17: 1 | I17: 50 | J17: EC-R7M (リード=8mm)
A18: 15 | B18: 16000 | C18: 2941995 | D18: 2941995 | E18: 9806650 | F18: 4903325 | G18: 1 | H18: 1 | I18: 50 | J18: EC-R7H (リード=16mm)
A19: 16 | B19: 24000 | C19: 2941995 | D19: 2941995 | E19: 9806650 | F19: 4903325 | G19: 1 | H19: 1 | I19: 50 | J19: EC-R7S (リード=24mm)
A20: 17 | B20: 3000 | C20: 2941995 | D20: 2941995 | E20: 9806650 | F20: 4903325 | G20: 1 | H20: 1 | I20: 50 | J20: EC-RR6L (リード=3mm)
A21: 18 | B21: 6000 | C21: 2941995 | D21: 2941995 | E21: 9806650 | F21: 4903325 | G21: 1 | H21: 1 | I21: 50 | J21: EC-RR6M (リード=6mm)
A22: 19 | B22: 12000 | C22: 2941995 | D22: 2941995 | E22: 9806650 | F22: 4903325 | G22: 1 | H22: 1 | I22: 50 | J22: EC-RR6H (リード=12mm)
A23: 20 | B23: 20000 | C23: 2941995 | D23: 2941995 | E23: 9806650 | F23: 4903325 | G23: 1 | H23: 1 | I23: 50 | J23: EC-RR6S (リード=20mm)
A24: 21 | B24: 4000 | C24: 2941995 | D24: 2941995 | E24: 9806650 | F24: 4903325 | G24: 1 | H24: 1 | I24: 50 | J24: EC-RR7L (リード=4mm)
A25: 22 | B25: 8000 | C25: 2941995 | D25: 2941995 | E25: 9806650 | F25: 4903325 | G25: 1 | H25: 1 | I25: 50 | J25: EC-RR7M (リード=8mm)
A26: 23 | B26: 16000 | C26: 2941995 | D26: 2941995 | E26: 9806650 | F26: 4903325 | G26: 1 | H26: 1 | I26: 50 | J26: EC-RR7H (リード=16mm)
A27: 24 | B27: 24000 | C27: 2941995 | D27: 2941995 | E27: 9806650 | F27: 4903325 | G27: 1 | H27: 1 | I27: 50 | J27: EC-RR7S (リード=24mm)
A28: 25 | B28: 3000 | C28: 2941995 | D28: 2941995 | E28: 9806650 | F28: 4903325 | G28: 1 | H28: 1 | I28: 50 | J28: EC-R6LW (リード=3mm)
A29: 26 | B29: 6000 | C29: 2941995 | D29: 2941995 | E29: 9806650 | F29: 4903325 | G29: 1 | H29: 1 | I29: 50 | J29: EC-R6MW (リード=6mm)
A30: 27 | B30: 12000 | C30: 2941995 | D30: 2941995 | E30: 9806650 | F30: 4903325 | G30: 1 | H30: 1 | I30: 50 | J30: EC-R6HW (リード=12mm)
A31: 28 | B31: 20000 | C31: 2941995 | D31: 2941995 | E31: 9806650 | F31: 4903325 | G31: 1 | H31: 1 | I31: 50 | J31: EC-R6SW (リード=20mm)
A32: 29 | B32: 4000 | C32: 2941995 | D32: 2941995 | E32: 9806650 | F32: 4903325 | G32: 1 | H32: 1 | I32: 50 | J32: EC-R7LW (リード=4mm)
A33: 30 | B33: 8000 | C33: 2941995 | D33: 2941995 | E33: 9806650 | F33: 4903325 | G33: 1 | H33: 1 | I33: 50 | J33: EC-R7MW (リード=8mm)
A34: 31 | B34: 16000 | C34: 2941995 | D34: 2941995 | E34: 9806650 | F34: 4903325 | G34: 1 | H34: 1 | I34: 50 | J34: EC-R7HW (リード=16mm)
A35: 32 | B35: 24000 | C35: 2941995 | D35: 2941995 | E35: 9806650 | F35: 4903325 | G35: 1 | H35: 1 | I35: 50 | J35: EC-R7SW (リード=24mm)
A36: 33 | B36: 3000 | C36: 2941995 | D36: 2941995 | E36: 9806650 | F36: 4903325 | G36: 1 | H36: 1 | I36: 50 | J36: EC-S6LH (リード=3mm)
A37: 34 | B37: 6000 | C37: 2941995 | D37: 2941995 | E37: 9806650 | F37: 4903325 | G37: 1 | H37: 1 | I37: 50 | J37: EC-S6MH (リード=6mm)
A38: 35 | B38: 12000 | C38: 2941995 | D38: 2941995 | E38: 9806650 | F38: 4903325 | G38: 1 | H38: 1 | I38: 50 | J38: EC-S6HH (リード=12mm)
A39: 36 | B39: 20000 | C39: 2941995 | D39: 2941995 | E39: 9806650 | F39: 4903325 | G39: 1 | H39: 1 | I39: 50 | J39: EC-S6SH (リード=20mm)
A40: 37 | B40: 4000 | C40: 2941995 | D40: 2941995 | E40: 9806650 | F40: 4903325 | G40: 1 | H40: 1 | I40: 50 | J40: EC-S7LH (リード=4mm)
A41: 38 | B41: 8000 | C41: 2941995 | D41: 2941995 | E41: 9806650 | F41: 4903325 | G41: 1 | H41: 1 | I41: 50 | J41: EC-S7MH (リード=8mm)
A42: 39 | B42: 16000 | C42: 2941995 | D42: 2941995 | E42: 9806650 | F42: 4903325 | G42: 1 | H42: 1 | I42: 50 | J42: EC-S7HH (リード=16mm)
A43: 40 | B43: 24000 | C43: 2941995 | D43: 2941995 | E43: 9806650 | F43: 4903325 | G43: 1 | H43: 1 | I43: 50 | J43: EC-S7SH (リード=24mm)
A44: 41 | B44: 3000 | C44: 2941995 | D44: 2941995 | E44: 9806650 | F44: 4903325 | G44: 1 | H44: 1 | I44: 50 | J44: EC-RR6LH (リード=3mm)
A45: 42 | B45: 6000 | C45: 2941995 | D45: 2941995 | E45: 9806650 | F45: 4903325 | G45: 1 | H45: 1 | I45: 50 | J45: EC-RR6MH (リード=6mm)
A46: 43 | B46: 12000 | C46: 2941995 | D46: 2941995 | E46: 9806650 | F46: 4903325 | G46: 1 | H46: 1 | I46: 50 | J46: EC-RR6HH (リード=12mm)
A47: 44 | B47: 20000 | C47: 2941995 | D47: 2941995 | E47: 9806650 | F47: 4903325 | G47: 1 | H47: 1 | I47: 50 | J47: EC-RR6SH (リード=20mm)
A48: 45 | B48: 4000 | C48: 2941995 | D48: 2941995 | E48: 9806650 | F48: 4903325 | G48: 1 | H48: 1 | I48: 50 | J48: EC-RR7LH (リード=4mm)
A49: 46 | B49: 8000 | C49: 2941995 | D49: 2941995 | E49: 9806650 | F49: 4903325 | G49: 1 | H49: 1 | I49: 50 | J49: EC-RR7MH (リード=8mm)
A50: 47 | B50: 16000 | C50: 2941995 | D50: 2941995 | E50: 9806650 | F50: 4903325 | G50: 1 | H50: 1 | I50: 50 | J50: EC-RR7HH (リード=16mm)
A51: 48 | B51: 24000 | C51: 2941995 | D51: 2941995 | E51: 9806650 | F51: 4903325 | G51: 1 | H51: 1 | I51: 50 | J51: EC-RR7SH (リード=24mm)
A52: 49 | B52: 3000 | C52: 2941995 | D52: 2941995 | E52: 9806650 | F52: 4903325 | G52: 1 | H52: 1 | I52: 50 | J52: EC-S6LAH (リード=3mm)
A53: 50 | B53: 6000 | C53: 2941995 | D53: 2941995 | E53: 9806650 | F53: 4903325 | G53: 1 | H53: 1 | I53: 50 | J53: EC-S6MAH (リード=6mm)
A54: 51 | B54: 12000 | C54: 2941995 | D54: 2941995 | E54: 9806650 | F54: 4903325 | G54: 1 | H54: 1 | I54: 50 | J54: EC-S6HAH (リード=12mm)
A55: 52 | B55: 20000 | C55: 2941995 | D55: 2941995 | E55: 9806650 | F55: 4903325 | G55: 1 | H55: 1 | I55: 50 | J55: EC-S6SAH (リード=20mm)
A56: 53 | B56: 4000 | C56: 2941995 | D56: 2941995 | E56: 9806650 | F56: 4903325 | G56: 1 | H56: 1 | I56: 50 | J56: EC-S7LAH (リード=4mm)
A57: 54 | B57: 8000 | C57: 2941995 | D57: 2941995 | E57: 9806650 | F57: 4903325 | G57: 1 | H57: 1 | I57: 50 | J57: EC-S7MAH (リード=8mm)
A58: 55 | B58: 16000 | C58: 2941995 | D58: 2941995 | E58: 9806650 | F58: 4903325 | G58: 1 | H58: 1 | I58: 50 | J58: EC-S7HAH (リード=16mm)
A59: 56 | B59: 24000 | C59: 2941995 | D59: 2941995 | E59: 9806650 | F59: 4903325 | G59: 1 | H59: 1 | I59: 50 | J59: EC-S7SAH (リード=24mm)
A60: 57 | B60: 3000 | C60: 2941995 | D60: 2941995 | E60: 9806650 | F60: 4903325 | G60: 1 | H60: 1 | I60: 50 | J60: EC-RR6LAH (リード=3mm)
A61: 58 | B61: 6000 | C61: 2941995 | D61: 2941995 | E61: 9806650 | F61: 4903325 | G61: 1 | H61: 1 | I61: 50 | J61: EC-RR6MAH (リード=6mm)
A62: 59 | B62: 12000 | C62: 2941995 | D62: 2941995 | E62: 9806650 | F62: 4903325 | G62: 1 | H62: 1 | I62: 50 | J62: EC-RR6HAH (リード=12mm)
A63: 60 | B63: 20000 | C63: 2941995 | D63: 2941995 | E63: 9806650 | F63: 4903325 | G63: 1 | H63: 1 | I63: 50 | J63: EC-RR6SAH (リード=20mm)
A64: 61 | B64: 4000 | C64: 2941995 | D64: 2941995 | E64: 9806650 | F64: 4903325 | G64: 1 | H64: 1 | I64: 50 | J64: EC-RR7LAH (リード=4mm)
A65: 62 | B65: 8000 | C65: 2941995 | D65: 2941995 | E65: 9806650 | F65: 4903325 | G65: 1 | H65: 1 | I65: 50 | J65: EC-RR7MAH (リード=8mm)
A66: 63 | B66: 16000 | C66: 2941995 | D66: 2941995 | E66: 9806650 | F66: 4903325 | G66: 1 | H66: 1 | I66: 50 | J66: EC-RR7HAH (リード=16mm)
A67: 64 | B67: 24000 | C67: 2941995 | D67: 2941995 | E67: 9806650 | F67: 4903325 | G67: 1 | H67: 1 | I67: 50 | J67: EC-RR7SAH (リード=24mm)
A68: 65 | B68: 3000 | C68: 2941995 | D68: 2941995 | E68: 9806650 | F68: 4903325 | G68: 1 | H68: 1 | I68: 50 | J68: EC-S6LR (リード=3mm)
A69: 66 | B69: 6000 | C69: 2941995 | D69: 2941995 | E69: 9806650 | F69: 4903325 | G69: 1 | H69: 1 | I69: 50 | J69: EC-S6MR (リード=6mm)
A70: 67 | B70: 12000 | C70: 2941995 | D70: 2941995 | E70: 9806650 | F70: 4903325 | G70: 1 | H70: 1 | I70: 50 | J70: EC-S6HR (リード=12mm)
A71: 68 | B71: 20000 | C71: 2941995 | D71: 2941995 | E71: 9806650 | F71: 4903325 | G71: 1 | H71: 1 | I71: 50 | J71: EC-S6SR (リード=20mm)
A72: 69 | B72: 4000 | C72: 2941995 | D72: 2941995 | E72: 9806650 | F72: 4903325 | G72: 1 | H72: 1 | I72: 50 | J72: EC-S7LR (リード=4mm)
A73: 70 | B73: 8000 | C73: 2941995 | D73: 2941995 | E73: 9806650 | F73: 4903325 | G73: 1 | H73: 1 | I73: 50 | J73: EC-S7MR (リード=8mm)
A74: 71 | B74: 16000 | C74: 2941995 | D74: 2941995 | E74: 9806650 | F74: 4903325 | G74: 1 | H74: 1 | I74: 50 | J74: EC-S7HR (リード=16mm)
A75: 72 | B75: 24000 | C75: 2941995 | D75: 2941995 | E75: 9806650 | F75: 4903325 | G75: 1 | H75: 1 | I75: 50 | J75: EC-S7SR (リード=24mm)
A76: 73 | B76: 3000 | C76: 2941995 | D76: 2941995 | E76: 9806650 | F76: 4903325 | G76: 1 | H76: 1 | I76: 50 | J76: EC-S6LAHR (リード=3mm)
A77: 74 | B77: 6000 | C77: 2941995 | D77: 2941995 | E77: 9806650 | F77: 4903325 | G77: 1 | H77: 1 | I77: 50 | J77: EC-S6MAHR (リード=6mm)
A78: 75 | B78: 12000 | C78: 2941995 | D78: 2941995 | E78: 9806650 | F78: 4903325 | G78: 1 | H78: 1 | I78: 50 | J78: EC-S6HAHR (リード=12mm)
A79: 76 | B79: 20000 | C79: 2941995 | D79: 2941995 | E79: 9806650 | F79: 4903325 | G79: 1 | H79: 1 | I79: 50 | J79: EC-S6SAHR (リード=20mm)
A80: 77 | B80: 4000 | C80: 2941995 | D80: 2941995 | E80: 9806650 | F80: 4903325 | G80: 1 | H80: 1 | I80: 50 | J80: EC-S7LAHR (リード=4mm)
A81: 78 | B81: 8000 | C81: 2941995 | D81: 2941995 | E81: 9806650 | F81: 4903325 | G81: 1 | H81: 1 | I81: 50 | J81: EC-S7MAHR (リード=8mm)
A82: 79 | B82: 16000 | C82: 2941995 | D82: 2941995 | E82: 9806650 | F82: 4903325 | G82: 1 | H82: 1 | I82: 50 | J82: EC-S7HAHR (リード=16mm)
A83: 80 | B83: 24000 | C83: 2941995 | D83: 2941995 | E83: 9806650 | F83: 4903325 | G83: 1 | H83: 1 | I83: 50 | J83: EC-S7SAHR (リード=24mm)
A84: 81 | B84: 3000 | C84: 2941995 | D84: 2941995 | E84: 9806650 | F84: 4903325 | G84: 1 | H84: 1 | I84: 50 | J84: EC-RR6LR (リード=3mm)
A85: 82 | B85: 6000 | C85: 2941995 | D85: 2941995 | E85: 9806650 | F85: 4903325 | G85: 1 | H85: 1 | I85: 50 | J85: EC-RR6MR (リード=6mm)
A86: 83 | B86: 12000 | C86: 2941995 | D86: 2941995 | E86: 9806650 | F86: 4903325 | G86: 1 | H86: 1 | I86: 50 | J86: EC-RR6HR (リード=12mm)
A87: 84 | B87: 20000 | C87: 2941995 | D87: 2941995 | E87: 9806650 | F87: 4903325 | G87: 1 | H87: 1 | I87: 50 | J87: EC-RR6SR (リード=20mm)
A88: 85 | B88: 4000 | C88: 2941995 | D88: 2941995 | E88: 9806650 | F88: 4903325 | G88: 1 | H88: 1 | I88: 50 | J88: EC-RR7LR (リード=4mm)
A89: 86 | B89: 8000 | C89: 2941995 | D89: 2941995 | E89: 9806650 | F89: 4903325 | G89: 1 | H89: 1 | I89: 50 | J89: EC-RR7MR (リード=8mm)
A90: 87 | B90: 16000 | C90: 2941995 | D90: 2941995 | E90: 9806650 | F90: 4903325 | G90: 1 | H90: 1 | I90: 50 | J90: EC-RR7HR (リード=16mm)
A91: 88 | B91: 24000 | C91: 2941995 | D91: 2941995 | E91: 9806650 | F91: 4903325 | G91: 1 | H91: 1 | I91: 50 | J91: EC-RR7SR (リード=24mm)
A92: 89 | B92: 3000 | C92: 2941995 | D92: 2941995 | E92: 9806650 | F92: 4903325 | G92: 1 | H92: 1 | I92: 50 | J92: EC-RR6LAHR (リード=3mm)
A93: 90 | B93: 6000 | C93: 2941995 | D93: 2941995 | E93: 9806650 | F93: 4903325 | G93: 1 | H93: 1 | I93: 50 | J93: EC-RR6MAHR (リード=6mm)
A94: 91 | B94: 12000 | C94: 2941995 | D94: 2941995 | E94: 9806650 | F94: 4903325 | G94: 1 | H94: 1 | I94: 50 | J94: EC-RR6HAHR (リード=12mm)
A95: 92 | B95: 20000 | C95: 2941995 | D95: 2941995 | E95: 9806650 | F95: 4903325 | G95: 1 | H95: 1 | I95: 50 | J95: EC-RR6SAHR (リード=20mm)
A96: 93 | B96: 4000 | C96: 2941995 | D96: 2941995 | E96: 9806650 | F96: 4903325 | G96: 1 | H96: 1 | I96: 50 | J96: EC-RR7LAHR (リード=4mm)
A97: 94 | B97: 8000 | C97: 2941995 | D97: 2941995 | E97: 9806650 | F97: 4903325 | G97: 1 | H97: 1 | I97: 50 | J97: EC-RR7MAHR (リード=8mm)
A98: 95 | B98: 16000 | C98: 2941995 | D98: 2941995 | E98: 9806650 | F98: 4903325 | G98: 1 | H98: 1 | I98: 50 | J98: EC-RR7HAHR (リード=16mm)
A99: 96 | B99: 24000 | C99: 2941995 | D99: 2941995 | E99: 9806650 | F99: 4903325 | G99: 1 | H99: 1 | I99: 50 | J99: EC-RR7SAHR (リード=24mm)
A100: 97 | B100: 2500 | C100: 2941995 | D100: 2941995 | E100: 2941995 | F100: 2941995 | G100: 1 | H100: 1 | I100: 50 | J100: EC-S4L (リード=2.5mm)
A101: 98 | B101: 5000 | C101: 2941995 | D101: 2941995 | E101: 4903325 | F101: 4903325 | G101: 1 | H101: 1 | I101: 50 | J101: EC-S4M (リード=5mm)
A102: 99 | B102: 10000 | C102: 2941995 | D102: 2941995 | E102: 9806650 | F102: 4903325 | G102: 1 | H102: 1 | I102: 50 | J102: EC-S4H (リード=10mm)
A103: 100 | B103: 16000 | C103: 2941995 | D103: 2941995 | E103: 9806650 | F103: 4903325 | G103: 1 | H103: 1 | I103: 50 | J103: EC-S4S (リード=16mm)
A104: 101 | B104: 2500 | C104: 2941995 | D104: 2941995 | E104: 2941995 | F104: 2941995 | G104: 1 | H104: 1 | I104: 50 | J104: EC-RR4L (リード=2.5mm)
A105: 102 | B105: 5000 | C105: 2941995 | D105: 2941995 | E105: 4903325 | F105: 4903325 | G105: 1 | H105: 1 | I105: 50 | J105: EC-RR4M (リード=5mm)
A106: 103 | B106: 10000 | C106: 2941995 | D106: 2941995 | E106: 9806650 | F106: 4903325 | G106: 1 | H106: 1 | I106: 50 | J106: EC-RR4H (リード=10mm)
A107: 104 | B107: 16000 | C107: 2941995 | D107: 2941995 | E107: 9806650 | F107: 4903325 | G107: 1 | H107: 1 | I107: 50 | J107: EC-RR4S (リード=16mm)
A108: 105 | B108: 3000 | C108: 2941995 | D108: 2941995 | E108: 9806650 | F108: 4903325 | G108: 1 | H108: 1 | I108: 50 | J108: EC-RR6LW (リード=3mm)
A109: 106 | B109: 6000 | C109: 2941995 | D109: 2941995 | E109: 9806650 | F109: 4903325 | G109: 1 | H109: 1 | I109: 50 | J109: EC-RR6MW (リード=6mm)
A110: 107 | B110: 12000 | C110: 2941995 | D110: 2941995 | E110: 9806650 | F110: 4903325 | G110: 1 | H110: 1 | I110: 50 | J110: EC-RR6HW (リード=12mm)
A111: 108 | B111: 20000 | C111: 2941995 | D111: 2941995 | E111: 9806650 | F111: 4903325 | G111: 1 | H111: 1 | I111: 50 | J111: EC-RR6SW (リード=20mm)
A112: 109 | B112: 4000 | C112: 2941995 | D112: 2941995 | E112: 9806650 | F112: 4903325 | G112: 1 | H112: 1 | I112: 50 | J112: EC-RR7LW (リード=4mm)
A113: 110 | B113: 8000 | C113: 2941995 | D113: 2941995 | E113: 9806650 | F113: 4903325 | G113: 1 | H113: 1 | I113: 50 | J113: EC-RR7MW (リード=8mm)
A114: 111 | B114: 16000 | C114: 2941995 | D114: 2941995 | E114: 9806650 | F114: 4903325 | G114: 1 | H114: 1 | I114: 50 | J114: EC-RR7HW (リード=16mm)
A115: 112 | B115: 24000 | C115: 2941995 | D115: 2941995 | E115: 9806650 | F115: 4903325 | G115: 1 | H115: 1 | I115: 50 | J115: EC-RR7SW (リード=24mm)
A116: 113 | B116: 48000 | C116: 2941995 | D116: -1 | E116: 9806650 | F116: -1 | G116: 1 | H116: 1 | I116: 100 | J116: EC-B6S | K116: ↓Ver.1.1 追加
A117: 114 | B117: 48000 | C117: 2941995 | D117: -1 | E117: 9806650 | F117: -1 | G117: 1 | H117: 1 | I117: 100 | J117: EC-B6SU
A118: 115 | B118: 48000 | C118: 2941995 | D118: -1 | E118: 9806650 | F118: -1 | G118: 1 | H118: 1 | I118: 100 | J118: EC-B7S
A119: 116 | B119: 48000 | C119: 2941995 | D119: -1 | E119: 9806650 | F119: -1 | G119: 1 | H119: 1 | I119: 100 | J119: EC-B7SU
A120: 117 | B120: 2500 | C120: 2941995 | D120: 2941995 | E120: 2941995 | F120: 2941995 | G120: 1 | H120: 1 | I120: 50 | J120: EC-S4LR
A121: 118 | B121: 5000 | C121: 2941995 | D121: 2941995 | E121: 4903325 | F121: 4903325 | G121: 1 | H121: 1 | I121: 50 | J121: EC-S4MR
A122: 119 | B122: 10000 | C122: 2941995 | D122: 2941995 | E122: 9806650 | F122: 4903325 | G122: 1 | H122: 1 | I122: 50 | J122: EC-S4HR
A123: 120 | B123: 16000 | C123: 2941995 | D123: 2941995 | E123: 9806650 | F123: 4903325 | G123: 1 | H123: 1 | I123: 50 | J123: EC-S4SR
A124: 121 | B124: 2500 | C124: 2941995 | D124: 2941995 | E124: 2941995 | F124: 2941995 | G124: 1 | H124: 1 | I124: 50 | J124: EC-RR4LR
A125: 122 | B125: 5000 | C125: 2941995 | D125: 2941995 | E125: 4903325 | F125: 4903325 | G125: 1 | H125: 1 | I125: 50 | J125: EC-RR4MR
A126: 123 | B126: 10000 | C126: 2941995 | D126: 2941995 | E126: 9806650 | F126: 4903325 | G126: 1 | H126: 1 | I126: 50 | J126: EC-RR4HR
A127: 124 | B127: 16000 | C127: 2941995 | D127: 2941995 | E127: 9806650 | F127: 4903325 | G127: 1 | H127: 1 | I127: 50 | J127: EC-RR4SR
A128: 125 | B128: 3000 | C128: 2941995 | D128: 2941995 | E128: 4903325 | F128: 4903325 | G128: 1 | H128: 1 | I128: 50 | J128: EC-ST15L
A129: 126 | B129: 45000 | C129: 2941995 | D129: 2941995 | E129: 6864655 | F129: 4903325 | G129: 1 | H129: 45 | I129: 330 | J129: EC-RTC12 | K129: ↑Ver.1.1 追加
A130: 127 | B130: 3000 | C130: 2941995 | D130: 2941995 | E130: 2941995 | F130: 2941995 | G130: 1 | H130: 1 | I130: 50 | J130: EC-WS10L | K130: ↓Ver.1.2 追加
A131: 128 | B131: 6000 | C131: 2941995 | D131: 2941995 | E131: 4903325 | F131: 4903325 | G131: 1 | H131: 1 | I131: 50 | J131: EC-WS10M
A132: 129 | B132: 12000 | C132: 2941995 | D132: -1 | E132: 9806650 | F132: -1 | G132: 1 | H132: 1 | I132: 50 | J132: EC-WS10H
A133: 130 | B133: 20000 | C133: 2941995 | D133: -1 | E133: 9806650 | F133: -1 | G133: 1 | H133: 1 | I133: 50 | J133: EC-WS10S
A134: 131 | B134: 4000 | C134: 2941995 | D134: 2941995 | E134: 2941995 | F134: 2941995 | G134: 1 | H134: 1 | I134: 50 | J134: EC-WS12L
A135: 132 | B135: 8000 | C135: 2941995 | D135: 2941995 | E135: 4903325 | F135: 4903325 | G135: 1 | H135: 1 | I135: 50 | J135: EC-WS12M
A136: 133 | B136: 16000 | C136: 2941995 | D136: -1 | E136: 9806650 | F136: -1 | G136: 1 | H136: 1 | I136: 50 | J136: EC-WS12H
A137: 134 | B137: 24000 | C137: 2941995 | D137: -1 | E137: 9806650 | F137: -1 | G137: 1 | H137: 1 | I137: 50 | J137: EC-WS12S
A138: 135 | B138: 2500 | C138: 2941995 | D138: 2941995 | E138: 2941995 | F138: 2941995 | G138: 1 | H138: 1 | I138: 50 | J138: EC-RP5L
A139: 136 | B139: 5000 | C139: 2941995 | D139: 2941995 | E139: 4903325 | F139: 4903325 | G139: 1 | H139: 1 | I139: 50 | J139: EC-RP5M
A140: 137 | B140: 10000 | C140: 2941995 | D140: 2941995 | E140: 9806650 | F140: 4903325 | G140: 1 | H140: 1 | I140: 50 | J140: EC-RP5H
A141: 138 | B141: 16000 | C141: 2941995 | D141: 2941995 | E141: 9806650 | F141: 4903325 | G141: 1 | H141: 1 | I141: 50 | J141: EC-RP5S
A142: 139 | B142: 2500 | C142: 2941995 | D142: 2941995 | E142: 2941995 | F142: 2941995 | G142: 1 | H142: 1 | I142: 50 | J142: EC-GD5L
A143: 140 | B143: 5000 | C143: 2941995 | D143: 2941995 | E143: 4903325 | F143: 4903325 | G143: 1 | H143: 1 | I143: 50 | J143: EC-GD5M
A144: 141 | B144: 10000 | C144: 2941995 | D144: 2941995 | E144: 9806650 | F144: 4903325 | G144: 1 | H144: 1 | I144: 50 | J144: EC-GD5H
A145: 142 | B145: 16000 | C145: 2941995 | D145: 2941995 | E145: 9806650 | F145: 4903325 | G145: 1 | H145: 1 | I145: 50 | J145: EC-GD5S
A146: 143 | B146: 2500 | C146: 2941995 | D146: 2941995 | E146: 2941995 | F146: 2941995 | G146: 1 | H146: 1 | I146: 50 | J146: EC-TC5L(50st)
A147: 144 | B147: 2500 | C147: 2941995 | D147: 2941995 | E147: 2941995 | F147: 2941995 | G147: 1 | H147: 1 | I147: 50 | J147: EC-TC5L(100st)
A148: 145 | B148: 2500 | C148: 2941995 | D148: 2941995 | E148: 2941995 | F148: 2941995 | G148: 1 | H148: 1 | I148: 50 | J148: EC-TC5L(150st)
A149: 146 | B149: 5000 | C149: 2941995 | D149: 2941995 | E149: 4903325 | F149: 4903325 | G149: 1 | H149: 1 | I149: 50 | J149: EC-TC5M(50st)
A150: 147 | B150: 5000 | C150: 2941995 | D150: 2941995 | E150: 4903325 | F150: 4903325 | G150: 1 | H150: 1 | I150: 50 | J150: EC-TC5M(100st)
A151: 148 | B151: 5000 | C151: 2941995 | D151: 2941995 | E151: 4903325 | F151: 4903325 | G151: 1 | H151: 1 | I151: 50 | J151: EC-TC5M(150st)
A152: 149 | B152: 10000 | C152: 2941995 | D152: 2941995 | E152: 9806650 | F152: 4903325 | G152: 1 | H152: 1 | I152: 50 | J152: EC-TC5H(50st)
A153: 150 | B153: 10000 | C153: 2941995 | D153: 2941995 | E153: 9806650 | F153: 4903325 | G153: 1 | H153: 1 | I153: 50 | J153: EC-TC5H(100st)
A154: 151 | B154: 10000 | C154: 2941995 | D154: 2941995 | E154: 9806650 | F154: 4903325 | G154: 1 | H154: 1 | I154: 50 | J154: EC-TC5H(150st)
A155: 152 | B155: 16000 | C155: 2941995 | D155: 2941995 | E155: 9806650 | F155: 4903325 | G155: 1 | H155: 1 | I155: 50 | J155: EC-TC5S(50st)
A156: 153 | B156: 16000 | C156: 2941995 | D156: 2941995 | E156: 9806650 | F156: 4903325 | G156: 1 | H156: 1 | I156: 50 | J156: EC-TC5S(100st)
A157: 154 | B157: 16000 | C157: 2941995 | D157: 2941995 | E157: 9806650 | F157: 4903325 | G157: 1 | H157: 1 | I157: 50 | J157: EC-TC5S(150st)
A158: 155 | B158: 2500 | C158: 2941995 | D158: 2941995 | E158: 2941995 | F158: 2941995 | G158: 1 | H158: 1 | I158: 50 | J158: EC-TW5L(50st)
A159: 156 | B159: 2500 | C159: 2941995 | D159: 2941995 | E159: 2941995 | F159: 2941995 | G159: 1 | H159: 1 | I159: 50 | J159: EC-TW5L(100st)
A160: 157 | B160: 2500 | C160: 2941995 | D160: 2941995 | E160: 2941995 | F160: 2941995 | G160: 1 | H160: 1 | I160: 50 | J160: EC-TW5L(150st)
A161: 158 | B161: 5000 | C161: 2941995 | D161: 2941995 | E161: 4903325 | F161: 4903325 | G161: 1 | H161: 1 | I161: 50 | J161: EC-TW5M(50st)
A162: 159 | B162: 5000 | C162: 2941995 | D162: 2941995 | E162: 4903325 | F162: 4903325 | G162: 1 | H162: 1 | I162: 50 | J162: EC-TW5M(100st)
A163: 160 | B163: 5000 | C163: 2941995 | D163: 2941995 | E163: 4903325 | F163: 4903325 | G163: 1 | H163: 1 | I163: 50 | J163: EC-TW5M(150st)
A164: 161 | B164: 10000 | C164: 2941995 | D164: 2941995 | E164: 9806650 | F164: 4903325 | G164: 1 | H164: 1 | I164: 50 | J164: EC-TW5H(50st)
A165: 162 | B165: 10000 | C165: 2941995 | D165: 2941995 | E165: 9806650 | F165: 4903325 | G165: 1 | H165: 1 | I165: 50 | J165: EC-TW5H(100st)
A166: 163 | B166: 10000 | C166: 2941995 | D166: 2941995 | E166: 9806650 | F166: 4903325 | G166: 1 | H166: 1 | I166: 50 | J166: EC-TW5H(150st)
A167: 164 | B167: 16000 | C167: 2941995 | D167: 2941995 | E167: 9806650 | F167: 4903325 | G167: 1 | H167: 1 | I167: 50 | J167: EC-TW5S(50st)
A168: 165 | B168: 16000 | C168: 2941995 | D168: 2941995 | E168: 9806650 | F168: 4903325 | G168: 1 | H168: 1 | I168: 50 | J168: EC-TW5S(100st)
A169: 166 | B169: 16000 | C169: 2941995 | D169: 2941995 | E169: 9806650 | F169: 4903325 | G169: 1 | H169: 1 | I169: 50 | J169: EC-TW5S(150st)
A170: 167 | B170: 3000 | C170: 2941995 | D170: 2941995 | E170: 9806650 | F170: 4903325 | G170: 1 | H170: 1 | I170: 50 | J170: EC-RR6XLAH
A171: 168 | B171: 6000 | C171: 2941995 | D171: 2941995 | E171: 9806650 | F171: 4903325 | G171: 1 | H171: 1 | I171: 50 | J171: EC-RR6XMAH
A172: 169 | B172: 12000 | C172: 2941995 | D172: 2941995 | E172: 9806650 | F172: 4903325 | G172: 1 | H172: 1 | I172: 50 | J172: EC-RR6XHAH
A173: 170 | B173: 20000 | C173: 2941995 | D173: 2941995 | E173: 9806650 | F173: 4903325 | G173: 1 | H173: 1 | I173: 50 | J173: EC-RR6XSAH
A174: 171 | B174: 4000 | C174: 2941995 | D174: 2941995 | E174: 9806650 | F174: 4903325 | G174: 1 | H174: 1 | I174: 50 | J174: EC-RR7XLAH
A175: 172 | B175: 8000 | C175: 2941995 | D175: 2941995 | E175: 9806650 | F175: 4903325 | G175: 1 | H175: 1 | I175: 50 | J175: EC-RR7XMAH
A176: 173 | B176: 16000 | C176: 2941995 | D176: 2941995 | E176: 9806650 | F176: 4903325 | G176: 1 | H176: 1 | I176: 50 | J176: EC-RR7XHAH
A177: 174 | B177: 24000 | C177: 2941995 | D177: 2941995 | E177: 9806650 | F177: 4903325 | G177: 1 | H177: 1 | I177: 50 | J177: EC-RR7XSAH
A178: 175 | B178: 3000 | C178: 2941995 | D178: 2941995 | E178: 9806650 | F178: 4903325 | G178: 1 | H178: 1 | I178: 50 | J178: EC-S6L-W
A179: 176 | B179: 6000 | C179: 2941995 | D179: 2941995 | E179: 9806650 | F179: 4903325 | G179: 1 | H179: 1 | I179: 50 | J179: EC-S6M-W
A180: 177 | B180: 12000 | C180: 2941995 | D180: -1 | E180: 9806650 | F180: -1 | G180: 1 | H180: 1 | I180: 50 | J180: EC-S6H-W
A181: 178 | B181: 4000 | C181: 2941995 | D181: 2941995 | E181: 9806650 | F181: 4903325 | G181: 1 | H181: 1 | I181: 50 | J181: EC-S7L-W
A182: 179 | B182: 8000 | C182: 2941995 | D182: 2941995 | E182: 9806650 | F182: 4903325 | G182: 1 | H182: 1 | I182: 50 | J182: EC-S7M-W
A183: 180 | B183: 16000 | C183: 2941995 | D183: -1 | E183: 9806650 | F183: -1 | G183: 1 | H183: 1 | I183: 50 | J183: EC-S7H-W
A184: 181 | B184: 3000 | C184: 2941995 | D184: 2941995 | E184: 9806650 | F184: 4903325 | G184: 1 | H184: 1 | I184: 50 | J184: EC-S6LR-W
A185: 182 | B185: 6000 | C185: 2941995 | D185: 2941995 | E185: 9806650 | F185: 4903325 | G185: 1 | H185: 1 | I185: 50 | J185: EC-S6MR-W
A186: 183 | B186: 12000 | C186: 2941995 | D186: -1 | E186: 9806650 | F186: -1 | G186: 1 | H186: 1 | I186: 50 | J186: EC-S6HR-W
A187: 184 | B187: 4000 | C187: 2941995 | D187: 2941995 | E187: 9806650 | F187: 4903325 | G187: 1 | H187: 1 | I187: 50 | J187: EC-S7LR-W
A188: 185 | B188: 8000 | C188: 2941995 | D188: 2941995 | E188: 9806650 | F188: 4903325 | G188: 1 | H188: 1 | I188: 50 | J188: EC-S7MR-W
A189: 186 | B189: 16000 | C189: 2941995 | D189: -1 | E189: 9806650 | F189: -1 | G189: 1 | H189: 1 | I189: 50 | J189: EC-S7HR-W
A190: 187 | B190: 3000 | C190: 2941995 | D190: 2941995 | E190: 9806650 | F190: 4903325 | G190: 1 | H190: 1 | I190: 50 | J190: EC-S6LAH-W
A191: 188 | B191: 6000 | C191: 2941995 | D191: 2941995 | E191: 9806650 | F191: 4903325 | G191: 1 | H191: 1 | I191: 50 | J191: EC-S6MAH-W
A192: 189 | B192: 12000 | C192: 2941995 | D192: -1 | E192: 9806650 | F192: -1 | G192: 1 | H192: 1 | I192: 50 | J192: EC-S6HAH-W
A193: 190 | B193: 4000 | C193: 2941995 | D193: 2941995 | E193: 9806650 | F193: 4903325 | G193: 1 | H193: 1 | I193: 50 | J193: EC-S7LAH-W
A194: 191 | B194: 8000 | C194: 2941995 | D194: 2941995 | E194: 9806650 | F194: 4903325 | G194: 1 | H194: 1 | I194: 50 | J194: EC-S7MAH-W
A195: 192 | B195: 16000 | C195: 2941995 | D195: -1 | E195: 9806650 | F195: -1 | G195: 1 | H195: 1 | I195: 50 | J195: EC-S7HAH-W
A196: 193 | B196: 3000 | C196: 2941995 | D196: 2941995 | E196: 9806650 | F196: 4903325 | G196: 1 | H196: 1 | I196: 50 | J196: EC-S6LAHR-W
A197: 194 | B197: 6000 | C197: 2941995 | D197: 2941995 | E197: 9806650 | F197: 4903325 | G197: 1 | H197: 1 | I197: 50 | J197: EC-S6MAHR-W
A198: 195 | B198: 12000 | C198: 2941995 | D198: -1 | E198: 9806650 | F198: -1 | G198: 1 | H198: 1 | I198: 50 | J198: EC-S6HAHR-W
A199: 196 | B199: 4000 | C199: 2941995 | D199: 2941995 | E199: 9806650 | F199: 4903325 | G199: 1 | H199: 1 | I199: 50 | J199: EC-S7LAHR-W
A200: 197 | B200: 8000 | C200: 2941995 | D200: 2941995 | E200: 9806650 | F200: 4903325 | G200: 1 | H200: 1 | I200: 50 | J200: EC-S7MAHR-W
... 17 more rows

Sheet StrokeData (hidden)
B1: 1 | C1: 2 | D1: 4 | E1: 5 | F1: 6 | G1: 7 | H1: 8 | I1: 9 | J1: 10 | K1: 17 | L1: 18
A2: ﾃﾞｰﾀ№ | B2: ｽﾄﾛｰｸ長 | C2: 有効ｽﾄﾛｰｸ補正 | D2: 基準ｹﾞｲﾝ用搬送質量 | E2: 水平可搬質量 | F2: 垂直可搬質量 | G2: 最大速度 | H2: 位置ｹﾞｲﾝ | I2: FFｹﾞｲﾝ | J2: 速度制御帯域 | K2: 前ﾃﾞｰﾀ№ | L2: 次ﾃﾞｰﾀ№ | M2: 備考
A3: =ModelData!A3 -> 0 | B3: ㎜ | C3: ㎜ | D3: 1g | E3: 1g | F3: 1g | G3: ㎜/s | H3: 1/s | I3: % | J3: rad/s
A4: 1 | B4: 200 | C4: 0 | D4: 40000 | E4: 40000 | F4: 12500 | G4: 225 | H4: 40 | I4: 0 | J4: 240 | K4: -1 | L4: 2 | M4: EC-S6L (リード3)
A5: 2 | B5: 250 | C5: 0 | D5: 40000 | E5: 40000 | F5: 12500 | G5: 188 | H5: 40 | I5: 0 | J5: 240 | K5: 1 | L5: 3
A6: 3 | B6: 300 | C6: 0 | D6: 40000 | E6: 40000 | F6: 12500 | G6: 134 | H6: 40 | I6: 0 | J6: 240 | K6: 2 | L6: 4
A7: 4 | B7: 350 | C7: 0 | D7: 40000 | E7: 40000 | F7: 12500 | G7: 100 | H7: 40 | I7: 0 | J7: 240 | K7: 3 | L7: 5
A8: 5 | B8: 400 | C8: 0 | D8: 40000 | E8: 40000 | F8: 12500 | G8: 78 | H8: 40 | I8: 0 | J8: 240 | K8: 4 | L8: -1
A9: 6 | B9: 200 | C9: 0 | D9: 32000 | E9: 32000 | F9: 6000 | G9: 450 | H9: 40 | I9: 0 | J9: 240 | K9: -1 | L9: 7 | M9: EC-S6M (リード6)
A10: 7 | B10: 250 | C10: 0 | D10: 32000 | E10: 32000 | F10: 6000 | G10: 371 | H10: 40 | I10: 0 | J10: 240 | K10: 6 | L10: 8
A11: 8 | B11: 300 | C11: 0 | D11: 32000 | E11: 32000 | F11: 6000 | G11: 265 | H11: 40 | I11: 0 | J11: 240 | K11: 7 | L11: 9
A12: 9 | B12: 350 | C12: 0 | D12: 32000 | E12: 32000 | F12: 6000 | G12: 199 | H12: 40 | I12: 0 | J12: 240 | K12: 8 | L12: 10
A13: 10 | B13: 400 | C13: 0 | D13: 32000 | E13: 32000 | F13: 6000 | G13: 155 | H13: 40 | I13: 0 | J13: 240 | K13: 9 | L13: -1
A14: 11 | B14: 250 | C14: 0 | D14: 26000 | E14: 26000 | F14: 2500 | G14: 700 | H14: 40 | I14: 0 | J14: 255 | K14: -1 | L14: 12 | M14: EC-S6H (リード12)
A15: 12 | B15: 300 | C15: 0 | D15: 26000 | E15: 26000 | F15: 2500 | G15: 521 | H15: 40 | I15: 0 | J15: 255 | K15: 11 | L15: 13
A16: 13 | B16: 350 | C16: 0 | D16: 26000 | E16: 26000 | F16: 2500 | G16: 392 | H16: 40 | I16: 0 | J16: 255 | K16: 12 | L16: 14
A17: 14 | B17: 400 | C17: 0 | D17: 26000 | E17: 26000 | F17: 2500 | G17: 305 | H17: 40 | I17: 0 | J17: 255 | K17: 13 | L17: -1
A18: 15 | B18: 300 | C18: 0 | D18: 15000 | E18: 15000 | F18: 1000 | G18: 800 | H18: 40 | I18: 0 | J18: 160 | K18: -1 | L18: 16 | M18: EC-S6S (リード20)
A19: 16 | B19: 350 | C19: 0 | D19: 15000 | E19: 15000 | F19: 1000 | G19: 727 | H19: 40 | I19: 0 | J19: 160 | K19: 15 | L19: 17
A20: 17 | B20: 400 | C20: 0 | D20: 15000 | E20: 15000 | F20: 1000 | G20: 566 | H20: 40 | I20: 0 | J20: 160 | K20: 16 | L20: -1
A21: 18 | B21: 300 | C21: 0 | D21: 51000 | E21: 51000 | F21: 19000 | G21: 210 | H21: 40 | I21: 0 | J21: 240 | K21: -1 | L21: 19 | M21: EC-S7L (リード4)
A22: 19 | B22: 350 | C22: 0 | D22: 51000 | E22: 51000 | F22: 19000 | G22: 163 | H22: 40 | I22: 0 | J22: 240 | K22: 18 | L22: 20
A23: 20 | B23: 400 | C23: 0 | D23: 51000 | E23: 51000 | F23: 19000 | G23: 126 | H23: 40 | I23: 0 | J23: 240 | K23: 19 | L23: 21
A24: 21 | B24: 450 | C24: 0 | D24: 51000 | E24: 51000 | F24: 19000 | G24: 101 | H24: 40 | I24: 0 | J24: 240 | K24: 20 | L24: 22
A25: 22 | B25: 500 | C25: 0 | D25: 51000 | E25: 51000 | F25: 19000 | G25: 83 | H25: 40 | I25: 0 | J25: 240 | K25: 21 | L25: -1
A26: 23 | B26: 300 | C26: 0 | D26: 51000 | E26: 51000 | F26: 16000 | G26: 420 | H26: 40 | I26: 0 | J26: 240 | K26: -1 | L26: 24 | M26: EC-S7M (リード8)
A27: 24 | B27: 350 | C27: 0 | D27: 51000 | E27: 51000 | F27: 16000 | G27: 322 | H27: 40 | I27: 0 | J27: 240 | K27: 23 | L27: 25
A28: 25 | B28: 400 | C28: 0 | D28: 51000 | E28: 51000 | F28: 16000 | G28: 251 | H28: 40 | I28: 0 | J28: 240 | K28: 24 | L28: 26
A29: 26 | B29: 450 | C29: 0 | D29: 51000 | E29: 51000 | F29: 16000 | G29: 200 | H29: 40 | I29: 0 | J29: 240 | K29: 25 | L29: 27
A30: 27 | B30: 500 | C30: 0 | D30: 51000 | E30: 51000 | F30: 16000 | G30: 164 | H30: 40 | I30: 0 | J30: 240 | K30: 26 | L30: -1
A31: 28 | B31: 300 | C31: 0 | D31: 46000 | E31: 46000 | F31: 8000 | G31: 700 | H31: 40 | I31: 0 | J31: 240 | K31: -1 | L31: 29 | M31: EC-S7H (リード16)
A32: 29 | B32: 350 | C32: 0 | D32: 46000 | E32: 46000 | F32: 8000 | G32: 631 | H32: 40 | I32: 0 | J32: 240 | K32: 28 | L32: 30
A33: 30 | B33: 400 | C33: 0 | D33: 46000 | E33: 46000 | F33: 8000 | G33: 492 | H33: 40 | I33: 0 | J33: 240 | K33: 29 | L33: 31
A34: 31 | B34: 450 | C34: 0 | D34: 46000 | E34: 46000 | F34: 8000 | G34: 395 | H34: 40 | I34: 0 | J34: 240 | K34: 30 | L34: 32
A35: 32 | B35: 500 | C35: 0 | D35: 46000 | E35: 46000 | F35: 8000 | G35: 323 | H35: 40 | I35: 0 | J35: 240 | K35: 31 | L35: -1
A36: 33 | B36: 350 | C36: 0 | D36: 37000 | E36: 37000 | F36: 3000 | G36: 860 | H36: 40 | I36: 0 | J36: 100 | K36: -1 | L36: 34 | M36: EC-S7S (リード24)
A37: 34 | B37: 400 | C37: 0 | D37: 37000 | E37: 37000 | F37: 3000 | G37: 774 | H37: 40 | I37: 0 | J37: 100 | K37: 33 | L37: 35
A38: 35 | B38: 450 | C38: 0 | D38: 37000 | E38: 37000 | F38: 3000 | G38: 619 | H38: 40 | I38: 0 | J38: 100 | K38: 34 | L38: 36
A39: 36 | B39: 500 | C39: 0 | D39: 37000 | E39: 37000 | F39: 3000 | G39: 506 | H39: 40 | I39: 0 | J39: 100 | K39: 35 | L39: -1
A40: 37 | B40: 200 | C40: 0 | D40: 60000 | E40: 60000 | F40: 12500 | G40: 225 | H40: 40 | I40: 0 | J40: 225 | K40: -1 | L40: 38 | M40: EC-R6L (リード3)
A41: 38 | B41: 250 | C41: 0 | D41: 60000 | E41: 60000 | F41: 12500 | G41: 186 | H41: 40 | I41: 0 | J41: 225 | K41: 37 | L41: 39
A42: 39 | B42: 300 | C42: 0 | D42: 60000 | E42: 60000 | F42: 12500 | G42: 133 | H42: 40 | I42: 0 | J42: 225 | K42: 38 | L42: -1
A43: 40 | B43: 200 | C43: 0 | D43: 40000 | E43: 40000 | F43: 10000 | G43: 450 | H43: 40 | I43: 0 | J43: 193 | K43: -1 | L43: 41 | M43: EC-R6M (リード6)
A44: 41 | B44: 250 | C44: 0 | D44: 40000 | E44: 40000 | F44: 10000 | G44: 376 | H44: 40 | I44: 0 | J44: 193 | K44: 40 | L44: 42
A45: 42 | B45: 300 | C45: 0 | D45: 40000 | E45: 40000 | F45: 10000 | G45: 268 | H45: 40 | I45: 0 | J45: 193 | K45: 41 | L45: -1
A46: 43 | B46: 250 | C46: 0 | D46: 25000 | E46: 25000 | F46: 4000 | G46: 700 | H46: 40 | I46: 0 | J46: 236 | K46: -1 | L46: 44 | M46: EC-R6H (リード12)
A47: 44 | B47: 300 | C47: 0 | D47: 25000 | E47: 25000 | F47: 4000 | G47: 547 | H47: 40 | I47: 0 | J47: 236 | K47: 43 | L47: -1
A48: 45 | B48: 300 | C48: 0 | D48: 6000 | E48: 6000 | F48: 1500 | G48: 800 | H48: 40 | I48: 0 | J48: 236 | K48: -1 | L48: -1 | M48: EC-R6S (リード20)
A49: 46 | B49: 300 | C49: 0 | D49: 80000 | E49: 80000 | F49: 19000 | G49: 175 | H49: 40 | I49: 0 | J49: 240 | K49: -1 | L49: -1 | M49: EC-R7L (リード4)
A50: 47 | B50: 300 | C50: 0 | D50: 60000 | E50: 60000 | F50: 18000 | G50: 350 | H50: 40 | I50: 0 | J50: 240 | K50: -1 | L50: -1 | M50: EC-R7M (リード8)
A51: 48 | B51: 300 | C51: 0 | D51: 50000 | E51: 50000 | F51: 8000 | G51: 700 | H51: 40 | I51: 0 | J51: 240 | K51: -1 | L51: -1 | M51: EC-R7H (リード16)
A52: 49 | B52: 300 | C52: 0 | D52: 20000 | E52: 20000 | F52: 3000 | G52: 860 | H52: 40 | I52: 0 | J52: 100 | K52: -1 | L52: -1 | M52: EC-R7S (リード24)
A53: 50 | B53: 215 | C53: 0 | D53: 60000 | E53: 60000 | F53: 12500 | G53: 225 | H53: 40 | I53: 0 | J53: 240 | K53: -1 | L53: 51 | M53: EC-RR6L
A54: 51 | B54: 265 | C54: 0 | D54: 60000 | E54: 60000 | F54: 12500 | G54: 160 | H54: 40 | I54: 0 | J54: 240 | K54: 50 | L54: 52 | M54: EC-RR6L
A55: 52 | B55: 315 | C55: 0 | D55: 60000 | E55: 60000 | F55: 12500 | G55: 115 | H55: 40 | I55: 0 | J55: 240 | K55: 51 | L55: -1 | M55: EC-RR6L
A56: 53 | B56: 215 | C56: 0 | D56: 40000 | E56: 40000 | F56: 10000 | G56: 450 | H56: 40 | I56: 0 | J56: 240 | K56: -1 | L56: 54 | M56: EC-RR6M
A57: 54 | B57: 265 | C57: 0 | D57: 40000 | E57: 40000 | F57: 10000 | G57: 325 | H57: 40 | I57: 0 | J57: 240 | K57: 53 | L57: 55 | M57: EC-RR6M
A58: 55 | B58: 315 | C58: 0 | D58: 40000 | E58: 40000 | F58: 10000 | G58: 235 | H58: 40 | I58: 0 | J58: 240 | K58: 54 | L58: -1 | M58: EC-RR6M
A59: 56 | B59: 215 | C59: 0 | D59: 25000 | E59: 25000 | F59: 4000 | G59: 700 | H59: 40 | I59: 0 | J59: 240 | K59: -1 | L59: 57 | M59: EC-RR6H
A60: 57 | B60: 265 | C60: 0 | D60: 25000 | E60: 25000 | F60: 4000 | G60: 660 | H60: 40 | I60: 0 | J60: 240 | K60: 56 | L60: 58 | M60: EC-RR6H
A61: 58 | B61: 315 | C61: 0 | D61: 25000 | E61: 25000 | F61: 4000 | G61: 480 | H61: 40 | I61: 0 | J61: 240 | K61: 57 | L61: -1 | M61: EC-RR6H
A62: 59 | B62: 315 | C62: 0 | D62: 6000 | E62: 6000 | F62: 1500 | G62: 800 | H62: 40 | I62: 0 | J62: 237 | K62: -1 | L62: -1 | M62: EC-RR6S
A63: 60 | B63: 315 | C63: 0 | D63: 80000 | E63: 80000 | F63: 19000 | G63: 175 | H63: 40 | I63: 0 | J63: 240 | K63: -1 | L63: -1 | M63: EC-RR7L
A64: 61 | B64: 315 | C64: 0 | D64: 60000 | E64: 60000 | F64: 18000 | G64: 350 | H64: 40 | I64: 0 | J64: 240 | K64: -1 | L64: -1 | M64: EC-RR7M
A65: 62 | B65: 315 | C65: 0 | D65: 50000 | E65: 50000 | F65: 8000 | G65: 700 | H65: 40 | I65: 0 | J65: 240 | K65: -1 | L65: -1 | M65: EC-RR7H
A66: 63 | B66: 315 | C66: 0 | D66: 20000 | E66: 20000 | F66: 3000 | G66: 860 | H66: 40 | I66: 0 | J66: 120 | K66: -1 | L66: -1 | M66: EC-RR7S
A67: 64 | B67: 200 | C67: 0 | D67: 60000 | E67: 60000 | F67: 12500 | G67: 225 | H67: 40 | I67: 0 | J67: 225 | K67: -1 | L67: 65 | M67: EC-R6LW
A68: 65 | B68: 250 | C68: 0 | D68: 60000 | E68: 60000 | F68: 12500 | G68: 186 | H68: 40 | I68: 0 | J68: 225 | K68: 64 | L68: 66 | M68: EC-R6LW
A69: 66 | B69: 300 | C69: 0 | D69: 60000 | E69: 60000 | F69: 12500 | G69: 133 | H69: 40 | I69: 0 | J69: 225 | K69: 65 | L69: -1 | M69: EC-R6LW
A70: 67 | B70: 200 | C70: 0 | D70: 40000 | E70: 40000 | F70: 10000 | G70: 450 | H70: 40 | I70: 0 | J70: 193 | K70: -1 | L70: 68 | M70: EC-R6MW
A71: 68 | B71: 250 | C71: 0 | D71: 40000 | E71: 40000 | F71: 10000 | G71: 376 | H71: 40 | I71: 0 | J71: 193 | K71: 67 | L71: 69 | M71: EC-R6MW
A72: 69 | B72: 300 | C72: 0 | D72: 40000 | E72: 40000 | F72: 10000 | G72: 268 | H72: 40 | I72: 0 | J72: 193 | K72: 68 | L72: -1 | M72: EC-R6MW
A73: 70 | B73: 250 | C73: 0 | D73: 25000 | E73: 25000 | F73: 4000 | G73: 700 | H73: 40 | I73: 0 | J73: 236 | K73: -1 | L73: 71 | M73: EC-R6HW
A74: 71 | B74: 300 | C74: 0 | D74: 25000 | E74: 25000 | F74: 4000 | G74: 547 | H74: 40 | I74: 0 | J74: 236 | K74: 70 | L74: -1 | M74: EC-R6HW
A75: 72 | B75: 300 | C75: 0 | D75: 6000 | E75: 6000 | F75: 1500 | G75: 800 | H75: 40 | I75: 0 | J75: 236 | K75: -1 | L75: -1 | M75: EC-R6SW
A76: 73 | B76: 300 | C76: 0 | D76: 80000 | E76: 80000 | F76: 19000 | G76: 175 | H76: 40 | I76: 0 | J76: 240 | K76: -1 | L76: -1 | M76: EC-R7LW
A77: 74 | B77: 300 | C77: 0 | D77: 60000 | E77: 60000 | F77: 18000 | G77: 350 | H77: 40 | I77: 0 | J77: 240 | K77: -1 | L77: -1 | M77: EC-R7MW
A78: 75 | B78: 300 | C78: 0 | D78: 50000 | E78: 50000 | F78: 8000 | G78: 700 | H78: 40 | I78: 0 | J78: 240 | K78: -1 | L78: -1 | M78: EC-R7HW
A79: 76 | B79: 300 | C79: 0 | D79: 20000 | E79: 20000 | F79: 3000 | G79: 860 | H79: 40 | I79: 0 | J79: 100 | K79: -1 | L79: -1 | M79: EC-R7SW
A80: 77 | B80: 200 | C80: 0 | D80: 40000 | E80: 40000 | F80: 12500 | G80: 225 | H80: 40 | I80: 0 | J80: 240 | K80: -1 | L80: 78 | M80: EC-S6LH
A81: 78 | B81: 250 | C81: 0 | D81: 40000 | E81: 40000 | F81: 12500 | G81: 184 | H81: 40 | I81: 0 | J81: 240 | K81: 77 | L81: 79 | M81: EC-S6LH
A82: 79 | B82: 300 | C82: 0 | D82: 40000 | E82: 40000 | F82: 12500 | G82: 131 | H82: 40 | I82: 0 | J82: 240 | K82: 78 | L82: 80 | M82: EC-S6LH
A83: 80 | B83: 350 | C83: 0 | D83: 40000 | E83: 40000 | F83: 12500 | G83: 98 | H83: 40 | I83: 0 | J83: 240 | K83: 79 | L83: 81 | M83: EC-S6LH
A84: 81 | B84: 400 | C84: 0 | D84: 40000 | E84: 40000 | F84: 12500 | G84: 76 | H84: 40 | I84: 0 | J84: 240 | K84: 80 | L84: -1 | M84: EC-S6LH
A85: 82 | B85: 200 | C85: 0 | D85: 32000 | E85: 32000 | F85: 6000 | G85: 450 | H85: 40 | I85: 0 | J85: 240 | K85: -1 | L85: 83 | M85: EC-S6MH
A86: 83 | B86: 250 | C86: 0 | D86: 32000 | E86: 32000 | F86: 6000 | G86: 364 | H86: 40 | I86: 0 | J86: 240 | K86: 82 | L86: 84 | M86: EC-S6MH
A87: 84 | B87: 300 | C87: 0 | D87: 32000 | E87: 32000 | F87: 6000 | G87: 261 | H87: 40 | I87: 0 | J87: 240 | K87: 83 | L87: 85 | M87: EC-S6MH
A88: 85 | B88: 350 | C88: 0 | D88: 32000 | E88: 32000 | F88: 6000 | G88: 196 | H88: 40 | I88: 0 | J88: 240 | K88: 84 | L88: 86 | M88: EC-S6MH
A89: 86 | B89: 400 | C89: 0 | D89: 32000 | E89: 32000 | F89: 6000 | G89: 152 | H89: 40 | I89: 0 | J89: 240 | K89: 85 | L89: -1 | M89: EC-S6MH
A90: 87 | B90: 250 | C90: 0 | D90: 26000 | E90: 26000 | F90: 2500 | G90: 700 | H90: 40 | I90: 0 | J90: 255 | K90: -1 | L90: 88 | M90: EC-S6HH
A91: 88 | B91: 300 | C91: 0 | D91: 26000 | E91: 26000 | F91: 2500 | G91: 513 | H91: 40 | I91: 0 | J91: 255 | K91: 87 | L91: 89 | M91: EC-S6HH
A92: 89 | B92: 350 | C92: 0 | D92: 26000 | E92: 26000 | F92: 2500 | G92: 386 | H92: 40 | I92: 0 | J92: 255 | K92: 88 | L92: 90 | M92: EC-S6HH
A93: 90 | B93: 400 | C93: 0 | D93: 26000 | E93: 26000 | F93: 2500 | G93: 301 | H93: 40 | I93: 0 | J93: 255 | K93: 89 | L93: -1 | M93: EC-S6HH
A94: 91 | B94: 300 | C94: 0 | D94: 15000 | E94: 15000 | F94: 1000 | G94: 800 | H94: 40 | I94: 0 | J94: 160 | K94: -1 | L94: 92 | M94: EC-S6SH
A95: 92 | B95: 350 | C95: 0 | D95: 15000 | E95: 15000 | F95: 1000 | G95: 717 | H95: 40 | I95: 0 | J95: 160 | K95: 91 | L95: 93 | M95: EC-S6SH
A96: 93 | B96: 400 | C96: 0 | D96: 15000 | E96: 15000 | F96: 1000 | G96: 559 | H96: 40 | I96: 0 | J96: 160 | K96: 92 | L96: -1 | M96: EC-S6SH
A97: 94 | B97: 300 | C97: 0 | D97: 51000 | E97: 51000 | F97: 19000 | G97: 210 | H97: 40 | I97: 0 | J97: 240 | K97: -1 | L97: 95 | M97: EC-S7LH
A98: 95 | B98: 350 | C98: 0 | D98: 51000 | E98: 51000 | F98: 19000 | G98: 161 | H98: 40 | I98: 0 | J98: 240 | K98: 94 | L98: 96 | M98: EC-S7LH
A99: 96 | B99: 400 | C99: 0 | D99: 51000 | E99: 51000 | F99: 19000 | G99: 125 | H99: 40 | I99: 0 | J99: 240 | K99: 95 | L99: 97 | M99: EC-S7LH
A100: 97 | B100: 450 | C100: 0 | D100: 51000 | E100: 51000 | F100: 19000 | G100: 100 | H100: 40 | I100: 0 | J100: 240 | K100: 96 | L100: 98 | M100: EC-S7LH
A101: 98 | B101: 500 | C101: 0 | D101: 51000 | E101: 51000 | F101: 19000 | G101: 82 | H101: 40 | I101: 0 | J101: 240 | K101: 97 | L101: -1 | M101: EC-S7LH
A102: 99 | B102: 300 | C102: 0 | D102: 51000 | E102: 51000 | F102: 16000 | G102: 420 | H102: 40 | I102: 0 | J102: 240 | K102: -1 | L102: 100 | M102: EC-S7MH
A103: 100 | B103: 350 | C103: 0 | D103: 51000 | E103: 51000 | F103: 16000 | G103: 319 | H103: 40 | I103: 0 | J103: 240 | K103: 99 | L103: 101 | M103: EC-S7MH
A104: 101 | B104: 400 | C104: 0 | D104: 51000 | E104: 51000 | F104: 16000 | G104: 248 | H104: 40 | I104: 0 | J104: 240 | K104: 100 | L104: 102 | M104: EC-S7MH
A105: 102 | B105: 450 | C105: 0 | D105: 51000 | E105: 51000 | F105: 16000 | G105: 199 | H105: 40 | I105: 0 | J105: 240 | K105: 101 | L105: 103 | M105: EC-S7MH
A106: 103 | B106: 500 | C106: 0 | D106: 51000 | E106: 51000 | F106: 16000 | G106: 163 | H106: 40 | I106: 0 | J106: 240 | K106: 102 | L106: -1 | M106: EC-S7MH
A107: 104 | B107: 300 | C107: 0 | D107: 46000 | E107: 46000 | F107: 8000 | G107: 700 | H107: 40 | I107: 0 | J107: 240 | K107: -1 | L107: 105 | M107: EC-S7HH
A108: 105 | B108: 350 | C108: 0 | D108: 46000 | E108: 46000 | F108: 8000 | G108: 626 | H108: 40 | I108: 0 | J108: 240 | K108: 104 | L108: 106 | M108: EC-S7HH
A109: 106 | B109: 400 | C109: 0 | D109: 46000 | E109: 46000 | F109: 8000 | G109: 488 | H109: 40 | I109: 0 | J109: 240 | K109: 105 | L109: 107 | M109: EC-S7HH
A110: 107 | B110: 450 | C110: 0 | D110: 46000 | E110: 46000 | F110: 8000 | G110: 392 | H110: 40 | I110: 0 | J110: 240 | K110: 106 | L110: 108 | M110: EC-S7HH
A111: 108 | B111: 500 | C111: 0 | D111: 46000 | E111: 46000 | F111: 8000 | G111: 321 | H111: 40 | I111: 0 | J111: 240 | K111: 107 | L111: -1 | M111: EC-S7HH
A112: 109 | B112: 350 | C112: 0 | D112: 37000 | E112: 37000 | F112: 3000 | G112: 860 | H112: 40 | I112: 0 | J112: 100 | K112: -1 | L112: 110 | M112: EC-S7SH
A113: 110 | B113: 400 | C113: 0 | D113: 37000 | E113: 37000 | F113: 3000 | G113: 768 | H113: 40 | I113: 0 | J113: 100 | K113: 109 | L113: 111 | M113: EC-S7SH
A114: 111 | B114: 450 | C114: 0 | D114: 37000 | E114: 37000 | F114: 3000 | G114: 615 | H114: 40 | I114: 0 | J114: 100 | K114: 110 | L114: 112 | M114: EC-S7SH
A115: 112 | B115: 500 | C115: 0 | D115: 37000 | E115: 37000 | F115: 3000 | G115: 503 | H115: 40 | I115: 0 | J115: 100 | K115: 111 | L115: -1 | M115: EC-S7SH
A116: 113 | B116: 200 | C116: 0 | D116: 60000 | E116: 60000 | F116: 20000 | G116: 225 | H116: 40 | I116: 0 | J116: 240 | K116: -1 | L116: 114 | M116: EC-RR6LH
A117: 114 | B117: 250 | C117: 0 | D117: 60000 | E117: 60000 | F117: 20000 | G117: 160 | H117: 40 | I117: 0 | J117: 240 | K117: 113 | L117: 115 | M117: EC-RR6LH
A118: 115 | B118: 300 | C118: 0 | D118: 60000 | E118: 60000 | F118: 20000 | G118: 115 | H118: 40 | I118: 0 | J118: 240 | K118: 114 | L118: -1 | M118: EC-RR6LH
A119: 116 | B119: 200 | C119: 0 | D119: 40000 | E119: 40000 | F119: 10000 | G119: 450 | H119: 40 | I119: 0 | J119: 240 | K119: -1 | L119: 117 | M119: EC-RR6MH
A120: 117 | B120: 250 | C120: 0 | D120: 40000 | E120: 40000 | F120: 10000 | G120: 325 | H120: 40 | I120: 0 | J120: 240 | K120: 116 | L120: 118 | M120: EC-RR6MH
A121: 118 | B121: 300 | C121: 0 | D121: 40000 | E121: 40000 | F121: 10000 | G121: 235 | H121: 40 | I121: 0 | J121: 240 | K121: 117 | L121: -1 | M121: EC-RR6MH
A122: 119 | B122: 200 | C122: 0 | D122: 25000 | E122: 25000 | F122: 4000 | G122: 700 | H122: 40 | I122: 0 | J122: 240 | K122: -1 | L122: 120 | M122: EC-RR6HH
A123: 120 | B123: 250 | C123: 0 | D123: 25000 | E123: 25000 | F123: 4000 | G123: 660 | H123: 40 | I123: 0 | J123: 240 | K123: 119 | L123: 121 | M123: EC-RR6HH
A124: 121 | B124: 300 | C124: 0 | D124: 25000 | E124: 25000 | F124: 4000 | G124: 480 | H124: 40 | I124: 0 | J124: 240 | K124: 120 | L124: -1 | M124: EC-RR6HH
A125: 122 | B125: 300 | C125: 0 | D125: 6000 | E125: 6000 | F125: 1500 | G125: 800 | H125: 40 | I125: 0 | J125: 237 | K125: -1 | L125: -1 | M125: EC-RR6SH
A126: 123 | B126: 300 | C126: 0 | D126: 80000 | E126: 80000 | F126: 28000 | G126: 175 | H126: 40 | I126: 0 | J126: 240 | K126: -1 | L126: -1 | M126: EC-RR7LH
A127: 124 | B127: 300 | C127: 0 | D127: 60000 | E127: 60000 | F127: 18000 | G127: 350 | H127: 40 | I127: 0 | J127: 240 | K127: -1 | L127: -1 | M127: EC-RR7MH
A128: 125 | B128: 300 | C128: 0 | D128: 50000 | E128: 50000 | F128: 8000 | G128: 700 | H128: 40 | I128: 0 | J128: 240 | K128: -1 | L128: -1 | M128: EC-RR7HH
A129: 126 | B129: 300 | C129: 0 | D129: 20000 | E129: 20000 | F129: 3000 | G129: 860 | H129: 40 | I129: 0 | J129: 120 | K129: -1 | L129: -1 | M129: EC-RR7SH
A130: 127 | B130: 400 | C130: 0 | D130: 40000 | E130: 40000 | F130: 16000 | G130: 225 | H130: 40 | I130: 0 | J130: 240 | K130: -1 | L130: 128 | M130: EC-S6LAH
A131: 128 | B131: 450 | C131: 0 | D131: 40000 | E131: 40000 | F131: 16000 | G131: 205 | H131: 40 | I131: 0 | J131: 240 | K131: 127 | L131: 129 | M131: EC-S6LAH
A132: 129 | B132: 500 | C132: 0 | D132: 40000 | E132: 40000 | F132: 16000 | G132: 170 | H132: 40 | I132: 0 | J132: 240 | K132: 128 | L132: 130 | M132: EC-S6LAH
A133: 130 | B133: 550 | C133: 0 | D133: 40000 | E133: 40000 | F133: 16000 | G133: 145 | H133: 40 | I133: 0 | J133: 240 | K133: 129 | L133: 131 | M133: EC-S6LAH
A134: 131 | B134: 600 | C134: 0 | D134: 40000 | E134: 40000 | F134: 16000 | G134: 125 | H134: 40 | I134: 0 | J134: 240 | K134: 130 | L134: 132 | M134: EC-S6LAH
A135: 132 | B135: 650 | C135: 0 | D135: 40000 | E135: 40000 | F135: 16000 | G135: 110 | H135: 40 | I135: 0 | J135: 240 | K135: 131 | L135: 133 | M135: EC-S6LAH
A136: 133 | B136: 700 | C136: 0 | D136: 40000 | E136: 40000 | F136: 16000 | G136: 95 | H136: 40 | I136: 0 | J136: 240 | K136: 132 | L136: 134 | M136: EC-S6LAH
A137: 134 | B137: 750 | C137: 0 | D137: 40000 | E137: 40000 | F137: 16000 | G137: 85 | H137: 40 | I137: 0 | J137: 240 | K137: 133 | L137: 135 | M137: EC-S6LAH
A138: 135 | B138: 800 | C138: 0 | D138: 40000 | E138: 40000 | F138: 16000 | G138: 70 | H138: 40 | I138: 0 | J138: 240 | K138: 134 | L138: -1 | M138: EC-S6LAH
A139: 136 | B139: 400 | C139: 0 | D139: 32000 | E139: 32000 | F139: 6000 | G139: 450 | H139: 40 | I139: 0 | J139: 240 | K139: -1 | L139: 137 | M139: EC-S6MAH
A140: 137 | B140: 450 | C140: 0 | D140: 32000 | E140: 32000 | F140: 6000 | G140: 415 | H140: 40 | I140: 0 | J140: 240 | K140: 136 | L140: 138 | M140: EC-S6MAH
A141: 138 | B141: 500 | C141: 0 | D141: 32000 | E141: 32000 | F141: 6000 | G141: 350 | H141: 40 | I141: 0 | J141: 240 | K141: 137 | L141: 139 | M141: EC-S6MAH
A142: 139 | B142: 550 | C142: 0 | D142: 32000 | E142: 32000 | F142: 6000 | G142: 295 | H142: 40 | I142: 0 | J142: 240 | K142: 138 | L142: 140 | M142: EC-S6MAH
A143: 140 | B143: 600 | C143: 0 | D143: 32000 | E143: 32000 | F143: 6000 | G143: 255 | H143: 40 | I143: 0 | J143: 240 | K143: 139 | L143: 141 | M143: EC-S6MAH
A144: 141 | B144: 650 | C144: 0 | D144: 32000 | E144: 32000 | F144: 6000 | G144: 220 | H144: 40 | I144: 0 | J144: 240 | K144: 140 | L144: 142 | M144: EC-S6MAH
A145: 142 | B145: 700 | C145: 0 | D145: 32000 | E145: 32000 | F145: 6000 | G145: 190 | H145: 40 | I145: 0 | J145: 240 | K145: 141 | L145: 143 | M145: EC-S6MAH
A146: 143 | B146: 750 | C146: 0 | D146: 32000 | E146: 32000 | F146: 6000 | G146: 170 | H146: 40 | I146: 0 | J146: 240 | K146: 142 | L146: 144 | M146: EC-S6MAH
A147: 144 | B147: 800 | C147: 0 | D147: 32000 | E147: 32000 | F147: 6000 | G147: 140 | H147: 40 | I147: 0 | J147: 240 | K147: 143 | L147: -1 | M147: EC-S6MAH
A148: 145 | B148: 400 | C148: 0 | D148: 26000 | E148: 26000 | F148: 2500 | G148: 900 | H148: 40 | I148: 0 | J148: 200 | K148: -1 | L148: 146 | M148: EC-S6HAH
A149: 146 | B149: 450 | C149: 0 | D149: 26000 | E149: 26000 | F149: 2500 | G149: 845 | H149: 40 | I149: 0 | J149: 200 | K149: 145 | L149: 147 | M149: EC-S6HAH
A150: 147 | B150: 500 | C150: 0 | D150: 26000 | E150: 26000 | F150: 2500 | G150: 705 | H150: 40 | I150: 0 | J150: 200 | K150: 146 | L150: 148 | M150: EC-S6HAH
A151: 148 | B151: 550 | C151: 0 | D151: 26000 | E151: 26000 | F151: 2500 | G151: 585 | H151: 40 | I151: 0 | J151: 200 | K151: 147 | L151: 149 | M151: EC-S6HAH
A152: 149 | B152: 600 | C152: 0 | D152: 26000 | E152: 26000 | F152: 2500 | G152: 515 | H152: 40 | I152: 0 | J152: 200 | K152: 148 | L152: 150 | M152: EC-S6HAH
A153: 150 | B153: 650 | C153: 0 | D153: 26000 | E153: 26000 | F153: 2500 | G153: 445 | H153: 40 | I153: 0 | J153: 200 | K153: 149 | L153: 151 | M153: EC-S6HAH
A154: 151 | B154: 700 | C154: 0 | D154: 26000 | E154: 26000 | F154: 2500 | G154: 390 | H154: 40 | I154: 0 | J154: 200 | K154: 150 | L154: 152 | M154: EC-S6HAH
A155: 152 | B155: 750 | C155: 0 | D155: 26000 | E155: 26000 | F155: 2500 | G155: 345 | H155: 40 | I155: 0 | J155: 200 | K155: 151 | L155: 153 | M155: EC-S6HAH
A156: 153 | B156: 800 | C156: 0 | D156: 26000 | E156: 26000 | F156: 2500 | G156: 315 | H156: 40 | I156: 0 | J156: 200 | K156: 152 | L156: -1 | M156: EC-S6HAH
A157: 154 | B157: 450 | C157: 0 | D157: 15000 | E157: 15000 | F157: 1000 | G157: 1440 | H157: 40 | I157: 0 | J157: 100 | K157: -1 | L157: 155 | M157: EC-S6SAH
A158: 155 | B158: 500 | C158: 0 | D158: 15000 | E158: 15000 | F158: 1000 | G158: 1280 | H158: 40 | I158: 0 | J158: 100 | K158: 154 | L158: 156 | M158: EC-S6SAH
A159: 156 | B159: 550 | C159: 0 | D159: 15000 | E159: 15000 | F159: 1000 | G159: 1090 | H159: 40 | I159: 0 | J159: 100 | K159: 155 | L159: 157 | M159: EC-S6SAH
A160: 157 | B160: 600 | C160: 0 | D160: 15000 | E160: 15000 | F160: 1000 | G160: 940 | H160: 40 | I160: 0 | J160: 100 | K160: 156 | L160: 158 | M160: EC-S6SAH
A161: 158 | B161: 650 | C161: 0 | D161: 15000 | E161: 15000 | F161: 1000 | G161: 815 | H161: 40 | I161: 0 | J161: 100 | K161: 157 | L161: 159 | M161: EC-S6SAH
A162: 159 | B162: 700 | C162: 0 | D162: 15000 | E162: 15000 | F162: 1000 | G162: 715 | H162: 40 | I162: 0 | J162: 100 | K162: 158 | L162: 160 | M162: EC-S6SAH
A163: 160 | B163: 750 | C163: 0 | D163: 15000 | E163: 15000 | F163: 1000 | G163: 630 | H163: 40 | I163: 0 | J163: 100 | K163: 159 | L163: 161 | M163: EC-S6SAH
A164: 161 | B164: 800 | C164: 0 | D164: 15000 | E164: 15000 | F164: 1000 | G164: 560 | H164: 40 | I164: 0 | J164: 100 | K164: 160 | L164: -1 | M164: EC-S6SAH
A165: 162 | B165: 550 | C165: 0 | D165: 51000 | E165: 51000 | F165: 25000 | G165: 210 | H165: 40 | I165: 0 | J165: 240 | K165: -1 | L165: 163 | M165: EC-S7LAH
A166: 163 | B166: 600 | C166: 0 | D166: 51000 | E166: 51000 | F166: 25000 | G166: 195 | H166: 40 | I166: 0 | J166: 240 | K166: 162 | L166: 164 | M166: EC-S7LAH
A167: 164 | B167: 650 | C167: 0 | D167: 51000 | E167: 51000 | F167: 25000 | G167: 175 | H167: 40 | I167: 0 | J167: 240 | K167: 163 | L167: 165 | M167: EC-S7LAH
A168: 165 | B168: 700 | C168: 0 | D168: 51000 | E168: 51000 | F168: 25000 | G168: 150 | H168: 40 | I168: 0 | J168: 240 | K168: 164 | L168: 166 | M168: EC-S7LAH
A169: 166 | B169: 750 | C169: 0 | D169: 51000 | E169: 51000 | F169: 25000 | G169: 135 | H169: 40 | I169: 0 | J169: 240 | K169: 165 | L169: 167 | M169: EC-S7LAH
A170: 167 | B170: 800 | C170: 0 | D170: 51000 | E170: 51000 | F170: 25000 | G170: 120 | H170: 40 | I170: 0 | J170: 240 | K170: 166 | L170: -1 | M170: EC-S7LAH
A171: 168 | B171: 550 | C171: 0 | D171: 51000 | E171: 51000 | F171: 16000 | G171: 420 | H171: 40 | I171: 0 | J171: 240 | K171: -1 | L171: 169 | M171: EC-S7MAH
A172: 169 | B172: 600 | C172: 0 | D172: 51000 | E172: 51000 | F172: 16000 | G172: 405 | H172: 40 | I172: 0 | J172: 240 | K172: 168 | L172: 170 | M172: EC-S7MAH
A173: 170 | B173: 650 | C173: 0 | D173: 51000 | E173: 51000 | F173: 16000 | G173: 350 | H173: 40 | I173: 0 | J173: 240 | K173: 169 | L173: 171 | M173: EC-S7MAH
A174: 171 | B174: 700 | C174: 0 | D174: 51000 | E174: 51000 | F174: 16000 | G174: 310 | H174: 40 | I174: 0 | J174: 240 | K174: 170 | L174: 172 | M174: EC-S7MAH
A175: 172 | B175: 750 | C175: 0 | D175: 51000 | E175: 51000 | F175: 16000 | G175: 275 | H175: 40 | I175: 0 | J175: 240 | K175: 171 | L175: 173 | M175: EC-S7MAH
A176: 173 | B176: 800 | C176: 0 | D176: 51000 | E176: 51000 | F176: 16000 | G176: 245 | H176: 40 | I176: 0 | J176: 240 | K176: 172 | L176: -1 | M176: EC-S7MAH
A177: 174 | B177: 500 | C177: 0 | D177: 46000 | E177: 46000 | F177: 8000 | G177: 980 | H177: 40 | I177: 0 | J177: 240 | K177: -1 | L177: 175 | M177: EC-S7HAH
A178: 175 | B178: 550 | C178: 0 | D178: 46000 | E178: 46000 | F178: 8000 | G178: 955 | H178: 40 | I178: 0 | J178: 240 | K178: 174 | L178: 176 | M178: EC-S7HAH
A179: 176 | B179: 600 | C179: 0 | D179: 46000 | E179: 46000 | F179: 8000 | G179: 820 | H179: 40 | I179: 0 | J179: 240 | K179: 175 | L179: 177 | M179: EC-S7HAH
A180: 177 | B180: 650 | C180: 0 | D180: 46000 | E180: 46000 | F180: 8000 | G180: 715 | H180: 40 | I180: 0 | J180: 240 | K180: 176 | L180: 178 | M180: EC-S7HAH
A181: 178 | B181: 700 | C181: 0 | D181: 46000 | E181: 46000 | F181: 8000 | G181: 625 | H181: 40 | I181: 0 | J181: 240 | K181: 177 | L181: 179 | M181: EC-S7HAH
A182: 179 | B182: 750 | C182: 0 | D182: 46000 | E182: 46000 | F182: 8000 | G182: 555 | H182: 40 | I182: 0 | J182: 240 | K182: 178 | L182: 180 | M182: EC-S7HAH
A183: 180 | B183: 800 | C183: 0 | D183: 46000 | E183: 46000 | F183: 8000 | G183: 495 | H183: 40 | I183: 0 | J183: 240 | K183: 179 | L183: -1 | M183: EC-S7HAH
A184: 181 | B184: 600 | C184: 0 | D184: 37000 | E184: 37000 | F184: 3000 | G184: 1230 | H184: 40 | I184: 0 | J184: 100 | K184: -1 | L184: 182 | M184: EC-S7SAH
A185: 182 | B185: 650 | C185: 0 | D185: 37000 | E185: 37000 | F185: 3000 | G185: 1080 | H185: 40 | I185: 0 | J185: 100 | K185: 181 | L185: 183 | M185: EC-S7SAH
A186: 183 | B186: 700 | C186: 0 | D186: 37000 | E186: 37000 | F186: 3000 | G186: 950 | H186: 40 | I186: 0 | J186: 100 | K186: 182 | L186: 184 | M186: EC-S7SAH
A187: 184 | B187: 750 | C187: 0 | D187: 37000 | E187: 37000 | F187: 3000 | G187: 840 | H187: 40 | I187: 0 | J187: 100 | K187: 183 | L187: 185 | M187: EC-S7SAH
A188: 185 | B188: 800 | C188: 0 | D188: 37000 | E188: 37000 | F188: 3000 | G188: 750 | H188: 40 | I188: 0 | J188: 100 | K188: 184 | L188: -1 | M188: EC-S7SAH
A189: 186 | B189: 400 | C189: 0 | D189: 60000 | E189: 60000 | F189: 20000 | G189: 225 | H189: 40 | I189: 0 | J189: 240 | K189: -1 | L189: -1 | M189: EC-RR6LAH
A190: 187 | B190: 400 | C190: 0 | D190: 40000 | E190: 40000 | F190: 10000 | G190: 450 | H190: 40 | I190: 0 | J190: 240 | K190: -1 | L190: -1 | M190: EC-RR6MAH
A191: 188 | B191: 400 | C191: 0 | D191: 25000 | E191: 25000 | F191: 4000 | G191: 700 | H191: 40 | I191: 0 | J191: 240 | K191: -1 | L191: -1 | M191: EC-RR6HAH
A192: 189 | B192: 400 | C192: 0 | D192: 6000 | E192: 6000 | F192: 1500 | G192: 800 | H192: 40 | I192: 0 | J192: 120 | K192: -1 | L192: -1 | M192: EC-RR6SAH
A193: 190 | B193: 500 | C193: 0 | D193: 80000 | E193: 80000 | F193: 28000 | G193: 175 | H193: 40 | I193: 0 | J193: 240 | K193: -1 | L193: -1 | M193: EC-RR7LAH
A194: 191 | B194: 500 | C194: 0 | D194: 60000 | E194: 60000 | F194: 18000 | G194: 350 | H194: 40 | I194: 0 | J194: 240 | K194: -1 | L194: -1 | M194: EC-RR7MAH
A195: 192 | B195: 500 | C195: 0 | D195: 50000 | E195: 50000 | F195: 8000 | G195: 700 | H195: 40 | I195: 0 | J195: 120 | K195: -1 | L195: -1 | M195: EC-RR7HAH
A196: 193 | B196: 500 | C196: 0 | D196: 20000 | E196: 20000 | F196: 3000 | G196: 860 | H196: 40 | I196: 0 | J196: 120 | K196: -1 | L196: -1 | M196: EC-RR7SAH
A197: 194 | B197: 200 | C197: 0 | D197: 40000 | E197: 40000 | F197: 12500 | G197: 225 | H197: 40 | I197: 0 | J197: 240 | K197: -1 | L197: 195 | M197: EC-S6LR
A198: 195 | B198: 250 | C198: 0 | D198: 40000 | E198: 40000 | F198: 12500 | G198: 188 | H198: 40 | I198: 0 | J198: 240 | K198: 194 | L198: 196 | M198: EC-S6LR
A199: 196 | B199: 300 | C199: 0 | D199: 40000 | E199: 40000 | F199: 12500 | G199: 134 | H199: 40 | I199: 0 | J199: 240 | K199: 195 | L199: 197 | M199: EC-S6LR
A200: 197 | B200: 350 | C200: 0 | D200: 40000 | E200: 40000 | F200: 12500 | G200: 100 | H200: 40 | I200: 0 | J200: 240 | K200: 196 | L200: 198 | M200: EC-S6LR
... 583 more rows

Sheet MassDataLink (hidden)
B1: 1 | C1: 2 | D1: 3 | E1: 4 | F1: 5 | H1: 1000
A2: ﾃﾞｰﾀ№ | B2: ｱｸﾁｭｴｰﾀ姿勢 | C2: 搬送負荷質量 | D2: 加減速・速度ﾃﾞｰﾀ | E2: 前ﾃﾞｰﾀ№ | F2: 次ﾃﾞｰﾀ№ | G2: 備考
A3: =ModelData!A3 -> 0 | B3: 0/1 | C3: 1g | D3: ﾚｺｰﾄﾞ№ | E3: ﾚｺｰﾄﾞ№ | F3: ﾚｺｰﾄﾞ№ | G3: 型式-姿勢 | H3: 質量
A4: 1 | B4: 0 | C4: 12000 | D4: 1 | E4: -1 | F4: 2 | G4: EC-S6L-水平 | H4: 12
A5: 2 | B5: 0 | C5: 13000 | D5: 2 | E5: 1 | F5: 3 | H5: 13
A6: 3 | B6: 0 | C6: 14000 | D6: 3 | E6: 2 | F6: 4 | H6: 14
A7: 4 | B7: 0 | C7: 15000 | D7: 4 | E7: 3 | F7: 5 | H7: 15
A8: 5 | B8: 0 | C8: 16000 | D8: 5 | E8: 4 | F8: 6 | H8: 16
A9: 6 | B9: 0 | C9: 17000 | D9: 7 | E9: 5 | F9: 7 | H9: 17
A10: 7 | B10: 0 | C10: 18000 | D10: 9 | E10: 6 | F10: 8 | H10: 18
A11: 8 | B11: 0 | C11: 19000 | D11: 11 | E11: 7 | F11: 9 | H11: 19
A12: 9 | B12: 0 | C12: 20000 | D12: 13 | E12: 8 | F12: 10 | H12: 20
A13: 10 | B13: 0 | C13: 21000 | D13: 16 | E13: 9 | F13: 11 | H13: 21
A14: 11 | B14: 0 | C14: 22000 | D14: 19 | E14: 10 | F14: 12 | H14: 22
A15: 12 | B15: 0 | C15: 23000 | D15: 22 | E15: 11 | F15: 13 | H15: 23
A16: 13 | B16: 0 | C16: 24000 | D16: 25 | E16: 12 | F16: 14 | H16: 24
A17: 14 | B17: 0 | C17: 25000 | D17: 28 | E17: 13 | F17: 15 | H17: 25
A18: 15 | B18: 0 | C18: 26000 | D18: 31 | E18: 14 | F18: 16 | H18: 26
A19: 16 | B19: 0 | C19: 27000 | D19: 34 | E19: 15 | F19: 17 | H19: 27
A20: 17 | B20: 0 | C20: 28000 | D20: 37 | E20: 16 | F20: 18 | H20: 28
A21: 18 | B21: 0 | C21: 29000 | D21: 41 | E21: 17 | F21: 19 | H21: 29
A22: 19 | B22: 0 | C22: 30000 | D22: 45 | E22: 18 | F22: 20 | H22: 30
A23: 20 | B23: 0 | C23: 31000 | D23: 49 | E23: 19 | F23: 21 | H23: 31
A24: 21 | B24: 0 | C24: 32000 | D24: 53 | E24: 20 | F24: 22 | H24: 32
A25: 22 | B25: 0 | C25: 33000 | D25: 56 | E25: 21 | F25: 23 | H25: 33
A26: 23 | B26: 0 | C26: 34000 | D26: 59 | E26: 22 | F26: 24 | H26: 34
A27: 24 | B27: 0 | C27: 35000 | D27: 62 | E27: 23 | F27: 25 | H27: 35
A28: 25 | B28: 0 | C28: 36000 | D28: 65 | E28: 24 | F28: 26 | H28: 36
A29: 26 | B29: 0 | C29: 37000 | D29: 66 | E29: 25 | F29: 27 | H29: 37
A30: 27 | B30: 0 | C30: 38000 | D30: 67 | E30: 26 | F30: 28 | H30: 38
A31: 28 | B31: 0 | C31: 39000 | D31: 68 | E31: 27 | F31: 29 | H31: 39
A32: 29 | B32: 0 | C32: 40000 | D32: 69 | E32: 28 | F32: 30 | H32: 40
A33: 30 | B33: 1 | C33: 6000 | D33: 70 | E33: 29 | F33: 31 | G33: EC-S6L-垂直 | H33: 6
A34: 31 | B34: 1 | C34: 7000 | D34: 71 | E34: 30 | F34: 32 | H34: 7
A35: 32 | B35: 1 | C35: 8000 | D35: 72 | E35: 31 | F35: 33 | H35: 8
A36: 33 | B36: 1 | C36: 9000 | D36: 73 | E36: 32 | F36: 34 | H36: 9
A37: 34 | B37: 1 | C37: 10000 | D37: 75 | E37: 33 | F37: 35 | H37: 10
A38: 35 | B38: 1 | C38: 11000 | D38: 77 | E38: 34 | F38: 36 | H38: 11
A39: 36 | B39: 1 | C39: 12000 | D39: 79 | E39: 35 | F39: 37 | H39: 12
A40: 37 | B40: 1 | C40: 12500 | D40: 81 | E40: 36 | F40: -1 | H40: 12.5
A41: 38 | B41: 0 | C41: 4000 | D41: 83 | E41: -1 | F41: 39 | G41: EC-S6M-水平 | H41: 4
A42: 39 | B42: 0 | C42: 5000 | D42: 84 | E42: 38 | F42: 40 | H42: 5
A43: 40 | B43: 0 | C43: 6000 | D43: 85 | E43: 39 | F43: 41 | H43: 6
A44: 41 | B44: 0 | C44: 7000 | D44: 87 | E44: 40 | F44: 42 | H44: 7
A45: 42 | B45: 0 | C45: 8000 | D45: 89 | E45: 41 | F45: 43 | H45: 8
A46: 43 | B46: 0 | C46: 9000 | D46: 92 | E46: 42 | F46: 44 | H46: 9
A47: 44 | B47: 0 | C47: 10000 | D47: 95 | E47: 43 | F47: 45 | H47: 10
A48: 45 | B48: 0 | C48: 11000 | D48: 98 | E48: 44 | F48: 46 | H48: 11
A49: 46 | B49: 0 | C49: 12000 | D49: 101 | E49: 45 | F49: 47 | H49: 12
A50: 47 | B50: 0 | C50: 13000 | D50: 104 | E50: 46 | F50: 48 | H50: 13
A51: 48 | B51: 0 | C51: 14000 | D51: 107 | E51: 47 | F51: 49 | H51: 14
A52: 49 | B52: 0 | C52: 15000 | D52: 110 | E52: 48 | F52: 50 | H52: 15
A53: 50 | B53: 0 | C53: 16000 | D53: 114 | E53: 49 | F53: 51 | H53: 16
A54: 51 | B54: 0 | C54: 17000 | D54: 118 | E54: 50 | F54: 52 | H54: 17
A55: 52 | B55: 0 | C55: 18000 | D55: 122 | E55: 51 | F55: 53 | H55: 18
A56: 53 | B56: 0 | C56: 19000 | D56: 126 | E56: 52 | F56: 54 | H56: 19
A57: 54 | B57: 0 | C57: 20000 | D57: 130 | E57: 53 | F57: 55 | H57: 20
A58: 55 | B58: 0 | C58: 21000 | D58: 134 | E58: 54 | F58: 56 | H58: 21
A59: 56 | B59: 0 | C59: 22000 | D59: 137 | E59: 55 | F59: 57 | H59: 22
A60: 57 | B60: 0 | C60: 23000 | D60: 140 | E60: 56 | F60: 58 | H60: 23
A61: 58 | B61: 0 | C61: 24000 | D61: 143 | E61: 57 | F61: 59 | H61: 24
A62: 59 | B62: 0 | C62: 25000 | D62: 146 | E62: 58 | F62: 60 | H62: 25
A63: 60 | B63: 0 | C63: 26000 | D63: 148 | E63: 59 | F63: 61 | H63: 26
A64: 61 | B64: 0 | C64: 27000 | D64: 150 | E64: 60 | F64: 62 | H64: 27
A65: 62 | B65: 0 | C65: 28000 | D65: 151 | E65: 61 | F65: 63 | H65: 28
A66: 63 | B66: 0 | C66: 29000 | D66: 152 | E66: 62 | F66: 64 | H66: 29
A67: 64 | B67: 0 | C67: 30000 | D67: 153 | E67: 63 | F67: 65 | H67: 30
A68: 65 | B68: 0 | C68: 31000 | D68: 154 | E68: 64 | F68: 66 | H68: 31
A69: 66 | B69: 0 | C69: 32000 | D69: 155 | E69: 65 | F69: 67 | H69: 32
A70: 67 | B70: 1 | C70: 2000 | D70: 156 | E70: 66 | F70: 68 | G70: EC-S6M-垂直 | H70: 2
A71: 68 | B71: 1 | C71: 3000 | D71: 157 | E71: 67 | F71: 69 | H71: 3
A72: 69 | B72: 1 | C72: 3500 | D72: 158 | E72: 68 | F72: 70 | H72: 3.5
A73: 70 | B73: 1 | C73: 4000 | D73: 159 | E73: 69 | F73: 71 | H73: 4
A74: 71 | B74: 1 | C74: 4500 | D74: 161 | E74: 70 | F74: 72 | H74: 4.5
A75: 72 | B75: 1 | C75: 5000 | D75: 162 | E75: 71 | F75: 73 | H75: 5
A76: 73 | B76: 1 | C76: 5500 | D76: 164 | E76: 72 | F76: 74 | H76: 5.5
A77: 74 | B77: 1 | C77: 6000 | D77: 165 | E77: 73 | F77: -1 | H77: 6
A78: 75 | B78: 0 | C78: 4000 | D78: 167 | E78: -1 | F78: 76 | G78: EC-S6H-水平 | H78: 4
A79: 76 | B79: 0 | C79: 5000 | D79: 168 | E79: 75 | F79: 77 | H79: 5
A80: 77 | B80: 0 | C80: 6000 | D80: 170 | E80: 76 | F80: 78 | H80: 6
A81: 78 | B81: 0 | C81: 7000 | D81: 172 | E81: 77 | F81: 79 | H81: 7
A82: 79 | B82: 0 | C82: 8000 | D82: 174 | E82: 78 | F82: 80 | H82: 8
A83: 80 | B83: 0 | C83: 9000 | D83: 176 | E83: 79 | F83: 81 | H83: 9
A84: 81 | B84: 0 | C84: 10000 | D84: 179 | E84: 80 | F84: 82 | H84: 10
A85: 82 | B85: 0 | C85: 11000 | D85: 182 | E85: 81 | F85: 83 | H85: 11
A86: 83 | B86: 0 | C86: 12000 | D86: 185 | E86: 82 | F86: 84 | H86: 12
A87: 84 | B87: 0 | C87: 13000 | D87: 188 | E87: 83 | F87: 85 | H87: 13
A88: 85 | B88: 0 | C88: 14000 | D88: 191 | E88: 84 | F88: 86 | H88: 14
A89: 86 | B89: 0 | C89: 15000 | D89: 194 | E89: 85 | F89: 87 | H89: 15
A90: 87 | B90: 0 | C90: 16000 | D90: 197 | E90: 86 | F90: 88 | H90: 16
A91: 88 | B91: 0 | C91: 17000 | D91: 200 | E91: 87 | F91: 89 | H91: 17
A92: 89 | B92: 0 | C92: 18000 | D92: 202 | E92: 88 | F92: 90 | H92: 18
A93: 90 | B93: 0 | C93: 19000 | D93: 204 | E93: 89 | F93: 91 | H93: 19
A94: 91 | B94: 0 | C94: 20000 | D94: 205 | E94: 90 | F94: 92 | H94: 20
A95: 92 | B95: 0 | C95: 21000 | D95: 206 | E95: 91 | F95: 93 | H95: 21
A96: 93 | B96: 0 | C96: 22000 | D96: 207 | E96: 92 | F96: 94 | H96: 22
A97: 94 | B97: 0 | C97: 23000 | D97: 208 | E97: 93 | F97: 95 | H97: 23
A98: 95 | B98: 0 | C98: 24000 | D98: 209 | E98: 94 | F98: 96 | H98: 24
A99: 96 | B99: 0 | C99: 25000 | D99: 210 | E99: 95 | F99: 97 | H99: 25
A100: 97 | B100: 0 | C100: 26000 | D100: 211 | E100: 96 | F100: 98 | H100: 26
A101: 98 | B101: 1 | C101: 1000 | D101: 212 | E101: 97 | F101: 99 | G101: EC-S6H-垂直 | H101: 1
A102: 99 | B102: 1 | C102: 2000 | D102: 213 | E102: 98 | F102: 100 | H102: 2
A103: 100 | B103: 1 | C103: 2500 | D103: 215 | E103: 99 | F103: -1 | H103: 2.5
A104: 101 | B104: 0 | C104: 3000 | D104: 216 | E104: -1 | F104: 102 | G104: EC-S6S-水平 | H104: 3
A105: 102 | B105: 0 | C105: 4000 | D105: 217 | E105: 101 | F105: 103 | H105: 4
A106: 103 | B106: 0 | C106: 4500 | D106: 218 | E106: 102 | F106: 104 | H106: 4.5
A107: 104 | B107: 0 | C107: 5000 | D107: 219 | E107: 103 | F107: 105 | H107: 5
A108: 105 | B108: 0 | C108: 6000 | D108: 221 | E108: 104 | F108: 106 | H108: 6
A109: 106 | B109: 0 | C109: 6500 | D109: 223 | E109: 105 | F109: 107 | H109: 6.5
A110: 107 | B110: 0 | C110: 7000 | D110: 224 | E110: 106 | F110: 108 | H110: 7
A111: 108 | B111: 0 | C111: 8000 | D111: 227 | E111: 107 | F111: 109 | H111: 8
A112: 109 | B112: 0 | C112: 9000 | D112: 229 | E112: 108 | F112: 110 | H112: 9
A113: 110 | B113: 0 | C113: 10000 | D113: 230 | E113: 109 | F113: 111 | H113: 10
A114: 111 | B114: 0 | C114: 11000 | D114: 232 | E114: 110 | F114: 112 | H114: 11
A115: 112 | B115: 0 | C115: 12000 | D115: 233 | E115: 111 | F115: 113 | H115: 12
A116: 113 | B116: 0 | C116: 13000 | D116: 234 | E116: 112 | F116: 114 | H116: 13
A117: 114 | B117: 0 | C117: 14000 | D117: 235 | E117: 113 | F117: 115 | H117: 14
A118: 115 | B118: 0 | C118: 15000 | D118: 236 | E118: 114 | F118: 116 | H118: 15
A119: 116 | B119: 1 | C119: 1000 | D119: 237 | E119: 115 | F119: -1 | G119: EC-S6S-垂直 | H119: 1
A120: 117 | B120: 0 | C120: 6000 | D120: 238 | E120: -1 | F120: 118 | G120: EC-S7L-水平 | H120: 6
A121: 118 | B121: 0 | C121: 7000 | D121: 239 | E121: 117 | F121: 119 | H121: 7
A122: 119 | B122: 0 | C122: 8000 | D122: 240 | E122: 118 | F122: 120 | H122: 8
A123: 120 | B123: 0 | C123: 9000 | D123: 241 | E123: 119 | F123: 121 | H123: 9
A124: 121 | B124: 0 | C124: 10000 | D124: 242 | E124: 120 | F124: 122 | H124: 10
A125: 122 | B125: 0 | C125: 11000 | D125: 243 | E125: 121 | F125: 123 | H125: 11
A126: 123 | B126: 0 | C126: 12000 | D126: 244 | E126: 122 | F126: 124 | H126: 12
A127: 124 | B127: 0 | C127: 13000 | D127: 245 | E127: 123 | F127: 125 | H127: 13
A128: 125 | B128: 0 | C128: 14000 | D128: 246 | E128: 124 | F128: 126 | H128: 14
A129: 126 | B129: 0 | C129: 15000 | D129: 247 | E129: 125 | F129: 127 | H129: 15
A130: 127 | B130: 0 | C130: 16000 | D130: 248 | E130: 126 | F130: 128 | H130: 16
A131: 128 | B131: 0 | C131: 17000 | D131: 249 | E131: 127 | F131: 129 | H131: 17
A132: 129 | B132: 0 | C132: 18000 | D132: 250 | E132: 128 | F132: 130 | H132: 18
A133: 130 | B133: 0 | C133: 19000 | D133: 252 | E133: 129 | F133: 131 | H133: 19
A134: 131 | B134: 0 | C134: 20000 | D134: 254 | E134: 130 | F134: 132 | H134: 20
A135: 132 | B135: 0 | C135: 21000 | D135: 256 | E135: 131 | F135: 133 | H135: 21
A136: 133 | B136: 0 | C136: 22000 | D136: 258 | E136: 132 | F136: 134 | H136: 22
A137: 134 | B137: 0 | C137: 23000 | D137: 260 | E137: 133 | F137: 135 | H137: 23
A138: 135 | B138: 0 | C138: 24000 | D138: 262 | E138: 134 | F138: 136 | H138: 24
A139: 136 | B139: 0 | C139: 25000 | D139: 264 | E139: 135 | F139: 137 | H139: 25
A140: 137 | B140: 0 | C140: 26000 | D140: 267 | E140: 136 | F140: 138 | H140: 26
A141: 138 | B141: 0 | C141: 27000 | D141: 270 | E141: 137 | F141: 139 | H141: 27
A142: 139 | B142: 0 | C142: 28000 | D142: 273 | E142: 138 | F142: 140 | H142: 28
A143: 140 | B143: 0 | C143: 29000 | D143: 276 | E143: 139 | F143: 141 | H143: 29
A144: 141 | B144: 0 | C144: 30000 | D144: 279 | E144: 140 | F144: 142 | H144: 30
A145: 142 | B145: 0 | C145: 31000 | D145: 283 | E145: 141 | F145: 143 | H145: 31
A146: 143 | B146: 0 | C146: 32000 | D146: 287 | E146: 142 | F146: 144 | H146: 32
A147: 144 | B147: 0 | C147: 33000 | D147: 291 | E147: 143 | F147: 145 | H147: 33
A148: 145 | B148: 0 | C148: 34000 | D148: 295 | E148: 144 | F148: 146 | H148: 34
A149: 146 | B149: 0 | C149: 35000 | D149: 299 | E149: 145 | F149: 147 | H149: 35
A150: 147 | B150: 0 | C150: 36000 | D150: 303 | E150: 146 | F150: 148 | H150: 36
A151: 148 | B151: 0 | C151: 37000 | D151: 307 | E151: 147 | F151: 149 | H151: 37
A152: 149 | B152: 0 | C152: 38000 | D152: 311 | E152: 148 | F152: 150 | H152: 38
A153: 150 | B153: 0 | C153: 39000 | D153: 315 | E153: 149 | F153: 151 | H153: 39
A154: 151 | B154: 0 | C154: 40000 | D154: 319 | E154: 150 | F154: 152 | H154: 40
A155: 152 | B155: 0 | C155: 41000 | D155: 323 | E155: 151 | F155: 153 | H155: 41
A156: 153 | B156: 0 | C156: 42000 | D156: 325 | E156: 152 | F156: 154 | H156: 42
A157: 154 | B157: 0 | C157: 43000 | D157: 327 | E157: 153 | F157: 155 | H157: 43
A158: 155 | B158: 0 | C158: 44000 | D158: 329 | E158: 154 | F158: 156 | H158: 44
A159: 156 | B159: 0 | C159: 45000 | D159: 331 | E159: 155 | F159: 157 | H159: 45
A160: 157 | B160: 0 | C160: 46000 | D160: 333 | E160: 156 | F160: 158 | H160: 46
A161: 158 | B161: 0 | C161: 47000 | D161: 334 | E161: 157 | F161: 159 | H161: 47
A162: 159 | B162: 0 | C162: 48000 | D162: 335 | E162: 158 | F162: 160 | H162: 48
A163: 160 | B163: 0 | C163: 49000 | D163: 336 | E163: 159 | F163: 161 | H163: 49
A164: 161 | B164: 0 | C164: 50000 | D164: 337 | E164: 160 | F164: 162 | H164: 50
A165: 162 | B165: 0 | C165: 51000 | D165: 338 | E165: 161 | F165: 163 | H165: 51
A166: 163 | B166: 1 | C166: 7500 | D166: 339 | E166: 162 | F166: 164 | H166: 7.5
A167: 164 | B167: 1 | C167: 8000 | D167: 340 | E167: 163 | F167: 165 | H167: 8
A168: 165 | B168: 1 | C168: 9000 | D168: 341 | E168: 164 | F168: 166 | H168: 9
A169: 166 | B169: 1 | C169: 10000 | D169: 343 | E169: 165 | F169: 167 | H169: 10
A170: 167 | B170: 1 | C170: 11000 | D170: 345 | E170: 166 | F170: 168 | H170: 11
A171: 168 | B171: 1 | C171: 12000 | D171: 347 | E171: 167 | F171: 169 | H171: 12
A172: 169 | B172: 1 | C172: 13000 | D172: 349 | E172: 168 | F172: 170 | H172: 13
A173: 170 | B173: 1 | C173: 14000 | D173: 351 | E173: 169 | F173: 171 | H173: 14
A174: 171 | B174: 1 | C174: 15000 | D174: 353 | E174: 170 | F174: 172 | H174: 15
A175: 172 | B175: 1 | C175: 16000 | D175: 355 | E175: 171 | F175: 173 | H175: 16
A176: 173 | B176: 1 | C176: 17000 | D176: 357 | E176: 172 | F176: 174 | H176: 17
A177: 174 | B177: 1 | C177: 18000 | D177: 359 | E177: 173 | F177: 175 | H177: 18
A178: 175 | B178: 1 | C178: 19000 | D178: 361 | E178: 174 | F178: -1 | H178: 19
A179: 176 | B179: 0 | C179: 4000 | D179: 362 | E179: -1 | F179: 177 | G179: EC-S7M-水平 | H179: 4
A180: 177 | B180: 0 | C180: 5000 | D180: 363 | E180: 176 | F180: 178 | H180: 5
A181: 178 | B181: 0 | C181: 6000 | D181: 364 | E181: 177 | F181: 179 | H181: 6
A182: 179 | B182: 0 | C182: 7000 | D182: 365 | E182: 178 | F182: 180 | H182: 7
A183: 180 | B183: 0 | C183: 8000 | D183: 367 | E183: 179 | F183: 181 | H183: 8
A184: 181 | B184: 0 | C184: 9000 | D184: 369 | E184: 180 | F184: 182 | H184: 9
A185: 182 | B185: 0 | C185: 10000 | D185: 372 | E185: 181 | F185: 183 | H185: 10
A186: 183 | B186: 0 | C186: 11000 | D186: 375 | E186: 182 | F186: 184 | H186: 11
A187: 184 | B187: 0 | C187: 12000 | D187: 378 | E187: 183 | F187: 185 | H187: 12
A188: 185 | B188: 0 | C188: 13000 | D188: 381 | E188: 184 | F188: 186 | H188: 13
A189: 186 | B189: 0 | C189: 14000 | D189: 384 | E189: 185 | F189: 187 | H189: 14
A190: 187 | B190: 0 | C190: 15000 | D190: 387 | E190: 186 | F190: 188 | H190: 15
A191: 188 | B191: 0 | C191: 16000 | D191: 391 | E191: 187 | F191: 189 | H191: 16
A192: 189 | B192: 0 | C192: 17000 | D192: 395 | E192: 188 | F192: 190 | H192: 17
A193: 190 | B193: 0 | C193: 18000 | D193: 399 | E193: 189 | F193: 191 | H193: 18
A194: 191 | B194: 0 | C194: 19000 | D194: 403 | E194: 190 | F194: 192 | H194: 19
A195: 192 | B195: 0 | C195: 20000 | D195: 407 | E195: 191 | F195: 193 | H195: 20
A196: 193 | B196: 0 | C196: 21000 | D196: 411 | E196: 192 | F196: 194 | H196: 21
A197: 194 | B197: 0 | C197: 22000 | D197: 415 | E197: 193 | F197: 195 | H197: 22
A198: 195 | B198: 0 | C198: 23000 | D198: 419 | E198: 194 | F198: 196 | H198: 23
A199: 196 | B199: 0 | C199: 24000 | D199: 423 | E199: 195 | F199: 197 | H199: 24
A200: 197 | B200: 0 | C200: 25000 | D200: 427 | E200: 196 | F200: 198 | H200: 25
... 7577 more rows

Sheet AccVelDataLink (hidden)
A1: =LeadData!A1 -> 9.80665 | B1: 1 | C1: 2 | D1: 3 | E1: 4
A2: ﾃﾞｰﾀ№ | B2: 水平定格加速度 | C2: 最高速度 | D2: 前ﾃﾞｰﾀ№ | E2: 次ﾃﾞｰﾀ№ | F2: 備考
A3: =ModelData!A3 -> 0 | B3: 0.001mm/s^2 | C3: ㎜/s | D3: ﾚｺｰﾄﾞ№ | E3: ﾚｺｰﾄﾞ№ | F3: 型式-姿勢 | G3: kg | H3: G | I3: mm/s | J3: 前№ﾁｪｯｸ | K3: 後№ﾁｪｯｸ
A4: 1 | B4: 9806650 | C4: 225 | D4: -1 | E4: -1 | F4: EC-S6L-水平 | G4: 12 | H4: 1 | I4: 225 | J4: =IF(G4=0,IF(D4<>A3,"ﾘﾝｸ不正","○"),"○") -> ○ | K4: =IF(D5<>-1,IF(E4<>A5,"ﾘﾝｸ不正","○"),"○") -> ○
A5: 2 | B5: 9806650 | C5: 221 | D5: -1 | E5: -1 | F5: EC-S6L-水平 | G5: 13 | H5: 1 | I5: 221 | J5: ○ | K5: ○
A6: 3 | B6: 9806650 | C6: 218 | D6: -1 | E6: -1 | F6: EC-S6L-水平 | G6: 14 | H6: 1 | I6: 218 | J6: ○ | K6: ○
A7: 4 | B7: 9806650 | C7: 215 | D7: -1 | E7: -1 | F7: EC-S6L-水平 | G7: 15 | H7: 1 | I7: 215 | J7: ○ | K7: ○
A8: 5 | B8: 6864655 | C8: 225 | D8: -1 | E8: 6 | F8: EC-S6L-水平 | G8: 16 | H8: 0.7 | I8: 225 | J8: ○ | K8: ○
A9: 6 | B9: 9806650 | C9: 212 | D9: 5 | E9: -1 | H9: 1 | I9: 212 | J9: ○ | K9: ○
A10: 7 | B10: 6864655 | C10: 221 | D10: -1 | E10: 8 | F10: EC-S6L-水平 | G10: 17 | H10: 0.7 | I10: 221 | J10: ○ | K10: ○
A11: 8 | B11: 9806650 | C11: 209 | D11: 7 | E11: -1 | H11: 1 | I11: 209 | J11: ○ | K11: ○
A12: 9 | B12: 6864655 | C12: 217 | D12: -1 | E12: 10 | F12: EC-S6L-水平 | G12: 18 | H12: 0.7 | I12: 217 | J12: ○ | K12: ○
A13: 10 | B13: 9806650 | C13: 206 | D13: 9 | E13: -1 | H13: 1 | I13: 206 | J13: ○ | K13: ○
A14: 11 | B14: 6864655 | C14: 214 | D14: -1 | E14: 12 | F14: EC-S6L-水平 | G14: 19 | H14: 0.7 | I14: 214 | J14: ○ | K14: ○
A15: 12 | B15: 9806650 | C15: 203 | D15: 11 | E15: -1 | H15: 1 | I15: 203 | J15: ○ | K15: ○
A16: 13 | B16: 4903325 | C16: 225 | D16: -1 | E16: 14 | F16: EC-S6L-水平 | G16: 20 | H16: 0.5 | I16: 225 | J16: ○ | K16: ○
A17: 14 | B17: 6864655 | C17: 210 | D17: 13 | E17: 15 | H17: 0.7 | I17: 210 | J17: ○ | K17: ○
A18: 15 | B18: 9806650 | C18: 200 | D18: 14 | E18: -1 | H18: 1 | I18: 200 | J18: ○ | K18: ○
A19: 16 | B19: 4903325 | C19: 221 | D19: -1 | E19: 17 | F19: EC-S6L-水平 | G19: 21 | H19: 0.5 | I19: 221 | J19: ○ | K19: ○
A20: 17 | B20: 6864655 | C20: 207 | D20: 16 | E20: 18 | H20: 0.7 | I20: 207 | J20: ○ | K20: ○
A21: 18 | B21: 9806650 | C21: 192 | D21: 17 | E21: -1 | H21: 1 | I21: 192 | J21: ○ | K21: ○
A22: 19 | B22: 4903325 | C22: 218 | D22: -1 | E22: 20 | F22: EC-S6L-水平 | G22: 22 | H22: 0.5 | I22: 218 | J22: ○ | K22: ○
A23: 20 | B23: 6864655 | C23: 203 | D23: 19 | E23: 21 | H23: 0.7 | I23: 203 | J23: ○ | K23: ○
A24: 21 | B24: 9806650 | C24: 185 | D24: 20 | E24: -1 | H24: 1 | I24: 185 | J24: ○ | K24: ○
A25: 22 | B25: 4903325 | C25: 215 | D25: -1 | E25: 23 | F25: EC-S6L-水平 | G25: 23 | H25: 0.5 | I25: 215 | J25: ○ | K25: ○
A26: 23 | B26: 6864655 | C26: 200 | D26: 22 | E26: 24 | H26: 0.7 | I26: 200 | J26: ○ | K26: ○
A27: 24 | B27: 9806650 | C27: 177 | D27: 23 | E27: -1 | H27: 1 | I27: 177 | J27: ○ | K27: ○
A28: 25 | B28: 4903325 | C28: 212 | D28: -1 | E28: 26 | F28: EC-S6L-水平 | G28: 24 | H28: 0.5 | I28: 212 | J28: ○ | K28: ○
A29: 26 | B29: 6864655 | C29: 196 | D29: 25 | E29: 27 | H29: 0.7 | I29: 196 | J29: ○ | K29: ○
A30: 27 | B30: 9806650 | C30: 170 | D30: 26 | E30: -1 | H30: 1 | I30: 170 | J30: ○ | K30: ○
A31: 28 | B31: 4903325 | C31: 209 | D31: -1 | E31: 29 | F31: EC-S6L-水平 | G31: 25 | H31: 0.5 | I31: 209 | J31: ○ | K31: ○
A32: 29 | B32: 6864655 | C32: 193 | D32: 28 | E32: 30 | H32: 0.7 | I32: 193 | J32: ○ | K32: ○
A33: 30 | B33: 9806650 | C33: 162 | D33: 29 | E33: -1 | H33: 1 | I33: 162 | J33: ○ | K33: ○
A34: 31 | B34: 4903325 | C34: 206 | D34: -1 | E34: 32 | F34: EC-S6L-水平 | G34: 26 | H34: 0.5 | I34: 206 | J34: ○ | K34: ○
A35: 32 | B35: 6864655 | C35: 190 | D35: 31 | E35: 33 | H35: 0.7 | I35: 190 | J35: ○ | K35: ○
A36: 33 | B36: 9806650 | C36: 155 | D36: 32 | E36: -1 | H36: 1 | I36: 155 | J36: ○ | K36: ○
A37: 34 | B37: 4903325 | C37: 203 | D37: -1 | E37: 35 | F37: EC-S6L-水平 | G37: 27 | H37: 0.5 | I37: 203 | J37: ○ | K37: ○
A38: 35 | B38: 6864655 | C38: 186 | D38: 34 | E38: 36 | H38: 0.7 | I38: 186 | J38: ○ | K38: ○
A39: 36 | B39: 9806650 | C39: 147 | D39: 35 | E39: -1 | H39: 1 | I39: 147 | J39: ○ | K39: ○
A40: 37 | B40: 2941995 | C40: 225 | D40: -1 | E40: 38 | F40: EC-S6L-水平 | G40: 28 | H40: 0.3 | I40: 225 | J40: ○ | K40: ○
A41: 38 | B41: 4903325 | C41: 200 | D41: 37 | E41: 39 | H41: 0.5 | I41: 200 | J41: ○ | K41: ○
A42: 39 | B42: 6864655 | C42: 183 | D42: 38 | E42: 40 | H42: 0.7 | I42: 183 | J42: ○ | K42: ○
A43: 40 | B43: 9806650 | C43: 140 | D43: 39 | E43: -1 | H43: 1 | I43: 140 | J43: ○ | K43: ○
A44: 41 | B44: 2941995 | C44: 221 | D44: -1 | E44: 42 | F44: EC-S6L-水平 | G44: 29 | H44: 0.3 | I44: 221 | J44: ○ | K44: ○
A45: 42 | B45: 4903325 | C45: 192 | D45: 41 | E45: 43 | H45: 0.5 | I45: 192 | J45: ○ | K45: ○
A46: 43 | B46: 6864655 | C46: 180 | D46: 42 | E46: 44 | H46: 0.7 | I46: 180 | J46: ○ | K46: ○
A47: 44 | B47: 9806650 | C47: 125 | D47: 43 | E47: -1 | H47: 1 | I47: 125 | J47: ○ | K47: ○
A48: 45 | B48: 2941995 | C48: 217 | D48: -1 | E48: 46 | F48: EC-S6L-水平 | G48: 30 | H48: 0.3 | I48: 217 | J48: ○ | K48: ○
A49: 46 | B49: 4903325 | C49: 185 | D49: 45 | E49: 47 | H49: 0.5 | I49: 185 | J49: ○ | K49: ○
A50: 47 | B50: 6864655 | C50: 176 | D50: 46 | E50: 48 | H50: 0.7 | I50: 176 | J50: ○ | K50: ○
A51: 48 | B51: 9806650 | C51: 110 | D51: 47 | E51: -1 | H51: 1 | I51: 110 | J51: ○ | K51: ○
A52: 49 | B52: 2941995 | C52: 214 | D52: -1 | E52: 50 | F52: EC-S6L-水平 | G52: 31 | H52: 0.3 | I52: 214 | J52: ○ | K52: ○
A53: 50 | B53: 4903325 | C53: 177 | D53: 49 | E53: 51 | H53: 0.5 | I53: 177 | J53: ○ | K53: ○
A54: 51 | B54: 6864655 | C54: 173 | D54: 50 | E54: 52 | H54: 0.7 | I54: 173 | J54: ○ | K54: ○
A55: 52 | B55: 9806650 | C55: 74 | D55: 51 | E55: -1 | H55: 1 | I55: 74 | J55: ○ | K55: ○
A56: 53 | B56: 2941995 | C56: 210 | D56: -1 | E56: 54 | F56: EC-S6L-水平 | G56: 32 | H56: 0.3 | I56: 210 | J56: ○ | K56: ○
A57: 54 | B57: 6864655 | C57: 170 | D57: 53 | E57: 55 | H57: 0.7 | I57: 170 | J57: ○ | K57: ○
A58: 55 | B58: 9806650 | C58: 68 | D58: 54 | E58: -1 | H58: 1 | I58: 68 | J58: ○ | K58: ○
A59: 56 | B59: 2941995 | C59: 207 | D59: -1 | E59: 57 | F59: EC-S6L-水平 | G59: 33 | H59: 0.3 | I59: 207 | J59: ○ | K59: ○
A60: 57 | B60: 6864655 | C60: 160 | D60: 56 | E60: 58 | H60: 0.7 | I60: 160 | J60: ○ | K60: ○
A61: 58 | B61: 9806650 | C61: 62 | D61: 57 | E61: -1 | H61: 1 | I61: 62 | J61: ○ | K61: ○
A62: 59 | B62: 2941995 | C62: 203 | D62: -1 | E62: 60 | F62: EC-S6L-水平 | G62: 34 | H62: 0.3 | I62: 203 | J62: ○ | K62: ○
A63: 60 | B63: 6864655 | C63: 150 | D63: 59 | E63: 61 | H63: 0.7 | I63: 150 | J63: ○ | K63: ○
A64: 61 | B64: 9806650 | C64: 56 | D64: 60 | E64: -1 | H64: 1 | I64: 56 | J64: ○ | K64: ○
A65: 62 | B65: 2941995 | C65: 200 | D65: -1 | E65: 63 | F65: EC-S6L-水平 | G65: 35 | H65: 0.3 | I65: 200 | J65: ○ | K65: ○
A66: 63 | B66: 6864655 | C66: 140 | D66: 62 | E66: 64 | H66: 0.7 | I66: 140 | J66: ○ | K66: ○
A67: 64 | B67: 9806650 | C67: 50 | D67: 63 | E67: -1 | H67: 1 | I67: 50 | J67: ○ | K67: ○
A68: 65 | B68: 2941995 | C68: 194 | D68: -1 | E68: -1 | F68: EC-S6L-水平 | G68: 36 | H68: 0.3 | I68: 194 | J68: =IF(G68=0,IF(D68<>A67,"ﾘﾝｸ不正","○"),"○") -> ○ | K68: =IF(D69<>-1,IF(E68<>A69,"ﾘﾝｸ不正","○"),"○") -> ○
A69: 66 | B69: 2941995 | C69: 188 | D69: -1 | E69: -1 | F69: EC-S6L-水平 | G69: 37 | H69: 0.3 | I69: 188 | J69: ○ | K69: ○
A70: 67 | B70: 2941995 | C70: 182 | D70: -1 | E70: -1 | F70: EC-S6L-水平 | G70: 38 | H70: 0.3 | I70: 182 | J70: ○ | K70: ○
A71: 68 | B71: 2941995 | C71: 176 | D71: -1 | E71: -1 | F71: EC-S6L-水平 | G71: 39 | H71: 0.3 | I71: 176 | J71: ○ | K71: ○
A72: 69 | B72: 2941995 | C72: 170 | D72: -1 | E72: -1 | F72: EC-S6L-水平 | G72: 40 | H72: 0.3 | I72: 170 | J72: ○ | K72: ○
A73: 70 | B73: 2941995 | C73: 225 | D73: -1 | E73: -1 | F73: EC-S6L-垂直 | G73: 6 | H73: 0.3 | I73: 225 | J73: ○ | K73: ○
A74: 71 | B74: 2941995 | C74: 218 | D74: -1 | E74: -1 | F74: EC-S6L-垂直 | G74: 7 | H74: 0.3 | I74: 218 | J74: ○ | K74: ○
A75: 72 | B75: 2941995 | C75: 212 | D75: -1 | E75: -1 | F75: EC-S6L-垂直 | G75: 8 | H75: 0.3 | I75: 212 | J75: ○ | K75: ○
A76: 73 | B76: 2941995 | C76: 206 | D76: -1 | E76: 74 | F76: EC-S6L-垂直 | G76: 9 | H76: 0.3 | I76: 206 | J76: ○ | K76: ○
A77: 74 | B77: 4903325 | C77: 200 | D77: 73 | E77: -1 | H77: 0.5 | I77: 200 | J77: ○ | K77: ○
A78: 75 | B78: 2941995 | C78: 200 | D78: -1 | E78: 76 | F78: EC-S6L-垂直 | G78: 10 | H78: 0.3 | I78: 200 | J78: ○ | K78: ○
A79: 76 | B79: 4903325 | C79: 190 | D79: 75 | E79: -1 | H79: 0.5 | I79: 190 | J79: ○ | K79: ○
A80: 77 | B80: 2941995 | C80: 188 | D80: -1 | E80: 78 | F80: EC-S6L-垂直 | G80: 11 | H80: 0.3 | I80: 188 | J80: ○ | K80: ○
A81: 78 | B81: 4903325 | C81: 180 | D81: 77 | E81: -1 | H81: 0.5 | I81: 180 | J81: ○ | K81: ○
A82: 79 | B82: 2941995 | C82: 176 | D82: -1 | E82: 80 | F82: EC-S6L-垂直 | G82: 12 | H82: 0.3 | I82: 176 | J82: ○ | K82: ○
A83: 80 | B83: 4903325 | C83: 170 | D83: 79 | E83: -1 | H83: 0.5 | I83: 170 | J83: ○ | K83: ○
A84: 81 | B84: 2941995 | C84: 170 | D84: -1 | E84: 82 | F84: EC-S6L-垂直 | G84: 12.5 | H84: 0.3 | I84: 170 | J84: ○ | K84: ○
A85: 82 | B85: 4903325 | C85: 140 | D85: 81 | E85: -1 | H85: 0.5 | I85: 140 | J85: ○ | K85: ○
A86: 83 | B86: 9806650 | C86: 450 | D86: -1 | E86: -1 | F86: EC-S6M-水平 | G86: 4 | H86: 1 | I86: 450 | J86: ○ | K86: ○
A87: 84 | B87: 9806650 | C87: 437 | D87: -1 | E87: -1 | F87: EC-S6M-水平 | G87: 5 | H87: 1 | I87: 437 | J87: ○ | K87: ○
A88: 85 | B88: 6864655 | C88: 450 | D88: -1 | E88: 86 | F88: EC-S6M-水平 | G88: 6 | H88: 0.7 | I88: 450 | J88: ○ | K88: ○
A89: 86 | B89: 9806650 | C89: 425 | D89: 85 | E89: -1 | H89: 1 | I89: 425 | J89: ○ | K89: ○
A90: 87 | B90: 6864655 | C90: 440 | D90: -1 | E90: 88 | F90: EC-S6M-水平 | G90: 7 | H90: 0.7 | I90: 440 | J90: ○ | K90: ○
A91: 88 | B91: 9806650 | C91: 412 | D91: 87 | E91: -1 | H91: 1 | I91: 412 | J91: ○ | K91: ○
A92: 89 | B92: 4903325 | C92: 450 | D92: -1 | E92: 90 | F92: EC-S6M-水平 | G92: 8 | H92: 0.5 | I92: 450 | J92: ○ | K92: ○
A93: 90 | B93: 6864655 | C93: 430 | D93: 89 | E93: 91 | H93: 0.7 | I93: 430 | J93: ○ | K93: ○
A94: 91 | B94: 9806650 | C94: 400 | D94: 90 | E94: -1 | H94: 1 | I94: 400 | J94: ○ | K94: ○
A95: 92 | B95: 4903325 | C95: 437 | D95: -1 | E95: 93 | F95: EC-S6M-水平 | G95: 9 | H95: 0.5 | I95: 437 | J95: ○ | K95: ○
A96: 93 | B96: 6864655 | C96: 420 | D96: 92 | E96: 94 | H96: 0.7 | I96: 420 | J96: ○ | K96: ○
A97: 94 | B97: 9806650 | C97: 385 | D97: 93 | E97: -1 | H97: 1 | I97: 385 | J97: ○ | K97: ○
A98: 95 | B98: 4903325 | C98: 425 | D98: -1 | E98: 96 | F98: EC-S6M-水平 | G98: 10 | H98: 0.5 | I98: 425 | J98: ○ | K98: ○
A99: 96 | B99: 6864655 | C99: 410 | D99: 95 | E99: 97 | H99: 0.7 | I99: 410 | J99: ○ | K99: ○
A100: 97 | B100: 9806650 | C100: 370 | D100: 96 | E100: -1 | H100: 1 | I100: 370 | J100: ○ | K100: ○
A101: 98 | B101: 4903325 | C101: 412 | D101: -1 | E101: 99 | F101: EC-S6M-水平 | G101: 11 | H101: 0.5 | I101: 412 | J101: ○ | K101: ○
A102: 99 | B102: 6864655 | C102: 400 | D102: 98 | E102: 100 | H102: 0.7 | I102: 400 | J102: ○ | K102: ○
A103: 100 | B103: 9806650 | C103: 355 | D103: 99 | E103: -1 | H103: 1 | I103: 355 | J103: ○ | K103: ○
A104: 101 | B104: 4903325 | C104: 400 | D104: -1 | E104: 102 | F104: EC-S6M-水平 | G104: 12 | H104: 0.5 | I104: 400 | J104: ○ | K104: ○
A105: 102 | B105: 6864655 | C105: 391 | D105: 101 | E105: 103 | H105: 0.7 | I105: 391 | J105: ○ | K105: ○
A106: 103 | B106: 9806650 | C106: 340 | D106: 102 | E106: -1 | H106: 1 | I106: 340 | J106: ○ | K106: ○
A107: 104 | B107: 4903325 | C107: 392 | D107: -1 | E107: 105 | F107: EC-S6M-水平 | G107: 13 | H107: 0.5 | I107: 392 | J107: ○ | K107: ○
A108: 105 | B108: 6864655 | C108: 382 | D108: 104 | E108: 106 | H108: 0.7 | I108: 382 | J108: ○ | K108: ○
A109: 106 | B109: 9806650 | C109: 320 | D109: 105 | E109: -1 | H109: 1 | I109: 320 | J109: ○ | K109: ○
A110: 107 | B110: 4903325 | C110: 385 | D110: -1 | E110: 108 | F110: EC-S6M-水平 | G110: 14 | H110: 0.5 | I110: 385 | J110: ○ | K110: ○
A111: 108 | B111: 6864655 | C111: 374 | D111: 107 | E111: 109 | H111: 0.7 | I111: 374 | J111: ○ | K111: ○
A112: 109 | B112: 9806650 | C112: 300 | D112: 108 | E112: -1 | H112: 1 | I112: 300 | J112: ○ | K112: ○
A113: 110 | B113: 2941995 | C113: 450 | D113: -1 | E113: 111 | F113: EC-S6M-水平 | G113: 15 | H113: 0.3 | I113: 450 | J113: ○ | K113: ○
A114: 111 | B114: 4903325 | C114: 377 | D114: 110 | E114: 112 | H114: 0.5 | I114: 377 | J114: ○ | K114: ○
A115: 112 | B115: 6864655 | C115: 365 | D115: 111 | E115: 113 | H115: 0.7 | I115: 365 | J115: ○ | K115: ○
A116: 113 | B116: 9806650 | C116: 280 | D116: 112 | E116: -1 | H116: 1 | I116: 280 | J116: ○ | K116: ○
A117: 114 | B117: 2941995 | C117: 442 | D117: -1 | E117: 115 | F117: EC-S6M-水平 | G117: 16 | H117: 0.3 | I117: 442 | J117: ○ | K117: ○
A118: 115 | B118: 4903325 | C118: 370 | D118: 114 | E118: 116 | H118: 0.5 | I118: 370 | J118: ○ | K118: ○
A119: 116 | B119: 6864655 | C119: 357 | D119: 115 | E119: 117 | H119: 0.7 | I119: 357 | J119: ○ | K119: ○
A120: 117 | B120: 9806650 | C120: 268 | D120: 116 | E120: -1 | H120: 1 | I120: 268 | J120: ○ | K120: ○
A121: 118 | B121: 2941995 | C121: 435 | D121: -1 | E121: 119 | F121: EC-S6M-水平 | G121: 17 | H121: 0.3 | I121: 435 | J121: ○ | K121: ○
A122: 119 | B122: 4903325 | C122: 362 | D122: 118 | E122: 120 | H122: 0.5 | I122: 362 | J122: ○ | K122: ○
A123: 120 | B123: 6864655 | C123: 348 | D123: 119 | E123: 121 | H123: 0.7 | I123: 348 | J123: ○ | K123: ○
A124: 121 | B124: 9806650 | C124: 256 | D124: 120 | E124: -1 | H124: 1 | I124: 256 | J124: ○ | K124: ○
A125: 122 | B125: 2941995 | C125: 428 | D125: -1 | E125: 123 | F125: EC-S6M-水平 | G125: 18 | H125: 0.3 | I125: 428 | J125: ○ | K125: ○
A126: 123 | B126: 4903325 | C126: 355 | D126: 122 | E126: 124 | H126: 0.5 | I126: 355 | J126: ○ | K126: ○
A127: 124 | B127: 6864655 | C127: 340 | D127: 123 | E127: 125 | H127: 0.7 | I127: 340 | J127: ○ | K127: ○
A128: 125 | B128: 9806650 | C128: 244 | D128: 124 | E128: -1 | H128: 1 | I128: 244 | J128: ○ | K128: ○
A129: 126 | B129: 2941995 | C129: 421 | D129: -1 | E129: 127 | F129: EC-S6M-水平 | G129: 19 | H129: 0.3 | I129: 421 | J129: ○ | K129: ○
A130: 127 | B130: 4903325 | C130: 347 | D130: 126 | E130: 128 | H130: 0.5 | I130: 347 | J130: ○ | K130: ○
A131: 128 | B131: 6864655 | C131: 330 | D131: 127 | E131: 129 | H131: 0.7 | I131: 330 | J131: ○ | K131: ○
A132: 129 | B132: 9806650 | C132: 232 | D132: 128 | E132: -1 | H132: 1 | I132: 232 | J132: =IF(G132=0,IF(D132<>A131,"ﾘﾝｸ不正","○"),"○") -> ○ | K132: =IF(D133<>-1,IF(E132<>A133,"ﾘﾝｸ不正","○"),"○") -> ○
A133: 130 | B133: 2941995 | C133: 414 | D133: -1 | E133: 131 | F133: EC-S6M-水平 | G133: 20 | H133: 0.3 | I133: 414 | J133: ○ | K133: ○
A134: 131 | B134: 4903325 | C134: 340 | D134: 130 | E134: 132 | H134: 0.5 | I134: 340 | J134: ○ | K134: ○
A135: 132 | B135: 6864655 | C135: 320 | D135: 131 | E135: 133 | H135: 0.7 | I135: 320 | J135: ○ | K135: ○
A136: 133 | B136: 9806650 | C136: 220 | D136: 132 | E136: -1 | H136: 1 | I136: 220 | J136: ○ | K136: ○
A137: 134 | B137: 2941995 | C137: 407 | D137: -1 | E137: 135 | F137: EC-S6M-水平 | G137: 21 | H137: 0.3 | I137: 407 | J137: ○ | K137: ○
A138: 135 | B138: 4903325 | C138: 330 | D138: 134 | E138: 136 | H138: 0.5 | I138: 330 | J138: ○ | K138: ○
A139: 136 | B139: 6864655 | C139: 310 | D139: 135 | E139: -1 | H139: 0.7 | I139: 310 | J139: ○ | K139: ○
A140: 137 | B140: 2941995 | C140: 400 | D140: -1 | E140: 138 | F140: EC-S6M-水平 | G140: 22 | H140: 0.3 | I140: 400 | J140: ○ | K140: ○
A141: 138 | B141: 4903325 | C141: 320 | D141: 137 | E141: 139 | H141: 0.5 | I141: 320 | J141: ○ | K141: ○
A142: 139 | B142: 6864655 | C142: 300 | D142: 138 | E142: -1 | H142: 0.7 | I142: 300 | J142: ○ | K142: ○
A143: 140 | B143: 2941995 | C143: 394 | D143: -1 | E143: 141 | F143: EC-S6M-水平 | G143: 23 | H143: 0.3 | I143: 394 | J143: ○ | K143: ○
A144: 141 | B144: 4903325 | C144: 310 | D144: 140 | E144: 142 | H144: 0.5 | I144: 310 | J144: ○ | K144: ○
A145: 142 | B145: 6864655 | C145: 290 | D145: 141 | E145: -1 | H145: 0.7 | I145: 290 | J145: ○ | K145: ○
A146: 143 | B146: 2941995 | C146: 388 | D146: -1 | E146: 144 | F146: EC-S6M-水平 | G146: 24 | H146: 0.3 | I146: 388 | J146: ○ | K146: ○
A147: 144 | B147: 4903325 | C147: 300 | D147: 143 | E147: 145 | H147: 0.5 | I147: 300 | J147: ○ | K147: ○
A148: 145 | B148: 6864655 | C148: 280 | D148: 144 | E148: -1 | H148: 0.7 | I148: 280 | J148: ○ | K148: ○
A149: 146 | B149: 2941995 | C149: 382 | D149: -1 | E149: 147 | F149: EC-S6M-水平 | G149: 25 | H149: 0.3 | I149: 382 | J149: ○ | K149: ○
A150: 147 | B150: 4903325 | C150: 290 | D150: 146 | E150: -1 | H150: 0.5 | I150: 290 | J150: ○ | K150: ○
A151: 148 | B151: 2941995 | C151: 376 | D151: -1 | E151: 149 | F151: EC-S6M-水平 | G151: 26 | H151: 0.3 | I151: 376 | J151: ○ | K151: ○
A152: 149 | B152: 4903325 | C152: 280 | D152: 148 | E152: -1 | H152: 0.5 | I152: 280 | J152: ○ | K152: ○
A153: 150 | B153: 2941995 | C153: 370 | D153: -1 | E153: -1 | F153: EC-S6M-水平 | G153: 27 | H153: 0.3 | I153: 370 | J153: ○ | K153: ○
